Workbook

Sheet Mensaje
C10: ACTIVAR MACRO PARA ACCEDER AL CONTENIDO

Sheet PARAMETROS (hidden)
B2: Legenda | C2: Dato de entrada
C3: Celda llave
C4: Error
C5: Dato calculado
A7: Generalidades
B9: Horizonte 1 | C9: 2020
B10: Horizonte 2 | C10: 2025
B11: Horizonte 3 | C11: 2030
B12: Horizonte 4 | C12: 2035
B13: Horizonte 5 | C13: 2040
B15: Ano puesta en servicio | C15: =C9-1 -> 2019
B16: Ano base | C16: 2015
B17: Periodo de evaluacion | C17: 30 | D17: anos
B18: Ultimo ano | C18: =C15+C17 -> 2049
A21: Parametros de modelacion de trafico
B23: Coeficiente de pasaje [Periodo de modelacion => HPS] | C23: 1
B25: Coeficiente [HPS => JOB] | C25: 0.09
A27: Costos generales y provisiones para imprevistos
D29: Ratio | E29: Provisiones para imprevistos
B30: Estudios y diseños | C30: % costo de la obra | D30: 0.08 | E30: 0.1
B31: Supervision de obras | C31: % costo de la obra | D31: 0.04 | E31: 0.1
B32: Fiscalizacion del proyecto | C32: % costo de obra | D32: 0.05 | E32: 0.1
B33: % gastos de Gestión externalizados (auditores, seguros) | C33: % costo de la obra | D33: 0.03 | E33: 0.1
B34: Tramites administrativos | C34: U | D34: 600000 | E34: 0.25
B36: Capex Category Code | C36: INFRA | D36: EQUIP | E36: VEH | F36: PRED | H36: Liste: "Capex_Category_Code"
B37: Capex Category Name | C37: Infraestructura | D37: Equipamientos | E37: Vehiculos | F37: Predios
B38: % provisiones imprevistos | C38: 0.25 | D38: 0.25 | E38: 0.15 | F38: 0.25
B39: Estudios, Diseños y Supervisión | C39: Aplica | D39: Aplica | E39: Aplica | F39: No aplica
B41: Tarifa electricidad | D41: 0.084 | E41: USD / kWh | F41: Tarifa industrial maxima aplicada en Ecuador en el 2014
B43: Costo de operacion de busetas | D43: =0.05*14 -> 0.7 | E43: USD /km recorrido
B45: Costos de mantenancia (100% parte extranjera)
D46: EURO 2015 | F46: USD 2015
D47: Telecabinas | E47: 3S | F47: Telecabinas | G47: 3S
B48: Costo de materia anual | C48: Costo/m | D48: 85 | E48: 65 | F48: =D48*C83 -> 95.2 | G48: =E48*C83 -> 72.8
B49: Costo de materia para mantenancia preventiva cada 5 años | C49: Costo/m | D49: 375 | E49: 285 | F49: =375*C83 -> 420 | G49: =285*C83 -> 319.2
B51: Cambio preventivo del cable de soporte/traccion cada 5 años | C51: Costo/m | D51: 225 | E51: - | F51: =D51*C83 -> 252 | G51: -
B52: Cambio preventivo del cable de traccion cada 10 años | C52: Costo/m | D52: - | E52: 195 | F52: - | G52: =E52*C83 -> 218.4
B54: IVA | C54: 0.12
B56: Suministro | C56: LOCAL | D56: EUROPA | H56: Liste:"Suministro"
A58: Escenarios de Evaluacion socio-economica y financiera
B60: Worst case
B61: Coeficiente sobre demanda | C61: 0.7
B62: Inflacion local | C62: =B88 -> Hipotesis baja
B63: Contingencias aplicadas sobre CAPEX | C63: SI
B64: Contingencias aplicadas sobre OPEX | C64: 0.25
B66: Base case
B67: Coeficiente sobre demanda | C67: 0.8
B68: Inflacion local | C68: =B88 -> Hipotesis baja
B69: Contingencias aplicadas sobre CAPEX | C69: NO
B70: Contingencias aplicadas sobre OPEX | C70: 0
B72: Best case
B73: Coeficiente sobre demanda | C73: 1
B74: Inflacion local | C74: =B89 -> Hipotesis alta
B75: Contingencias aplicadas sobre CAPEX | C75: NO
B76: Contingencias aplicada sobre OPEX | C76: 0
A78: Parametros de Evaluacion socio-economica y financiera
B80: Año de referencia (primer año de la simulacion) | C80: =C16 -> 2015
B81: Divisa del modelo | C81: USD
B83: Tasa de cambio Euro/USD (2015) | C83: 1.12 | F83: el 01/03/2015
B84: Tasa de cambio Euro/USD (2012) | C84: 1.32 | F84: el 01/03/2012
B86: Tasa de inflacion anual de Ecuador
B87: Año | C87: 2015 | D87: 2016 | E87: 2017 | F87: 2018 | G87: 2019 | H87: 2020-2050
B88: Hipotesis baja | C88: 0.0255 | D88: 0.025 | E88: 0.025 | F88: 0.025 | G88: 0.025 | H88: 0.02
B89: Hipotesis alta | C89: =C88 -> 0.0255 | D89: =D88+0.02 -> 0.045 | E89: =E88+0.02 -> 0.045 | F89: 0.045 | G89: 0.045 | H89: =H88+0.02 -> 0.04
B91: Tasa de inflacion anual para el internacional (Union Europea)
B92: Año | C92: 2015 | D92: 2016 | E92: 2017 | F92: 2018 | G92: 2019 | H92: 2020
B93: Hipotesis unica | C93: 0.0117 | D93: 0.015 | E93: 0.015 | F93: 0.015 | G93: 0.015 | H93: 0.019
B96: Aumentacion anual de los salarios en Ecuador
B97: Año | C97: 2015 | D97: 2016 | E97: 2017 | F97: 2018 | G97: 2019 | H97: 2020
B98: Hipotesis baja | C98: =C88+0.005 -> 0.0305 | D98: 0.03 | E98: 0.03 | F98: 0.03 | G98: 0.03 | H98: 0.025
B99: Hipotesis alta | C99: =C89+0.005 -> 0.0305 | D99: 0.05 | E99: 0.05 | F99: 0.05 | G99: 0.05 | H99: 0.045
B101: Aumentacion anual de las tarifas de electricidad en Ecuador
B102: Año | C102: 2015 | D102: 2016 | E102: 2017 | F102: 2018 | G102: 2019 | H102: 2020
B103: Hipotesis baja | C103: =C88+0.01 -> 0.0355 | D103: 0.035 | E103: 0.035 | F103: 0.035 | G103: 0.035 | H103: 0.03
B104: Hipotesis alta | C104: =C89+0.01 -> 0.0355 | D104: 0.055 | E104: 0.055 | F104: 0.055 | G104: 0.055 | H104: 0.05

Sheet CASH_FLOWS_RECAP (hidden)
D3: MONOCABLE
D4: Tasa de Rentabilidad Interna (TRI) - 30 años
D5: Tarifa (USD 2019)
B6: Alternativa | C6: Escenario | D6: 0.6 | E6: 0.75 | F6: 1 | G6: 1.25 | H6: 1.45
B7: 19 | C7: Worst case | D7: ='11_CASH_FLOW_TC_19_WORST_CASE'!C31 -> -0.03175668832 | E7: ='11_CASH_FLOW_TC_19_WORST_CASE'!D31 -> -0.01496818069 | F7: ='11_CASH_FLOW_TC_19_WORST_CASE'!E31 -> 0.005446350919 | G7: ='11_CASH_FLOW_TC_19_WORST_CASE'!F31 -> 0.0210702735 | H7: ='11_CASH_FLOW_TC_19_WORST_CASE'!G31 -> 0.03369052894
B8: 19 | C8: Base case | D8: ='7_CASH_FLOW_TC_19_BASE'!C31 -> -0.003757887592 | E8: ='7_CASH_FLOW_TC_19_BASE'!D31 -> 0.01219140909 | F8: ='7_CASH_FLOW_TC_19_BASE'!E31 -> 0.03227362678 | G8: ='7_CASH_FLOW_TC_19_BASE'!F31 -> 0.04817746982 | H8: ='7_CASH_FLOW_TC_19_BASE'!G31 -> 0.06154296562
B9: 3 | C9: Worst case | D9: ='17_CASH_FLOW_TC_3_WORST_CASE'!C31 -> -0.05090908259 | E9: ='17_CASH_FLOW_TC_3_WORST_CASE'!D31 -> -0.03221858147 | F9: ='17_CASH_FLOW_TC_3_WORST_CASE'!E31 -> -0.01146397531 | G9: ='17_CASH_FLOW_TC_3_WORST_CASE'!F31 -> 0.004170718728 | H9: ='17_CASH_FLOW_TC_3_WORST_CASE'!G31 -> 0.01678726088
B10: 3 | C10: Base case | D10: ='13_CASH_FLOW_TC_3_BASE'!C31 -> -0.02162558972 | E10: ='13_CASH_FLOW_TC_3_BASE'!D31 -> -0.005623862436 | F10: ='13_CASH_FLOW_TC_3_BASE'!E31 -> 0.01456582821 | G10: ='13_CASH_FLOW_TC_3_BASE'!F31 -> 0.03019758894 | H10: ='13_CASH_FLOW_TC_3_BASE'!G31 -> 0.04300688808
D13: MONOCABLE
D14: Tasa de Rentabilidad Interna (TRI) - 40 años
D15: Tarifa (USD 2019)
B16: Alternativa | C16: Escenario | D16: 0.5 | E16: 0.75 | F16: 1 | G16: 1.25 | H16: 1.45
B17: A | C17: Worst case | D17: =#REF! ->  | E17: =#REF! ->  | F17: =#REF! ->  | G17: =#REF! ->  | H17: =#REF! -> 
B18: A | C18: Base case | D18: =#REF! ->  | E18: =#REF! ->  | F18: =#REF! ->  | G18: =#REF! ->  | H18: =#REF! -> 
B19: A | C19: Best case | D19: =#REF! ->  | E19: =#REF! ->  | F19: =#REF! ->  | G19: =#REF! ->  | H19: =#REF! -> 
B20: B | C20: Worst case | D20: ='11_CASH_FLOW_TC_19_WORST_CASE'!C33 -> -0.03232095898 | E20: ='11_CASH_FLOW_TC_19_WORST_CASE'!D33 -> -0.01107646109 | F20: ='11_CASH_FLOW_TC_19_WORST_CASE'!E33 -> 0.01220646823 | G20: ='11_CASH_FLOW_TC_19_WORST_CASE'!F33 -> 0.02853581551 | H20: ='11_CASH_FLOW_TC_19_WORST_CASE'!G33 -> 0.04107993387
B21: B | C21: Base case | D21: ='7_CASH_FLOW_TC_19_BASE'!C33 -> 0.002100626359 | E21: ='7_CASH_FLOW_TC_19_BASE'!D33 -> 0.01945501599 | F21: ='7_CASH_FLOW_TC_19_BASE'!E33 -> 0.03975173797 | G21: ='7_CASH_FLOW_TC_19_BASE'!F33 -> 0.05522365548 | H21: ='7_CASH_FLOW_TC_19_BASE'!G33 -> 0.06800588921
B22: B | C22: Best case | D22: =#REF! ->  | E22: =#REF! ->  | F22: =#REF! ->  | G22: =#REF! ->  | H22: =#REF! -> 
B23: C | C23: Worst case | D23: ='17_CASH_FLOW_TC_3_WORST_CASE'!C33 -> -0.06227283051 | E23: ='17_CASH_FLOW_TC_3_WORST_CASE'!D33 -> -0.03269815079 | F23: ='17_CASH_FLOW_TC_3_WORST_CASE'!E33 -> -0.006658008744 | G23: ='17_CASH_FLOW_TC_3_WORST_CASE'!F33 -> 0.01099138563 | H23: ='17_CASH_FLOW_TC_3_WORST_CASE'!G33 -> 0.02432745984
B24: C | C24: Base case | D24: ='13_CASH_FLOW_TC_3_BASE'!C33 -> -0.01868681926 | E24: ='13_CASH_FLOW_TC_3_BASE'!D33 -> 0.0001374291674 | F24: ='13_CASH_FLOW_TC_3_BASE'!E33 -> 0.02200972603 | G24: ='13_CASH_FLOW_TC_3_BASE'!F33 -> 0.03769324305 | H24: ='13_CASH_FLOW_TC_3_BASE'!G33 -> 0.05019066155
B25: C | C25: Best case | D25: =#REF! ->  | E25: =#REF! ->  | F25: =#REF! ->  | G25: =#REF! ->  | H25: =#REF! -> 
B26: D | C26: Worst case | D26: =#REF! ->  | E26: =#REF! ->  | F26: =#REF! ->  | G26: =#REF! ->  | H26: =#REF! -> 
B27: D | C27: Base case | D27: =#REF! ->  | E27: =#REF! ->  | F27: =#REF! ->  | G27: =#REF! ->  | H27: =#REF! -> 
B28: D | C28: Best case | D28: =#REF! ->  | E28: =#REF! ->  | F28: =#REF! ->  | G28: =#REF! ->  | H28: =#REF! -> 
F198: =F95 -> 0

Sheet CANTIDADES (hidden)
B2: Legenda | C2: Dato de entrada
C3: Celda llave
C4: Error
C5: Dato calculado
A8: Telecabinas
A9: Numero de personas por vehiculos | B9: 10
A10: Velocidad maxima en linea (m/s) | B10: 5.5
A11: Tiempo en estacion (s) | B11: 25
A13: 3S
A14: Numero de personas por vehiculos | B14: 35
A15: Velocidad maxima en linea (m/s) | B15: 7.5
A16: Tiempo en estacion (s) | B16: 60
B19: 19 | C19: 3
A22: Longitud (m) | B22: =C22-2200 -> 5900 | C22: 8100
A24: Proteccion contra incendios (m²)
A25: Techos | B25: 18000 | C25: =5*200*30*0.6 -> 18000
A26: Fachadas | B26: =500*35*0.7 -> 12250 | C26: =500*35*0.7 -> 12250
A29: N°Estaciones | B29: =B30+B31+B32 -> 6 | C29: 7
A30: Terminal | B30: 2 | C30: 2
A31: Linea | B31: 2 | C31: 3
A32: Tecnica | B32: 2 | C32: 2
A34: Terrains industriels | B34: 1 | C34: 1
A36: Distancia promedia entre estaciones de pasajeros (m) | B36: =B22/(B30+B31) -> 1475 | C36: =C22/(C30+C31) -> 1620
A38: N° Estaciones intermodales con Metrovia o trenes
A39: Actual | B39: 2 | C39: 2
A40: Potencial | B40: 0 | C40: 0
A42: N° Postes
A43: Telecabinas | B43: 35 | C43: 43
A45: Fundaciones en el rio
A46: Telecabinas | B46: 32 | C46: =C43-3 -> 40
A48: N°Cabinas (incluido reserva)
A49: Demande de modelo (pphpd) | B49: 1233 | C49: 1284
A50: Demanda (pphpd) | B50: =B49*PARAMETROS!$C$23 -> 1233 | C50: =C49*PARAMETROS!$C$23 -> 1284
A53: Distancia entre vehiculos
A54: Telecabinas | B54: =$B$9*3600*$B$10/B50 -> 160.5839416 | C54: =$B$9*3600*$B$10/C50 -> 154.2056075
A56: Tiempo entre las cabinas en segundas
A57: Telecabinas | B57: =B54/$B$10 -> 29.19708029 | C57: =C54/$B$10 -> 28.03738318
A59: Numero de vehiculos en linea (afuera de las estaciones)
A60: Telecabinas | B60: =ROUNDUP(B22*2/B54,0) -> 74 | C60: =ROUNDUP(C22*2/C54,0) -> 106
A62: Numero de vehiculos en operacion (incluyendo vehiculos en estaciones)
A63: Telecabinas | B63: =ROUNDUP((B60+B31*5),0) -> 84 | C63: =ROUNDUP((C60+C31*5),0) -> 121
A65: Numero de vehiculos en operacion (con margen de seguridad relativo a la demanda)
A66: Telecabinas | B66: =ROUNDUP(B63*1.1,0) -> 93 | C66: =ROUNDUP(C63*1.1,0) -> 134
A68: Numero de vehiculos en operacion y mantenimiento
A69: Telecabinas | B69: =ROUNDUP(B66*1.1,0) -> 103 | C69: =ROUNDUP(C66*1.1,0) -> 148
A71: Area del taller (m²)
A73: Zona de almacenamiento de tipo local industrial
A74: Telecabinas | B74: =14*B69 -> 1442 | C74: =14*C69 -> 2072
A76: Almacen y taller
A77: Telecabinas | B77: 250 | C77: 250
A79: Local de supervision
A80: Telecabinas | B80: 150 | C80: 150
A82: Transporte cabinas
A83: Telecabinas | B83: =B74 -> 1442 | C83: =C74 -> 2072
A85: Superficie Total
A86: Telecabinas | B86: =B74+B77+B80+B83 -> 3284 | C86: =C74+C77+C80+C83 -> 4544
A89: Tiempo de recorrido (mn)
A91: Telecabinas
A92: Tiempo de recorrido (sec) | B92: =B22/$B$10+$B$11*B29 -> 1222.727273 | C92: =C22/$B$10+$B$11*C29 -> 1647.727273
A93: Tiempo de recorrido (mn) | B93: =B92/60 -> 20.37878788 | C93: 27.46212121
A94: Velocidad promedia (km/h) | B94: =3600*B22/B92/1000 -> 17.37100372 | C94: =3600*C22/C92/1000 -> 17.69710345
A97: Consumo electrico
A99: Consumo (kW*h) | B99: =500*B22*(1.5) -> 4425000 | C99: =500*C22*(1.5) -> 6075000

Sheet PRECIOS UNITARIOS (hidden)
B2: Legenda | C2: Dato de entrada
C3: Celda llave
C4: Error
C5: Dato calculado
B7: Facteur de passage Salaire Canada / Ecuador (comparaison des salaires minimums) | C7: 0.26
G10: Proyecto de Guayaquil- Costos en USD 2015 - Precios unitarios | N10: Proyecto de Guayaquil- Costos en USD 2015 - Parte local vs Parte extranjera
C11: Categoria | D11: Unidades | E11: Suministro | G11: Monocable | N11: Monocable
G12: Materia | H12: Tasas de aduanas | I12: Transporte vial | J12: Transporte maritimo | K12: Mano de obras local | L12: TOTAL | N12: Materia | P12: Tasas de aduanas | R12: Transporte vial | T12: Transporte maritimo | V12: Mano de obras local | X12: TOTAL | Z12: REPARTICION
N13: Parte local | O13: Parte extranjera | P13: Parte local | Q13: Parte extranjera | R13: Parte local | S13: Parte extranjera | T13: Parte local | U13: Parte extranjera | V13: Parte local | W13: Parte extranjera | X13: Parte local | Y13: Parte extranjera | Z13: Parte local | AA13: Parte extranjera
B15: Compra de terrenos
B16: Terreno | C16: PRED | D16: m2 | E16: LOCAL | G16: N/A | H16: N/A | I16: N/A | J16: N/A | K16: N/A | L16: N/A | N16: N/A | O16: N/A | P16: N/A | Q16: N/A | R16: N/A | S16: N/A | T16: N/A | U16: N/A | V16: N/A | W16: N/A | X16: N/A | Y16: N/A | Z16: 1 | AA16: 0
B18: Decontaminacion y proteccion
B19: Proteccion contra incendios (techos) | C19: INFRA | D19: m2 | E19: LOCAL | G19: 117.6388172 | H19: 0 | I19: 13.07097969 | J19: 0 | K19: 33.98454719 | L19: 164.6943441 | N19: 94.11105375 | O19: 23.52776344 | P19: 0 | Q19: 0 | R19: 2.614195937 | S19: 10.45678375 | T19: 0 | U19: 0 | V19: 33.98454719 | W19: 0 | X19: 130.7097969 | Y19: 33.98454719 | Z19: 0.7936507937 | AA19: 0.2063492063
B20: Proteccion contra incendios (fachadas) | C20: INFRA | D20: m2 | E20: LOCAL | G20: 117.6388172 | H20: 0 | I20: 13.07097969 | J20: 0 | K20: 33.98454719 | L20: 164.6943441 | N20: 94.11105375 | O20: 23.52776344 | P20: 0 | Q20: 0 | R20: 2.614195937 | S20: 10.45678375 | T20: 0 | U20: 0 | V20: 33.98454719 | W20: 0 | X20: 130.7097969 | Y20: 33.98454719 | Z20: 0.7936507937 | AA20: 0.2063492063
B21: Decontaminacion de suelo | C21: INFRA | D21: U | E21: LOCAL | G21: 0 | H21: 0 | I21: 0 | J21: 0 | K21: 95156.73212 | L21: 95156.73212 | N21: 0 | O21: 0 | P21: 0 | Q21: 0 | R21: 0 | S21: 0 | T21: 0 | U21: 0 | V21: 95156.73212 | W21: 0 | X21: 95156.73212 | Y21: 0 | Z21: 1 | AA21: 0
B23: Infraestructura y estructuras de lineas
B24: Cables de soportes | C24: EQUIP | D24: ml | E24: EUROPA | G24: N/A | H24: N/A | I24: N/A | J24: N/A | K24: N/A | L24: N/A | N24: N/A | O24: N/A | P24: N/A | Q24: N/A | R24: N/A | S24: N/A | T24: N/A | U24: N/A | V24: N/A | W24: N/A | X24: N/A | Y24: N/A | Z24: N/A | AA24: N/A
B25: Cable de traccion | C25: EQUIP | D25: ml | E25: EUROPA | G25: 46.8463912 | H25: 7.261190636 | I25: 4.879832417 | J25: 4.68463912 | K25: 2.537512857 | L25: 66.20956623 | N25: 0 | O25: 46.8463912 | P25: 7.261190636 | Q25: 0 | R25: 0.9759664833 | S25: 3.903865933 | T25: 0 | U25: 4.68463912 | V25: 2.537512857 | W25: 0 | X25: 10.77466998 | Y25: 55.43489625 | Z25: 0.1627358491 | AA25: 0.8372641509
B26: Cabeza de poste (patibulo + pendulos y equipamientos) | C26: EQUIP | D26: U | E26: EUROPA | G26: 66231.19511 | H26: 10033.64524 | I26: 6743.041158 | J26: 6473.319511 | K26: 10519.14421 | L26: 100000.3452 | N26: 0 | O26: 64733.19511 | P26: 10033.64524 | Q26: 0 | R26: 1348.608232 | S26: 5394.432926 | T26: 0 | U26: 6473.319511 | V26: 10519.14421 | W26: 0 | X26: 21901.39768 | Y26: 76600.94755 | Z26: 0.2223439211 | AA26: 0.7776560789
B27: Postes y fundaciones | C27: INFRA | D27: U | E27: LOCAL | G27: 85208.90809 | H27: 0 | I27: 6430.922006 | J27: 0 | K27: 8360.198608 | L27: 100000.0287 | N27: 72026.32647 | O27: 18006.58162 | P27: 0 | Q27: 0 | R27: 1286.184401 | S27: 5144.737605 | T27: 0 | U27: 0 | V27: 8360.198608 | W27: 0 | X27: 81672.70948 | Y27: 23151.31922 | Z27: 0.7791411043 | AA27: 0.2208588957
B28: Sobrecostos para fundaciones con pilotes | C28: INFRA | D28: U | E28: LOCAL | G28: 257668.7117 | H28: 0 | I28: 18404.90798 | J28: 0 | K28: 23926.38037 | L28: 180000 | N28: 123680.9816 | O28: 30920.2454 | P28: 0 | Q28: 0 | R28: 2208.588957 | S28: 8834.355828 | T28: 0 | U28: 0 | V28: 14355.82822 | W28: 0 | X28: 140245.3988 | Y28: 39754.60123 | Z28: 0.7791411043 | AA28: 0.2208588957
B30: Obras de via y reubicacion de redes
B31: Obras de via | C31: INFRA | D31: m2 | E31: LOCAL | G31: 141.1665806 | H31: 0 | I31: 15.68517562 | J31: 0 | K31: 40.78145662 | L31: 197.6332129 | N31: 112.9332645 | O31: 28.23331612 | P31: 0 | Q31: 0 | R31: 3.137035125 | S31: 12.5481405 | T31: 0 | U31: 0 | V31: 40.78145662 | W31: 0 | X31: 156.8517562 | Y31: 40.78145662 | Z31: 0.7936507937 | AA31: 0.2063492063
B32: Redes aereas de alta tension | C32: INFRA | D32: ml (de la red) | E32: LOCAL | G32: 398.9263001 | H32: 0 | I32: 56.98947144 | J32: 0 | K32: 177.8071509 | L32: 633.7229224 | N32: 319.14104 | O32: 79.78526001 | P32: 0 | Q32: 0 | R32: 11.39789429 | S32: 45.59157715 | T32: 0 | U32: 0 | V32: 177.8071509 | W32: 0 | X32: 508.3460852 | Y32: 125.3768372 | Z32: 0.8021582734 | AA32: 0.1978417266
B33: Redes aereas | C33: INFRA | D33: ml (de linea) | E33: LOCAL | G33: 52.5 | H33: 0 | I33: 7.5 | J33: 0 | K33: 23.4 | L33: 83.4 | N33: 42 | O33: 10.5 | P33: 0 | Q33: 0 | R33: 1.5 | S33: 6 | T33: 0 | U33: 0 | V33: 23.4 | W33: 0 | X33: 66.9 | Y33: 16.5 | Z33: 0.8021582734 | AA33: 0.1978417266
B34: Desplazamiento de lamparas | C34: INFRA | D34: U | E34: LOCAL | G34: 1307.097969 | H34: 0 | I34: 261.4195937 | J34: 0 | K34: 951.5673212 | L34: 2520.084884 | N34: 1045.678375 | O34: 261.4195937 | P34: 0 | Q34: 0 | R34: 52.28391875 | S34: 209.135675 | T34: 0 | U34: 0 | V34: 951.5673212 | W34: 0 | X34: 2049.529615 | Y34: 470.5552687 | Z34: 0.8132780083 | AA34: 0.1867219917
B35: Redes subterraneas | C35: INFRA | D35: ml (de linea) | E35: LOCAL | G35: 52.5 | H35: 0 | I35: 7.5 | J35: 0 | K35: 23.4 | L35: 83.4 | N35: 42 | O35: 10.5 | P35: 0 | Q35: 0 | R35: 1.5 | S35: 6 | T35: 0 | U35: 0 | V35: 23.4 | W35: 0 | X35: 66.9 | Y35: 16.5 | Z35: 0.8021582734 | AA35: 0.1978417266
B36: Mantenimiento de transito | C36: INFRA | D36: U | E36: LOCAL | G36: 41827.135 | H36: 0 | I36: 5228.391875 | J36: 0 | K36: 14953.20076 | L36: 62008.72764 | N36: 33461.708 | O36: 8365.427 | P36: 0 | Q36: 0 | R36: 1045.678375 | S36: 4182.7135 | T36: 0 | U36: 0 | V36: 14953.20076 | W36: 0 | X36: 49460.58714 | Y36: 12548.1405 | Z36: 0.7976391231 | AA36: 0.2023608769
B38: Cabinas
B39: Cabinas y soportes | C39: VEH | D39: U | E39: EUROPA | G39: 29981.69037 | H39: 149.9084518 | I39: 3504.606917 | J39: 2998.169037 | K39: 911.1977985 | L39: 37545.57257 | N39: 0 | O39: 29981.69037 | P39: 149.9084518 | Q39: 0 | R39: 700.9213835 | S39: 2803.685534 | T39: 0 | U39: 2998.169037 | V39: 911.1977985 | W39: 0 | X39: 1762.027634 | Y39: 35783.54494 | Z39: 0.04693037056 | AA39: 0.9530696294
B40: Equipamiento de conforte en las cabinas | C40: VEH | D40: U | E40: EUROPA | G40: 7495.422592 | H40: 37.47711296 | I40: 754.1559189 | J40: 749.5422592 | K40: 784.3221557 | L40: 9820.920039 | N40: 0 | O40: 7495.422592 | P40: 37.47711296 | Q40: 0 | R40: 150.8311838 | S40: 603.3247352 | T40: 0 | U40: 749.5422592 | V40: 784.3221557 | W40: 0 | X40: 972.6304524 | Y40: 8848.289586 | Z40: 0.09903659215 | AA40: 0.9009634078
B42: Tecnologias en las estaciones
B43: Lanzador (por ramita y por media-estacion) | C43: EQUIP | D43: U | E43: EUROPA | G43: 562156.6944 | H43: 2810.783472 | I43: 43208.69794 | J43: 56215.66944 | K43: 44937.04586 | L43: 709328.8911 | N43: 0 | O43: 562156.6944 | P43: 2810.783472 | Q43: 0 | R43: 8641.739589 | S43: 34566.95836 | T43: 0 | U43: 56215.66944 | V43: 44937.04586 | W43: 0 | X43: 56389.56892 | Y43: 652939.3222 | Z43: 0.07949707058 | AA43: 0.9205029294
B44: Cola y andenes (por numero de andenes, y/c puertas de anden) | C44: EQUIP | D44: U | E44: EUROPA | G44: 555369.2911 | H44: 2776.846456 | I44: 42720.7147 | J44: 55536.92911 | K44: 44429.54329 | L44: 700833.3247 | N44: 0 | O44: 555369.2911 | P44: 2776.846456 | Q44: 0 | R44: 8544.14294 | S44: 34176.57176 | T44: 0 | U44: 55536.92911 | V44: 44429.54329 | W44: 0 | X44: 55750.53269 | Y44: 645082.792 | Z44: 0.07954891801 | AA44: 0.920451082
B46: Equipamiento electrico
B47: Cuarto de mandos | C47: EQUIP | D47: N° de estaciones | E47: EUROPA | G47: 207614.6883 | H47: 1038.073441 | I47: 15970.36064 | J47: 20761.46883 | K47: 16609.17506 | L47: 261993.7662 | N47: 0 | O47: 207614.6883 | P47: 1038.073441 | Q47: 0 | R47: 3194.072127 | S47: 12776.28851 | T47: 0 | U47: 20761.46883 | V47: 16609.17506 | W47: 0 | X47: 20841.32063 | Y47: 241152.4456 | Z47: 0.07954891801 | AA47: 0.920451082
B48: Cuarto de electricidad (400V tres fases) | C48: EQUIP | D48: U | E48: EUROPA | G48: 138409.7922 | H48: 692.0489609 | I48: 11534.14935 | J48: 13840.97922 | K48: 14994.39415 | L48: 179471.3639 | N48: 0 | O48: 138409.7922 | P48: 692.0489609 | Q48: 0 | R48: 2306.82987 | S48: 9227.319479 | T48: 0 | U48: 13840.97922 | V48: 14994.39415 | W48: 0 | X48: 17993.27298 | Y48: 161478.0909 | Z48: 0.1002570694 | AA48: 0.8997429306
B49: Cuarto de manejo del traslado y zona de mantenimiento | C49: EQUIP | D49: U | E49: EUROPA | G49: 57670.74674 | H49: 288.3537337 | I49: 4436.211288 | J49: 5767.074674 | K49: 4613.659739 | L49: 72776.04618 | N49: 0 | O49: 57670.74674 | P49: 288.3537337 | Q49: 0 | R49: 887.2422576 | S49: 3548.96903 | T49: 0 | U49: 5767.074674 | V49: 4613.659739 | W49: 0 | X49: 5789.255731 | Y49: 66986.79045 | Z49: 0.07954891801 | AA49: 0.920451082
B50: Alimentacion de auxilio de emergencia de la estacion motrice y del centro de mando | C50: EQUIP | D50: U | E50: EUROPA | G50: 53234.53545 | H50: 266.1726773 | I50: 4436.211288 | J50: 5323.453545 | K50: 5767.074674 | L50: 69027.44764 | N50: 0 | O50: 53234.53545 | P50: 266.1726773 | Q50: 0 | R50: 887.2422576 | S50: 3548.96903 | T50: 0 | U50: 5323.453545 | V50: 5767.074674 | W50: 0 | X50: 6920.489609 | Y50: 62106.95803 | Z50: 0.1002570694 | AA50: 0.8997429306
B51: Alimentaciones auxiliarias y equipamientos electricos en las estaciones y en el taller (aire acondicionado, alumbrado, mando de las puertas de anden, etc.) | C51: EQUIP | D51: Superficies cerradas (m²) | E51: EUROPA | G51: 86.50612011 | H51: 0.4325306006 | I51: 6.654316932 | J51: 8.650612011 | K51: 6.920489609 | L51: 109.1640693 | N51: 0 | O51: 86.50612011 | P51: 0.4325306006 | Q51: 0 | R51: 1.330863386 | S51: 5.323453545 | T51: 0 | U51: 8.650612011 | V51: 6.920489609 | W51: 0 | X51: 8.683883596 | Y51: 100.4801857 | Z51: 0.07954891801 | AA51: 0.920451082
B52: Doble motorizacion, reductores y traccion del cable | C52: EQUIP | D52: U | E52: EUROPA | G52: 720884.3343 | H52: 3604.421671 | I52: 55452.6411 | J52: 72088.43343 | K52: 57670.74674 | L52: 909700.5772 | N52: 0 | O52: 720884.3343 | P52: 3604.421671 | Q52: 0 | R52: 11090.52822 | S52: 44362.11288 | T52: 0 | U52: 72088.43343 | V52: 57670.74674 | W52: 0 | X52: 72365.69663 | Y52: 837334.8806 | Z52: 0.07954891801 | AA52: 0.920451082
B53: Constitucion de una linea de reserva para la estacion motrice | C53: EQUIP | D53: U | E53: EUROPA | G53: 119777.7048 | H53: 598.8885239 | I53: 13308.63386 | J53: 11977.77048 | K53: 27681.95844 | L53: 173344.9561 | N53: 0 | O53: 119777.7048 | P53: 598.8885239 | Q53: 0 | R53: 2661.726773 | S53: 10646.90709 | T53: 0 | U53: 11977.77048 | V53: 27681.95844 | W53: 0 | X53: 30942.57373 | Y53: 142402.3823 | Z53: 0.1785028791 | AA53: 0.8214971209
B55: Telecomunicaciones y boleteria
B56: Consola de mandos y Tablero de control optico | C56: EQUIP | D56: Forfait | E56: EUROPA | G56: 63881.44255 | H56: 319.4072127 | I56: 5323.453545 | J56: 6388.144255 | K56: 6920.489609 | L56: 82832.93717 | N56: 0 | O56: 63881.44255 | P56: 319.4072127 | Q56: 0 | R56: 1064.690709 | S56: 4258.762836 | T56: 0 | U56: 6388.144255 | V56: 6920.489609 | W56: 0 | X56: 8304.587531 | Y56: 74528.34964 | Z56: 0.1002570694 | AA56: 0.8997429306
B57: Red de telefonia entre estaciones | C57: EQUIP | D57: N° de estaciones + 1 | E57: EUROPA | G57: 43918.49175 | H57: 219.5924587 | I57: 3137.035125 | J57: 4391.849175 | K57: 4078.145662 | L57: 55745.11417 | N57: 0 | O57: 43918.49175 | P57: 219.5924587 | Q57: 0 | R57: 627.407025 | S57: 2509.6281 | T57: 0 | U57: 4391.849175 | V57: 4078.145662 | W57: 0 | X57: 4925.145146 | Y57: 50819.96902 | Z57: 0.08835115363 | AA57: 0.9116488464
B58: Sonorizacion de anuncios publicos en estaciones | C58: EQUIP | D58: N° de estaciones + 1 | E58: EUROPA | G58: 33984.54719 | H58: 169.9227359 | I58: 2614.195937 | J58: 3398.454719 | K58: 4078.145662 | L58: 44245.26624 | N58: 0 | O58: 33984.54719 | P58: 169.9227359 | Q58: 0 | R58: 522.8391875 | S58: 2091.35675 | T58: 0 | U58: 3398.454719 | V58: 4078.145662 | W58: 0 | X58: 4770.907586 | Y58: 39474.35866 | Z58: 0.1078286558 | AA58: 0.8921713442
B59: Sistema de informacion a los pasajeros en las estaciones | C59: EQUIP | D59: N° de estaciones + 1 | E59: EUROPA | G59: 26617.26773 | H59: 133.0863386 | I59: 2218.105644 | J59: 2661.726773 | K59: 2883.537337 | L59: 34513.72382 | N59: 0 | O59: 26617.26773 | P59: 133.0863386 | Q59: 0 | R59: 443.6211288 | S59: 1774.484515 | T59: 0 | U59: 2661.726773 | V59: 2883.537337 | W59: 0 | X59: 3460.244805 | Y59: 31053.47902 | Z59: 0.1002570694 | AA59: 0.8997429306
B60: Sistema de supervision SCADA del centro de mando | C60: EQUIP | D60: U | E60: EUROPA | G60: 39038.65933 | H60: 195.1932967 | I60: 3548.96903 | J60: 3903.865933 | K60: 5536.391687 | L60: 52223.07928 | N60: 0 | O60: 39038.65933 | P60: 195.1932967 | Q60: 0 | R60: 709.7938061 | S60: 2839.175224 | T60: 0 | U60: 3903.865933 | V60: 5536.391687 | W60: 0 | X60: 6441.37879 | Y60: 45781.70049 | Z60: 0.123343527 | AA60: 0.876656473
B61: Cronometria, relojes marcadores | C61: EQUIP | D61: N° de estaciones + 1 | E61: LOCAL | G61: 19606.46953 | H61: 0 | I61: 1307.097969 | J61: 0 | K61: 1359.381887 | L61: 22272.94939 | N61: 15685.17562 | O61: 3921.293906 | P61: 0 | Q61: 0 | R61: 261.4195937 | S61: 1045.678375 | T61: 0 | U61: 0 | V61: 1359.381887 | W61: 0 | X61: 17305.97711 | Y61: 4966.972281 | Z61: 0.7769953052 | AA61: 0.2230046948
B62: Equipamiento embarcado en la cabinas (videocamara/interponia/DI/LCD/WIFI) | C62: EQUIP | D62: N° de cabinas + reserva | E62: LOCAL | G62: 3921.293906 | H62: 0 | I62: 261.4195937 | J62: 0 | K62: 271.8763775 | L62: 4454.589877 | N62: 3137.035125 | O62: 784.2587812 | P62: 0 | Q62: 0 | R62: 52.28391875 | S62: 209.135675 | T62: 0 | U62: 0 | V62: 271.8763775 | W62: 0 | X62: 3461.195421 | Y62: 993.3944562 | Z62: 0.7769953052 | AA62: 0.2230046948
B63: Sistema de antenas y de mando securizado WIFI | C63: EQUIP | D63: ml | E63: LOCAL | G63: 175.673967 | H63: 0 | I63: 12.5481405 | J63: 0 | K63: 16.31258265 | L63: 204.5346901 | N63: 140.5391736 | O63: 35.1347934 | P63: 0 | Q63: 0 | R63: 2.5096281 | S63: 10.0385124 | T63: 0 | U63: 0 | V63: 16.31258265 | W63: 0 | X63: 159.3613843 | Y63: 45.1733058 | Z63: 0.7791411043 | AA63: 0.2208588957
B64: Sistema de vigilancia visio + termica por postes | C64: EQUIP | D64: N° de postes + estaciones | E64: LOCAL | G64: 31108.93166 | H64: 0 | I64: 1829.937156 | J64: 0 | K64: 951.5673212 | L64: 33890.43613 | N64: 24887.14532 | O64: 6221.786331 | P64: 0 | Q64: 0 | R64: 365.9874312 | S64: 1463.949725 | T64: 0 | U64: 0 | V64: 951.5673212 | W64: 0 | X64: 26204.70008 | Y64: 7685.736056 | Z64: 0.7732181425 | AA64: 0.2267818575
B65: Sistema de vigilancia con video en estaciones | C65: EQUIP | D65: N° de estaciones + 1 | E65: LOCAL | G65: 41827.135 | H65: 0 | I65: 2614.195937 | J65: 0 | K65: 2039.072831 | L65: 46480.40377 | N65: 33461.708 | O65: 8365.427 | P65: 0 | Q65: 0 | R65: 522.8391875 | S65: 2091.35675 | T65: 0 | U65: 0 | V65: 2039.072831 | W65: 0 | X65: 36023.62002 | Y65: 10456.78375 | Z65: 0.7750281215 | AA65: 0.2249718785
B66: Sistema de deteccion incendio y de control de acceso | C66: EQUIP | D66: Forfait | E66: LOCAL | G66: 94111.05375 | H66: 0 | I66: 6274.07025 | J66: 0 | K66: 6525.03306 | L66: 106910.1571 | N66: 75288.843 | O66: 18822.21075 | P66: 0 | Q66: 0 | R66: 1254.81405 | S66: 5019.2562 | T66: 0 | U66: 0 | V66: 6525.03306 | W66: 0 | X66: 83068.69011 | Y66: 23841.46695 | Z66: 0.7769953052 | AA66: 0.2230046948
B67: Fibra de seguridad y equipos de transmision Ethernet | C67: EQUIP | D67: N° de estaciones + 1 | E67: LOCAL | G67: 83654.27 | H67: 0 | I67: 5228.391875 | J67: 0 | K67: 4078.145662 | L67: 92960.80754 | N67: 66923.416 | O67: 16730.854 | P67: 0 | Q67: 0 | R67: 1045.678375 | S67: 4182.7135 | T67: 0 | U67: 0 | V67: 4078.145662 | W67: 0 | X67: 72047.24004 | Y67: 20913.5675 | Z67: 0.7750281215 | AA67: 0.2249718785
B68: Sistema de boleteria | C68: EQUIP | D68: N° de estaciones + 1 | E68: EUROPA | G68: 28835.37337 | H68: 144.1768669 | I68: 2218.105644 | J68: 2883.537337 | K68: 2306.82987 | L68: 36388.02309 | N68: 0 | O68: 28835.37337 | P68: 144.1768669 | Q68: 0 | R68: 443.6211288 | S68: 1774.484515 | T68: 0 | U68: 2883.537337 | V68: 2306.82987 | W68: 0 | X68: 2894.627865 | Y68: 33493.39522 | Z68: 0.07954891801 | AA68: 0.920451082
B70: Estaciones
B71: Edificio - Terminal
B72: Fundaciones tipicas (edificio con piso tierra y primer piso) | C72: INFRA | D72: U | E72: LOCAL | G72: 93169.94321 | H72: 0 | I72: 15528.32387 | J72: 0 | K72: 52485.73468 | L72: 161184.0018 | N72: 74535.95457 | O72: 18633.98864 | P72: 0 | Q72: 0 | R72: 3105.664774 | S72: 12422.65909 | T72: 0 | U72: 0 | V72: 52485.73468 | W72: 0 | X72: 130127.354 | Y72: 31056.64774 | Z72: 0.8073217726 | AA72: 0.1926782274
B73: Piso tierra sobrelevado y fundaciones | C73: INFRA | D73: m2 | E73: LOCAL | G73: 1254.81405 | H73: 0 | I73: 209.135675 | J73: 0 | K73: 706.8785815 | L73: 2170.828306 | N73: 1003.85124 | O73: 250.96281 | P73: 0 | Q73: 0 | R73: 41.827135 | S73: 167.30854 | T73: 0 | U73: 0 | V73: 706.8785815 | W73: 0 | X73: 1752.556956 | Y73: 418.27135 | Z73: 0.8073217726 | AA73: 0.1926782274
B74: Superficies comerciales | C74: INFRA | D74: m2 | E74: LOCAL | G74: 404.9912346 | H74: 0 | I74: 67.49853911 | J74: 0 | K74: 228.1450622 | L74: 700.6348359 | N74: 323.9929877 | O74: 80.99824693 | P74: 0 | Q74: 0 | R74: 13.49970782 | S74: 53.99883128 | T74: 0 | U74: 0 | V74: 228.1450622 | W74: 0 | X74: 565.6377577 | Y74: 134.9970782 | Z74: 0.8073217726 | AA74: 0.1926782274
B75: Ingreso y circulaciones al piso tierra (y/c servicios, escaleras mecanicas, escaleras y ascencores) | C75: INFRA | D75: m2 | E75: LOCAL | G75: 1536.101533 | H75: 0 | I75: 118.1616564 | J75: 0 | K75: 184.3321839 | L75: 1838.595373 | N75: 1228.881226 | O75: 307.2203066 | P75: 0 | Q75: 0 | R75: 23.63233127 | S75: 94.5293251 | T75: 0 | U75: 0 | V75: 184.3321839 | W75: 0 | X75: 1436.845742 | Y75: 401.7496317 | Z75: 0.7814910026 | AA75: 0.2185089974
B76: Escaleras mecanicas, escaleras y ascencores adicionales (piso tierra sobrelevado) | C76: EQUIP | D76: U | E76: LOCAL | G76: 215625 | H76: 0 | I76: 35937.5 | J76: 0 | K76: 121468.75 | L76: 373031.25 | N76: 172500 | O76: 43125 | P76: 0 | Q76: 0 | R76: 7187.5 | S76: 28750 | T76: 0 | U76: 0 | V76: 121468.75 | W76: 0 | X76: 301156.25 | Y76: 71875 | Z76: 0.8073217726 | AA76: 0.1926782274
B77: Anden al primer piso | C77: INFRA | D77: m2 | E77: LOCAL | G77: 607.6437037 | H77: 0 | I77: 101.2739506 | J77: 0 | K77: 342.3059531 | L77: 1051.223607 | N77: 486.114963 | O77: 121.5287407 | P77: 0 | Q77: 0 | R77: 20.25479012 | S77: 81.01916049 | T77: 0 | U77: 0 | V77: 342.3059531 | W77: 0 | X77: 848.6757062 | Y77: 202.5479012 | Z77: 0.8073217726 | AA77: 0.1926782274
B78: Centro de mando + Locales tecnicos cubiertos | C78: INFRA | D78: m2 | E78: LOCAL | G78: 809.9824693 | H78: 0 | I78: 134.9970782 | J78: 0 | K78: 456.2901244 | L78: 1401.269672 | N78: 647.9859754 | O78: 161.9964939 | P78: 0 | Q78: 0 | R78: 26.99941564 | S78: 107.9976626 | T78: 0 | U78: 0 | V78: 456.2901244 | W78: 0 | X78: 1131.275515 | Y78: 269.9941564 | Z78: 0.8073217726 | AA78: 0.1926782274
B79: Locales tecnicos non cerrados | C79: INFRA | D79: m2 | E79: LOCAL | G79: 404.9912346 | H79: 0 | I79: 67.49853911 | J79: 0 | K79: 228.1450622 | L79: 700.6348359 | N79: 323.9929877 | O79: 80.99824693 | P79: 0 | Q79: 0 | R79: 13.49970782 | S79: 53.99883128 | T79: 0 | U79: 0 | V79: 228.1450622 | W79: 0 | X79: 565.6377577 | Y79: 134.9970782 | Z79: 0.8073217726 | AA79: 0.1926782274
B80: Adecuacion urbana (demolicion, reconstruccion, mobiliario urbano, paisaje) | C80: INFRA | D80: m2 | E80: LOCAL | G80: 376.444215 | H80: 0 | I80: 41.827135 | J80: 0 | K80: 108.750551 | L80: 527.021901 | N80: 301.155372 | O80: 75.288843 | P80: 0 | Q80: 0 | R80: 8.365427 | S80: 33.461708 | T80: 0 | U80: 0 | V80: 108.750551 | W80: 0 | X80: 418.27135 | Y80: 108.750551 | Z80: 0.7936507937 | AA80: 0.2063492063
B81: Pasarela | C81: INFRA | D81: m2 | E81: LOCAL | G81: 784.2587812 | H81: 0 | I81: 130.7097969 | J81: 0 | K81: 441.7991134 | L81: 1356.767692 | N81: 627.407025 | O81: 156.8517562 | P81: 0 | Q81: 0 | R81: 26.14195937 | S81: 104.5678375 | T81: 0 | U81: 0 | V81: 441.7991134 | W81: 0 | X81: 1095.348098 | Y81: 261.4195937 | Z81: 0.8073217726 | AA81: 0.1926782274
B82: Edificio - De linea
B83: Fundaciones tipicas (edificio con piso tierra y primer piso) | C83: INFRA | D83: U | E83: LOCAL | G83: 111992.154 | H83: 0 | I83: 18665.35899 | J83: 0 | K83: 63088.9134 | L83: 193746.4264 | N83: 89593.72317 | O83: 22398.43079 | P83: 0 | Q83: 0 | R83: 3733.071799 | S83: 14932.28719 | T83: 0 | U83: 0 | V83: 63088.9134 | W83: 0 | X83: 156415.7084 | Y83: 37330.71799 | Z83: 0.8073217726 | AA83: 0.1926782274
B84: Piso tierra sobrelevado y fundaciones | C84: INFRA | D84: m2 | E84: LOCAL | G84: 1254.81405 | H84: 0 | I84: 209.135675 | J84: 0 | K84: 706.8785815 | L84: 2170.828306 | N84: 1003.85124 | O84: 250.96281 | P84: 0 | Q84: 0 | R84: 41.827135 | S84: 167.30854 | T84: 0 | U84: 0 | V84: 706.8785815 | W84: 0 | X84: 1752.556956 | Y84: 418.27135 | Z84: 0.8073217726 | AA84: 0.1926782274
B85: Superficies comerciales | C85: INFRA | D85: m2 | E85: LOCAL | G85: 404.9912346 | H85: 0 | I85: 67.49853911 | J85: 0 | K85: 228.1450622 | L85: 700.6348359 | N85: 323.9929877 | O85: 80.99824693 | P85: 0 | Q85: 0 | R85: 13.49970782 | S85: 53.99883128 | T85: 0 | U85: 0 | V85: 228.1450622 | W85: 0 | X85: 565.6377577 | Y85: 134.9970782 | Z85: 0.8073217726 | AA85: 0.1926782274
B86: Ingreso y circulaciones al piso tierra (y/c servicios, escaleras mecanicas, escaleras y ascencores) | C86: INFRA | D86: m2 | E86: LOCAL | G86: 1536.101533 | H86: 0 | I86: 118.1616564 | J86: 0 | K86: 184.3321839 | L86: 1838.595373 | N86: 1228.881226 | O86: 307.2203066 | P86: 0 | Q86: 0 | R86: 23.63233127 | S86: 94.5293251 | T86: 0 | U86: 0 | V86: 184.3321839 | W86: 0 | X86: 1436.845742 | Y86: 401.7496317 | Z86: 0.7814910026 | AA86: 0.2185089974
B87: Escaleras mecanicas, escaleras y ascencores adicionales (piso tierra sobrelevado) | C87: EQUIP | D87: U | E87: LOCAL | G87: 215625 | H87: 0 | I87: 35937.5 | J87: 0 | K87: 121468.75 | L87: 373031.25 | N87: 172500 | O87: 43125 | P87: 0 | Q87: 0 | R87: 7187.5 | S87: 28750 | T87: 0 | U87: 0 | V87: 121468.75 | W87: 0 | X87: 301156.25 | Y87: 71875 | Z87: 0.8073217726 | AA87: 0.1926782274
B88: Anden al primer piso | C88: INFRA | D88: m2 | E88: LOCAL | G88: 607.6437037 | H88: 0 | I88: 101.2739506 | J88: 0 | K88: 342.3059531 | L88: 1051.223607 | N88: 486.114963 | O88: 121.5287407 | P88: 0 | Q88: 0 | R88: 20.25479012 | S88: 81.01916049 | T88: 0 | U88: 0 | V88: 342.3059531 | W88: 0 | X88: 848.6757062 | Y88: 202.5479012 | Z88: 0.8073217726 | AA88: 0.1926782274
B89: Centro de mando + Locales tecnicos cubiertos | C89: INFRA | D89: m2 | E89: LOCAL | G89: 809.9824693 | H89: 0 | I89: 134.9970782 | J89: 0 | K89: 456.2901244 | L89: 1401.269672 | N89: 647.9859754 | O89: 161.9964939 | P89: 0 | Q89: 0 | R89: 26.99941564 | S89: 107.9976626 | T89: 0 | U89: 0 | V89: 456.2901244 | W89: 0 | X89: 1131.275515 | Y89: 269.9941564 | Z89: 0.8073217726 | AA89: 0.1926782274
B90: Locales tecnicos non cerrados | C90: INFRA | D90: m2 | E90: LOCAL | G90: 404.9912346 | H90: 0 | I90: 67.49853911 | J90: 0 | K90: 228.1450622 | L90: 700.6348359 | N90: 323.9929877 | O90: 80.99824693 | P90: 0 | Q90: 0 | R90: 13.49970782 | S90: 53.99883128 | T90: 0 | U90: 0 | V90: 228.1450622 | W90: 0 | X90: 565.6377577 | Y90: 134.9970782 | Z90: 0.8073217726 | AA90: 0.1926782274
B91: Adecuacion urbana (demolicion, reconstruccion, mobiliario urbano, paisaje) | C91: INFRA | D91: m2 | E91: LOCAL | G91: 376.444215 | H91: 0 | I91: 41.827135 | J91: 0 | K91: 108.750551 | L91: 527.021901 | N91: 301.155372 | O91: 75.288843 | P91: 0 | Q91: 0 | R91: 8.365427 | S91: 33.461708 | T91: 0 | U91: 0 | V91: 108.750551 | W91: 0 | X91: 418.27135 | Y91: 108.750551 | Z91: 0.7936507937 | AA91: 0.2063492063
B92: Pasarela | C92: INFRA | D92: m2 | E92: LOCAL | G92: 784.2587812 | H92: 0 | I92: 130.7097969 | J92: 0 | K92: 441.7991134 | L92: 1356.767692 | N92: 627.407025 | O92: 156.8517562 | P92: 0 | Q92: 0 | R92: 26.14195937 | S92: 104.5678375 | T92: 0 | U92: 0 | V92: 441.7991134 | W92: 0 | X92: 1095.348098 | Y92: 261.4195937 | Z92: 0.8073217726 | AA92: 0.1926782274
B94: Centro de mantenimiento
B95: Zona de almacenamiento de tipo local industrial | C95: INFRA | D95: m2 | E95: LOCAL | G95: 404.9912346 | H95: 0 | I95: 67.49853911 | J95: 0 | K95: 228.1450622 | L95: 700.6348359 | N95: 323.9929877 | O95: 80.99824693 | P95: 0 | Q95: 0 | R95: 13.49970782 | S95: 53.99883128 | T95: 0 | U95: 0 | V95: 228.1450622 | W95: 0 | X95: 565.6377577 | Y95: 134.9970782 | Z95: 0.8073217726 | AA95: 0.1926782274
B96: Almacen y taller | C96: INFRA | D96: m2 | E96: LOCAL | G96: 573.7637244 | H96: 0 | I96: 95.62728739 | J96: 0 | K96: 323.2202314 | L96: 992.6112431 | N96: 459.0109795 | O96: 114.7527449 | P96: 0 | Q96: 0 | R96: 19.12545748 | S96: 76.50182991 | T96: 0 | U96: 0 | V96: 323.2202314 | W96: 0 | X96: 801.3566684 | Y96: 191.2545748 | Z96: 0.8073217726 | AA96: 0.1926782274
B97: Local de supervision | C97: INFRA | D97: m2 | E97: LOCAL | G97: 573.7637244 | H97: 0 | I97: 95.62728739 | J97: 0 | K97: 323.2202314 | L97: 992.6112431 | N97: 459.0109795 | O97: 114.7527449 | P97: 0 | Q97: 0 | R97: 19.12545748 | S97: 76.50182991 | T97: 0 | U97: 0 | V97: 323.2202314 | W97: 0 | X97: 801.3566684 | Y97: 191.2545748 | Z97: 0.8073217726 | AA97: 0.1926782274
B98: Transporte cabinas | C98: EQUIP | D98: m2 | E98: EUROPA | G98: 922.7319479 | H98: 4.613659739 | I98: 70.97938061 | J98: 92.27319479 | K98: 73.81855583 | L98: 1164.416739 | N98: 0 | O98: 922.7319479 | P98: 4.613659739 | Q98: 0 | R98: 14.19587612 | S98: 56.78350448 | T98: 0 | U98: 92.27319479 | V98: 73.81855583 | W98: 0 | X98: 92.62809169 | Y98: 1071.788647 | Z98: 0.07954891801 | AA98: 0.920451082
B99: Instrumentos, elevador y piezas de recambio | C99: EQUIP | D99: U | E99: EUROPA | G99: 124435.7266 | H99: 622.1786331 | I99: 7319.748625 | J99: 12443.57266 | K99: 0 | L99: 144821.2265 | N99: 0 | O99: 124435.7266 | P99: 622.1786331 | Q99: 0 | R99: 1463.949725 | S99: 5855.7989 | T99: 0 | U99: 12443.57266 | V99: 0 | W99: 0 | X99: 2086.128358 | Y99: 142735.0982 | Z99: 0.01440485216 | AA99: 0.9855951478
B100: Ascensores inclinados para las cabinas | C100: EQUIP | D100: U | E100: EUROPA | G100: 576707.4674 | H100: 2883.537337 | I100: 44362.11288 | J100: 57670.74674 | K100: 46136.59739 | L100: 727760.4618 | N100: 0 | O100: 576707.4674 | P100: 2883.537337 | Q100: 0 | R100: 8872.422576 | S100: 35489.6903 | T100: 0 | U100: 57670.74674 | V100: 46136.59739 | W100: 0 | X100: 57892.55731 | Y100: 669867.9045 | Z100: 0.07954891801 | AA100: 0.920451082
B101: Adecuacion urbana (demolicion, reconstruccion, mobiliario urbano, paisaje) | C101: INFRA | D101: m2 | E101: LOCAL | G101: 141.1665806 | H101: 0 | I101: 15.68517562 | J101: 0 | K101: 40.78145662 | L101: 197.6332129 | N101: 112.9332645 | O101: 28.23331612 | P101: 0 | Q101: 0 | R101: 3.137035125 | S101: 12.5481405 | T101: 0 | U101: 0 | V101: 40.78145662 | W101: 0 | X101: 156.8517562 | Y101: 40.78145662 | Z101: 0.7936507937 | AA101: 0.2063492063
B103: Operaciones adicionales : estacionamiento incitativo y buses
B104: Estacionamiento incitativo | C104: INFRA | D104: Plaza | E104: LOCAL | G104: 1097.962294 | H104: 0 | I104: 182.9937156 | J104: 0 | K104: 618.5187588 | L104: 1899.474768 | N104: 878.369835 | O104: 219.5924587 | P104: 0 | Q104: 0 | R104: 36.59874312 | S104: 146.3949725 | T104: 0 | U104: 0 | V104: 618.5187588 | W104: 0 | X104: 1533.487337 | Y104: 365.9874312 | Z104: 0.8073217726 | AA104: 0.1926782274
B105: Creacion de vias de acceso en Samborondon | C105: INFRA | D105: m² | E105: LOCAL | G105: 141.1665806 | H105: 0 | I105: 15.68517562 | J105: 0 | K105: 40.78145662 | L105: 197.6332129 | N105: 112.9332645 | O105: 28.23331612 | P105: 0 | Q105: 0 | R105: 3.137035125 | S105: 12.5481405 | T105: 0 | U105: 0 | V105: 40.78145662 | W105: 0 | X105: 156.8517562 | Y105: 40.78145662 | Z105: 0.7936507937 | AA105: 0.2063492063
B106: Compra de buses alimentadores para Samborondon (12 m) | C106: VEH | D106: U | E106: LOCAL | G106: 130000 | H106: 0 | I106: 0 | J106: 0 | K106: 0 | L106: 130000 | N106: 104000 | O106: 26000 | P106: 0 | Q106: 0 | R106: 0 | S106: 0 | T106: 0 | U106: 0 | V106: 0 | W106: 0 | X106: 104000 | Y106: 26000 | Z106: 0.8 | AA106: 0.2
B107: Compra de buses alimentadores para Duran (12 m) | C107: VEH | D107: U | E107: LOCAL | G107: 130000 | H107: 0 | I107: 0 | J107: 0 | K107: 0 | L107: 130000 | N107: 104000 | O107: 26000 | P107: 0 | Q107: 0 | R107: 0 | S107: 0 | T107: 0 | U107: 0 | V107: 0 | W107: 0 | X107: 104000 | Y107: 26000 | Z107: 0.8 | AA107: 0.2
B108: Creacion de paraderos en Samborondon | C108: INFRA | D108: U | E108: LOCAL | G108: 1568.517562 | H108: 0 | I108: 522.8391875 | J108: 0 | K108: 2175.01102 | L108: 4266.36777 | N108: 1254.81405 | O108: 313.7035125 | P108: 0 | Q108: 0 | R108: 104.5678375 | S108: 418.27135 | T108: 0 | U108: 0 | V108: 2175.01102 | W108: 0 | X108: 3534.392907 | Y108: 731.9748625 | Z108: 0.8284313725 | AA108: 0.1715686275
B109: Creacion de paraderos en Duran | C109: INFRA | D109: U | E109: LOCAL | G109: 1568.517562 | H109: 0 | I109: 522.8391875 | J109: 0 | K109: 2175.01102 | L109: 4266.36777 | N109: 1254.81405 | O109: 313.7035125 | P109: 0 | Q109: 0 | R109: 104.5678375 | S109: 418.27135 | T109: 0 | U109: 0 | V109: 2175.01102 | W109: 0 | X109: 3534.392907 | Y109: 731.9748625 | Z109: 0.8284313725 | AA109: 0.1715686275
B110: Modificacion de parada de bus | C110: INFRA | D110: forfait | E110: LOCAL | G110: 1568.517562 | H110: 0 | I110: 522.8391875 | J110: 0 | K110: 2175.01102 | L110: 4266.36777 | N110: 1254.81405 | O110: 313.7035125 | P110: 0 | Q110: 0 | R110: 104.5678375 | S110: 418.27135 | T110: 0 | U110: 0 | V110: 2175.01102 | W110: 0 | X110: 3534.392907 | Y110: 731.9748625 | Z110: 0.8284313725 | AA110: 0.1715686275

Sheet DEMANDA (hidden)
B2: Legenda | C2: Dato de entrada
C3: Celda llave
C4: Error
C5: Dato calculado
B8: HIPOTESIS
B10: Dias de operacion | C10: 300
B12: Escenario base | C12: % de tarifas normales | D12: =1-D13 -> 0.85
C13: % de tarifas reducidas | D13: 0.15
C15: Parqueardero de Samborondon gratuido
D16: 19 | E16: 250
D17: 3 | E17: 250
C19: Alimentadoras de Samborondon con tarifa integrada (gratuidas)
E20: Demanda hora pico (pphpd)
E21: Samborondon | F21: Duran
D22: 19 | E22: 200 | F22: 0
D23: 3 | E23: 200 | F23: 100
C25: Sin integracion tarifaria con el Metrovia
B30: ALTERNATIVA 19
D32: 3755 | I32: =D32*I57/D57 -> 4088.894269 | N32: =I32*N57/I57 -> 4418.304926 | S32: =N32*S57/N57 -> 4864.196796 | X32: =S32*X57/S57 -> 5557.184584
D33: =D$32*D58/D$57 -> 3724.213091 | I33: =D33*I58/D58 -> 4042.768687 | N33: =I33*N58/I58 -> 4358.096419 | S33: =N33*S58/N58 -> 4795.4256 | X33: =S33*X58/S58 -> 5452.11467
D34: =D$32*D59/D$57 -> 3657.473005 | I34: 3967.651325 | N34: 4249.571089 | S34: 4654.992459 | X34: 5299.654997
D35: 3593.353978 | I35: 3890.08989 | N35: 4172.439473 | S35: 4556.62268 | X35: 5167.472713
D36: 3541.809293 | I36: 3820.678178 | N36: 4091.211926 | S36: 4461.202645 | X36: 5047.080981
B37: JOB
B38: Año | C38: 2019 | D38: 2020 | E38: 2021 | F38: 2022 | G38: 2023 | H38: 2024 | I38: 2025 | J38: 2026 | K38: 2027 | L38: 2028 | M38: 2029 | N38: 2030 | O38: 2031 | P38: 2032 | Q38: 2033 | R38: 2034 | S38: 2035 | T38: 2036 | U38: 2037 | V38: 2038 | W38: 2039 | X38: 2040 | Y38: 2041 | Z38: 2042 | AA38: 2043 | AB38: 2044 | AC38: 2045 | AD38: 2046 | AE38: 2047 | AF38: 2048 | AG38: 2049 | AH38: 2050 | AI38: 2051 | AJ38: 2052 | AK38: 2053 | AL38: 2054 | AM38: 2055 | AN38: 2056 | AO38: 2057 | AP38: 2058 | AQ38: 2059
B39: Tarifa 1 | C39: =D39-0.25*D39 -> 31291.66667 | D39: =D32*PARAMETROS!$C$23/PARAMETROS!$C$25 -> 41722.22222 | E39: =D39+($I39-$D39)/5 -> 42464.20949 | F39: =E39+($I39-$D39)/5 -> 43206.19675 | G39: 43948.18402 | H39: 44690.17128 | I39: =I32*PARAMETROS!$C$23/PARAMETROS!$C$25 -> 45432.15855 | J39: =I39+($N39-$I39)/5 -> 46164.18223 | K39: =J39+($N39-$I39)/5 -> 46896.20591 | L39: 47628.22959 | M39: 48360.25328 | N39: =N32*PARAMETROS!$C$23/PARAMETROS!$C$25 -> 49092.27696 | O39: =N39+($S39-$N39)/5 -> 50083.14778 | P39: =O39+($S39-$N39)/5 -> 51074.0186 | Q39: 52064.88943 | R39: 53055.76025 | S39: =S32*PARAMETROS!$C$23/PARAMETROS!$C$25 -> 54046.63107 | T39: =S39+($X39-$S39)/5 -> 55586.60393 | U39: =T39+($X39-$S39)/5 -> 57126.57679 | V39: =U39+($X39-$S39)/5 -> 58666.54966 | W39: 60206.52252 | X39: =X32*PARAMETROS!$C$23/PARAMETROS!$C$25 -> 61746.49538 | Y39: =$X39 -> 61746.49538 | Z39: =$X39 -> 61746.49538 | AA39: 61746.49538 | AB39: 61746.49538 | AC39: 61746.49538 | AD39: 61746.49538 | AE39: 61746.49538 | AF39: 61746.49538 | AG39: 61746.49538 | AH39: 61746.49538 | AI39: 61746.49538 | AJ39: 61746.49538 | AK39: 61746.49538 | AL39: 61746.49538 | AM39: 61746.49538 | AN39: 61746.49538 | AO39: 61746.49538 | AP39: 61746.49538 | AQ39: 61746.49538
B40: Tarifa 2 | C40: =D40-0.25*D40 -> 31035.10909 | D40: =D33*PARAMETROS!$C$23/PARAMETROS!$C$25 -> 41380.14545 | E40: =D40+($I40-$D40)/5 -> 42088.04678 | F40: 42795.9481 | G40: 43503.84943 | H40: 44211.75075 | I40: =I33*PARAMETROS!$C$23/PARAMETROS!$C$25 -> 44919.65207 | J40: =I40+($N40-$I40)/5 -> 45620.38037 | K40: 46321.10866 | L40: 47021.83695 | M40: 47722.56525 | N40: =N33*PARAMETROS!$C$23/PARAMETROS!$C$25 -> 48423.29354 | O40: =N40+($S40-$N40)/5 -> 49395.13617 | P40: 50366.97879 | Q40: 51338.82142 | R40: 52310.66405 | S40: =S33*PARAMETROS!$C$23/PARAMETROS!$C$25 -> 53282.50667 | T40: =S40+($X40-$S40)/5 -> 54741.81572 | U40: 56201.12476 | V40: 57660.4338 | W40: 59119.74285 | X40: =X33*PARAMETROS!$C$23/PARAMETROS!$C$25 -> 60579.05189 | Y40: =$X40 -> 60579.05189 | Z40: 60579.05189 | AA40: 60579.05189 | AB40: 60579.05189 | AC40: 60579.05189 | AD40: 60579.05189 | AE40: 60579.05189 | AF40: 60579.05189 | AG40: 60579.05189 | AH40: 60579.05189 | AI40: 60579.05189 | AJ40: 60579.05189 | AK40: 60579.05189 | AL40: 60579.05189 | AM40: 60579.05189 | AN40: 60579.05189 | AO40: 60579.05189 | AP40: 60579.05189 | AQ40: 60579.05189
B41: Tarifa 3 | C41: 30478.94171 | D41: =D34*PARAMETROS!$C$23/PARAMETROS!$C$25 -> 40638.58895 | E41: =D41+($I41-$D41)/5 -> 41327.8741 | F41: 42017.15926 | G41: 42706.44441 | H41: 43395.72957 | I41: =I34*PARAMETROS!$C$23/PARAMETROS!$C$25 -> 44085.01472 | J41: =I41+($N41-$I41)/5 -> 44711.50309 | K41: 45337.99145 | L41: 45964.47982 | M41: 46590.96818 | N41: =N34*PARAMETROS!$C$23/PARAMETROS!$C$25 -> 47217.45654 | O41: =N41+($S41-$N41)/5 -> 48118.39292 | P41: 49019.3293 | Q41: 49920.26568 | R41: 50821.20205 | S41: =S34*PARAMETROS!$C$23/PARAMETROS!$C$25 -> 51722.13843 | T41: =S41+($X41-$S41)/5 -> 53154.72185 | U41: 54587.30527 | V41: 56019.88869 | W41: 57452.4721 | X41: =X34*PARAMETROS!$C$23/PARAMETROS!$C$25 -> 58885.05552 | Y41: 58885.05552 | Z41: 58885.05552 | AA41: 58885.05552 | AB41: 58885.05552 | AC41: 58885.05552 | AD41: 58885.05552 | AE41: 58885.05552 | AF41: 58885.05552 | AG41: 58885.05552 | AH41: 58885.05552 | AI41: 58885.05552 | AJ41: 58885.05552 | AK41: 58885.05552 | AL41: 58885.05552 | AM41: 58885.05552 | AN41: 58885.05552 | AO41: 58885.05552 | AP41: 58885.05552 | AQ41: 58885.05552
B42: Tarifa 4 | C42: 29944.61649 | D42: =D35*PARAMETROS!$C$23/PARAMETROS!$C$25 -> 39926.15532 | E42: =D42+($I42-$D42)/5 -> 40585.56845 | F42: 41244.98159 | G42: 41904.39472 | H42: 42563.80786 | I42: =I35*PARAMETROS!$C$23/PARAMETROS!$C$25 -> 43223.22099 | J42: =I42+($N42-$I42)/5 -> 43850.66451 | K42: 44478.10803 | L42: 45105.55155 | M42: 45732.99507 | N42: =N35*PARAMETROS!$C$23/PARAMETROS!$C$25 -> 46360.43859 | O42: =N42+($S42-$N42)/5 -> 47214.17905 | P42: 48067.91951 | Q42: 48921.65997 | R42: 49775.40043 | S42: =S35*PARAMETROS!$C$23/PARAMETROS!$C$25 -> 50629.14088 | T42: =S42+($X42-$S42)/5 -> 51986.5854 | U42: 53344.02992 | V42: 54701.47444 | W42: 56058.91896 | X42: =X35*PARAMETROS!$C$23/PARAMETROS!$C$25 -> 57416.36348 | Y42: 57416.36348 | Z42: 57416.36348 | AA42: 57416.36348 | AB42: 57416.36348 | AC42: 57416.36348 | AD42: 57416.36348 | AE42: 57416.36348 | AF42: 57416.36348 | AG42: 57416.36348 | AH42: 57416.36348 | AI42: 57416.36348 | AJ42: 57416.36348 | AK42: 57416.36348 | AL42: 57416.36348 | AM42: 57416.36348 | AN42: 57416.36348 | AO42: 57416.36348 | AP42: 57416.36348 | AQ42: 57416.36348
B43: Tarifa 5 | C43: 29515.07744 | D43: =D36*PARAMETROS!$C$23/PARAMETROS!$C$25 -> 39353.43659 | E43: =D43+($I43-$D43)/5 -> 39973.14522 | F43: 40592.85385 | G43: 41212.56249 | H43: 41832.27112 | I43: =I36*PARAMETROS!$C$23/PARAMETROS!$C$25 -> 42451.97975 | J43: =I43+($N43-$I43)/5 -> 43053.16586 | K43: 43654.35197 | L43: 44255.53807 | M43: 44856.72418 | N43: =N36*PARAMETROS!$C$23/PARAMETROS!$C$25 -> 45457.91029 | O43: =N43+($S43-$N43)/5 -> 46280.11189 | P43: 47102.31349 | Q43: 47924.51508 | R43: 48746.71668 | S43: =S36*PARAMETROS!$C$23/PARAMETROS!$C$25 -> 49568.91828 | T43: =S43+($X43-$S43)/5 -> 50870.87014 | U43: 52172.822 | V43: 53474.77385 | W43: 54776.72571 | X43: =X36*PARAMETROS!$C$23/PARAMETROS!$C$25 -> 56078.67757 | Y43: 56078.67757 | Z43: 56078.67757 | AA43: 56078.67757 | AB43: 56078.67757 | AC43: 56078.67757 | AD43: 56078.67757 | AE43: 56078.67757 | AF43: 56078.67757 | AG43: 56078.67757 | AH43: 56078.67757 | AI43: 56078.67757 | AJ43: 56078.67757 | AK43: 56078.67757 | AL43: 56078.67757 | AM43: 56078.67757 | AN43: 56078.67757 | AO43: 56078.67757 | AP43: 56078.67757 | AQ43: 56078.67757
B45: Pasajeros Anuales
B46: Año | C46: 2019 | D46: 2020 | E46: 2021 | F46: 2022 | G46: 2023 | H46: 2024 | I46: 2025 | J46: 2026 | K46: 2027 | L46: 2028 | M46: 2029 | N46: 2030 | O46: 2031 | P46: 2032 | Q46: 2033 | R46: 2034 | S46: 2035 | T46: 2036 | U46: 2037 | V46: 2038 | W46: 2039 | X46: 2040 | Y46: 2041 | Z46: 2042 | AA46: 2043 | AB46: 2044 | AC46: 2045 | AD46: 2046 | AE46: 2047 | AF46: 2048 | AG46: 2049 | AH46: 2050 | AI46: 2051 | AJ46: 2052 | AK46: 2053 | AL46: 2054 | AM46: 2055 | AN46: 2056 | AO46: 2057 | AP46: 2058 | AQ46: 2059
B47: Tarifa 1 | C47: =$C$10*C39 -> 9387500 | D47: =$C$10*D39 -> 12516666.67 | E47: 12739262.85 | F47: 12961859.03 | G47: 13184455.21 | H47: 13407051.38 | I47: 13629647.56 | J47: 13849254.67 | K47: 14068861.77 | L47: 14288468.88 | M47: 14508075.98 | N47: 14727683.09 | O47: 15024944.33 | P47: 15322205.58 | Q47: 15619466.83 | R47: 15916728.07 | S47: 16213989.32 | T47: 16675981.18 | U47: 17137973.04 | V47: 17599964.9 | W47: 18061956.76 | X47: 18523948.61 | Y47: 18523948.61 | Z47: 18523948.61 | AA47: 18523948.61 | AB47: 18523948.61 | AC47: 18523948.61 | AD47: 18523948.61 | AE47: 18523948.61 | AF47: 18523948.61 | AG47: 18523948.61 | AH47: =$C$10*AH39 -> 18523948.61 | AI47: 18523948.61 | AJ47: 18523948.61 | AK47: 18523948.61 | AL47: 18523948.61 | AM47: 18523948.61 | AN47: 18523948.61 | AO47: 18523948.61 | AP47: 18523948.61 | AQ47: 18523948.61
B48: Tarifa 2 | C48: =$C$10*C40 -> 9310532.727 | D48: =$C$10*D40 -> 12414043.64 | E48: 12626414.03 | F48: 12838784.43 | G48: 13051154.83 | H48: 13263525.22 | I48: 13475895.62 | J48: 13686114.11 | K48: 13896332.6 | L48: 14106551.09 | M48: 14316769.57 | N48: 14526988.06 | O48: 14818540.85 | P48: 15110093.64 | Q48: 15401646.43 | R48: 15693199.21 | S48: 15984752 | T48: 16422544.71 | U48: 16860337.43 | V48: 17298130.14 | W48: 17735922.85 | X48: 18173715.57 | Y48: 18173715.57 | Z48: 18173715.57 | AA48: 18173715.57 | AB48: 18173715.57 | AC48: 18173715.57 | AD48: 18173715.57 | AE48: 18173715.57 | AF48: 18173715.57 | AG48: 18173715.57 | AH48: =$C$10*AH40 -> 18173715.57 | AI48: 18173715.57 | AJ48: 18173715.57 | AK48: 18173715.57 | AL48: 18173715.57 | AM48: 18173715.57 | AN48: 18173715.57 | AO48: 18173715.57 | AP48: 18173715.57 | AQ48: 18173715.57
B49: Tarifa 3 | C49: =$C$10*C41 -> 9143682.513 | D49: 12191576.68 | E49: 12398362.23 | F49: 12605147.78 | G49: 12811933.32 | H49: 13018718.87 | I49: 13225504.42 | J49: 13413450.93 | K49: 13601397.44 | L49: 13789343.95 | M49: 13977290.45 | N49: 14165236.96 | O49: 14435517.88 | P49: 14705798.79 | Q49: 14976079.7 | R49: 15246360.62 | S49: 15516641.53 | T49: 15946416.55 | U49: 16376191.58 | V49: 16805966.61 | W49: 17235741.63 | X49: 17665516.66 | Y49: 17665516.66 | Z49: 17665516.66 | AA49: 17665516.66 | AB49: 17665516.66 | AC49: 17665516.66 | AD49: 17665516.66 | AE49: 17665516.66 | AF49: 17665516.66 | AG49: 17665516.66 | AH49: =$C$10*AH41 -> 17665516.66 | AI49: 17665516.66 | AJ49: 17665516.66 | AK49: 17665516.66 | AL49: 17665516.66 | AM49: 17665516.66 | AN49: 17665516.66 | AO49: 17665516.66 | AP49: 17665516.66 | AQ49: 17665516.66
B50: Tarifa 4 | C50: =$C$10*C42 -> 8983384.946 | D50: 11977846.59 | E50: 12175670.54 | F50: 12373494.48 | G50: 12571318.42 | H50: 12769142.36 | I50: 12966966.3 | J50: 13155199.35 | K50: 13343432.41 | L50: 13531665.47 | M50: 13719898.52 | N50: 13908131.58 | O50: 14164253.72 | P50: 14420375.85 | Q50: 14676497.99 | R50: 14932620.13 | S50: 15188742.27 | T50: 15595975.62 | U50: 16003208.98 | V50: 16410442.33 | W50: 16817675.69 | X50: 17224909.04 | Y50: 17224909.04 | Z50: 17224909.04 | AA50: 17224909.04 | AB50: 17224909.04 | AC50: 17224909.04 | AD50: 17224909.04 | AE50: 17224909.04 | AF50: 17224909.04 | AG50: 17224909.04 | AH50: =$C$10*AH42 -> 17224909.04 | AI50: 17224909.04 | AJ50: 17224909.04 | AK50: 17224909.04 | AL50: 17224909.04 | AM50: 17224909.04 | AN50: 17224909.04 | AO50: 17224909.04 | AP50: 17224909.04 | AQ50: 17224909.04
B51: Tarifa 5 | C51: =$C$10*C43 -> 8854523.232 | D51: 11806030.98 | E51: 11991943.57 | F51: 12177856.16 | G51: 12363768.75 | H51: 12549681.34 | I51: 12735593.93 | J51: 12915949.76 | K51: 13096305.59 | L51: 13276661.42 | M51: 13457017.25 | N51: 13637373.09 | O51: 13884033.57 | P51: 14130694.05 | Q51: 14377354.53 | R51: 14624015 | S51: 14870675.48 | T51: 15261261.04 | U51: 15651846.6 | V51: 16042432.16 | W51: 16433017.71 | X51: 16823603.27 | Y51: 16823603.27 | Z51: 16823603.27 | AA51: 16823603.27 | AB51: 16823603.27 | AC51: 16823603.27 | AD51: 16823603.27 | AE51: 16823603.27 | AF51: 16823603.27 | AG51: 16823603.27 | AH51: =$C$10*AH43 -> 16823603.27 | AI51: 16823603.27 | AJ51: 16823603.27 | AK51: 16823603.27 | AL51: 16823603.27 | AM51: 16823603.27 | AN51: 16823603.27 | AO51: 16823603.27 | AP51: 16823603.27 | AQ51: 16823603.27
B55: ALTERNATIVA 3
AS56: ESC13
D57: 3814 | I57: =D57*AX57/AS57 -> 4153.140544 | N57: =I57*BC57/AX57 -> 4487.727028 | S57: =N57*BH57/BC57 -> 4940.624922 | X57: =S57*BM57/BH57 -> 5644.5012 | AS57: 4455.47 | AX57: 4851.65 | BC57: 5242.51 | BH57: 5771.58 | BM57: 6593.84
D58: =D$57*AS58/AS$57 -> 3782.729355 | I58: =D58*AX58/AS58 -> 4106.290219 | N58: =I58*BC58/AX58 -> 4426.572501 | S58: =N58*BH58/BC58 -> 4870.773166 | X58: =S58*BM58/BH58 -> 5537.780387 | AS58: 4418.94 | AX58: 4796.92 | BC58: 5171.07 | BH58: 5689.98 | BM58: 6469.17
D59: =D$57*AS59/AS$57 -> 3714.940624 | I59: 4029.992584 | N59: 4316.34198 | S59: 4728.133485 | X59: 5382.925209 | AS59: 4339.75 | AX59: 4707.79 | BC59: 5042.3 | BH59: 5523.35 | BM59: 6288.27
D60: 3649.814134 | I60: 3951.212474 | N60: 4237.998442 | S60: 4628.218082 | X60: 5248.666026 | AS60: 4263.67 | AX60: 4615.76 | BC60: 4950.78 | BH60: 5406.63 | BM60: 6131.43
D61: 3597.459559 | I61: 3880.710138 | N61: 4155.494617 | S61: 4531.298772 | X61: 5126.382653 | AS61: 4202.51 | AX61: 4533.4 | BC61: 4854.4 | BH61: 5293.41 | BM61: 5988.58
B62: JOB
B63: Año | C63: 2019 | D63: 2020 | E63: 2021 | F63: 2022 | G63: 2023 | H63: 2024 | I63: 2025 | J63: 2026 | K63: 2027 | L63: 2028 | M63: 2029 | N63: 2030 | O63: 2031 | P63: 2032 | Q63: 2033 | R63: 2034 | S63: 2035 | T63: 2036 | U63: 2037 | V63: 2038 | W63: 2039 | X63: 2040 | Y63: 2041 | Z63: 2042 | AA63: 2043 | AB63: 2044 | AC63: 2045 | AD63: 2046 | AE63: 2047 | AF63: 2048 | AG63: 2049 | AH63: 2050 | AI63: 2051 | AJ63: 2052 | AK63: 2053 | AL63: 2054 | AM63: 2055 | AN63: 2056 | AO63: 2057 | AP63: 2058 | AQ63: 2059
B64: Tarifa 1 | C64: =D64-0.25*D64 -> 31783.33333 | D64: =D57*PARAMETROS!$C$23/PARAMETROS!$C$25 -> 42377.77778 | E64: =D64+($I64-$D64)/5 -> 43131.42343 | F64: =E64+($I64-$D64)/5 -> 43885.06908 | G64: 44638.71474 | H64: 45392.36039 | I64: =I57*PARAMETROS!$C$23/PARAMETROS!$C$25 -> 46146.00605 | J64: =I64+($N64-$I64)/5 -> 46889.53156 | K64: =J64+($N64-$I64)/5 -> 47633.05708 | L64: 48376.5826 | M64: 49120.10812 | N64: =N57*PARAMETROS!$C$23/PARAMETROS!$C$25 -> 49863.63364 | O64: =N64+($S64-$N64)/5 -> 50870.07341 | P64: =O64+($S64-$N64)/5 -> 51876.51317 | Q64: 52882.95293 | R64: 53889.3927 | S64: =S57*PARAMETROS!$C$23/PARAMETROS!$C$25 -> 54895.83246 | T64: =S64+($X64-$S64)/5 -> 56460.00197 | U64: =T64+($X64-$S64)/5 -> 58024.17148 | V64: =U64+($X64-$S64)/5 -> 59588.34098 | W64: 61152.51049 | X64: =X57*PARAMETROS!$C$23/PARAMETROS!$C$25 -> 62716.68 | Y64: =$X64 -> 62716.68 | Z64: =$X64 -> 62716.68 | AA64: 62716.68 | AB64: 62716.68 | AC64: 62716.68 | AD64: 62716.68 | AE64: 62716.68 | AF64: 62716.68 | AG64: 62716.68 | AH64: 62716.68 | AI64: 62716.68 | AJ64: 62716.68 | AK64: 62716.68 | AL64: 62716.68 | AM64: 62716.68 | AN64: 62716.68 | AO64: 62716.68 | AP64: 62716.68 | AQ64: 62716.68
B65: Tarifa 2 | C65: =D65-0.25*D65 -> 31522.74463 | D65: =D58*PARAMETROS!$C$23/PARAMETROS!$C$25 -> 42030.32617 | E65: =D65+($I65-$D65)/5 -> 42749.35031 | F65: 43468.37445 | G65: 44187.39859 | H65: 44906.42273 | I65: =I58*PARAMETROS!$C$23/PARAMETROS!$C$25 -> 45625.44687 | J65: =I65+($N65-$I65)/5 -> 46337.18528 | K65: 47048.92368 | L65: 47760.66209 | M65: 48472.40049 | N65: =N58*PARAMETROS!$C$23/PARAMETROS!$C$25 -> 49184.1389 | O65: =N65+($S65-$N65)/5 -> 50171.25149 | P65: 51158.36408 | Q65: 52145.47667 | R65: 53132.58926 | S65: =S58*PARAMETROS!$C$23/PARAMETROS!$C$25 -> 54119.70185 | T65: =S65+($X65-$S65)/5 -> 55601.94012 | U65: 57084.17838 | V65: 58566.41665 | W65: 60048.65492 | X65: =X58*PARAMETROS!$C$23/PARAMETROS!$C$25 -> 61530.89319 | Y65: =$X65 -> 61530.89319 | Z65: 61530.89319 | AA65: 61530.89319 | AB65: 61530.89319 | AC65: 61530.89319 | AD65: 61530.89319 | AE65: 61530.89319 | AF65: 61530.89319 | AG65: 61530.89319 | AH65: 61530.89319 | AI65: 61530.89319 | AJ65: 61530.89319 | AK65: 61530.89319 | AL65: 61530.89319 | AM65: 61530.89319 | AN65: 61530.89319 | AO65: 61530.89319 | AP65: 61530.89319 | AQ65: 61530.89319
B66: Tarifa 3 | C66: 30957.83853 | D66: =D59*PARAMETROS!$C$23/PARAMETROS!$C$25 -> 41277.11804 | E66: =D66+($I66-$D66)/5 -> 41977.23351 | F66: 42677.34898 | G66: 43377.46445 | H66: 44077.57991 | I66: =I59*PARAMETROS!$C$23/PARAMETROS!$C$25 -> 44777.69538 | J66: =I66+($N66-$I66)/5 -> 45414.02737 | K66: 46050.35936 | L66: 46686.69135 | M66: 47323.02334 | N66: =N59*PARAMETROS!$C$23/PARAMETROS!$C$25 -> 47959.35533 | O66: =N66+($S66-$N66)/5 -> 48874.44756 | P66: 49789.5398 | Q66: 50704.63203 | R66: 51619.72427 | S66: =S59*PARAMETROS!$C$23/PARAMETROS!$C$25 -> 52534.8165 | T66: =S66+($X66-$S66)/5 -> 53989.90922 | U66: 55445.00194 | V66: 56900.09466 | W66: 58355.18738 | X66: =X59*PARAMETROS!$C$23/PARAMETROS!$C$25 -> 59810.2801 | Y66: 59810.2801 | Z66: 59810.2801 | AA66: 59810.2801 | AB66: 59810.2801 | AC66: 59810.2801 | AD66: 59810.2801 | AE66: 59810.2801 | AF66: 59810.2801 | AG66: 59810.2801 | AH66: 59810.2801 | AI66: 59810.2801 | AJ66: 59810.2801 | AK66: 59810.2801 | AL66: 59810.2801 | AM66: 59810.2801 | AN66: 59810.2801 | AO66: 59810.2801 | AP66: 59810.2801 | AQ66: 59810.2801
B67: Tarifa 4 | C67: 30415.11778 | D67: =D60*PARAMETROS!$C$23/PARAMETROS!$C$25 -> 40553.49038 | E67: =D67+($I67-$D67)/5 -> 41223.26447 | F67: 41893.03855 | G67: 42562.81264 | H67: 43232.58673 | I67: =I60*PARAMETROS!$C$23/PARAMETROS!$C$25 -> 43902.36082 | J67: =I67+($N67-$I67)/5 -> 44539.66297 | K67: 45176.96512 | L67: 45814.26728 | M67: 46451.56943 | N67: =N60*PARAMETROS!$C$23/PARAMETROS!$C$25 -> 47088.87158 | O67: =N67+($S67-$N67)/5 -> 47956.02634 | P67: 48823.18109 | Q67: 49690.33585 | R67: 50557.49061 | S67: =S60*PARAMETROS!$C$23/PARAMETROS!$C$25 -> 51424.64536 | T67: =S67+($X67-$S67)/5 -> 52803.41857 | U67: 54182.19178 | V67: 55560.96499 | W67: 56939.73819 | X67: =X60*PARAMETROS!$C$23/PARAMETROS!$C$25 -> 58318.5114 | Y67: 58318.5114 | Z67: 58318.5114 | AA67: 58318.5114 | AB67: 58318.5114 | AC67: 58318.5114 | AD67: 58318.5114 | AE67: 58318.5114 | AF67: 58318.5114 | AG67: 58318.5114 | AH67: 58318.5114 | AI67: 58318.5114 | AJ67: 58318.5114 | AK67: 58318.5114 | AL67: 58318.5114 | AM67: 58318.5114 | AN67: 58318.5114 | AO67: 58318.5114 | AP67: 58318.5114 | AQ67: 58318.5114
B68: Tarifa 5 | C68: 29978.82966 | D68: =D61*PARAMETROS!$C$23/PARAMETROS!$C$25 -> 39971.77287 | E68: =D68+($I68-$D68)/5 -> 40601.21861 | F68: 41230.66434 | G68: 41860.11007 | H68: 42489.5558 | I68: =I61*PARAMETROS!$C$23/PARAMETROS!$C$25 -> 43119.00154 | J68: =I68+($N68-$I68)/5 -> 43729.63371 | K68: 44340.26589 | L68: 44950.89806 | M68: 45561.53023 | N68: =N61*PARAMETROS!$C$23/PARAMETROS!$C$25 -> 46172.16241 | O68: =N68+($S68-$N68)/5 -> 47007.28275 | P68: 47842.4031 | Q68: 48677.52344 | R68: 49512.64379 | S68: =S61*PARAMETROS!$C$23/PARAMETROS!$C$25 -> 50347.76413 | T68: =S68+($X68-$S68)/5 -> 51670.17276 | U68: 52992.58138 | V68: 54314.99001 | W68: 55637.39863 | X68: =X61*PARAMETROS!$C$23/PARAMETROS!$C$25 -> 56959.80726 | Y68: 56959.80726 | Z68: 56959.80726 | AA68: 56959.80726 | AB68: 56959.80726 | AC68: 56959.80726 | AD68: 56959.80726 | AE68: 56959.80726 | AF68: 56959.80726 | AG68: 56959.80726 | AH68: 56959.80726 | AI68: 56959.80726 | AJ68: 56959.80726 | AK68: 56959.80726 | AL68: 56959.80726 | AM68: 56959.80726 | AN68: 56959.80726 | AO68: 56959.80726 | AP68: 56959.80726 | AQ68: 56959.80726
B70: Pasajeros Anuales
B71: Año | C71: 2019 | D71: 2020 | E71: 2021 | F71: 2022 | G71: 2023 | H71: 2024 | I71: 2025 | J71: 2026 | K71: 2027 | L71: 2028 | M71: 2029 | N71: 2030 | O71: 2031 | P71: 2032 | Q71: 2033 | R71: 2034 | S71: 2035 | T71: 2036 | U71: 2037 | V71: 2038 | W71: 2039 | X71: 2040 | Y71: 2041 | Z71: 2042 | AA71: 2043 | AB71: 2044 | AC71: 2045 | AD71: 2046 | AE71: 2047 | AF71: 2048 | AG71: 2049 | AH71: 2050 | AI71: 2051 | AJ71: 2052 | AK71: 2053 | AL71: 2054 | AM71: 2055 | AN71: 2056 | AO71: 2057 | AP71: 2058 | AQ71: 2059
B72: Tarifa 1 | C72: =$C$10*C64 -> 9535000 | D72: =$C$10*D64 -> 12713333.33 | E72: 12939427.03 | F72: 13165520.73 | G72: 13391614.42 | H72: 13617708.12 | I72: 13843801.81 | J72: 14066859.47 | K72: 14289917.13 | L72: 14512974.78 | M72: 14736032.44 | N72: 14959090.09 | O72: 15261022.02 | P72: 15562953.95 | Q72: 15864885.88 | R72: 16166817.81 | S72: 16468749.74 | T72: 16938000.59 | U72: 17407251.44 | V72: 17876502.29 | W72: 18345753.15 | X72: 18815004 | Y72: 18815004 | Z72: 18815004 | AA72: 18815004 | AB72: 18815004 | AC72: 18815004 | AD72: 18815004 | AE72: 18815004 | AF72: 18815004 | AG72: 18815004 | AH72: =$C$10*AH64 -> 18815004 | AI72: 18815004 | AJ72: 18815004 | AK72: 18815004 | AL72: 18815004 | AM72: 18815004 | AN72: 18815004 | AO72: 18815004 | AP72: 18815004 | AQ72: 18815004
B73: Tarifa 2 | C73: =$C$10*C65 -> 9456823.388 | D73: =$C$10*D65 -> 12609097.85 | E73: 12824805.09 | F73: 13040512.34 | G73: 13256219.58 | H73: 13471926.82 | I73: 13687634.06 | J73: 13901155.58 | K73: 14114677.1 | L73: 14328198.63 | M73: 14541720.15 | N73: 14755241.67 | O73: 15051375.45 | P73: 15347509.22 | Q73: 15643643 | R73: 15939776.78 | S73: 16235910.55 | T73: 16680582.04 | U73: 17125253.52 | V73: 17569925 | W73: 18014596.48 | X73: 18459267.96 | Y73: 18459267.96 | Z73: 18459267.96 | AA73: 18459267.96 | AB73: 18459267.96 | AC73: 18459267.96 | AD73: 18459267.96 | AE73: 18459267.96 | AF73: 18459267.96 | AG73: 18459267.96 | AH73: =$C$10*AH65 -> 18459267.96 | AI73: 18459267.96 | AJ73: 18459267.96 | AK73: 18459267.96 | AL73: 18459267.96 | AM73: 18459267.96 | AN73: 18459267.96 | AO73: 18459267.96 | AP73: 18459267.96 | AQ73: 18459267.96
B74: Tarifa 3 | C74: =$C$10*C66 -> 9287351.559 | D74: 12383135.41 | E74: 12593170.05 | F74: 12803204.69 | G74: 13013239.33 | H74: 13223273.97 | I74: 13433308.61 | J74: 13624208.21 | K74: 13815107.81 | L74: 14006007.41 | M74: 14196907 | N74: 14387806.6 | O74: 14662334.27 | P74: 14936861.94 | Q74: 15211389.61 | R74: 15485917.28 | S74: 15760444.95 | T74: 16196972.77 | U74: 16633500.58 | V74: 17070028.4 | W74: 17506556.21 | X74: 17943084.03 | Y74: 17943084.03 | Z74: 17943084.03 | AA74: 17943084.03 | AB74: 17943084.03 | AC74: 17943084.03 | AD74: 17943084.03 | AE74: 17943084.03 | AF74: 17943084.03 | AG74: 17943084.03 | AH74: =$C$10*AH66 -> 17943084.03 | AI74: 17943084.03 | AJ74: 17943084.03 | AK74: 17943084.03 | AL74: 17943084.03 | AM74: 17943084.03 | AN74: 17943084.03 | AO74: 17943084.03 | AP74: 17943084.03 | AQ74: 17943084.03
B75: Tarifa 4 | C75: =$C$10*C67 -> 9124535.335 | D75: 12166047.11 | E75: 12366979.34 | F75: 12567911.57 | G75: 12768843.79 | H75: 12969776.02 | I75: 13170708.25 | J75: 13361898.89 | K75: 13553089.54 | L75: 13744280.18 | M75: 13935470.83 | N75: 14126661.47 | O75: 14386807.9 | P75: 14646954.33 | Q75: 14907100.75 | R75: 15167247.18 | S75: 15427393.61 | T75: 15841025.57 | U75: 16254657.53 | V75: 16668289.5 | W75: 17081921.46 | X75: 17495553.42 | Y75: 17495553.42 | Z75: 17495553.42 | AA75: 17495553.42 | AB75: 17495553.42 | AC75: 17495553.42 | AD75: 17495553.42 | AE75: 17495553.42 | AF75: 17495553.42 | AG75: 17495553.42 | AH75: =$C$10*AH67 -> 17495553.42 | AI75: 17495553.42 | AJ75: 17495553.42 | AK75: 17495553.42 | AL75: 17495553.42 | AM75: 17495553.42 | AN75: 17495553.42 | AO75: 17495553.42 | AP75: 17495553.42 | AQ75: 17495553.42
B76: Tarifa 5 | C76: =$C$10*C68 -> 8993648.897 | D76: 11991531.86 | E76: 12180365.58 | F76: 12369199.3 | G76: 12558033.02 | H76: 12746866.74 | I76: 12935700.46 | J76: 13118890.11 | K76: 13302079.77 | L76: 13485269.42 | M76: 13668459.07 | N76: 13851648.72 | O76: 14102184.83 | P76: 14352720.93 | Q76: 14603257.03 | R76: 14853793.14 | S76: 15104329.24 | T76: 15501051.83 | U76: 15897774.42 | V76: 16294497 | W76: 16691219.59 | X76: 17087942.18 | Y76: 17087942.18 | Z76: 17087942.18 | AA76: 17087942.18 | AB76: 17087942.18 | AC76: 17087942.18 | AD76: 17087942.18 | AE76: 17087942.18 | AF76: 17087942.18 | AG76: 17087942.18 | AH76: =$C$10*AH68 -> 17087942.18 | AI76: 17087942.18 | AJ76: 17087942.18 | AK76: 17087942.18 | AL76: 17087942.18 | AM76: 17087942.18 | AN76: 17087942.18 | AO76: 17087942.18 | AP76: 17087942.18 | AQ76: 17087942.18

Sheet OFERTA ALIMENTADORA (hidden)
B2: Legenda | C2: Dato de entrada
C3: Celda llave
C4: Error
C5: Dato calculado
B8: Frecuencias (mn)
B10: Samborondon | C10: 5
B11: Duran 1 | C11: 5
B12: Duran 2 | C12: 5
B14: Lineas
B16: Linea | C16: Longitud comercial (m)
B17: Samborondon | C17: =7500/2 -> 3750
B18: Duran 1 | C18: =14300/2 -> 7150
B19: Duran 2 | C19: 0
B22: Flota
B24: Linea | C24: Frecuencia en hora pico (sec) | D24: Frecuencia at hora pico (mn) | E24: Recorrido (km) | F24: Duracion de cambio sentido (mn) | G24: Objectivo de velocidad comercial (km/h) | H24: Duracion del recorrido comercial (mn) | I24: Tiempo de rotacion (mn) | J24: Flota de material rodante (trenes) | K24: Flota Total [+10% operacion *(+ 10% mantenimiento)] | L24: Flota total | N24: Recorridos diarios / bus | O24: km diarios / bus | P24: Km recorridos anualmente por la flota
B25: Samborondon | C25: =60*D25 -> 300 | D25: =$C$10 -> 5 | E25: =C17/1000 -> 3.75 | F25: =(0.1*H25)+IF(H25=0,0,5) -> 6.323529412 | G25: 17 | H25: =(60*E25)/G25 -> 13.23529412 | I25: =2*H25+2*F25 -> 39.11764706 | J25: =I25/D25 -> 7.823529412 | K25: =(J25*1.1)*1.1 -> 9.466470588 | L25: =ROUNDUP(K25,0) -> 10 | N25: =IF(I25=0,0,14*60/I25) -> 21.47368421 | O25: =C17*N25/1000 -> 80.52631579 | P25: =O25*L25*300*1.2 -> 289894.7368
B26: Duran 1 | C26: =60*D26 -> 300 | D26: =$C$11 -> 5 | E26: =C18/1000 -> 7.15 | F26: =(0.1*H26)+IF(H26=0,0,5) -> 7.523529412 | G26: 17 | H26: =(60*E26)/G26 -> 25.23529412 | I26: =2*H26+2*F26 -> 65.51764706 | J26: =I26/D26 -> 13.10352941 | K26: =(J26*1.1)*1.1 -> 15.85527059 | L26: =ROUNDUP(K26,0) -> 16 | N26: =IF(I26=0,0,14*60/I26) -> 12.82097324 | O26: =C18*N26/1000 -> 91.6699587 | P26: =O26*L26*300*1.2 -> 528018.9621
B27: Duran 2 | C27: =60*D27 -> 300 | D27: =$C$12 -> 5 | E27: =C19/1000 -> 0 | F27: 0 | G27: 17 | H27: =(60*E27)/G27 -> 0 | I27: =2*H27+2*F27 -> 0 | J27: =I27/D27 -> 0 | K27: =(J27*1.1)*1.1 -> 0 | L27: =ROUNDUP(K27,0) -> 0 | N27: 0 | O27: =C19*N27/1000 -> 0 | P27: 0
B30: Linea | C30: Frecuencia en hora pico (sec) | D30: Recorrido (km) | E30: Objectivo de velocidad comercial (km/h) | F30: Flota total
B31: Samborondon | C31: =C25 -> 300 | D31: =E25 -> 3.75 | E31: =G25 -> 17 | F31: =L25 -> 10
B32: Duran 1 | C32: =C26 -> 300 | D32: =E26 -> 7.15 | E32: =G26 -> 17 | F32: =L26 -> 16
B33: Duran 2 | C33: =C27 -> 300 | D33: =E27 -> 0 | E33: =G27 -> 17 | F33: =L27 -> 0
B38: Capacidad Maxima en personas por horas y por sentido (pphpd)
B40: =C10 -> 5 | C40: Frecuencia en horas pico (sec) | D40: Buses por hora | E40: Tipo de bus | F40: Capacidad con 4 pers./m² (pax) | G40: Carga maxima pphd (4 pers./m²)
C41: =$B$40*60 -> 300 | D41: =3600/C41 -> 12 | E41: Bus 12m | F41: 24 | G41: =D41*F41 -> 288
B43: =C11 -> 5 | C43: Frecuencia en horas pico (sec) | D43: Buses por hora | E43: Tipo de bus | F43: Capacidad con 4 pers./m² (pax) | G43: Carga maxima pphd (4 pers./m²)
C44: =$B$43*60 -> 300 | D44: =3600/C44 -> 12 | E44: Bus 12m | F44: 24 | G44: =D44*F44 -> 288
B46: =C12 -> 5 | C46: Frecuencia en horas pico (sec) | D46: Buses por hora | E46: Tipo de bus | F46: Capacidad con 4 pers./m² (pax) | G46: Carga maxima pphd (4 pers./m²)
C47: =$B$43*60 -> 300 | D47: =3600/C47 -> 12 | E47: Bus 12m | F47: 24 | G47: =D47*F47 -> 288

Sheet INGRESOS de pasajeros (hidden)
B2: Legenda | C2: Dato de entrada
C3: Celda llave
C4: Error
C5: Dato calculado
B8: HIPOTESIS
B10: Dias de operacion | C10: =DEMANDA!C10 -> 300
B12: Escenario base | C12: % de tarifas normales | D12: =1-D13 -> 0.85
C13: % de tarifas reducidas | D13: =DEMANDA!D13 -> 0.15
C15: =DEMANDA!C15 -> Parqueardero de Samborondon gratuido
C16: Plazas necesaria | D16: 19 | E16: =DEMANDA!E16 -> 250
D17: 3 | E17: =DEMANDA!E17 -> 250
C19: =DEMANDA!C19 -> Alimentadoras de Samborondon con tarifa integrada (gratuidas)
E20: Demanda hora pico (pphpd)
E21: Samborondon | F21: Duran
D22: 19 | E22: =DEMANDA!E22 -> 200 | F22: =DEMANDA!F22 -> 0
D23: 3 | E23: =DEMANDA!E23 -> 200 | F23: =DEMANDA!F23 -> 100
C25: =DEMANDA!C25 -> Sin integracion tarifaria con el Metrovia
C27: Ficheros fuentes | D27: =DEMANDA!D27 -> 0
D28: =DEMANDA!D28 -> 0
B31: Tarifas | C31: Tarifa con IVA | D31: Tarifa sin IVA | E31: Reducida
B32: 1 | C32: 0.6 | D32: =C32*(1-PARAMETROS!$C$54) -> 0.528 | E32: =D32/2 -> 0.264
B33: 2 | C33: 0.75 | D33: =C33*(1-PARAMETROS!$C$54) -> 0.66 | E33: =D33/2 -> 0.33
B34: 3 | C34: 1 | D34: =C34*(1-PARAMETROS!$C$54) -> 0.88 | E34: 0.44
B35: 4 | C35: 1.25 | D35: =C35*(1-PARAMETROS!$C$54) -> 1.1 | E35: 0.55
B36: 5 | C36: 1.5 | D36: =C36*(1-PARAMETROS!$C$54) -> 1.32 | E36: 0.66
B41: ALTERNATIVA 19
B43: Ingresos anuales en USD 2015
B44: Año | C44: 2019 | D44: 2020 | E44: 2021 | F44: 2022 | G44: 2023 | H44: 2024 | I44: 2025 | J44: 2026 | K44: 2027 | L44: 2028 | M44: 2029 | N44: 2030 | O44: 2031 | P44: 2032 | Q44: 2033 | R44: 2034 | S44: 2035 | T44: 2036 | U44: 2037 | V44: 2038 | W44: 2039 | X44: 2040 | Y44: 2041 | Z44: 2042 | AA44: 2043 | AB44: 2044 | AC44: 2045 | AD44: 2046 | AE44: 2047 | AF44: 2048 | AG44: 2049 | AH44: 2050 | AI44: 2051 | AJ44: 2052 | AK44: 2053 | AL44: 2054 | AM44: 2055 | AN44: 2056 | AO44: 2057 | AP44: 2058 | AQ44: 2059
B45: Tarifa 1 | C45: =$D32*DEMANDA!C47*$D$12+$E32*DEMANDA!C47*$D$13 -> 4584855 | D45: =$D32*DEMANDA!D47*$D$12+$E32*DEMANDA!D47*$D$13 -> 6113140 | E45: =$D32*DEMANDA!E47*$D$12+$E32*DEMANDA!E47*$D$13 -> 6221855.974 | F45: =$D32*DEMANDA!F47*$D$12+$E32*DEMANDA!F47*$D$13 -> 6330571.948 | G45: =$D32*DEMANDA!G47*$D$12+$E32*DEMANDA!G47*$D$13 -> 6439287.922 | H45: =$D32*DEMANDA!H47*$D$12+$E32*DEMANDA!H47*$D$13 -> 6548003.896 | I45: =$D32*DEMANDA!I47*$D$12+$E32*DEMANDA!I47*$D$13 -> 6656719.87 | J45: =$D32*DEMANDA!J47*$D$12+$E32*DEMANDA!J47*$D$13 -> 6763975.98 | K45: =$D32*DEMANDA!K47*$D$12+$E32*DEMANDA!K47*$D$13 -> 6871232.09 | L45: =$D32*DEMANDA!L47*$D$12+$E32*DEMANDA!L47*$D$13 -> 6978488.2 | M45: =$D32*DEMANDA!M47*$D$12+$E32*DEMANDA!M47*$D$13 -> 7085744.31 | N45: =$D32*DEMANDA!N47*$D$12+$E32*DEMANDA!N47*$D$13 -> 7193000.42 | O45: =$D32*DEMANDA!O47*$D$12+$E32*DEMANDA!O47*$D$13 -> 7338182.813 | P45: =$D32*DEMANDA!P47*$D$12+$E32*DEMANDA!P47*$D$13 -> 7483365.206 | Q45: =$D32*DEMANDA!Q47*$D$12+$E32*DEMANDA!Q47*$D$13 -> 7628547.599 | R45: =$D32*DEMANDA!R47*$D$12+$E32*DEMANDA!R47*$D$13 -> 7773729.992 | S45: =$D32*DEMANDA!S47*$D$12+$E32*DEMANDA!S47*$D$13 -> 7918912.384 | T45: =$D32*DEMANDA!T47*$D$12+$E32*DEMANDA!T47*$D$13 -> 8144549.208 | U45: =$D32*DEMANDA!U47*$D$12+$E32*DEMANDA!U47*$D$13 -> 8370186.032 | V45: =$D32*DEMANDA!V47*$D$12+$E32*DEMANDA!V47*$D$13 -> 8595822.856 | W45: =$D32*DEMANDA!W47*$D$12+$E32*DEMANDA!W47*$D$13 -> 8821459.68 | X45: =$D32*DEMANDA!X47*$D$12+$E32*DEMANDA!X47*$D$13 -> 9047096.503 | Y45: =$D32*DEMANDA!Y47*$D$12+$E32*DEMANDA!Y47*$D$13 -> 9047096.503 | Z45: =$D32*DEMANDA!Z47*$D$12+$E32*DEMANDA!Z47*$D$13 -> 9047096.503 | AA45: =$D32*DEMANDA!AA47*$D$12+$E32*DEMANDA!AA47*$D$13 -> 9047096.503 | AB45: =$D32*DEMANDA!AB47*$D$12+$E32*DEMANDA!AB47*$D$13 -> 9047096.503 | AC45: =$D32*DEMANDA!AC47*$D$12+$E32*DEMANDA!AC47*$D$13 -> 9047096.503 | AD45: =$D32*DEMANDA!AD47*$D$12+$E32*DEMANDA!AD47*$D$13 -> 9047096.503 | AE45: =$D32*DEMANDA!AE47*$D$12+$E32*DEMANDA!AE47*$D$13 -> 9047096.503 | AF45: =$D32*DEMANDA!AF47*$D$12+$E32*DEMANDA!AF47*$D$13 -> 9047096.503 | AG45: =$D32*DEMANDA!AG47*$D$12+$E32*DEMANDA!AG47*$D$13 -> 9047096.503 | AH45: =$D32*DEMANDA!AH47*$D$12+$E32*DEMANDA!AH47*$D$13 -> 9047096.503 | AI45: =$D32*DEMANDA!AI47*$D$12+$E32*DEMANDA!AI47*$D$13 -> 9047096.503 | AJ45: =$D32*DEMANDA!AJ47*$D$12+$E32*DEMANDA!AJ47*$D$13 -> 9047096.503 | AK45: =$D32*DEMANDA!AK47*$D$12+$E32*DEMANDA!AK47*$D$13 -> 9047096.503 | AL45: =$D32*DEMANDA!AL47*$D$12+$E32*DEMANDA!AL47*$D$13 -> 9047096.503 | AM45: =$D32*DEMANDA!AM47*$D$12+$E32*DEMANDA!AM47*$D$13 -> 9047096.503 | AN45: =$D32*DEMANDA!AN47*$D$12+$E32*DEMANDA!AN47*$D$13 -> 9047096.503 | AO45: =$D32*DEMANDA!AO47*$D$12+$E32*DEMANDA!AO47*$D$13 -> 9047096.503 | AP45: =$D32*DEMANDA!AP47*$D$12+$E32*DEMANDA!AP47*$D$13 -> 9047096.503 | AQ45: =$D32*DEMANDA!AQ47*$D$12+$E32*DEMANDA!AQ47*$D$13 -> 9047096.503
B46: Tarifa 2 | C46: =$D33*DEMANDA!C48*$D$12+$E33*DEMANDA!C48*$D$13 -> 5684080.23 | D46: =$D33*DEMANDA!D48*$D$12+$E33*DEMANDA!D48*$D$13 -> 7578773.64 | E46: =$D33*DEMANDA!E48*$D$12+$E33*DEMANDA!E48*$D$13 -> 7708425.767 | F46: =$D33*DEMANDA!F48*$D$12+$E33*DEMANDA!F48*$D$13 -> 7838077.895 | G46: =$D33*DEMANDA!G48*$D$12+$E33*DEMANDA!G48*$D$13 -> 7967730.022 | H46: =$D33*DEMANDA!H48*$D$12+$E33*DEMANDA!H48*$D$13 -> 8097382.15 | I46: =$D33*DEMANDA!I48*$D$12+$E33*DEMANDA!I48*$D$13 -> 8227034.277 | J46: =$D33*DEMANDA!J48*$D$12+$E33*DEMANDA!J48*$D$13 -> 8355372.664 | K46: =$D33*DEMANDA!K48*$D$12+$E33*DEMANDA!K48*$D$13 -> 8483711.051 | L46: =$D33*DEMANDA!L48*$D$12+$E33*DEMANDA!L48*$D$13 -> 8612049.438 | M46: =$D33*DEMANDA!M48*$D$12+$E33*DEMANDA!M48*$D$13 -> 8740387.825 | N46: =$D33*DEMANDA!N48*$D$12+$E33*DEMANDA!N48*$D$13 -> 8868726.212 | O46: =$D33*DEMANDA!O48*$D$12+$E33*DEMANDA!O48*$D$13 -> 9046719.189 | P46: =$D33*DEMANDA!P48*$D$12+$E33*DEMANDA!P48*$D$13 -> 9224712.166 | Q46: =$D33*DEMANDA!Q48*$D$12+$E33*DEMANDA!Q48*$D$13 -> 9402705.143 | R46: =$D33*DEMANDA!R48*$D$12+$E33*DEMANDA!R48*$D$13 -> 9580698.12 | S46: =$D33*DEMANDA!S48*$D$12+$E33*DEMANDA!S48*$D$13 -> 9758691.097 | T46: =$D33*DEMANDA!T48*$D$12+$E33*DEMANDA!T48*$D$13 -> 10025963.55 | U46: =$D33*DEMANDA!U48*$D$12+$E33*DEMANDA!U48*$D$13 -> 10293236 | V46: =$D33*DEMANDA!V48*$D$12+$E33*DEMANDA!V48*$D$13 -> 10560508.45 | W46: =$D33*DEMANDA!W48*$D$12+$E33*DEMANDA!W48*$D$13 -> 10827780.9 | X46: =$D33*DEMANDA!X48*$D$12+$E33*DEMANDA!X48*$D$13 -> 11095053.35 | Y46: =$D33*DEMANDA!Y48*$D$12+$E33*DEMANDA!Y48*$D$13 -> 11095053.35 | Z46: =$D33*DEMANDA!Z48*$D$12+$E33*DEMANDA!Z48*$D$13 -> 11095053.35 | AA46: =$D33*DEMANDA!AA48*$D$12+$E33*DEMANDA!AA48*$D$13 -> 11095053.35 | AB46: =$D33*DEMANDA!AB48*$D$12+$E33*DEMANDA!AB48*$D$13 -> 11095053.35 | AC46: =$D33*DEMANDA!AC48*$D$12+$E33*DEMANDA!AC48*$D$13 -> 11095053.35 | AD46: =$D33*DEMANDA!AD48*$D$12+$E33*DEMANDA!AD48*$D$13 -> 11095053.35 | AE46: =$D33*DEMANDA!AE48*$D$12+$E33*DEMANDA!AE48*$D$13 -> 11095053.35 | AF46: =$D33*DEMANDA!AF48*$D$12+$E33*DEMANDA!AF48*$D$13 -> 11095053.35 | AG46: =$D33*DEMANDA!AG48*$D$12+$E33*DEMANDA!AG48*$D$13 -> 11095053.35 | AH46: =$D33*DEMANDA!AH48*$D$12+$E33*DEMANDA!AH48*$D$13 -> 11095053.35 | AI46: =$D33*DEMANDA!AI48*$D$12+$E33*DEMANDA!AI48*$D$13 -> 11095053.35 | AJ46: =$D33*DEMANDA!AJ48*$D$12+$E33*DEMANDA!AJ48*$D$13 -> 11095053.35 | AK46: =$D33*DEMANDA!AK48*$D$12+$E33*DEMANDA!AK48*$D$13 -> 11095053.35 | AL46: =$D33*DEMANDA!AL48*$D$12+$E33*DEMANDA!AL48*$D$13 -> 11095053.35 | AM46: =$D33*DEMANDA!AM48*$D$12+$E33*DEMANDA!AM48*$D$13 -> 11095053.35 | AN46: =$D33*DEMANDA!AN48*$D$12+$E33*DEMANDA!AN48*$D$13 -> 11095053.35 | AO46: =$D33*DEMANDA!AO48*$D$12+$E33*DEMANDA!AO48*$D$13 -> 11095053.35 | AP46: =$D33*DEMANDA!AP48*$D$12+$E33*DEMANDA!AP48*$D$13 -> 11095053.35 | AQ46: =$D33*DEMANDA!AQ48*$D$12+$E33*DEMANDA!AQ48*$D$13 -> 11095053.35
B47: Tarifa 3 | C47: =$D34*DEMANDA!C49*$D$12+$E34*DEMANDA!C49*$D$13 -> 7442957.565 | D47: =$D34*DEMANDA!D49*$D$12+$E34*DEMANDA!D49*$D$13 -> 9923943.42 | E47: =$D34*DEMANDA!E49*$D$12+$E34*DEMANDA!E49*$D$13 -> 10092266.86 | F47: =$D34*DEMANDA!F49*$D$12+$E34*DEMANDA!F49*$D$13 -> 10260590.29 | G47: =$D34*DEMANDA!G49*$D$12+$E34*DEMANDA!G49*$D$13 -> 10428913.73 | H47: =$D34*DEMANDA!H49*$D$12+$E34*DEMANDA!H49*$D$13 -> 10597237.16 | I47: =$D34*DEMANDA!I49*$D$12+$E34*DEMANDA!I49*$D$13 -> 10765560.6 | J47: =$D34*DEMANDA!J49*$D$12+$E34*DEMANDA!J49*$D$13 -> 10918549.05 | K47: =$D34*DEMANDA!K49*$D$12+$E34*DEMANDA!K49*$D$13 -> 11071537.51 | L47: =$D34*DEMANDA!L49*$D$12+$E34*DEMANDA!L49*$D$13 -> 11224525.97 | M47: =$D34*DEMANDA!M49*$D$12+$E34*DEMANDA!M49*$D$13 -> 11377514.43 | N47: =$D34*DEMANDA!N49*$D$12+$E34*DEMANDA!N49*$D$13 -> 11530502.89 | O47: =$D34*DEMANDA!O49*$D$12+$E34*DEMANDA!O49*$D$13 -> 11750511.55 | P47: =$D34*DEMANDA!P49*$D$12+$E34*DEMANDA!P49*$D$13 -> 11970520.21 | Q47: =$D34*DEMANDA!Q49*$D$12+$E34*DEMANDA!Q49*$D$13 -> 12190528.88 | R47: =$D34*DEMANDA!R49*$D$12+$E34*DEMANDA!R49*$D$13 -> 12410537.54 | S47: =$D34*DEMANDA!S49*$D$12+$E34*DEMANDA!S49*$D$13 -> 12630546.2 | T47: =$D34*DEMANDA!T49*$D$12+$E34*DEMANDA!T49*$D$13 -> 12980383.08 | U47: =$D34*DEMANDA!U49*$D$12+$E34*DEMANDA!U49*$D$13 -> 13330219.95 | V47: =$D34*DEMANDA!V49*$D$12+$E34*DEMANDA!V49*$D$13 -> 13680056.82 | W47: =$D34*DEMANDA!W49*$D$12+$E34*DEMANDA!W49*$D$13 -> 14029893.69 | X47: =$D34*DEMANDA!X49*$D$12+$E34*DEMANDA!X49*$D$13 -> 14379730.56 | Y47: =$D34*DEMANDA!Y49*$D$12+$E34*DEMANDA!Y49*$D$13 -> 14379730.56 | Z47: =$D34*DEMANDA!Z49*$D$12+$E34*DEMANDA!Z49*$D$13 -> 14379730.56 | AA47: =$D34*DEMANDA!AA49*$D$12+$E34*DEMANDA!AA49*$D$13 -> 14379730.56 | AB47: =$D34*DEMANDA!AB49*$D$12+$E34*DEMANDA!AB49*$D$13 -> 14379730.56 | AC47: =$D34*DEMANDA!AC49*$D$12+$E34*DEMANDA!AC49*$D$13 -> 14379730.56 | AD47: =$D34*DEMANDA!AD49*$D$12+$E34*DEMANDA!AD49*$D$13 -> 14379730.56 | AE47: =$D34*DEMANDA!AE49*$D$12+$E34*DEMANDA!AE49*$D$13 -> 14379730.56 | AF47: =$D34*DEMANDA!AF49*$D$12+$E34*DEMANDA!AF49*$D$13 -> 14379730.56 | AG47: =$D34*DEMANDA!AG49*$D$12+$E34*DEMANDA!AG49*$D$13 -> 14379730.56 | AH47: =$D34*DEMANDA!AH49*$D$12+$E34*DEMANDA!AH49*$D$13 -> 14379730.56 | AI47: =$D34*DEMANDA!AI49*$D$12+$E34*DEMANDA!AI49*$D$13 -> 14379730.56 | AJ47: =$D34*DEMANDA!AJ49*$D$12+$E34*DEMANDA!AJ49*$D$13 -> 14379730.56 | AK47: =$D34*DEMANDA!AK49*$D$12+$E34*DEMANDA!AK49*$D$13 -> 14379730.56 | AL47: =$D34*DEMANDA!AL49*$D$12+$E34*DEMANDA!AL49*$D$13 -> 14379730.56 | AM47: =$D34*DEMANDA!AM49*$D$12+$E34*DEMANDA!AM49*$D$13 -> 14379730.56 | AN47: =$D34*DEMANDA!AN49*$D$12+$E34*DEMANDA!AN49*$D$13 -> 14379730.56 | AO47: =$D34*DEMANDA!AO49*$D$12+$E34*DEMANDA!AO49*$D$13 -> 14379730.56 | AP47: =$D34*DEMANDA!AP49*$D$12+$E34*DEMANDA!AP49*$D$13 -> 14379730.56 | AQ47: =$D34*DEMANDA!AQ49*$D$12+$E34*DEMANDA!AQ49*$D$13 -> 14379730.56
B48: Tarifa 4 | C48: =$D35*DEMANDA!C50*$D$12+$E35*DEMANDA!C50*$D$13 -> 9140594.182 | D48: =$D35*DEMANDA!D50*$D$12+$E35*DEMANDA!D50*$D$13 -> 12187458.91 | E48: =$D35*DEMANDA!E50*$D$12+$E35*DEMANDA!E50*$D$13 -> 12388744.77 | F48: =$D35*DEMANDA!F50*$D$12+$E35*DEMANDA!F50*$D$13 -> 12590030.63 | G48: =$D35*DEMANDA!G50*$D$12+$E35*DEMANDA!G50*$D$13 -> 12791316.49 | H48: =$D35*DEMANDA!H50*$D$12+$E35*DEMANDA!H50*$D$13 -> 12992602.35 | I48: =$D35*DEMANDA!I50*$D$12+$E35*DEMANDA!I50*$D$13 -> 13193888.21 | J48: =$D35*DEMANDA!J50*$D$12+$E35*DEMANDA!J50*$D$13 -> 13385415.34 | K48: =$D35*DEMANDA!K50*$D$12+$E35*DEMANDA!K50*$D$13 -> 13576942.48 | L48: =$D35*DEMANDA!L50*$D$12+$E35*DEMANDA!L50*$D$13 -> 13768469.61 | M48: =$D35*DEMANDA!M50*$D$12+$E35*DEMANDA!M50*$D$13 -> 13959996.75 | N48: =$D35*DEMANDA!N50*$D$12+$E35*DEMANDA!N50*$D$13 -> 14151523.88 | O48: =$D35*DEMANDA!O50*$D$12+$E35*DEMANDA!O50*$D$13 -> 14412128.16 | P48: =$D35*DEMANDA!P50*$D$12+$E35*DEMANDA!P50*$D$13 -> 14672732.43 | Q48: =$D35*DEMANDA!Q50*$D$12+$E35*DEMANDA!Q50*$D$13 -> 14933336.7 | R48: =$D35*DEMANDA!R50*$D$12+$E35*DEMANDA!R50*$D$13 -> 15193940.98 | S48: =$D35*DEMANDA!S50*$D$12+$E35*DEMANDA!S50*$D$13 -> 15454545.25 | T48: =$D35*DEMANDA!T50*$D$12+$E35*DEMANDA!T50*$D$13 -> 15868905.19 | U48: =$D35*DEMANDA!U50*$D$12+$E35*DEMANDA!U50*$D$13 -> 16283265.13 | V48: =$D35*DEMANDA!V50*$D$12+$E35*DEMANDA!V50*$D$13 -> 16697625.07 | W48: =$D35*DEMANDA!W50*$D$12+$E35*DEMANDA!W50*$D$13 -> 17111985.01 | X48: =$D35*DEMANDA!X50*$D$12+$E35*DEMANDA!X50*$D$13 -> 17526344.95 | Y48: =$D35*DEMANDA!Y50*$D$12+$E35*DEMANDA!Y50*$D$13 -> 17526344.95 | Z48: =$D35*DEMANDA!Z50*$D$12+$E35*DEMANDA!Z50*$D$13 -> 17526344.95 | AA48: =$D35*DEMANDA!AA50*$D$12+$E35*DEMANDA!AA50*$D$13 -> 17526344.95 | AB48: =$D35*DEMANDA!AB50*$D$12+$E35*DEMANDA!AB50*$D$13 -> 17526344.95 | AC48: =$D35*DEMANDA!AC50*$D$12+$E35*DEMANDA!AC50*$D$13 -> 17526344.95 | AD48: =$D35*DEMANDA!AD50*$D$12+$E35*DEMANDA!AD50*$D$13 -> 17526344.95 | AE48: =$D35*DEMANDA!AE50*$D$12+$E35*DEMANDA!AE50*$D$13 -> 17526344.95 | AF48: =$D35*DEMANDA!AF50*$D$12+$E35*DEMANDA!AF50*$D$13 -> 17526344.95 | AG48: =$D35*DEMANDA!AG50*$D$12+$E35*DEMANDA!AG50*$D$13 -> 17526344.95 | AH48: =$D35*DEMANDA!AH50*$D$12+$E35*DEMANDA!AH50*$D$13 -> 17526344.95 | AI48: =$D35*DEMANDA!AI50*$D$12+$E35*DEMANDA!AI50*$D$13 -> 17526344.95 | AJ48: =$D35*DEMANDA!AJ50*$D$12+$E35*DEMANDA!AJ50*$D$13 -> 17526344.95 | AK48: =$D35*DEMANDA!AK50*$D$12+$E35*DEMANDA!AK50*$D$13 -> 17526344.95 | AL48: =$D35*DEMANDA!AL50*$D$12+$E35*DEMANDA!AL50*$D$13 -> 17526344.95 | AM48: =$D35*DEMANDA!AM50*$D$12+$E35*DEMANDA!AM50*$D$13 -> 17526344.95 | AN48: =$D35*DEMANDA!AN50*$D$12+$E35*DEMANDA!AN50*$D$13 -> 17526344.95 | AO48: =$D35*DEMANDA!AO50*$D$12+$E35*DEMANDA!AO50*$D$13 -> 17526344.95 | AP48: =$D35*DEMANDA!AP50*$D$12+$E35*DEMANDA!AP50*$D$13 -> 17526344.95 | AQ48: =$D35*DEMANDA!AQ50*$D$12+$E35*DEMANDA!AQ50*$D$13 -> 17526344.95
B49: Tarifa 5 | C49: =$D36*DEMANDA!C51*$D$12+$E36*DEMANDA!C51*$D$13 -> 10811372.87 | D49: =$D36*DEMANDA!D51*$D$12+$E36*DEMANDA!D51*$D$13 -> 14415163.82 | E49: =$D36*DEMANDA!E51*$D$12+$E36*DEMANDA!E51*$D$13 -> 14642163.09 | F49: =$D36*DEMANDA!F51*$D$12+$E36*DEMANDA!F51*$D$13 -> 14869162.37 | G49: =$D36*DEMANDA!G51*$D$12+$E36*DEMANDA!G51*$D$13 -> 15096161.64 | H49: =$D36*DEMANDA!H51*$D$12+$E36*DEMANDA!H51*$D$13 -> 15323160.91 | I49: =$D36*DEMANDA!I51*$D$12+$E36*DEMANDA!I51*$D$13 -> 15550160.18 | J49: =$D36*DEMANDA!J51*$D$12+$E36*DEMANDA!J51*$D$13 -> 15770374.65 | K49: =$D36*DEMANDA!K51*$D$12+$E36*DEMANDA!K51*$D$13 -> 15990589.13 | L49: =$D36*DEMANDA!L51*$D$12+$E36*DEMANDA!L51*$D$13 -> 16210803.6 | M49: =$D36*DEMANDA!M51*$D$12+$E36*DEMANDA!M51*$D$13 -> 16431018.07 | N49: =$D36*DEMANDA!N51*$D$12+$E36*DEMANDA!N51*$D$13 -> 16651232.54 | O49: =$D36*DEMANDA!O51*$D$12+$E36*DEMANDA!O51*$D$13 -> 16952404.98 | P49: =$D36*DEMANDA!P51*$D$12+$E36*DEMANDA!P51*$D$13 -> 17253577.43 | Q49: =$D36*DEMANDA!Q51*$D$12+$E36*DEMANDA!Q51*$D$13 -> 17554749.88 | R49: =$D36*DEMANDA!R51*$D$12+$E36*DEMANDA!R51*$D$13 -> 17855922.32 | S49: =$D36*DEMANDA!S51*$D$12+$E36*DEMANDA!S51*$D$13 -> 18157094.77 | T49: =$D36*DEMANDA!T51*$D$12+$E36*DEMANDA!T51*$D$13 -> 18633999.73 | U49: =$D36*DEMANDA!U51*$D$12+$E36*DEMANDA!U51*$D$13 -> 19110904.7 | V49: =$D36*DEMANDA!V51*$D$12+$E36*DEMANDA!V51*$D$13 -> 19587809.66 | W49: =$D36*DEMANDA!W51*$D$12+$E36*DEMANDA!W51*$D$13 -> 20064714.63 | X49: =$D36*DEMANDA!X51*$D$12+$E36*DEMANDA!X51*$D$13 -> 20541619.59 | Y49: =$D36*DEMANDA!Y51*$D$12+$E36*DEMANDA!Y51*$D$13 -> 20541619.59 | Z49: =$D36*DEMANDA!Z51*$D$12+$E36*DEMANDA!Z51*$D$13 -> 20541619.59 | AA49: =$D36*DEMANDA!AA51*$D$12+$E36*DEMANDA!AA51*$D$13 -> 20541619.59 | AB49: =$D36*DEMANDA!AB51*$D$12+$E36*DEMANDA!AB51*$D$13 -> 20541619.59 | AC49: =$D36*DEMANDA!AC51*$D$12+$E36*DEMANDA!AC51*$D$13 -> 20541619.59 | AD49: =$D36*DEMANDA!AD51*$D$12+$E36*DEMANDA!AD51*$D$13 -> 20541619.59 | AE49: =$D36*DEMANDA!AE51*$D$12+$E36*DEMANDA!AE51*$D$13 -> 20541619.59 | AF49: =$D36*DEMANDA!AF51*$D$12+$E36*DEMANDA!AF51*$D$13 -> 20541619.59 | AG49: =$D36*DEMANDA!AG51*$D$12+$E36*DEMANDA!AG51*$D$13 -> 20541619.59 | AH49: =$D36*DEMANDA!AH51*$D$12+$E36*DEMANDA!AH51*$D$13 -> 20541619.59 | AI49: =$D36*DEMANDA!AI51*$D$12+$E36*DEMANDA!AI51*$D$13 -> 20541619.59 | AJ49: =$D36*DEMANDA!AJ51*$D$12+$E36*DEMANDA!AJ51*$D$13 -> 20541619.59 | AK49: =$D36*DEMANDA!AK51*$D$12+$E36*DEMANDA!AK51*$D$13 -> 20541619.59 | AL49: =$D36*DEMANDA!AL51*$D$12+$E36*DEMANDA!AL51*$D$13 -> 20541619.59 | AM49: =$D36*DEMANDA!AM51*$D$12+$E36*DEMANDA!AM51*$D$13 -> 20541619.59 | AN49: =$D36*DEMANDA!AN51*$D$12+$E36*DEMANDA!AN51*$D$13 -> 20541619.59 | AO49: =$D36*DEMANDA!AO51*$D$12+$E36*DEMANDA!AO51*$D$13 -> 20541619.59 | AP49: =$D36*DEMANDA!AP51*$D$12+$E36*DEMANDA!AP51*$D$13 -> 20541619.59 | AQ49: =$D36*DEMANDA!AQ51*$D$12+$E36*DEMANDA!AQ51*$D$13 -> 20541619.59
B52: Ingresos anuales en precios actualizados (hipotesis de inflacion baja)
B53: Año | C53: 2019 | D53: 2020 | E53: 2021 | F53: 2022 | G53: 2023 | H53: 2024 | I53: 2025 | J53: 2026 | K53: 2027 | L53: 2028 | M53: 2029 | N53: 2030 | O53: 2031 | P53: 2032 | Q53: 2033 | R53: 2034 | S53: 2035 | T53: 2036 | U53: 2037 | V53: 2038 | W53: 2039 | X53: 2040 | Y53: 2041 | Z53: 2042 | AA53: 2043 | AB53: 2044 | AC53: 2045 | AD53: 2046 | AE53: 2047 | AF53: 2048 | AG53: 2049 | AH53: 2050 | AI53: 2051 | AJ53: 2052 | AK53: 2053 | AL53: 2054 | AM53: 2055 | AN53: 2056 | AO53: 2057 | AP53: 2058 | AQ53: 2059
E54: 1 | F54: 2 | G54: 3 | H54: 4 | I54: 5 | J54: 6 | K54: 7 | L54: 8 | M54: 9 | N54: 10 | O54: 11 | P54: 12 | Q54: 13 | R54: 14 | S54: 15 | T54: 16 | U54: 17 | V54: 18 | W54: 19 | X54: 20 | Y54: 21 | Z54: 22 | AA54: 23 | AB54: 24 | AC54: 25 | AD54: 26 | AE54: 27 | AF54: 28 | AG54: 29 | AH54: 30 | AI54: 31 | AJ54: 32 | AK54: 33 | AL54: 34 | AM54: 35 | AN54: 36 | AO54: 37 | AP54: 38 | AQ54: 39
B55: Tarifa 1 | C55: =C45 -> 4584855 | D55: =D45*(1) -> 6113140 | E55: =E45*(1+PARAMETROS!$G$88)*(1+PARAMETROS!$H$88)^E54 -> 6504950.421 | F55: =F45*(1+PARAMETROS!$G$88)*(1+PARAMETROS!$H$88)^(F54-1) -> 6618612.972 | G55: =G45*(1+PARAMETROS!$G$88)*(1+PARAMETROS!$H$88)^G54 -> 7004259.454 | H55: =H45*(1+PARAMETROS!$G$88)*(1+PARAMETROS!$H$88)^(H54-1) -> 7122513.972 | I55: =I45*(1+PARAMETROS!$G$88)*(1+PARAMETROS!$H$88)^I54 -> 7533295.537 | J55: =J45*(1+PARAMETROS!$G$88)*(1+PARAMETROS!$H$88)^(J54-1) -> 7654675.434 | K55: =K45*(1+PARAMETROS!$G$88)*(1+PARAMETROS!$H$88)^K54 -> 8090207.967 | L55: =L45*(1+PARAMETROS!$G$88)*(1+PARAMETROS!$H$88)^(L54-1) -> 8216491.612 | M55: =M45*(1+PARAMETROS!$G$88)*(1+PARAMETROS!$H$88)^M54 -> 8679823.377 | N55: =N45*(1+PARAMETROS!$G$88)*(1+PARAMETROS!$H$88)^(N54-1) -> 8811208.882 | O55: =O45*(1+PARAMETROS!$G$88)*(1+PARAMETROS!$H$88)^O54 -> 9352210.679 | P55: =P45*(1+PARAMETROS!$G$88)*(1+PARAMETROS!$H$88)^(P54-1) -> 9537239.638 | Q55: =Q45*(1+PARAMETROS!$G$88)*(1+PARAMETROS!$H$88)^Q54 -> 10115048.25 | R55: =R45*(1+PARAMETROS!$G$88)*(1+PARAMETROS!$H$88)^(R54-1) -> 10307552.38 | S55: =S45*(1+PARAMETROS!$G$88)*(1+PARAMETROS!$H$88)^S54 -> 10924258.79 | T55: =T45*(1+PARAMETROS!$G$88)*(1+PARAMETROS!$H$88)^(T54-1) -> 11235528.18 | U55: =U45*(1+PARAMETROS!$G$88)*(1+PARAMETROS!$H$88)^U54 -> 12013288.2 | V55: =V45*(1+PARAMETROS!$G$88)*(1+PARAMETROS!$H$88)^(V54-1) -> 12337132.87 | W55: =W45*(1+PARAMETROS!$G$88)*(1+PARAMETROS!$H$88)^W54 -> 13172481.04 | X55: =X45*(1+PARAMETROS!$G$88)*(1+PARAMETROS!$H$88)^(X54-1) -> 13509409.05 | Y55: =Y45*(1+PARAMETROS!$G$88)*(1+PARAMETROS!$H$88)^Y54 -> 14055189.17 | Z55: =Z45*(1+PARAMETROS!$G$88)*(1+PARAMETROS!$H$88)^(Z54-1) -> 14055189.17 | AA55: =AA45*(1+PARAMETROS!$G$88)*(1+PARAMETROS!$H$88)^AA54 -> 14623018.81 | AB55: =AB45*(1+PARAMETROS!$G$88)*(1+PARAMETROS!$H$88)^(AB54-1) -> 14623018.81 | AC55: =AC45*(1+PARAMETROS!$G$88)*(1+PARAMETROS!$H$88)^AC54 -> 15213788.77 | AD55: =AD45*(1+PARAMETROS!$G$88)*(1+PARAMETROS!$H$88)^(AD54-1) -> 15213788.77 | AE55: =AE45*(1+PARAMETROS!$G$88)*(1+PARAMETROS!$H$88)^AE54 -> 15828425.84 | AF55: =AF45*(1+PARAMETROS!$G$88)*(1+PARAMETROS!$H$88)^(AF54-1) -> 15828425.84 | AG55: =AG45*(1+PARAMETROS!$G$88)*(1+PARAMETROS!$H$88)^AG54 -> 16467894.25 | AH55: =AH45*(1+PARAMETROS!$G$88)*(1+PARAMETROS!$H$88)^(AH54-1) -> 16467894.25 | AI55: =AI45*(1+PARAMETROS!$G$88)*(1+PARAMETROS!$H$88)^AI54 -> 17133197.17 | AJ55: =AJ45*(1+PARAMETROS!$G$88)*(1+PARAMETROS!$H$88)^(AJ54-1) -> 17133197.17 | AK55: =AK45*(1+PARAMETROS!$G$88)*(1+PARAMETROS!$H$88)^AK54 -> 17825378.34 | AL55: =AL45*(1+PARAMETROS!$G$88)*(1+PARAMETROS!$H$88)^(AL54-1) -> 17825378.34 | AM55: =AM45*(1+PARAMETROS!$G$88)*(1+PARAMETROS!$H$88)^AM54 -> 18545523.62 | AN55: =AN45*(1+PARAMETROS!$G$88)*(1+PARAMETROS!$H$88)^(AN54-1) -> 18545523.62 | AO55: =AO45*(1+PARAMETROS!$G$88)*(1+PARAMETROS!$H$88)^AO54 -> 19294762.78 | AP55: =AP45*(1+PARAMETROS!$G$88)*(1+PARAMETROS!$H$88)^(AP54-1) -> 19294762.78 | AQ55: =AQ45*(1+PARAMETROS!$G$88)*(1+PARAMETROS!$H$88)^AQ54 -> 20074271.19
B56: Tarifa 2 | C56: =C46 -> 5684080.23 | D56: =D46*(1) -> 7578773.64 | E56: =E46*(1+PARAMETROS!$G$88)*(1+PARAMETROS!$H$88)^E54 -> 8059159.14 | F56: =F46*(1+PARAMETROS!$G$88)*(1+PARAMETROS!$H$88)^(F54-1) -> 8194710.439 | G56: =G46*(1+PARAMETROS!$G$88)*(1+PARAMETROS!$H$88)^G54 -> 8666804.313 | H56: =H46*(1+PARAMETROS!$G$88)*(1+PARAMETROS!$H$88)^(H54-1) -> 8807831.884 | I56: =I46*(1+PARAMETROS!$G$88)*(1+PARAMETROS!$H$88)^I54 -> 9310393.378 | J56: =J46*(1+PARAMETROS!$G$88)*(1+PARAMETROS!$H$88)^(J54-1) -> 9455631.726 | K56: =K46*(1+PARAMETROS!$G$88)*(1+PARAMETROS!$H$88)^K54 -> 9988745.225 | L56: =L46*(1+PARAMETROS!$G$88)*(1+PARAMETROS!$H$88)^(L54-1) -> 10139851.2 | M56: =M46*(1+PARAMETROS!$G$88)*(1+PARAMETROS!$H$88)^M54 -> 10706711.85 | N56: =N46*(1+PARAMETROS!$G$88)*(1+PARAMETROS!$H$88)^(N54-1) -> 10863922.51 | O56: =O46*(1+PARAMETROS!$G$88)*(1+PARAMETROS!$H$88)^O54 -> 11529669.67 | P56: =P46*(1+PARAMETROS!$G$88)*(1+PARAMETROS!$H$88)^(P54-1) -> 11756514.36 | Q56: =Q46*(1+PARAMETROS!$G$88)*(1+PARAMETROS!$H$88)^Q54 -> 12467486.76 | R56: =R46*(1+PARAMETROS!$G$88)*(1+PARAMETROS!$H$88)^(R54-1) -> 12703495.98 | S56: =S46*(1+PARAMETROS!$G$88)*(1+PARAMETROS!$H$88)^S54 -> 13462261.21 | T56: =T46*(1+PARAMETROS!$G$88)*(1+PARAMETROS!$H$88)^(T54-1) -> 13830967.57 | U56: =U46*(1+PARAMETROS!$G$88)*(1+PARAMETROS!$H$88)^U54 -> 14773340.77 | V56: =V46*(1+PARAMETROS!$G$88)*(1+PARAMETROS!$H$88)^(V54-1) -> 15156942.87 | W56: =W46*(1+PARAMETROS!$G$88)*(1+PARAMETROS!$H$88)^W54 -> 16168383 | X56: =X46*(1+PARAMETROS!$G$88)*(1+PARAMETROS!$H$88)^(X54-1) -> 16567482.63 | Y56: =Y46*(1+PARAMETROS!$G$88)*(1+PARAMETROS!$H$88)^Y54 -> 17236808.93 | Z56: =Z46*(1+PARAMETROS!$G$88)*(1+PARAMETROS!$H$88)^(Z54-1) -> 17236808.93 | AA56: =AA46*(1+PARAMETROS!$G$88)*(1+PARAMETROS!$H$88)^AA54 -> 17933176.01 | AB56: =AB46*(1+PARAMETROS!$G$88)*(1+PARAMETROS!$H$88)^(AB54-1) -> 17933176.01 | AC56: =AC46*(1+PARAMETROS!$G$88)*(1+PARAMETROS!$H$88)^AC54 -> 18657676.32 | AD56: =AD46*(1+PARAMETROS!$G$88)*(1+PARAMETROS!$H$88)^(AD54-1) -> 18657676.32 | AE56: =AE46*(1+PARAMETROS!$G$88)*(1+PARAMETROS!$H$88)^AE54 -> 19411446.44 | AF56: =AF46*(1+PARAMETROS!$G$88)*(1+PARAMETROS!$H$88)^(AF54-1) -> 19411446.44 | AG56: =AG46*(1+PARAMETROS!$G$88)*(1+PARAMETROS!$H$88)^AG54 -> 20195668.88 | AH56: =AH46*(1+PARAMETROS!$G$88)*(1+PARAMETROS!$H$88)^(AH54-1) -> 20195668.88 | AI56: =AI46*(1+PARAMETROS!$G$88)*(1+PARAMETROS!$H$88)^AI54 -> 21011573.9 | AJ56: =AJ46*(1+PARAMETROS!$G$88)*(1+PARAMETROS!$H$88)^(AJ54-1) -> 21011573.9 | AK56: =AK46*(1+PARAMETROS!$G$88)*(1+PARAMETROS!$H$88)^AK54 -> 21860441.49 | AL56: =AL46*(1+PARAMETROS!$G$88)*(1+PARAMETROS!$H$88)^(AL54-1) -> 21860441.49 | AM56: =AM46*(1+PARAMETROS!$G$88)*(1+PARAMETROS!$H$88)^AM54 -> 22743603.32 | AN56: =AN46*(1+PARAMETROS!$G$88)*(1+PARAMETROS!$H$88)^(AN54-1) -> 22743603.32 | AO56: =AO46*(1+PARAMETROS!$G$88)*(1+PARAMETROS!$H$88)^AO54 -> 23662444.9 | AP56: =AP46*(1+PARAMETROS!$G$88)*(1+PARAMETROS!$H$88)^(AP54-1) -> 23662444.9 | AQ56: =AQ46*(1+PARAMETROS!$G$88)*(1+PARAMETROS!$H$88)^AQ54 -> 24618407.67
B57: Tarifa 3 | C57: =C47 -> 7442957.565 | D57: =D47*(1) -> 9923943.42 | E57: =E47*(1+PARAMETROS!$G$88)*(1+PARAMETROS!$H$88)^E54 -> 10551465 | F57: =F47*(1+PARAMETROS!$G$88)*(1+PARAMETROS!$H$88)^(F54-1) -> 10727447.15 | G57: =G47*(1+PARAMETROS!$G$88)*(1+PARAMETROS!$H$88)^G54 -> 11343927.84 | H57: =H47*(1+PARAMETROS!$G$88)*(1+PARAMETROS!$H$88)^(H54-1) -> 11527019.67 | I57: =I47*(1+PARAMETROS!$G$88)*(1+PARAMETROS!$H$88)^I54 -> 12183200.01 | J57: =J47*(1+PARAMETROS!$G$88)*(1+PARAMETROS!$H$88)^(J54-1) -> 12356334.42 | K57: =K47*(1+PARAMETROS!$G$88)*(1+PARAMETROS!$H$88)^K54 -> 13035659.37 | L57: =L47*(1+PARAMETROS!$G$88)*(1+PARAMETROS!$H$88)^(L54-1) -> 13215788.41 | M57: =M47*(1+PARAMETROS!$G$88)*(1+PARAMETROS!$H$88)^M54 -> 13937112.52 | N57: =N47*(1+PARAMETROS!$G$88)*(1+PARAMETROS!$H$88)^(N54-1) -> 14124518.77 | O57: =O47*(1+PARAMETROS!$G$88)*(1+PARAMETROS!$H$88)^O54 -> 14975541.28 | P57: =P47*(1+PARAMETROS!$G$88)*(1+PARAMETROS!$H$88)^(P54-1) -> 15255933.23 | Q57: =Q47*(1+PARAMETROS!$G$88)*(1+PARAMETROS!$H$88)^Q54 -> 16163992.71 | R57: =R47*(1+PARAMETROS!$G$88)*(1+PARAMETROS!$H$88)^(R54-1) -> 16455712.49 | S57: =S47*(1+PARAMETROS!$G$88)*(1+PARAMETROS!$H$88)^S54 -> 17424028.54 | T57: =T47*(1+PARAMETROS!$G$88)*(1+PARAMETROS!$H$88)^(T54-1) -> 17906633.77 | U57: =U47*(1+PARAMETROS!$G$88)*(1+PARAMETROS!$H$88)^U54 -> 19132164.25 | V57: =V47*(1+PARAMETROS!$G$88)*(1+PARAMETROS!$H$88)^(V54-1) -> 19634266.73 | W57: =W47*(1+PARAMETROS!$G$88)*(1+PARAMETROS!$H$88)^W54 -> 20949878.52 | X57: =X47*(1+PARAMETROS!$G$88)*(1+PARAMETROS!$H$88)^(X54-1) -> 21472265.94 | Y57: =Y47*(1+PARAMETROS!$G$88)*(1+PARAMETROS!$H$88)^Y54 -> 22339745.48 | Z57: =Z47*(1+PARAMETROS!$G$88)*(1+PARAMETROS!$H$88)^(Z54-1) -> 22339745.48 | AA57: =AA47*(1+PARAMETROS!$G$88)*(1+PARAMETROS!$H$88)^AA54 -> 23242271.2 | AB57: =AB47*(1+PARAMETROS!$G$88)*(1+PARAMETROS!$H$88)^(AB54-1) -> 23242271.2 | AC57: =AC47*(1+PARAMETROS!$G$88)*(1+PARAMETROS!$H$88)^AC54 -> 24181258.96 | AD57: =AD47*(1+PARAMETROS!$G$88)*(1+PARAMETROS!$H$88)^(AD54-1) -> 24181258.96 | AE57: =AE47*(1+PARAMETROS!$G$88)*(1+PARAMETROS!$H$88)^AE54 -> 25158181.82 | AF57: =AF47*(1+PARAMETROS!$G$88)*(1+PARAMETROS!$H$88)^(AF54-1) -> 25158181.82 | AG57: =AG47*(1+PARAMETROS!$G$88)*(1+PARAMETROS!$H$88)^AG54 -> 26174572.36 | AH57: =AH47*(1+PARAMETROS!$G$88)*(1+PARAMETROS!$H$88)^(AH54-1) -> 26174572.36 | AI57: =AI47*(1+PARAMETROS!$G$88)*(1+PARAMETROS!$H$88)^AI54 -> 27232025.09 | AJ57: =AJ47*(1+PARAMETROS!$G$88)*(1+PARAMETROS!$H$88)^(AJ54-1) -> 27232025.09 | AK57: =AK47*(1+PARAMETROS!$G$88)*(1+PARAMETROS!$H$88)^AK54 -> 28332198.9 | AL57: =AL47*(1+PARAMETROS!$G$88)*(1+PARAMETROS!$H$88)^(AL54-1) -> 28332198.9 | AM57: =AM47*(1+PARAMETROS!$G$88)*(1+PARAMETROS!$H$88)^AM54 -> 29476819.74 | AN57: =AN47*(1+PARAMETROS!$G$88)*(1+PARAMETROS!$H$88)^(AN54-1) -> 29476819.74 | AO57: =AO47*(1+PARAMETROS!$G$88)*(1+PARAMETROS!$H$88)^AO54 -> 30667683.25 | AP57: =AP47*(1+PARAMETROS!$G$88)*(1+PARAMETROS!$H$88)^(AP54-1) -> 30667683.25 | AQ57: =AQ47*(1+PARAMETROS!$G$88)*(1+PARAMETROS!$H$88)^AQ54 -> 31906657.66
B58: Tarifa 4 | C58: =C48 -> 9140594.182 | D58: =D48*(1) -> 12187458.91 | E58: =E48*(1+PARAMETROS!$G$88)*(1+PARAMETROS!$H$88)^E54 -> 12952432.66 | F58: =F48*(1+PARAMETROS!$G$88)*(1+PARAMETROS!$H$88)^(F54-1) -> 13162877.02 | G58: =G48*(1+PARAMETROS!$G$88)*(1+PARAMETROS!$H$88)^G54 -> 13913603.57 | H58: =H48*(1+PARAMETROS!$G$88)*(1+PARAMETROS!$H$88)^(H54-1) -> 14132549.89 | I58: =I48*(1+PARAMETROS!$G$88)*(1+PARAMETROS!$H$88)^I54 -> 14931296.66 | J58: =J48*(1+PARAMETROS!$G$88)*(1+PARAMETROS!$H$88)^(J54-1) -> 15148044.63 | K58: =K48*(1+PARAMETROS!$G$88)*(1+PARAMETROS!$H$88)^K54 -> 15985530.21 | L58: =L48*(1+PARAMETROS!$G$88)*(1+PARAMETROS!$H$88)^(L54-1) -> 16211034.8 | M58: =M48*(1+PARAMETROS!$G$88)*(1+PARAMETROS!$H$88)^M54 -> 17100575.58 | N58: =N48*(1+PARAMETROS!$G$88)*(1+PARAMETROS!$H$88)^(N54-1) -> 17335190.55 | O58: =O48*(1+PARAMETROS!$G$88)*(1+PARAMETROS!$H$88)^O54 -> 18367661.62 | P58: =P48*(1+PARAMETROS!$G$88)*(1+PARAMETROS!$H$88)^(P54-1) -> 18699791 | Q58: =Q48*(1+PARAMETROS!$G$88)*(1+PARAMETROS!$H$88)^Q54 -> 19800809.96 | R58: =R48*(1+PARAMETROS!$G$88)*(1+PARAMETROS!$H$88)^(R54-1) -> 20146357.36 | S58: =S48*(1+PARAMETROS!$G$88)*(1+PARAMETROS!$H$88)^S54 -> 21319777.72 | T58: =T48*(1+PARAMETROS!$G$88)*(1+PARAMETROS!$H$88)^(T54-1) -> 21891393.49 | U58: =U48*(1+PARAMETROS!$G$88)*(1+PARAMETROS!$H$88)^U54 -> 23370514.84 | V58: =V48*(1+PARAMETROS!$G$88)*(1+PARAMETROS!$H$88)^(V54-1) -> 23965223.89 | W58: =W48*(1+PARAMETROS!$G$88)*(1+PARAMETROS!$H$88)^W54 -> 25552154.22 | X58: =X48*(1+PARAMETROS!$G$88)*(1+PARAMETROS!$H$88)^(X54-1) -> 26170889.52 | Y58: =Y48*(1+PARAMETROS!$G$88)*(1+PARAMETROS!$H$88)^Y54 -> 27228193.46 | Z58: =Z48*(1+PARAMETROS!$G$88)*(1+PARAMETROS!$H$88)^(Z54-1) -> 27228193.46 | AA58: =AA48*(1+PARAMETROS!$G$88)*(1+PARAMETROS!$H$88)^AA54 -> 28328212.47 | AB58: =AB48*(1+PARAMETROS!$G$88)*(1+PARAMETROS!$H$88)^(AB54-1) -> 28328212.47 | AC58: =AC48*(1+PARAMETROS!$G$88)*(1+PARAMETROS!$H$88)^AC54 -> 29472672.26 | AD58: =AD48*(1+PARAMETROS!$G$88)*(1+PARAMETROS!$H$88)^(AD54-1) -> 29472672.26 | AE58: =AE48*(1+PARAMETROS!$G$88)*(1+PARAMETROS!$H$88)^AE54 -> 30663368.21 | AF58: =AF48*(1+PARAMETROS!$G$88)*(1+PARAMETROS!$H$88)^(AF54-1) -> 30663368.21 | AG58: =AG48*(1+PARAMETROS!$G$88)*(1+PARAMETROS!$H$88)^AG54 -> 31902168.29 | AH58: =AH48*(1+PARAMETROS!$G$88)*(1+PARAMETROS!$H$88)^(AH54-1) -> 31902168.29 | AI58: =AI48*(1+PARAMETROS!$G$88)*(1+PARAMETROS!$H$88)^AI54 -> 33191015.89 | AJ58: =AJ48*(1+PARAMETROS!$G$88)*(1+PARAMETROS!$H$88)^(AJ54-1) -> 33191015.89 | AK58: =AK48*(1+PARAMETROS!$G$88)*(1+PARAMETROS!$H$88)^AK54 -> 34531932.93 | AL58: =AL48*(1+PARAMETROS!$G$88)*(1+PARAMETROS!$H$88)^(AL54-1) -> 34531932.93 | AM58: =AM48*(1+PARAMETROS!$G$88)*(1+PARAMETROS!$H$88)^AM54 -> 35927023.02 | AN58: =AN48*(1+PARAMETROS!$G$88)*(1+PARAMETROS!$H$88)^(AN54-1) -> 35927023.02 | AO58: =AO48*(1+PARAMETROS!$G$88)*(1+PARAMETROS!$H$88)^AO54 -> 37378474.75 | AP58: =AP48*(1+PARAMETROS!$G$88)*(1+PARAMETROS!$H$88)^(AP54-1) -> 37378474.75 | AQ58: =AQ48*(1+PARAMETROS!$G$88)*(1+PARAMETROS!$H$88)^AQ54 -> 38888565.13
B59: Tarifa 5 | C59: =C49 -> 10811372.87 | D59: =D49*(1) -> 14415163.82 | E59: =E49*(1+PARAMETROS!$G$88)*(1+PARAMETROS!$H$88)^E54 -> 15308381.51 | F59: =F49*(1+PARAMETROS!$G$88)*(1+PARAMETROS!$H$88)^(F54-1) -> 15545709.25 | G59: =G49*(1+PARAMETROS!$G$88)*(1+PARAMETROS!$H$88)^G54 -> 16420671.69 | H59: =H49*(1+PARAMETROS!$G$88)*(1+PARAMETROS!$H$88)^(H54-1) -> 16667587.47 | I59: =I49*(1+PARAMETROS!$G$88)*(1+PARAMETROS!$H$88)^I54 -> 17597849.18 | J59: =J49*(1+PARAMETROS!$G$88)*(1+PARAMETROS!$H$88)^(J54-1) -> 17847062.11 | K59: =K49*(1+PARAMETROS!$G$88)*(1+PARAMETROS!$H$88)^K54 -> 18827364.56 | L59: =L49*(1+PARAMETROS!$G$88)*(1+PARAMETROS!$H$88)^(L54-1) -> 19086645.7 | M59: =M49*(1+PARAMETROS!$G$88)*(1+PARAMETROS!$H$88)^M54 -> 20127502.28 | N59: =N49*(1+PARAMETROS!$G$88)*(1+PARAMETROS!$H$88)^(N54-1) -> 20397258.37 | O59: =O49*(1+PARAMETROS!$G$88)*(1+PARAMETROS!$H$88)^O54 -> 21605139.44 | P59: =P49*(1+PARAMETROS!$G$88)*(1+PARAMETROS!$H$88)^(P54-1) -> 21988971.28 | Q59: =Q49*(1+PARAMETROS!$G$88)*(1+PARAMETROS!$H$88)^Q54 -> 23276664.36 | R59: =R49*(1+PARAMETROS!$G$88)*(1+PARAMETROS!$H$88)^(R54-1) -> 23676002.99 | S59: =S49*(1+PARAMETROS!$G$88)*(1+PARAMETROS!$H$88)^S54 -> 25047985.44 | T59: =T49*(1+PARAMETROS!$G$88)*(1+PARAMETROS!$H$88)^(T54-1) -> 25705883.01 | U59: =U49*(1+PARAMETROS!$G$88)*(1+PARAMETROS!$H$88)^U54 -> 27428877.32 | V59: =V49*(1+PARAMETROS!$G$88)*(1+PARAMETROS!$H$88)^(V54-1) -> 28113353.96 | W59: =W49*(1+PARAMETROS!$G$88)*(1+PARAMETROS!$H$88)^W54 -> 29961262.96 | X59: =X49*(1+PARAMETROS!$G$88)*(1+PARAMETROS!$H$88)^(X54-1) -> 30673392.45 | Y59: =Y49*(1+PARAMETROS!$G$88)*(1+PARAMETROS!$H$88)^Y54 -> 31912597.5 | Z59: =Z49*(1+PARAMETROS!$G$88)*(1+PARAMETROS!$H$88)^(Z54-1) -> 31912597.5 | AA59: =AA49*(1+PARAMETROS!$G$88)*(1+PARAMETROS!$H$88)^AA54 -> 33201866.44 | AB59: =AB49*(1+PARAMETROS!$G$88)*(1+PARAMETROS!$H$88)^(AB54-1) -> 33201866.44 | AC59: =AC49*(1+PARAMETROS!$G$88)*(1+PARAMETROS!$H$88)^AC54 -> 34543221.85 | AD59: =AD49*(1+PARAMETROS!$G$88)*(1+PARAMETROS!$H$88)^(AD54-1) -> 34543221.85 | AE59: =AE49*(1+PARAMETROS!$G$88)*(1+PARAMETROS!$H$88)^AE54 -> 35938768.01 | AF59: =AF49*(1+PARAMETROS!$G$88)*(1+PARAMETROS!$H$88)^(AF54-1) -> 35938768.01 | AG59: =AG49*(1+PARAMETROS!$G$88)*(1+PARAMETROS!$H$88)^AG54 -> 37390694.24 | AH59: =AH49*(1+PARAMETROS!$G$88)*(1+PARAMETROS!$H$88)^(AH54-1) -> 37390694.24 | AI59: =AI49*(1+PARAMETROS!$G$88)*(1+PARAMETROS!$H$88)^AI54 -> 38901278.29 | AJ59: =AJ49*(1+PARAMETROS!$G$88)*(1+PARAMETROS!$H$88)^(AJ54-1) -> 38901278.29 | AK59: =AK49*(1+PARAMETROS!$G$88)*(1+PARAMETROS!$H$88)^AK54 -> 40472889.93 | AL59: =AL49*(1+PARAMETROS!$G$88)*(1+PARAMETROS!$H$88)^(AL54-1) -> 40472889.93 | AM59: =AM49*(1+PARAMETROS!$G$88)*(1+PARAMETROS!$H$88)^AM54 -> 42107994.68 | AN59: =AN49*(1+PARAMETROS!$G$88)*(1+PARAMETROS!$H$88)^(AN54-1) -> 42107994.68 | AO59: =AO49*(1+PARAMETROS!$G$88)*(1+PARAMETROS!$H$88)^AO54 -> 43809157.67 | AP59: =AP49*(1+PARAMETROS!$G$88)*(1+PARAMETROS!$H$88)^(AP54-1) -> 43809157.67 | AQ59: =AQ49*(1+PARAMETROS!$G$88)*(1+PARAMETROS!$H$88)^AQ54 -> 45579047.64
B62: Ingresos anuales en precios actualizados (hipotesis de inflacion alta)
B63: Año | C63: 2019 | D63: 2020 | E63: 2021 | F63: 2022 | G63: 2023 | H63: 2024 | I63: 2025 | J63: 2026 | K63: 2027 | L63: 2028 | M63: 2029 | N63: 2030 | O63: 2031 | P63: 2032 | Q63: 2033 | R63: 2034 | S63: 2035 | T63: 2036 | U63: 2037 | V63: 2038 | W63: 2039 | X63: 2040 | Y63: 2041 | Z63: 2042 | AA63: 2043 | AB63: 2044 | AC63: 2045 | AD63: 2046 | AE63: 2047 | AF63: 2048 | AG63: 2049 | AH63: 2050 | AI63: 2051 | AJ63: 2052 | AK63: 2053 | AL63: 2054 | AM63: 2055 | AN63: 2056 | AO63: 2057 | AP63: 2058 | AQ63: 2059
E64: 1 | F64: 2 | G64: 3 | H64: 4 | I64: 5 | J64: 6 | K64: 7 | L64: 8 | M64: 9 | N64: 10 | O64: 11 | P64: 12 | Q64: 13 | R64: 14 | S64: 15 | T64: 16 | U64: 17 | V64: 18 | W64: 19 | X64: 20 | Y64: 21 | Z64: 22 | AA64: 23 | AB64: 24 | AC64: 25 | AD64: 26 | AE64: 27 | AF64: 28 | AG64: 29 | AH64: 30 | AI64: 31 | AJ64: 32 | AK64: 33 | AL64: 34 | AM64: 35 | AN64: 36 | AO64: 37 | AP64: 38 | AQ64: 39
B65: Tarifa 1 | C65: =C45 -> 4584855 | D65: =D45*(1) -> 6113140 | E65: =E45*(1+PARAMETROS!$G$89)*(1+PARAMETROS!$H$89)^E64 -> 6761913.073 | F65: =F45*(1+PARAMETROS!$G$89)*(1+PARAMETROS!$H$89)^(F64-1) -> 6880065.593 | G65: =G45*(1+PARAMETROS!$G$89)*(1+PARAMETROS!$H$89)^G64 -> 7569272.712 | H65: =H45*(1+PARAMETROS!$G$89)*(1+PARAMETROS!$H$89)^(H64-1) -> 7697066.478 | I65: =I45*(1+PARAMETROS!$G$89)*(1+PARAMETROS!$H$89)^I64 -> 8463368.841 | J65: =J45*(1+PARAMETROS!$G$89)*(1+PARAMETROS!$H$89)^(J64-1) -> 8599734.504 | K65: =K45*(1+PARAMETROS!$G$89)*(1+PARAMETROS!$H$89)^K64 -> 9448965.94 | L65: =L45*(1+PARAMETROS!$G$89)*(1+PARAMETROS!$H$89)^(L64-1) -> 9596459.041 | M65: =M45*(1+PARAMETROS!$G$89)*(1+PARAMETROS!$H$89)^M64 -> 10539058.64 | N65: =N45*(1+PARAMETROS!$G$89)*(1+PARAMETROS!$H$89)^(N64-1) -> 10698587.18 | O65: =O45*(1+PARAMETROS!$G$89)*(1+PARAMETROS!$H$89)^O64 -> 11805151.09 | P65: =P45*(1+PARAMETROS!$G$89)*(1+PARAMETROS!$H$89)^(P64-1) -> 12038710.28 | Q65: =Q45*(1+PARAMETROS!$G$89)*(1+PARAMETROS!$H$89)^Q64 -> 13273686.67 | R65: =R45*(1+PARAMETROS!$G$89)*(1+PARAMETROS!$H$89)^(R64-1) -> 13526304.3 | S65: =S45*(1+PARAMETROS!$G$89)*(1+PARAMETROS!$H$89)^S64 -> 14903281.95 | T65: =T45*(1+PARAMETROS!$G$89)*(1+PARAMETROS!$H$89)^(T64-1) -> 15327927.29 | U65: =U45*(1+PARAMETROS!$G$89)*(1+PARAMETROS!$H$89)^U64 -> 17037982.55 | V65: =V45*(1+PARAMETROS!$G$89)*(1+PARAMETROS!$H$89)^(V64-1) -> 17497278.94 | W65: =W45*(1+PARAMETROS!$G$89)*(1+PARAMETROS!$H$89)^W64 -> 19421831.88 | X65: =X45*(1+PARAMETROS!$G$89)*(1+PARAMETROS!$H$89)^(X64-1) -> 19918606.86 | Y65: =Y45*(1+PARAMETROS!$G$89)*(1+PARAMETROS!$H$89)^Y64 -> 21543965.18 | Z65: =Z45*(1+PARAMETROS!$G$89)*(1+PARAMETROS!$H$89)^(Z64-1) -> 21543965.18 | AA65: =AA45*(1+PARAMETROS!$G$89)*(1+PARAMETROS!$H$89)^AA64 -> 23301952.74 | AB65: =AB45*(1+PARAMETROS!$G$89)*(1+PARAMETROS!$H$89)^(AB64-1) -> 23301952.74 | AC65: =AC45*(1+PARAMETROS!$G$89)*(1+PARAMETROS!$H$89)^AC64 -> 25203392.09 | AD65: =AD45*(1+PARAMETROS!$G$89)*(1+PARAMETROS!$H$89)^(AD64-1) -> 25203392.09 | AE65: =AE45*(1+PARAMETROS!$G$89)*(1+PARAMETROS!$H$89)^AE64 -> 27259988.88 | AF65: =AF45*(1+PARAMETROS!$G$89)*(1+PARAMETROS!$H$89)^(AF64-1) -> 27259988.88 | AG65: =AG45*(1+PARAMETROS!$G$89)*(1+PARAMETROS!$H$89)^AG64 -> 29484403.98 | AH65: =AH45*(1+PARAMETROS!$G$89)*(1+PARAMETROS!$H$89)^(AH64-1) -> 29484403.98 | AI65: =AI45*(1+PARAMETROS!$G$89)*(1+PARAMETROS!$H$89)^AI64 -> 31890331.34 | AJ65: =AJ45*(1+PARAMETROS!$G$89)*(1+PARAMETROS!$H$89)^(AJ64-1) -> 31890331.34 | AK65: =AK45*(1+PARAMETROS!$G$89)*(1+PARAMETROS!$H$89)^AK64 -> 34492582.38 | AL65: =AL45*(1+PARAMETROS!$G$89)*(1+PARAMETROS!$H$89)^(AL64-1) -> 34492582.38 | AM65: =AM45*(1+PARAMETROS!$G$89)*(1+PARAMETROS!$H$89)^AM64 -> 37307177.1 | AN65: =AN45*(1+PARAMETROS!$G$89)*(1+PARAMETROS!$H$89)^(AN64-1) -> 37307177.1 | AO65: =AO45*(1+PARAMETROS!$G$89)*(1+PARAMETROS!$H$89)^AO64 -> 40351442.75 | AP65: =AP45*(1+PARAMETROS!$G$89)*(1+PARAMETROS!$H$89)^(AP64-1) -> 40351442.75 | AQ65: =AQ45*(1+PARAMETROS!$G$89)*(1+PARAMETROS!$H$89)^AQ64 -> 43644120.48
B66: Tarifa 2 | C66: =C46 -> 5684080.23 | D66: =D46*(1) -> 7578773.64 | E66: =E46*(1+PARAMETROS!$G$89)*(1+PARAMETROS!$H$89)^E64 -> 8377517.124 | F66: =F46*(1+PARAMETROS!$G$89)*(1+PARAMETROS!$H$89)^(F64-1) -> 8518423.056 | G66: =G46*(1+PARAMETROS!$G$89)*(1+PARAMETROS!$H$89)^G64 -> 9365930.234 | H66: =H46*(1+PARAMETROS!$G$89)*(1+PARAMETROS!$H$89)^(H64-1) -> 9518334.09 | I66: =I46*(1+PARAMETROS!$G$89)*(1+PARAMETROS!$H$89)^I64 -> 10459870.16 | J66: =J46*(1+PARAMETROS!$G$89)*(1+PARAMETROS!$H$89)^(J64-1) -> 10623039.88 | K66: =K46*(1+PARAMETROS!$G$89)*(1+PARAMETROS!$H$89)^K64 -> 11666364.3 | L66: =L46*(1+PARAMETROS!$G$89)*(1+PARAMETROS!$H$89)^(L64-1) -> 11842848.67 | M66: =M46*(1+PARAMETROS!$G$89)*(1+PARAMETROS!$H$89)^M64 -> 13000110.61 | N66: =N46*(1+PARAMETROS!$G$89)*(1+PARAMETROS!$H$89)^(N64-1) -> 13190996.1 | O66: =O46*(1+PARAMETROS!$G$89)*(1+PARAMETROS!$H$89)^O64 -> 14553723.94 | P66: =P46*(1+PARAMETROS!$G$89)*(1+PARAMETROS!$H$89)^(P64-1) -> 14840066.49 | Q66: =Q46*(1+PARAMETROS!$G$89)*(1+PARAMETROS!$H$89)^Q64 -> 16360724.02 | R66: =R46*(1+PARAMETROS!$G$89)*(1+PARAMETROS!$H$89)^(R64-1) -> 16670432.12 | S66: =S46*(1+PARAMETROS!$G$89)*(1+PARAMETROS!$H$89)^S64 -> 18365719.66 | T66: =T46*(1+PARAMETROS!$G$89)*(1+PARAMETROS!$H$89)^(T64-1) -> 18868722.67 | U66: =U46*(1+PARAMETROS!$G$89)*(1+PARAMETROS!$H$89)^U64 -> 20952458.48 | V66: =V46*(1+PARAMETROS!$G$89)*(1+PARAMETROS!$H$89)^(V64-1) -> 21496506.53 | W66: =W46*(1+PARAMETROS!$G$89)*(1+PARAMETROS!$H$89)^W64 -> 23839063.83 | X66: =X46*(1+PARAMETROS!$G$89)*(1+PARAMETROS!$H$89)^(X64-1) -> 24427506.2 | Y66: =Y46*(1+PARAMETROS!$G$89)*(1+PARAMETROS!$H$89)^Y64 -> 26420790.7 | Z66: =Z46*(1+PARAMETROS!$G$89)*(1+PARAMETROS!$H$89)^(Z64-1) -> 26420790.7 | AA66: =AA46*(1+PARAMETROS!$G$89)*(1+PARAMETROS!$H$89)^AA64 -> 28576727.22 | AB66: =AB46*(1+PARAMETROS!$G$89)*(1+PARAMETROS!$H$89)^(AB64-1) -> 28576727.22 | AC66: =AC46*(1+PARAMETROS!$G$89)*(1+PARAMETROS!$H$89)^AC64 -> 30908588.17 | AD66: =AD46*(1+PARAMETROS!$G$89)*(1+PARAMETROS!$H$89)^(AD64-1) -> 30908588.17 | AE66: =AE46*(1+PARAMETROS!$G$89)*(1+PARAMETROS!$H$89)^AE64 -> 33430728.96 | AF66: =AF46*(1+PARAMETROS!$G$89)*(1+PARAMETROS!$H$89)^(AF64-1) -> 33430728.96 | AG66: =AG46*(1+PARAMETROS!$G$89)*(1+PARAMETROS!$H$89)^AG64 -> 36158676.44 | AH66: =AH46*(1+PARAMETROS!$G$89)*(1+PARAMETROS!$H$89)^(AH64-1) -> 36158676.44 | AI66: =AI46*(1+PARAMETROS!$G$89)*(1+PARAMETROS!$H$89)^AI64 -> 39109224.44 | AJ66: =AJ46*(1+PARAMETROS!$G$89)*(1+PARAMETROS!$H$89)^(AJ64-1) -> 39109224.44 | AK66: =AK46*(1+PARAMETROS!$G$89)*(1+PARAMETROS!$H$89)^AK64 -> 42300537.16 | AL66: =AL46*(1+PARAMETROS!$G$89)*(1+PARAMETROS!$H$89)^(AL64-1) -> 42300537.16 | AM66: =AM46*(1+PARAMETROS!$G$89)*(1+PARAMETROS!$H$89)^AM64 -> 45752260.99 | AN66: =AN46*(1+PARAMETROS!$G$89)*(1+PARAMETROS!$H$89)^(AN64-1) -> 45752260.99 | AO66: =AO46*(1+PARAMETROS!$G$89)*(1+PARAMETROS!$H$89)^AO64 -> 49485645.48 | AP66: =AP46*(1+PARAMETROS!$G$89)*(1+PARAMETROS!$H$89)^(AP64-1) -> 49485645.48 | AQ66: =AQ46*(1+PARAMETROS!$G$89)*(1+PARAMETROS!$H$89)^AQ64 -> 53523674.16
B67: Tarifa 3 | C67: =C47 -> 7442957.565 | D67: =D47*(1) -> 9923943.42 | E67: =E47*(1+PARAMETROS!$G$89)*(1+PARAMETROS!$H$89)^E64 -> 10968275.62 | F67: =F47*(1+PARAMETROS!$G$89)*(1+PARAMETROS!$H$89)^(F64-1) -> 11151209.53 | G67: =G47*(1+PARAMETROS!$G$89)*(1+PARAMETROS!$H$89)^G64 -> 12259009.54 | H67: =H47*(1+PARAMETROS!$G$89)*(1+PARAMETROS!$H$89)^(H64-1) -> 12456870.86 | I67: =I47*(1+PARAMETROS!$G$89)*(1+PARAMETROS!$H$89)^I64 -> 13687358.32 | J67: =J47*(1+PARAMETROS!$G$89)*(1+PARAMETROS!$H$89)^(J64-1) -> 13881868.19 | K67: =K47*(1+PARAMETROS!$G$89)*(1+PARAMETROS!$H$89)^K64 -> 15225010.52 | L67: =L47*(1+PARAMETROS!$G$89)*(1+PARAMETROS!$H$89)^(L64-1) -> 15435392.4 | M67: =M47*(1+PARAMETROS!$G$89)*(1+PARAMETROS!$H$89)^M64 -> 16922469.46 | N67: =N47*(1+PARAMETROS!$G$89)*(1+PARAMETROS!$H$89)^(N64-1) -> 17150018.51 | O67: =O47*(1+PARAMETROS!$G$89)*(1+PARAMETROS!$H$89)^O64 -> 18903394.44 | P67: =P47*(1+PARAMETROS!$G$89)*(1+PARAMETROS!$H$89)^(P64-1) -> 19257328.87 | Q67: =Q47*(1+PARAMETROS!$G$89)*(1+PARAMETROS!$H$89)^Q64 -> 21211542.38 | R67: =R47*(1+PARAMETROS!$G$89)*(1+PARAMETROS!$H$89)^(R64-1) -> 21594357.85 | S67: =S47*(1+PARAMETROS!$G$89)*(1+PARAMETROS!$H$89)^S64 -> 23770510.67 | T67: =T47*(1+PARAMETROS!$G$89)*(1+PARAMETROS!$H$89)^(T64-1) -> 24428898.75 | U67: =U47*(1+PARAMETROS!$G$89)*(1+PARAMETROS!$H$89)^U64 -> 27134409.43 | V67: =V47*(1+PARAMETROS!$G$89)*(1+PARAMETROS!$H$89)^(V64-1) -> 27846521.98 | W67: =W47*(1+PARAMETROS!$G$89)*(1+PARAMETROS!$H$89)^W64 -> 30889019.1 | X67: =X47*(1+PARAMETROS!$G$89)*(1+PARAMETROS!$H$89)^(X64-1) -> 31659240.04 | Y67: =Y47*(1+PARAMETROS!$G$89)*(1+PARAMETROS!$H$89)^Y64 -> 34242634.02 | Z67: =Z47*(1+PARAMETROS!$G$89)*(1+PARAMETROS!$H$89)^(Z64-1) -> 34242634.02 | AA67: =AA47*(1+PARAMETROS!$G$89)*(1+PARAMETROS!$H$89)^AA64 -> 37036832.96 | AB67: =AB47*(1+PARAMETROS!$G$89)*(1+PARAMETROS!$H$89)^(AB64-1) -> 37036832.96 | AC67: =AC47*(1+PARAMETROS!$G$89)*(1+PARAMETROS!$H$89)^AC64 -> 40059038.53 | AD67: =AD47*(1+PARAMETROS!$G$89)*(1+PARAMETROS!$H$89)^(AD64-1) -> 40059038.53 | AE67: =AE47*(1+PARAMETROS!$G$89)*(1+PARAMETROS!$H$89)^AE64 -> 43327856.07 | AF67: =AF47*(1+PARAMETROS!$G$89)*(1+PARAMETROS!$H$89)^(AF64-1) -> 43327856.07 | AG67: =AG47*(1+PARAMETROS!$G$89)*(1+PARAMETROS!$H$89)^AG64 -> 46863409.13 | AH67: =AH47*(1+PARAMETROS!$G$89)*(1+PARAMETROS!$H$89)^(AH64-1) -> 46863409.13 | AI67: =AI47*(1+PARAMETROS!$G$89)*(1+PARAMETROS!$H$89)^AI64 -> 50687463.31 | AJ67: =AJ47*(1+PARAMETROS!$G$89)*(1+PARAMETROS!$H$89)^(AJ64-1) -> 50687463.31 | AK67: =AK47*(1+PARAMETROS!$G$89)*(1+PARAMETROS!$H$89)^AK64 -> 54823560.32 | AL67: =AL47*(1+PARAMETROS!$G$89)*(1+PARAMETROS!$H$89)^(AL64-1) -> 54823560.32 | AM67: =AM47*(1+PARAMETROS!$G$89)*(1+PARAMETROS!$H$89)^AM64 -> 59297162.84 | AN67: =AN47*(1+PARAMETROS!$G$89)*(1+PARAMETROS!$H$89)^(AN64-1) -> 59297162.84 | AO67: =AO47*(1+PARAMETROS!$G$89)*(1+PARAMETROS!$H$89)^AO64 -> 64135811.33 | AP67: =AP47*(1+PARAMETROS!$G$89)*(1+PARAMETROS!$H$89)^(AP64-1) -> 64135811.33 | AQ67: =AQ47*(1+PARAMETROS!$G$89)*(1+PARAMETROS!$H$89)^AQ64 -> 69369293.53
B68: Tarifa 4 | C68: =C48 -> 9140594.182 | D68: =D48*(1) -> 12187458.91 | E68: =E48*(1+PARAMETROS!$G$89)*(1+PARAMETROS!$H$89)^E64 -> 13464087.82 | F68: =F48*(1+PARAMETROS!$G$89)*(1+PARAMETROS!$H$89)^(F64-1) -> 13682845.29 | G68: =G48*(1+PARAMETROS!$G$89)*(1+PARAMETROS!$H$89)^G64 -> 15035973.55 | H68: =H48*(1+PARAMETROS!$G$89)*(1+PARAMETROS!$H$89)^(H64-1) -> 15272581.63 | I68: =I48*(1+PARAMETROS!$G$89)*(1+PARAMETROS!$H$89)^I64 -> 16774739.59 | J68: =J48*(1+PARAMETROS!$G$89)*(1+PARAMETROS!$H$89)^(J64-1) -> 17018247.63 | K68: =K48*(1+PARAMETROS!$G$89)*(1+PARAMETROS!$H$89)^K64 -> 18670314.92 | L68: =L48*(1+PARAMETROS!$G$89)*(1+PARAMETROS!$H$89)^(L64-1) -> 18933693.22 | M68: =M48*(1+PARAMETROS!$G$89)*(1+PARAMETROS!$H$89)^M64 -> 20763552.54 | N68: =N48*(1+PARAMETROS!$G$89)*(1+PARAMETROS!$H$89)^(N64-1) -> 21048422.5 | O68: =O48*(1+PARAMETROS!$G$89)*(1+PARAMETROS!$H$89)^O64 -> 23185215.56 | P68: =P48*(1+PARAMETROS!$G$89)*(1+PARAMETROS!$H$89)^(P64-1) -> 23604457.34 | Q68: =Q48*(1+PARAMETROS!$G$89)*(1+PARAMETROS!$H$89)^Q64 -> 25984032.97 | R68: =R48*(1+PARAMETROS!$G$89)*(1+PARAMETROS!$H$89)^(R64-1) -> 26437484.88 | S68: =S48*(1+PARAMETROS!$G$89)*(1+PARAMETROS!$H$89)^S64 -> 29085237.24 | T68: =T48*(1+PARAMETROS!$G$89)*(1+PARAMETROS!$H$89)^(T64-1) -> 29865056.83 | U68: =U48*(1+PARAMETROS!$G$89)*(1+PARAMETROS!$H$89)^U64 -> 33145498.33 | V68: =V48*(1+PARAMETROS!$G$89)*(1+PARAMETROS!$H$89)^(V64-1) -> 33988951.2 | W68: =W48*(1+PARAMETROS!$G$89)*(1+PARAMETROS!$H$89)^W64 -> 37674728.24 | X68: =X48*(1+PARAMETROS!$G$89)*(1+PARAMETROS!$H$89)^(X64-1) -> 38587006.87 | Y68: =Y48*(1+PARAMETROS!$G$89)*(1+PARAMETROS!$H$89)^Y64 -> 41735706.63 | Z68: =Z48*(1+PARAMETROS!$G$89)*(1+PARAMETROS!$H$89)^(Z64-1) -> 41735706.63 | AA68: =AA48*(1+PARAMETROS!$G$89)*(1+PARAMETROS!$H$89)^AA64 -> 45141340.29 | AB68: =AB48*(1+PARAMETROS!$G$89)*(1+PARAMETROS!$H$89)^(AB64-1) -> 45141340.29 | AC68: =AC48*(1+PARAMETROS!$G$89)*(1+PARAMETROS!$H$89)^AC64 -> 48824873.65 | AD68: =AD48*(1+PARAMETROS!$G$89)*(1+PARAMETROS!$H$89)^(AD64-1) -> 48824873.65 | AE68: =AE48*(1+PARAMETROS!$G$89)*(1+PARAMETROS!$H$89)^AE64 -> 52808983.34 | AF68: =AF48*(1+PARAMETROS!$G$89)*(1+PARAMETROS!$H$89)^(AF64-1) -> 52808983.34 | AG68: =AG48*(1+PARAMETROS!$G$89)*(1+PARAMETROS!$H$89)^AG64 -> 57118196.39 | AH68: =AH48*(1+PARAMETROS!$G$89)*(1+PARAMETROS!$H$89)^(AH64-1) -> 57118196.39 | AI68: =AI48*(1+PARAMETROS!$G$89)*(1+PARAMETROS!$H$89)^AI64 -> 61779041.21 | AJ68: =AJ48*(1+PARAMETROS!$G$89)*(1+PARAMETROS!$H$89)^(AJ64-1) -> 61779041.21 | AK68: =AK48*(1+PARAMETROS!$G$89)*(1+PARAMETROS!$H$89)^AK64 -> 66820210.97 | AL68: =AL48*(1+PARAMETROS!$G$89)*(1+PARAMETROS!$H$89)^(AL64-1) -> 66820210.97 | AM68: =AM48*(1+PARAMETROS!$G$89)*(1+PARAMETROS!$H$89)^AM64 -> 72272740.19 | AN68: =AN48*(1+PARAMETROS!$G$89)*(1+PARAMETROS!$H$89)^(AN64-1) -> 72272740.19 | AO68: =AO48*(1+PARAMETROS!$G$89)*(1+PARAMETROS!$H$89)^AO64 -> 78170195.79 | AP68: =AP48*(1+PARAMETROS!$G$89)*(1+PARAMETROS!$H$89)^(AP64-1) -> 78170195.79 | AQ68: =AQ48*(1+PARAMETROS!$G$89)*(1+PARAMETROS!$H$89)^AQ64 -> 84548883.76
B69: Tarifa 5 | C69: =C49 -> 10811372.87 | D69: =D49*(1) -> 14415163.82 | E69: =E49*(1+PARAMETROS!$G$89)*(1+PARAMETROS!$H$89)^E64 -> 15913102.85 | F69: =F49*(1+PARAMETROS!$G$89)*(1+PARAMETROS!$H$89)^(F64-1) -> 16159805.66 | G69: =G49*(1+PARAMETROS!$G$89)*(1+PARAMETROS!$H$89)^G64 -> 17745279.56 | H69: =H49*(1+PARAMETROS!$G$89)*(1+PARAMETROS!$H$89)^(H64-1) -> 18012113.32 | I69: =I49*(1+PARAMETROS!$G$89)*(1+PARAMETROS!$H$89)^I64 -> 19770509.16 | J69: =J49*(1+PARAMETROS!$G$89)*(1+PARAMETROS!$H$89)^(J64-1) -> 20050490.34 | K69: =K49*(1+PARAMETROS!$G$89)*(1+PARAMETROS!$H$89)^K64 -> 21989438 | L69: =L49*(1+PARAMETROS!$G$89)*(1+PARAMETROS!$H$89)^(L64-1) -> 22292265.64 | M69: =M49*(1+PARAMETROS!$G$89)*(1+PARAMETROS!$H$89)^M64 -> 24438852.9 | N69: =N49*(1+PARAMETROS!$G$89)*(1+PARAMETROS!$H$89)^(N64-1) -> 24766391.28 | O69: =O49*(1+PARAMETROS!$G$89)*(1+PARAMETROS!$H$89)^O64 -> 27271833.81 | P69: =P49*(1+PARAMETROS!$G$89)*(1+PARAMETROS!$H$89)^(P64-1) -> 27756338.8 | Q69: =Q49*(1+PARAMETROS!$G$89)*(1+PARAMETROS!$H$89)^Q64 -> 30545296.65 | R69: =R49*(1+PARAMETROS!$G$89)*(1+PARAMETROS!$H$89)^(R64-1) -> 31069337.25 | S69: =S49*(1+PARAMETROS!$G$89)*(1+PARAMETROS!$H$89)^S64 -> 34171397.48 | T69: =T49*(1+PARAMETROS!$G$89)*(1+PARAMETROS!$H$89)^(T64-1) -> 35068925.93 | U69: =U49*(1+PARAMETROS!$G$89)*(1+PARAMETROS!$H$89)^U64 -> 38901317.06 | V69: =V49*(1+PARAMETROS!$G$89)*(1+PARAMETROS!$H$89)^(V64-1) -> 39872083.84 | W69: =W49*(1+PARAMETROS!$G$89)*(1+PARAMETROS!$H$89)^W64 -> 44175627.22 | X69: =X49*(1+PARAMETROS!$G$89)*(1+PARAMETROS!$H$89)^(X64-1) -> 45225608.56 | Y69: =Y49*(1+PARAMETROS!$G$89)*(1+PARAMETROS!$H$89)^Y64 -> 48916018.22 | Z69: =Z49*(1+PARAMETROS!$G$89)*(1+PARAMETROS!$H$89)^(Z64-1) -> 48916018.22 | AA69: =AA49*(1+PARAMETROS!$G$89)*(1+PARAMETROS!$H$89)^AA64 -> 52907565.3 | AB69: =AB49*(1+PARAMETROS!$G$89)*(1+PARAMETROS!$H$89)^(AB64-1) -> 52907565.3 | AC69: =AC49*(1+PARAMETROS!$G$89)*(1+PARAMETROS!$H$89)^AC64 -> 57224822.63 | AD69: =AD49*(1+PARAMETROS!$G$89)*(1+PARAMETROS!$H$89)^(AD64-1) -> 57224822.63 | AE69: =AE49*(1+PARAMETROS!$G$89)*(1+PARAMETROS!$H$89)^AE64 -> 61894368.16 | AF69: =AF49*(1+PARAMETROS!$G$89)*(1+PARAMETROS!$H$89)^(AF64-1) -> 61894368.16 | AG69: =AG49*(1+PARAMETROS!$G$89)*(1+PARAMETROS!$H$89)^AG64 -> 66944948.6 | AH69: =AH49*(1+PARAMETROS!$G$89)*(1+PARAMETROS!$H$89)^(AH64-1) -> 66944948.6 | AI69: =AI49*(1+PARAMETROS!$G$89)*(1+PARAMETROS!$H$89)^AI64 -> 72407656.41 | AJ69: =AJ49*(1+PARAMETROS!$G$89)*(1+PARAMETROS!$H$89)^(AJ64-1) -> 72407656.41 | AK69: =AK49*(1+PARAMETROS!$G$89)*(1+PARAMETROS!$H$89)^AK64 -> 78316121.17 | AL69: =AL49*(1+PARAMETROS!$G$89)*(1+PARAMETROS!$H$89)^(AL64-1) -> 78316121.17 | AM69: =AM49*(1+PARAMETROS!$G$89)*(1+PARAMETROS!$H$89)^AM64 -> 84706716.66 | AN69: =AN49*(1+PARAMETROS!$G$89)*(1+PARAMETROS!$H$89)^(AN64-1) -> 84706716.66 | AO69: =AO49*(1+PARAMETROS!$G$89)*(1+PARAMETROS!$H$89)^AO64 -> 91618784.74 | AP69: =AP49*(1+PARAMETROS!$G$89)*(1+PARAMETROS!$H$89)^(AP64-1) -> 91618784.74 | AQ69: =AQ49*(1+PARAMETROS!$G$89)*(1+PARAMETROS!$H$89)^AQ64 -> 99094877.57
B72: ALTERNATIVA C
B74: Ingresos en USD 2015
B75: Año | C75: 2019 | D75: 2020 | E75: 2021 | F75: 2022 | G75: 2023 | H75: 2024 | I75: 2025 | J75: 2026 | K75: 2027 | L75: 2028 | M75: 2029 | N75: 2030 | O75: 2031 | P75: 2032 | Q75: 2033 | R75: 2034 | S75: 2035 | T75: 2036 | U75: 2037 | V75: 2038 | W75: 2039 | X75: 2040 | Y75: 2041 | Z75: 2042 | AA75: 2043 | AB75: 2044 | AC75: 2045 | AD75: 2046 | AE75: 2047 | AF75: 2048 | AG75: 2049 | AH75: 2050 | AI75: 2051 | AJ75: 2052 | AK75: 2053 | AL75: 2054 | AM75: 2055 | AN75: 2056 | AO75: 2057 | AP75: 2058 | AQ75: 2059
B76: Tarifa 1 | C76: =$D32*DEMANDA!C72*$D$12+$E32*DEMANDA!C72*$D$13 -> 4656894 | D76: =$D32*DEMANDA!D72*$D$12+$E32*DEMANDA!D72*$D$13 -> 6209192 | E76: =$D32*DEMANDA!E72*$D$12+$E32*DEMANDA!E72*$D$13 -> 6319616.161 | F76: =$D32*DEMANDA!F72*$D$12+$E32*DEMANDA!F72*$D$13 -> 6430040.322 | G76: =$D32*DEMANDA!G72*$D$12+$E32*DEMANDA!G72*$D$13 -> 6540464.483 | H76: =$D32*DEMANDA!H72*$D$12+$E32*DEMANDA!H72*$D$13 -> 6650888.645 | I76: =$D32*DEMANDA!I72*$D$12+$E32*DEMANDA!I72*$D$13 -> 6761312.806 | J76: =$D32*DEMANDA!J72*$D$12+$E32*DEMANDA!J72*$D$13 -> 6870254.165 | K76: =$D32*DEMANDA!K72*$D$12+$E32*DEMANDA!K72*$D$13 -> 6979195.524 | L76: =$D32*DEMANDA!L72*$D$12+$E32*DEMANDA!L72*$D$13 -> 7088136.883 | M76: =$D32*DEMANDA!M72*$D$12+$E32*DEMANDA!M72*$D$13 -> 7197078.242 | N76: =$D32*DEMANDA!N72*$D$12+$E32*DEMANDA!N72*$D$13 -> 7306019.601 | O76: =$D32*DEMANDA!O72*$D$12+$E32*DEMANDA!O72*$D$13 -> 7453483.155 | P76: =$D32*DEMANDA!P72*$D$12+$E32*DEMANDA!P72*$D$13 -> 7600946.71 | Q76: =$D32*DEMANDA!Q72*$D$12+$E32*DEMANDA!Q72*$D$13 -> 7748410.264 | R76: =$D32*DEMANDA!R72*$D$12+$E32*DEMANDA!R72*$D$13 -> 7895873.818 | S76: =$D32*DEMANDA!S72*$D$12+$E32*DEMANDA!S72*$D$13 -> 8043337.373 | T76: =$D32*DEMANDA!T72*$D$12+$E32*DEMANDA!T72*$D$13 -> 8272519.489 | U76: =$D32*DEMANDA!U72*$D$12+$E32*DEMANDA!U72*$D$13 -> 8501701.605 | V76: =$D32*DEMANDA!V72*$D$12+$E32*DEMANDA!V72*$D$13 -> 8730883.721 | W76: =$D32*DEMANDA!W72*$D$12+$E32*DEMANDA!W72*$D$13 -> 8960065.837 | X76: =$D32*DEMANDA!X72*$D$12+$E32*DEMANDA!X72*$D$13 -> 9189247.953 | Y76: =$D32*DEMANDA!Y72*$D$12+$E32*DEMANDA!Y72*$D$13 -> 9189247.953 | Z76: =$D32*DEMANDA!Z72*$D$12+$E32*DEMANDA!Z72*$D$13 -> 9189247.953 | AA76: =$D32*DEMANDA!AA72*$D$12+$E32*DEMANDA!AA72*$D$13 -> 9189247.953 | AB76: =$D32*DEMANDA!AB72*$D$12+$E32*DEMANDA!AB72*$D$13 -> 9189247.953 | AC76: =$D32*DEMANDA!AC72*$D$12+$E32*DEMANDA!AC72*$D$13 -> 9189247.953 | AD76: =$D32*DEMANDA!AD72*$D$12+$E32*DEMANDA!AD72*$D$13 -> 9189247.953 | AE76: =$D32*DEMANDA!AE72*$D$12+$E32*DEMANDA!AE72*$D$13 -> 9189247.953 | AF76: =$D32*DEMANDA!AF72*$D$12+$E32*DEMANDA!AF72*$D$13 -> 9189247.953 | AG76: =$D32*DEMANDA!AG72*$D$12+$E32*DEMANDA!AG72*$D$13 -> 9189247.953 | AH76: =$D32*DEMANDA!AH72*$D$12+$E32*DEMANDA!AH72*$D$13 -> 9189247.953 | AI76: =$D32*DEMANDA!AI72*$D$12+$E32*DEMANDA!AI72*$D$13 -> 9189247.953 | AJ76: =$D32*DEMANDA!AJ72*$D$12+$E32*DEMANDA!AJ72*$D$13 -> 9189247.953 | AK76: =$D32*DEMANDA!AK72*$D$12+$E32*DEMANDA!AK72*$D$13 -> 9189247.953 | AL76: =$D32*DEMANDA!AL72*$D$12+$E32*DEMANDA!AL72*$D$13 -> 9189247.953 | AM76: =$D32*DEMANDA!AM72*$D$12+$E32*DEMANDA!AM72*$D$13 -> 9189247.953 | AN76: =$D32*DEMANDA!AN72*$D$12+$E32*DEMANDA!AN72*$D$13 -> 9189247.953 | AO76: =$D32*DEMANDA!AO72*$D$12+$E32*DEMANDA!AO72*$D$13 -> 9189247.953 | AP76: =$D32*DEMANDA!AP72*$D$12+$E32*DEMANDA!AP72*$D$13 -> 9189247.953 | AQ76: =$D32*DEMANDA!AQ72*$D$12+$E32*DEMANDA!AQ72*$D$13 -> 9189247.953
B77: Tarifa 2 | C77: =$D33*DEMANDA!C73*$D$12+$E33*DEMANDA!C73*$D$13 -> 5773390.678 | D77: =$D33*DEMANDA!D73*$D$12+$E33*DEMANDA!D73*$D$13 -> 7697854.238 | E77: =$D33*DEMANDA!E73*$D$12+$E33*DEMANDA!E73*$D$13 -> 7829543.509 | F77: =$D33*DEMANDA!F73*$D$12+$E33*DEMANDA!F73*$D$13 -> 7961232.781 | G77: =$D33*DEMANDA!G73*$D$12+$E33*DEMANDA!G73*$D$13 -> 8092922.052 | H77: =$D33*DEMANDA!H73*$D$12+$E33*DEMANDA!H73*$D$13 -> 8224611.323 | I77: =$D33*DEMANDA!I73*$D$12+$E33*DEMANDA!I73*$D$13 -> 8356300.595 | J77: =$D33*DEMANDA!J73*$D$12+$E33*DEMANDA!J73*$D$13 -> 8486655.484 | K77: =$D33*DEMANDA!K73*$D$12+$E33*DEMANDA!K73*$D$13 -> 8617010.372 | L77: =$D33*DEMANDA!L73*$D$12+$E33*DEMANDA!L73*$D$13 -> 8747365.261 | M77: =$D33*DEMANDA!M73*$D$12+$E33*DEMANDA!M73*$D$13 -> 8877720.15 | N77: =$D33*DEMANDA!N73*$D$12+$E33*DEMANDA!N73*$D$13 -> 9008075.039 | O77: =$D33*DEMANDA!O73*$D$12+$E33*DEMANDA!O73*$D$13 -> 9188864.71 | P77: =$D33*DEMANDA!P73*$D$12+$E33*DEMANDA!P73*$D$13 -> 9369654.381 | Q77: =$D33*DEMANDA!Q73*$D$12+$E33*DEMANDA!Q73*$D$13 -> 9550444.052 | R77: =$D33*DEMANDA!R73*$D$12+$E33*DEMANDA!R73*$D$13 -> 9731233.723 | S77: =$D33*DEMANDA!S73*$D$12+$E33*DEMANDA!S73*$D$13 -> 9912023.394 | T77: =$D33*DEMANDA!T73*$D$12+$E33*DEMANDA!T73*$D$13 -> 10183495.33 | U77: =$D33*DEMANDA!U73*$D$12+$E33*DEMANDA!U73*$D$13 -> 10454967.27 | V77: =$D33*DEMANDA!V73*$D$12+$E33*DEMANDA!V73*$D$13 -> 10726439.21 | W77: =$D33*DEMANDA!W73*$D$12+$E33*DEMANDA!W73*$D$13 -> 10997911.15 | X77: =$D33*DEMANDA!X73*$D$12+$E33*DEMANDA!X73*$D$13 -> 11269383.09 | Y77: =$D33*DEMANDA!Y73*$D$12+$E33*DEMANDA!Y73*$D$13 -> 11269383.09 | Z77: =$D33*DEMANDA!Z73*$D$12+$E33*DEMANDA!Z73*$D$13 -> 11269383.09 | AA77: =$D33*DEMANDA!AA73*$D$12+$E33*DEMANDA!AA73*$D$13 -> 11269383.09 | AB77: =$D33*DEMANDA!AB73*$D$12+$E33*DEMANDA!AB73*$D$13 -> 11269383.09 | AC77: =$D33*DEMANDA!AC73*$D$12+$E33*DEMANDA!AC73*$D$13 -> 11269383.09 | AD77: =$D33*DEMANDA!AD73*$D$12+$E33*DEMANDA!AD73*$D$13 -> 11269383.09 | AE77: =$D33*DEMANDA!AE73*$D$12+$E33*DEMANDA!AE73*$D$13 -> 11269383.09 | AF77: =$D33*DEMANDA!AF73*$D$12+$E33*DEMANDA!AF73*$D$13 -> 11269383.09 | AG77: =$D33*DEMANDA!AG73*$D$12+$E33*DEMANDA!AG73*$D$13 -> 11269383.09 | AH77: =$D33*DEMANDA!AH73*$D$12+$E33*DEMANDA!AH73*$D$13 -> 11269383.09 | AI77: =$D33*DEMANDA!AI73*$D$12+$E33*DEMANDA!AI73*$D$13 -> 11269383.09 | AJ77: =$D33*DEMANDA!AJ73*$D$12+$E33*DEMANDA!AJ73*$D$13 -> 11269383.09 | AK77: =$D33*DEMANDA!AK73*$D$12+$E33*DEMANDA!AK73*$D$13 -> 11269383.09 | AL77: =$D33*DEMANDA!AL73*$D$12+$E33*DEMANDA!AL73*$D$13 -> 11269383.09 | AM77: =$D33*DEMANDA!AM73*$D$12+$E33*DEMANDA!AM73*$D$13 -> 11269383.09 | AN77: =$D33*DEMANDA!AN73*$D$12+$E33*DEMANDA!AN73*$D$13 -> 11269383.09 | AO77: =$D33*DEMANDA!AO73*$D$12+$E33*DEMANDA!AO73*$D$13 -> 11269383.09 | AP77: =$D33*DEMANDA!AP73*$D$12+$E33*DEMANDA!AP73*$D$13 -> 11269383.09 | AQ77: =$D33*DEMANDA!AQ73*$D$12+$E33*DEMANDA!AQ73*$D$13 -> 11269383.09
B78: Tarifa 3 | C78: =$D34*DEMANDA!C74*$D$12+$E34*DEMANDA!C74*$D$13 -> 7559904.169 | D78: =$D34*DEMANDA!D74*$D$12+$E34*DEMANDA!D74*$D$13 -> 10079872.23 | E78: =$D34*DEMANDA!E74*$D$12+$E34*DEMANDA!E74*$D$13 -> 10250840.42 | F78: =$D34*DEMANDA!F74*$D$12+$E34*DEMANDA!F74*$D$13 -> 10421808.62 | G78: =$D34*DEMANDA!G74*$D$12+$E34*DEMANDA!G74*$D$13 -> 10592776.82 | H78: =$D34*DEMANDA!H74*$D$12+$E34*DEMANDA!H74*$D$13 -> 10763745.01 | I78: =$D34*DEMANDA!I74*$D$12+$E34*DEMANDA!I74*$D$13 -> 10934713.21 | J78: =$D34*DEMANDA!J74*$D$12+$E34*DEMANDA!J74*$D$13 -> 11090105.48 | K78: =$D34*DEMANDA!K74*$D$12+$E34*DEMANDA!K74*$D$13 -> 11245497.76 | L78: =$D34*DEMANDA!L74*$D$12+$E34*DEMANDA!L74*$D$13 -> 11400890.03 | M78: =$D34*DEMANDA!M74*$D$12+$E34*DEMANDA!M74*$D$13 -> 11556282.3 | N78: =$D34*DEMANDA!N74*$D$12+$E34*DEMANDA!N74*$D$13 -> 11711674.57 | O78: =$D34*DEMANDA!O74*$D$12+$E34*DEMANDA!O74*$D$13 -> 11935140.1 | P78: =$D34*DEMANDA!P74*$D$12+$E34*DEMANDA!P74*$D$13 -> 12158605.62 | Q78: =$D34*DEMANDA!Q74*$D$12+$E34*DEMANDA!Q74*$D$13 -> 12382071.14 | R78: =$D34*DEMANDA!R74*$D$12+$E34*DEMANDA!R74*$D$13 -> 12605536.67 | S78: =$D34*DEMANDA!S74*$D$12+$E34*DEMANDA!S74*$D$13 -> 12829002.19 | T78: =$D34*DEMANDA!T74*$D$12+$E34*DEMANDA!T74*$D$13 -> 13184335.83 | U78: =$D34*DEMANDA!U74*$D$12+$E34*DEMANDA!U74*$D$13 -> 13539669.47 | V78: =$D34*DEMANDA!V74*$D$12+$E34*DEMANDA!V74*$D$13 -> 13895003.12 | W78: =$D34*DEMANDA!W74*$D$12+$E34*DEMANDA!W74*$D$13 -> 14250336.76 | X78: =$D34*DEMANDA!X74*$D$12+$E34*DEMANDA!X74*$D$13 -> 14605670.4 | Y78: =$D34*DEMANDA!Y74*$D$12+$E34*DEMANDA!Y74*$D$13 -> 14605670.4 | Z78: =$D34*DEMANDA!Z74*$D$12+$E34*DEMANDA!Z74*$D$13 -> 14605670.4 | AA78: =$D34*DEMANDA!AA74*$D$12+$E34*DEMANDA!AA74*$D$13 -> 14605670.4 | AB78: =$D34*DEMANDA!AB74*$D$12+$E34*DEMANDA!AB74*$D$13 -> 14605670.4 | AC78: =$D34*DEMANDA!AC74*$D$12+$E34*DEMANDA!AC74*$D$13 -> 14605670.4 | AD78: =$D34*DEMANDA!AD74*$D$12+$E34*DEMANDA!AD74*$D$13 -> 14605670.4 | AE78: =$D34*DEMANDA!AE74*$D$12+$E34*DEMANDA!AE74*$D$13 -> 14605670.4 | AF78: =$D34*DEMANDA!AF74*$D$12+$E34*DEMANDA!AF74*$D$13 -> 14605670.4 | AG78: =$D34*DEMANDA!AG74*$D$12+$E34*DEMANDA!AG74*$D$13 -> 14605670.4 | AH78: =$D34*DEMANDA!AH74*$D$12+$E34*DEMANDA!AH74*$D$13 -> 14605670.4 | AI78: =$D34*DEMANDA!AI74*$D$12+$E34*DEMANDA!AI74*$D$13 -> 14605670.4 | AJ78: =$D34*DEMANDA!AJ74*$D$12+$E34*DEMANDA!AJ74*$D$13 -> 14605670.4 | AK78: =$D34*DEMANDA!AK74*$D$12+$E34*DEMANDA!AK74*$D$13 -> 14605670.4 | AL78: =$D34*DEMANDA!AL74*$D$12+$E34*DEMANDA!AL74*$D$13 -> 14605670.4 | AM78: =$D34*DEMANDA!AM74*$D$12+$E34*DEMANDA!AM74*$D$13 -> 14605670.4 | AN78: =$D34*DEMANDA!AN74*$D$12+$E34*DEMANDA!AN74*$D$13 -> 14605670.4 | AO78: =$D34*DEMANDA!AO74*$D$12+$E34*DEMANDA!AO74*$D$13 -> 14605670.4 | AP78: =$D34*DEMANDA!AP74*$D$12+$E34*DEMANDA!AP74*$D$13 -> 14605670.4 | AQ78: =$D34*DEMANDA!AQ74*$D$12+$E34*DEMANDA!AQ74*$D$13 -> 14605670.4
B79: Tarifa 4 | C79: =$D35*DEMANDA!C75*$D$12+$E35*DEMANDA!C75*$D$13 -> 9284214.704 | D79: =$D35*DEMANDA!D75*$D$12+$E35*DEMANDA!D75*$D$13 -> 12378952.94 | E79: =$D35*DEMANDA!E75*$D$12+$E35*DEMANDA!E75*$D$13 -> 12583401.48 | F79: =$D35*DEMANDA!F75*$D$12+$E35*DEMANDA!F75*$D$13 -> 12787850.02 | G79: =$D35*DEMANDA!G75*$D$12+$E35*DEMANDA!G75*$D$13 -> 12992298.56 | H79: =$D35*DEMANDA!H75*$D$12+$E35*DEMANDA!H75*$D$13 -> 13196747.1 | I79: =$D35*DEMANDA!I75*$D$12+$E35*DEMANDA!I75*$D$13 -> 13401195.64 | J79: =$D35*DEMANDA!J75*$D$12+$E35*DEMANDA!J75*$D$13 -> 13595732.12 | K79: =$D35*DEMANDA!K75*$D$12+$E35*DEMANDA!K75*$D$13 -> 13790268.6 | L79: =$D35*DEMANDA!L75*$D$12+$E35*DEMANDA!L75*$D$13 -> 13984805.09 | M79: =$D35*DEMANDA!M75*$D$12+$E35*DEMANDA!M75*$D$13 -> 14179341.57 | N79: =$D35*DEMANDA!N75*$D$12+$E35*DEMANDA!N75*$D$13 -> 14373878.05 | O79: =$D35*DEMANDA!O75*$D$12+$E35*DEMANDA!O75*$D$13 -> 14638577.04 | P79: =$D35*DEMANDA!P75*$D$12+$E35*DEMANDA!P75*$D$13 -> 14903276.03 | Q79: =$D35*DEMANDA!Q75*$D$12+$E35*DEMANDA!Q75*$D$13 -> 15167975.02 | R79: =$D35*DEMANDA!R75*$D$12+$E35*DEMANDA!R75*$D$13 -> 15432674.01 | S79: =$D35*DEMANDA!S75*$D$12+$E35*DEMANDA!S75*$D$13 -> 15697373 | T79: =$D35*DEMANDA!T75*$D$12+$E35*DEMANDA!T75*$D$13 -> 16118243.52 | U79: =$D35*DEMANDA!U75*$D$12+$E35*DEMANDA!U75*$D$13 -> 16539114.04 | V79: =$D35*DEMANDA!V75*$D$12+$E35*DEMANDA!V75*$D$13 -> 16959984.56 | W79: =$D35*DEMANDA!W75*$D$12+$E35*DEMANDA!W75*$D$13 -> 17380855.08 | X79: =$D35*DEMANDA!X75*$D$12+$E35*DEMANDA!X75*$D$13 -> 17801725.61 | Y79: =$D35*DEMANDA!Y75*$D$12+$E35*DEMANDA!Y75*$D$13 -> 17801725.61 | Z79: =$D35*DEMANDA!Z75*$D$12+$E35*DEMANDA!Z75*$D$13 -> 17801725.61 | AA79: =$D35*DEMANDA!AA75*$D$12+$E35*DEMANDA!AA75*$D$13 -> 17801725.61 | AB79: =$D35*DEMANDA!AB75*$D$12+$E35*DEMANDA!AB75*$D$13 -> 17801725.61 | AC79: =$D35*DEMANDA!AC75*$D$12+$E35*DEMANDA!AC75*$D$13 -> 17801725.61 | AD79: =$D35*DEMANDA!AD75*$D$12+$E35*DEMANDA!AD75*$D$13 -> 17801725.61 | AE79: =$D35*DEMANDA!AE75*$D$12+$E35*DEMANDA!AE75*$D$13 -> 17801725.61 | AF79: =$D35*DEMANDA!AF75*$D$12+$E35*DEMANDA!AF75*$D$13 -> 17801725.61 | AG79: =$D35*DEMANDA!AG75*$D$12+$E35*DEMANDA!AG75*$D$13 -> 17801725.61 | AH79: =$D35*DEMANDA!AH75*$D$12+$E35*DEMANDA!AH75*$D$13 -> 17801725.61 | AI79: =$D35*DEMANDA!AI75*$D$12+$E35*DEMANDA!AI75*$D$13 -> 17801725.61 | AJ79: =$D35*DEMANDA!AJ75*$D$12+$E35*DEMANDA!AJ75*$D$13 -> 17801725.61 | AK79: =$D35*DEMANDA!AK75*$D$12+$E35*DEMANDA!AK75*$D$13 -> 17801725.61 | AL79: =$D35*DEMANDA!AL75*$D$12+$E35*DEMANDA!AL75*$D$13 -> 17801725.61 | AM79: =$D35*DEMANDA!AM75*$D$12+$E35*DEMANDA!AM75*$D$13 -> 17801725.61 | AN79: =$D35*DEMANDA!AN75*$D$12+$E35*DEMANDA!AN75*$D$13 -> 17801725.61 | AO79: =$D35*DEMANDA!AO75*$D$12+$E35*DEMANDA!AO75*$D$13 -> 17801725.61 | AP79: =$D35*DEMANDA!AP75*$D$12+$E35*DEMANDA!AP75*$D$13 -> 17801725.61 | AQ79: =$D35*DEMANDA!AQ75*$D$12+$E35*DEMANDA!AQ75*$D$13 -> 17801725.61
B80: Tarifa 5 | C80: =$D36*DEMANDA!C76*$D$12+$E36*DEMANDA!C76*$D$13 -> 10981245.3 | D80: =$D36*DEMANDA!D76*$D$12+$E36*DEMANDA!D76*$D$13 -> 14641660.4 | E80: =$D36*DEMANDA!E76*$D$12+$E36*DEMANDA!E76*$D$13 -> 14872226.38 | F80: =$D36*DEMANDA!F76*$D$12+$E36*DEMANDA!F76*$D$13 -> 15102792.35 | G80: =$D36*DEMANDA!G76*$D$12+$E36*DEMANDA!G76*$D$13 -> 15333358.32 | H80: =$D36*DEMANDA!H76*$D$12+$E36*DEMANDA!H76*$D$13 -> 15563924.29 | I80: =$D36*DEMANDA!I76*$D$12+$E36*DEMANDA!I76*$D$13 -> 15794490.26 | J80: =$D36*DEMANDA!J76*$D$12+$E36*DEMANDA!J76*$D$13 -> 16018164.83 | K80: =$D36*DEMANDA!K76*$D$12+$E36*DEMANDA!K76*$D$13 -> 16241839.39 | L80: =$D36*DEMANDA!L76*$D$12+$E36*DEMANDA!L76*$D$13 -> 16465513.96 | M80: =$D36*DEMANDA!M76*$D$12+$E36*DEMANDA!M76*$D$13 -> 16689188.52 | N80: =$D36*DEMANDA!N76*$D$12+$E36*DEMANDA!N76*$D$13 -> 16912863.09 | O80: =$D36*DEMANDA!O76*$D$12+$E36*DEMANDA!O76*$D$13 -> 17218767.67 | P80: =$D36*DEMANDA!P76*$D$12+$E36*DEMANDA!P76*$D$13 -> 17524672.25 | Q80: =$D36*DEMANDA!Q76*$D$12+$E36*DEMANDA!Q76*$D$13 -> 17830576.84 | R80: =$D36*DEMANDA!R76*$D$12+$E36*DEMANDA!R76*$D$13 -> 18136481.42 | S80: =$D36*DEMANDA!S76*$D$12+$E36*DEMANDA!S76*$D$13 -> 18442386 | T80: =$D36*DEMANDA!T76*$D$12+$E36*DEMANDA!T76*$D$13 -> 18926784.28 | U80: =$D36*DEMANDA!U76*$D$12+$E36*DEMANDA!U76*$D$13 -> 19411182.56 | V80: =$D36*DEMANDA!V76*$D$12+$E36*DEMANDA!V76*$D$13 -> 19895580.84 | W80: =$D36*DEMANDA!W76*$D$12+$E36*DEMANDA!W76*$D$13 -> 20379979.12 | X80: =$D36*DEMANDA!X76*$D$12+$E36*DEMANDA!X76*$D$13 -> 20864377.4 | Y80: =$D36*DEMANDA!Y76*$D$12+$E36*DEMANDA!Y76*$D$13 -> 20864377.4 | Z80: =$D36*DEMANDA!Z76*$D$12+$E36*DEMANDA!Z76*$D$13 -> 20864377.4 | AA80: =$D36*DEMANDA!AA76*$D$12+$E36*DEMANDA!AA76*$D$13 -> 20864377.4 | AB80: =$D36*DEMANDA!AB76*$D$12+$E36*DEMANDA!AB76*$D$13 -> 20864377.4 | AC80: =$D36*DEMANDA!AC76*$D$12+$E36*DEMANDA!AC76*$D$13 -> 20864377.4 | AD80: =$D36*DEMANDA!AD76*$D$12+$E36*DEMANDA!AD76*$D$13 -> 20864377.4 | AE80: =$D36*DEMANDA!AE76*$D$12+$E36*DEMANDA!AE76*$D$13 -> 20864377.4 | AF80: =$D36*DEMANDA!AF76*$D$12+$E36*DEMANDA!AF76*$D$13 -> 20864377.4 | AG80: =$D36*DEMANDA!AG76*$D$12+$E36*DEMANDA!AG76*$D$13 -> 20864377.4 | AH80: =$D36*DEMANDA!AH76*$D$12+$E36*DEMANDA!AH76*$D$13 -> 20864377.4 | AI80: =$D36*DEMANDA!AI76*$D$12+$E36*DEMANDA!AI76*$D$13 -> 20864377.4 | AJ80: =$D36*DEMANDA!AJ76*$D$12+$E36*DEMANDA!AJ76*$D$13 -> 20864377.4 | AK80: =$D36*DEMANDA!AK76*$D$12+$E36*DEMANDA!AK76*$D$13 -> 20864377.4 | AL80: =$D36*DEMANDA!AL76*$D$12+$E36*DEMANDA!AL76*$D$13 -> 20864377.4 | AM80: =$D36*DEMANDA!AM76*$D$12+$E36*DEMANDA!AM76*$D$13 -> 20864377.4 | AN80: =$D36*DEMANDA!AN76*$D$12+$E36*DEMANDA!AN76*$D$13 -> 20864377.4 | AO80: =$D36*DEMANDA!AO76*$D$12+$E36*DEMANDA!AO76*$D$13 -> 20864377.4 | AP80: =$D36*DEMANDA!AP76*$D$12+$E36*DEMANDA!AP76*$D$13 -> 20864377.4 | AQ80: =$D36*DEMANDA!AQ76*$D$12+$E36*DEMANDA!AQ76*$D$13 -> 20864377.4
B83: Ingresos anuales en precios actualizados (hipotesis de inflacion baja)
B84: Año | C84: 2019 | D84: 2020 | E84: 2021 | F84: 2022 | G84: 2023 | H84: 2024 | I84: 2025 | J84: 2026 | K84: 2027 | L84: 2028 | M84: 2029 | N84: 2030 | O84: 2031 | P84: 2032 | Q84: 2033 | R84: 2034 | S84: 2035 | T84: 2036 | U84: 2037 | V84: 2038 | W84: 2039 | X84: 2040 | Y84: 2041 | Z84: 2042 | AA84: 2043 | AB84: 2044 | AC84: 2045 | AD84: 2046 | AE84: 2047 | AF84: 2048 | AG84: 2049 | AH84: 2050 | AI84: 2051 | AJ84: 2052 | AK84: 2053 | AL84: 2054 | AM84: 2055 | AN84: 2056 | AO84: 2057 | AP84: 2058 | AQ84: 2059
E85: 1 | F85: 2 | G85: 3 | H85: 4 | I85: 5 | J85: 6 | K85: 7 | L85: 8 | M85: 9 | N85: 10 | O85: 11 | P85: 12 | Q85: 13 | R85: 14 | S85: 15 | T85: 16 | U85: 17 | V85: 18 | W85: 19 | X85: 20 | Y85: 21 | Z85: 22 | AA85: 23 | AB85: 24 | AC85: 25 | AD85: 26 | AE85: 27 | AF85: 28 | AG85: 29 | AH85: 30 | AI85: 31 | AJ85: 32 | AK85: 33 | AL85: 34 | AM85: 35 | AN85: 36 | AO85: 37 | AP85: 38 | AQ85: 39
B86: Tarifa 1 | C86: =C76 -> 4656894 | D86: =D76*(1) -> 6209192 | E86: =E76*(1+PARAMETROS!$G$88)*(1+PARAMETROS!$H$88)^E85 -> 6607158.696 | F86: =F76*(1+PARAMETROS!$G$88)*(1+PARAMETROS!$H$88)^(F85-1) -> 6722607.157 | G86: =G76*(1+PARAMETROS!$G$88)*(1+PARAMETROS!$H$88)^G85 -> 7114313.064 | H86: =H76*(1+PARAMETROS!$G$88)*(1+PARAMETROS!$H$88)^(H85-1) -> 7234425.643 | I86: =I76*(1+PARAMETROS!$G$88)*(1+PARAMETROS!$H$88)^I85 -> 7651661.565 | J86: =J76*(1+PARAMETROS!$G$88)*(1+PARAMETROS!$H$88)^(J85-1) -> 7774948.63 | K86: =K76*(1+PARAMETROS!$G$88)*(1+PARAMETROS!$H$88)^K85 -> 8217324.417 | L86: =L76*(1+PARAMETROS!$G$88)*(1+PARAMETROS!$H$88)^(L85-1) -> 8345592.279 | M86: =M76*(1+PARAMETROS!$G$88)*(1+PARAMETROS!$H$88)^M85 -> 8816204.091 | N86: =N76*(1+PARAMETROS!$G$88)*(1+PARAMETROS!$H$88)^(N85-1) -> 8949653.975 | O86: =O76*(1+PARAMETROS!$G$88)*(1+PARAMETROS!$H$88)^O85 -> 9499156.2 | P86: =P76*(1+PARAMETROS!$G$88)*(1+PARAMETROS!$H$88)^(P85-1) -> 9687092.405 | Q86: =Q76*(1+PARAMETROS!$G$88)*(1+PARAMETROS!$H$88)^Q85 -> 10273979.77 | R86: =R76*(1+PARAMETROS!$G$88)*(1+PARAMETROS!$H$88)^(R85-1) -> 10469508.59 | S86: =S76*(1+PARAMETROS!$G$88)*(1+PARAMETROS!$H$88)^S85 -> 11095904.93 | T86: =T76*(1+PARAMETROS!$G$88)*(1+PARAMETROS!$H$88)^(T85-1) -> 11412065.11 | U86: =U76*(1+PARAMETROS!$G$88)*(1+PARAMETROS!$H$88)^U85 -> 12202045.59 | V86: =V76*(1+PARAMETROS!$G$88)*(1+PARAMETROS!$H$88)^(V85-1) -> 12530978.64 | W86: =W76*(1+PARAMETROS!$G$88)*(1+PARAMETROS!$H$88)^W85 -> 13379452.12 | X86: =X76*(1+PARAMETROS!$G$88)*(1+PARAMETROS!$H$88)^(X85-1) -> 13721674.06 | Y86: =Y76*(1+PARAMETROS!$G$88)*(1+PARAMETROS!$H$88)^Y85 -> 14276029.69 | Z86: =Z76*(1+PARAMETROS!$G$88)*(1+PARAMETROS!$H$88)^(Z85-1) -> 14276029.69 | AA86: =AA76*(1+PARAMETROS!$G$88)*(1+PARAMETROS!$H$88)^AA85 -> 14852781.29 | AB86: =AB76*(1+PARAMETROS!$G$88)*(1+PARAMETROS!$H$88)^(AB85-1) -> 14852781.29 | AC86: =AC76*(1+PARAMETROS!$G$88)*(1+PARAMETROS!$H$88)^AC85 -> 15452833.66 | AD86: =AD76*(1+PARAMETROS!$G$88)*(1+PARAMETROS!$H$88)^(AD85-1) -> 15452833.66 | AE86: =AE76*(1+PARAMETROS!$G$88)*(1+PARAMETROS!$H$88)^AE85 -> 16077128.14 | AF86: =AF76*(1+PARAMETROS!$G$88)*(1+PARAMETROS!$H$88)^(AF85-1) -> 16077128.14 | AG86: =AG76*(1+PARAMETROS!$G$88)*(1+PARAMETROS!$H$88)^AG85 -> 16726644.11 | AH86: =AH76*(1+PARAMETROS!$G$88)*(1+PARAMETROS!$H$88)^(AH85-1) -> 16726644.11 | AI86: =AI76*(1+PARAMETROS!$G$88)*(1+PARAMETROS!$H$88)^AI85 -> 17402400.54 | AJ86: =AJ76*(1+PARAMETROS!$G$88)*(1+PARAMETROS!$H$88)^(AJ85-1) -> 17402400.54 | AK86: =AK76*(1+PARAMETROS!$G$88)*(1+PARAMETROS!$H$88)^AK85 -> 18105457.52 | AL86: =AL76*(1+PARAMETROS!$G$88)*(1+PARAMETROS!$H$88)^(AL85-1) -> 18105457.52 | AM86: =AM76*(1+PARAMETROS!$G$88)*(1+PARAMETROS!$H$88)^AM85 -> 18836918 | AN86: =AN76*(1+PARAMETROS!$G$88)*(1+PARAMETROS!$H$88)^(AN85-1) -> 18836918 | AO86: =AO76*(1+PARAMETROS!$G$88)*(1+PARAMETROS!$H$88)^AO85 -> 19597929.49 | AP86: =AP76*(1+PARAMETROS!$G$88)*(1+PARAMETROS!$H$88)^(AP85-1) -> 19597929.49 | AQ86: =AQ76*(1+PARAMETROS!$G$88)*(1+PARAMETROS!$H$88)^AQ85 -> 20389685.84
B87: Tarifa 2 | C87: =C77 -> 5773390.678 | D87: =D77*(1) -> 7697854.238 | E87: =E77*(1+PARAMETROS!$G$88)*(1+PARAMETROS!$H$88)^E85 -> 8185787.739 | F87: =F77*(1+PARAMETROS!$G$88)*(1+PARAMETROS!$H$88)^(F85-1) -> 8323468.872 | G87: =G77*(1+PARAMETROS!$G$88)*(1+PARAMETROS!$H$88)^G85 -> 8802980.466 | H87: =H77*(1+PARAMETROS!$G$88)*(1+PARAMETROS!$H$88)^(H85-1) -> 8946223.917 | I87: =I77*(1+PARAMETROS!$G$88)*(1+PARAMETROS!$H$88)^I85 -> 9456681.849 | J87: =J77*(1+PARAMETROS!$G$88)*(1+PARAMETROS!$H$88)^(J85-1) -> 9604202.238 | K87: =K77*(1+PARAMETROS!$G$88)*(1+PARAMETROS!$H$88)^K85 -> 10145692.22 | L87: =L77*(1+PARAMETROS!$G$88)*(1+PARAMETROS!$H$88)^(L85-1) -> 10299172.43 | M87: =M77*(1+PARAMETROS!$G$88)*(1+PARAMETROS!$H$88)^M85 -> 10874939.81 | N87: =N77*(1+PARAMETROS!$G$88)*(1+PARAMETROS!$H$88)^(N85-1) -> 11034620.63 | O87: =O77*(1+PARAMETROS!$G$88)*(1+PARAMETROS!$H$88)^O85 -> 11710828.26 | P87: =P77*(1+PARAMETROS!$G$88)*(1+PARAMETROS!$H$88)^(P85-1) -> 11941237.22 | Q87: =Q77*(1+PARAMETROS!$G$88)*(1+PARAMETROS!$H$88)^Q85 -> 12663380.69 | R87: =R77*(1+PARAMETROS!$G$88)*(1+PARAMETROS!$H$88)^(R85-1) -> 12903098.18 | S87: =S77*(1+PARAMETROS!$G$88)*(1+PARAMETROS!$H$88)^S85 -> 13673785.42 | T87: =T77*(1+PARAMETROS!$G$88)*(1+PARAMETROS!$H$88)^(T85-1) -> 14048285.04 | U87: =U77*(1+PARAMETROS!$G$88)*(1+PARAMETROS!$H$88)^U85 -> 15005465.16 | V87: =V77*(1+PARAMETROS!$G$88)*(1+PARAMETROS!$H$88)^(V85-1) -> 15395094.57 | W87: =W77*(1+PARAMETROS!$G$88)*(1+PARAMETROS!$H$88)^W85 -> 16422426.83 | X87: =X77*(1+PARAMETROS!$G$88)*(1+PARAMETROS!$H$88)^(X85-1) -> 16827797.27 | Y87: =Y77*(1+PARAMETROS!$G$88)*(1+PARAMETROS!$H$88)^Y85 -> 17507640.28 | Z87: =Z77*(1+PARAMETROS!$G$88)*(1+PARAMETROS!$H$88)^(Z85-1) -> 17507640.28 | AA87: =AA77*(1+PARAMETROS!$G$88)*(1+PARAMETROS!$H$88)^AA85 -> 18214948.95 | AB87: =AB77*(1+PARAMETROS!$G$88)*(1+PARAMETROS!$H$88)^(AB85-1) -> 18214948.95 | AC87: =AC77*(1+PARAMETROS!$G$88)*(1+PARAMETROS!$H$88)^AC85 -> 18950832.88 | AD87: =AD77*(1+PARAMETROS!$G$88)*(1+PARAMETROS!$H$88)^(AD85-1) -> 18950832.88 | AE87: =AE77*(1+PARAMETROS!$G$88)*(1+PARAMETROS!$H$88)^AE85 -> 19716446.53 | AF87: =AF77*(1+PARAMETROS!$G$88)*(1+PARAMETROS!$H$88)^(AF85-1) -> 19716446.53 | AG87: =AG77*(1+PARAMETROS!$G$88)*(1+PARAMETROS!$H$88)^AG85 -> 20512990.97 | AH87: =AH77*(1+PARAMETROS!$G$88)*(1+PARAMETROS!$H$88)^(AH85-1) -> 20512990.97 | AI87: =AI77*(1+PARAMETROS!$G$88)*(1+PARAMETROS!$H$88)^AI85 -> 21341715.81 | AJ87: =AJ77*(1+PARAMETROS!$G$88)*(1+PARAMETROS!$H$88)^(AJ85-1) -> 21341715.81 | AK87: =AK77*(1+PARAMETROS!$G$88)*(1+PARAMETROS!$H$88)^AK85 -> 22203921.13 | AL87: =AL77*(1+PARAMETROS!$G$88)*(1+PARAMETROS!$H$88)^(AL85-1) -> 22203921.13 | AM87: =AM77*(1+PARAMETROS!$G$88)*(1+PARAMETROS!$H$88)^AM85 -> 23100959.54 | AN87: =AN77*(1+PARAMETROS!$G$88)*(1+PARAMETROS!$H$88)^(AN85-1) -> 23100959.54 | AO87: =AO77*(1+PARAMETROS!$G$88)*(1+PARAMETROS!$H$88)^AO85 -> 24034238.3 | AP87: =AP77*(1+PARAMETROS!$G$88)*(1+PARAMETROS!$H$88)^(AP85-1) -> 24034238.3 | AQ87: =AQ77*(1+PARAMETROS!$G$88)*(1+PARAMETROS!$H$88)^AQ85 -> 25005221.53
B88: Tarifa 3 | C88: =C78 -> 7559904.169 | D88: =D78*(1) -> 10079872.23 | E88: =E78*(1+PARAMETROS!$G$88)*(1+PARAMETROS!$H$88)^E85 -> 10717253.66 | F88: =F78*(1+PARAMETROS!$G$88)*(1+PARAMETROS!$H$88)^(F85-1) -> 10896000.91 | G88: =G78*(1+PARAMETROS!$G$88)*(1+PARAMETROS!$H$88)^G85 -> 11522167.99 | H88: =H78*(1+PARAMETROS!$G$88)*(1+PARAMETROS!$H$88)^(H85-1) -> 11708136.63 | I88: =I78*(1+PARAMETROS!$G$88)*(1+PARAMETROS!$H$88)^I85 -> 12374627.12 | J88: =J78*(1+PARAMETROS!$G$88)*(1+PARAMETROS!$H$88)^(J85-1) -> 12550481.88 | K88: =K78*(1+PARAMETROS!$G$88)*(1+PARAMETROS!$H$88)^K85 -> 13240480.65 | L88: =L78*(1+PARAMETROS!$G$88)*(1+PARAMETROS!$H$88)^(L85-1) -> 13423439.95 | M88: =M78*(1+PARAMETROS!$G$88)*(1+PARAMETROS!$H$88)^M85 -> 14156097.77 | N88: =N78*(1+PARAMETROS!$G$88)*(1+PARAMETROS!$H$88)^(N85-1) -> 14346448.63 | O88: =O78*(1+PARAMETROS!$G$88)*(1+PARAMETROS!$H$88)^O85 -> 15210842.73 | P88: =P78*(1+PARAMETROS!$G$88)*(1+PARAMETROS!$H$88)^(P85-1) -> 15495640.3 | Q88: =Q78*(1+PARAMETROS!$G$88)*(1+PARAMETROS!$H$88)^Q85 -> 16417967.56 | R88: =R78*(1+PARAMETROS!$G$88)*(1+PARAMETROS!$H$88)^(R85-1) -> 16714270.96 | S88: =S78*(1+PARAMETROS!$G$88)*(1+PARAMETROS!$H$88)^S85 -> 17697801.56 | T88: =T78*(1+PARAMETROS!$G$88)*(1+PARAMETROS!$H$88)^(T85-1) -> 18187989.66 | U88: =U78*(1+PARAMETROS!$G$88)*(1+PARAMETROS!$H$88)^U85 -> 19432776.15 | V88: =V78*(1+PARAMETROS!$G$88)*(1+PARAMETROS!$H$88)^(V85-1) -> 19942767.85 | W88: =W78*(1+PARAMETROS!$G$88)*(1+PARAMETROS!$H$88)^W85 -> 21279051.05 | X88: =X78*(1+PARAMETROS!$G$88)*(1+PARAMETROS!$H$88)^(X85-1) -> 21809646.42 | Y88: =Y78*(1+PARAMETROS!$G$88)*(1+PARAMETROS!$H$88)^Y85 -> 22690756.13 | Z88: =Z78*(1+PARAMETROS!$G$88)*(1+PARAMETROS!$H$88)^(Z85-1) -> 22690756.13 | AA88: =AA78*(1+PARAMETROS!$G$88)*(1+PARAMETROS!$H$88)^AA85 -> 23607462.68 | AB88: =AB78*(1+PARAMETROS!$G$88)*(1+PARAMETROS!$H$88)^(AB85-1) -> 23607462.68 | AC88: =AC78*(1+PARAMETROS!$G$88)*(1+PARAMETROS!$H$88)^AC85 -> 24561204.17 | AD88: =AD78*(1+PARAMETROS!$G$88)*(1+PARAMETROS!$H$88)^(AD85-1) -> 24561204.17 | AE88: =AE78*(1+PARAMETROS!$G$88)*(1+PARAMETROS!$H$88)^AE85 -> 25553476.82 | AF88: =AF78*(1+PARAMETROS!$G$88)*(1+PARAMETROS!$H$88)^(AF85-1) -> 25553476.82 | AG88: =AG78*(1+PARAMETROS!$G$88)*(1+PARAMETROS!$H$88)^AG85 -> 26585837.28 | AH88: =AH78*(1+PARAMETROS!$G$88)*(1+PARAMETROS!$H$88)^(AH85-1) -> 26585837.28 | AI88: =AI78*(1+PARAMETROS!$G$88)*(1+PARAMETROS!$H$88)^AI85 -> 27659905.11 | AJ88: =AJ78*(1+PARAMETROS!$G$88)*(1+PARAMETROS!$H$88)^(AJ85-1) -> 27659905.11 | AK88: =AK78*(1+PARAMETROS!$G$88)*(1+PARAMETROS!$H$88)^AK85 -> 28777365.28 | AL88: =AL78*(1+PARAMETROS!$G$88)*(1+PARAMETROS!$H$88)^(AL85-1) -> 28777365.28 | AM88: =AM78*(1+PARAMETROS!$G$88)*(1+PARAMETROS!$H$88)^AM85 -> 29939970.83 | AN88: =AN78*(1+PARAMETROS!$G$88)*(1+PARAMETROS!$H$88)^(AN85-1) -> 29939970.83 | AO88: =AO78*(1+PARAMETROS!$G$88)*(1+PARAMETROS!$H$88)^AO85 -> 31149545.66 | AP88: =AP78*(1+PARAMETROS!$G$88)*(1+PARAMETROS!$H$88)^(AP85-1) -> 31149545.66 | AQ88: =AQ78*(1+PARAMETROS!$G$88)*(1+PARAMETROS!$H$88)^AQ85 -> 32407987.3
B89: Tarifa 4 | C89: =C79 -> 9284214.704 | D89: =D79*(1) -> 12378952.94 | E89: =E79*(1+PARAMETROS!$G$88)*(1+PARAMETROS!$H$88)^E85 -> 13155946.25 | F89: =F79*(1+PARAMETROS!$G$88)*(1+PARAMETROS!$H$88)^(F85-1) -> 13369697.19 | G89: =G79*(1+PARAMETROS!$G$88)*(1+PARAMETROS!$H$88)^G85 -> 14132219.45 | H89: =H79*(1+PARAMETROS!$G$88)*(1+PARAMETROS!$H$88)^(H85-1) -> 14354605.94 | I89: =I79*(1+PARAMETROS!$G$88)*(1+PARAMETROS!$H$88)^I85 -> 15165902.92 | J89: =J79*(1+PARAMETROS!$G$88)*(1+PARAMETROS!$H$88)^(J85-1) -> 15386056.51 | K89: =K79*(1+PARAMETROS!$G$88)*(1+PARAMETROS!$H$88)^K85 -> 16236701 | L89: =L79*(1+PARAMETROS!$G$88)*(1+PARAMETROS!$H$88)^(L85-1) -> 16465748.8 | M89: =M79*(1+PARAMETROS!$G$88)*(1+PARAMETROS!$H$88)^M85 -> 17369266.38 | N89: =N79*(1+PARAMETROS!$G$88)*(1+PARAMETROS!$H$88)^(N85-1) -> 17607567.71 | O89: =O79*(1+PARAMETROS!$G$88)*(1+PARAMETROS!$H$88)^O85 -> 18656261.37 | P89: =P79*(1+PARAMETROS!$G$88)*(1+PARAMETROS!$H$88)^(P85-1) -> 18993609.29 | Q89: =Q79*(1+PARAMETROS!$G$88)*(1+PARAMETROS!$H$88)^Q85 -> 20111927.88 | R89: =R79*(1+PARAMETROS!$G$88)*(1+PARAMETROS!$H$88)^(R85-1) -> 20462904.66 | S89: =S79*(1+PARAMETROS!$G$88)*(1+PARAMETROS!$H$88)^S85 -> 21654762.24 | T89: =T79*(1+PARAMETROS!$G$88)*(1+PARAMETROS!$H$88)^(T85-1) -> 22235359.46 | U89: =U79*(1+PARAMETROS!$G$88)*(1+PARAMETROS!$H$88)^U85 -> 23737721.33 | V89: =V79*(1+PARAMETROS!$G$88)*(1+PARAMETROS!$H$88)^(V85-1) -> 24341774.67 | W89: =W79*(1+PARAMETROS!$G$88)*(1+PARAMETROS!$H$88)^W85 -> 25953639.47 | X89: =X79*(1+PARAMETROS!$G$88)*(1+PARAMETROS!$H$88)^(X85-1) -> 26582096.57 | Y89: =Y79*(1+PARAMETROS!$G$88)*(1+PARAMETROS!$H$88)^Y85 -> 27656013.27 | Z89: =Z79*(1+PARAMETROS!$G$88)*(1+PARAMETROS!$H$88)^(Z85-1) -> 27656013.27 | AA89: =AA79*(1+PARAMETROS!$G$88)*(1+PARAMETROS!$H$88)^AA85 -> 28773316.21 | AB89: =AB79*(1+PARAMETROS!$G$88)*(1+PARAMETROS!$H$88)^(AB85-1) -> 28773316.21 | AC89: =AC79*(1+PARAMETROS!$G$88)*(1+PARAMETROS!$H$88)^AC85 -> 29935758.18 | AD89: =AD79*(1+PARAMETROS!$G$88)*(1+PARAMETROS!$H$88)^(AD85-1) -> 29935758.18 | AE89: =AE79*(1+PARAMETROS!$G$88)*(1+PARAMETROS!$H$88)^AE85 -> 31145162.81 | AF89: =AF79*(1+PARAMETROS!$G$88)*(1+PARAMETROS!$H$88)^(AF85-1) -> 31145162.81 | AG89: =AG79*(1+PARAMETROS!$G$88)*(1+PARAMETROS!$H$88)^AG85 -> 32403427.39 | AH89: =AH79*(1+PARAMETROS!$G$88)*(1+PARAMETROS!$H$88)^(AH85-1) -> 32403427.39 | AI89: =AI79*(1+PARAMETROS!$G$88)*(1+PARAMETROS!$H$88)^AI85 -> 33712525.86 | AJ89: =AJ79*(1+PARAMETROS!$G$88)*(1+PARAMETROS!$H$88)^(AJ85-1) -> 33712525.86 | AK89: =AK79*(1+PARAMETROS!$G$88)*(1+PARAMETROS!$H$88)^AK85 -> 35074511.9 | AL89: =AL79*(1+PARAMETROS!$G$88)*(1+PARAMETROS!$H$88)^(AL85-1) -> 35074511.9 | AM89: =AM79*(1+PARAMETROS!$G$88)*(1+PARAMETROS!$H$88)^AM85 -> 36491522.18 | AN89: =AN79*(1+PARAMETROS!$G$88)*(1+PARAMETROS!$H$88)^(AN85-1) -> 36491522.18 | AO89: =AO79*(1+PARAMETROS!$G$88)*(1+PARAMETROS!$H$88)^AO85 -> 37965779.68 | AP89: =AP79*(1+PARAMETROS!$G$88)*(1+PARAMETROS!$H$88)^(AP85-1) -> 37965779.68 | AQ89: =AQ79*(1+PARAMETROS!$G$88)*(1+PARAMETROS!$H$88)^AQ85 -> 39499597.18
B90: Tarifa 5 | C90: =C80 -> 10981245.3 | D90: =D80*(1) -> 14641660.4 | E90: =E80*(1+PARAMETROS!$G$88)*(1+PARAMETROS!$H$88)^E85 -> 15548912.68 | F90: =F80*(1+PARAMETROS!$G$88)*(1+PARAMETROS!$H$88)^(F85-1) -> 15789969.4 | G90: =G80*(1+PARAMETROS!$G$88)*(1+PARAMETROS!$H$88)^G85 -> 16678679.58 | H90: =H80*(1+PARAMETROS!$G$88)*(1+PARAMETROS!$H$88)^(H85-1) -> 16929474.99 | I90: =I80*(1+PARAMETROS!$G$88)*(1+PARAMETROS!$H$88)^I85 -> 17874353.33 | J90: =J80*(1+PARAMETROS!$G$88)*(1+PARAMETROS!$H$88)^(J85-1) -> 18127482 | K90: =K80*(1+PARAMETROS!$G$88)*(1+PARAMETROS!$H$88)^K85 -> 19123187.33 | L90: =L80*(1+PARAMETROS!$G$88)*(1+PARAMETROS!$H$88)^(L85-1) -> 19386542.39 | M90: =M80*(1+PARAMETROS!$G$88)*(1+PARAMETROS!$H$88)^M85 -> 20443753.31 | N90: =N80*(1+PARAMETROS!$G$88)*(1+PARAMETROS!$H$88)^(N85-1) -> 20717747.92 | O90: =O80*(1+PARAMETROS!$G$88)*(1+PARAMETROS!$H$88)^O85 -> 21944607.68 | P90: =P80*(1+PARAMETROS!$G$88)*(1+PARAMETROS!$H$88)^(P85-1) -> 22334470.43 | Q90: =Q80*(1+PARAMETROS!$G$88)*(1+PARAMETROS!$H$88)^Q85 -> 23642396.23 | R90: =R80*(1+PARAMETROS!$G$88)*(1+PARAMETROS!$H$88)^(R85-1) -> 24048009.43 | S90: =S80*(1+PARAMETROS!$G$88)*(1+PARAMETROS!$H$88)^S85 -> 25441548.99 | T90: =T80*(1+PARAMETROS!$G$88)*(1+PARAMETROS!$H$88)^(T85-1) -> 26109783.7 | U90: =U80*(1+PARAMETROS!$G$88)*(1+PARAMETROS!$H$88)^U85 -> 27859850.36 | V90: =V80*(1+PARAMETROS!$G$88)*(1+PARAMETROS!$H$88)^(V85-1) -> 28555081.76 | W90: =W80*(1+PARAMETROS!$G$88)*(1+PARAMETROS!$H$88)^W85 -> 30432025.81 | X90: =X80*(1+PARAMETROS!$G$88)*(1+PARAMETROS!$H$88)^(X85-1) -> 31155344.55 | Y90: =Y80*(1+PARAMETROS!$G$88)*(1+PARAMETROS!$H$88)^Y85 -> 32414020.47 | Z90: =Z80*(1+PARAMETROS!$G$88)*(1+PARAMETROS!$H$88)^(Z85-1) -> 32414020.47 | AA90: =AA80*(1+PARAMETROS!$G$88)*(1+PARAMETROS!$H$88)^AA85 -> 33723546.9 | AB90: =AB80*(1+PARAMETROS!$G$88)*(1+PARAMETROS!$H$88)^(AB85-1) -> 33723546.9 | AC90: =AC80*(1+PARAMETROS!$G$88)*(1+PARAMETROS!$H$88)^AC85 -> 35085978.2 | AD90: =AD80*(1+PARAMETROS!$G$88)*(1+PARAMETROS!$H$88)^(AD85-1) -> 35085978.2 | AE90: =AE80*(1+PARAMETROS!$G$88)*(1+PARAMETROS!$H$88)^AE85 -> 36503451.72 | AF90: =AF80*(1+PARAMETROS!$G$88)*(1+PARAMETROS!$H$88)^(AF85-1) -> 36503451.72 | AG90: =AG80*(1+PARAMETROS!$G$88)*(1+PARAMETROS!$H$88)^AG85 -> 37978191.17 | AH90: =AH80*(1+PARAMETROS!$G$88)*(1+PARAMETROS!$H$88)^(AH85-1) -> 37978191.17 | AI90: =AI80*(1+PARAMETROS!$G$88)*(1+PARAMETROS!$H$88)^AI85 -> 39512510.09 | AJ90: =AJ80*(1+PARAMETROS!$G$88)*(1+PARAMETROS!$H$88)^(AJ85-1) -> 39512510.09 | AK90: =AK80*(1+PARAMETROS!$G$88)*(1+PARAMETROS!$H$88)^AK85 -> 41108815.5 | AL90: =AL80*(1+PARAMETROS!$G$88)*(1+PARAMETROS!$H$88)^(AL85-1) -> 41108815.5 | AM90: =AM80*(1+PARAMETROS!$G$88)*(1+PARAMETROS!$H$88)^AM85 -> 42769611.64 | AN90: =AN80*(1+PARAMETROS!$G$88)*(1+PARAMETROS!$H$88)^(AN85-1) -> 42769611.64 | AO90: =AO80*(1+PARAMETROS!$G$88)*(1+PARAMETROS!$H$88)^AO85 -> 44497503.95 | AP90: =AP80*(1+PARAMETROS!$G$88)*(1+PARAMETROS!$H$88)^(AP85-1) -> 44497503.95 | AQ90: =AQ80*(1+PARAMETROS!$G$88)*(1+PARAMETROS!$H$88)^AQ85 -> 46295203.11
B93: Ingresos anuales en precios actualizados (hipotesis de inflacion alta)
B94: Año | C94: 2019 | D94: 2020 | E94: 2021 | F94: 2022 | G94: 2023 | H94: 2024 | I94: 2025 | J94: 2026 | K94: 2027 | L94: 2028 | M94: 2029 | N94: 2030 | O94: 2031 | P94: 2032 | Q94: 2033 | R94: 2034 | S94: 2035 | T94: 2036 | U94: 2037 | V94: 2038 | W94: 2039 | X94: 2040 | Y94: 2041 | Z94: 2042 | AA94: 2043 | AB94: 2044 | AC94: 2045 | AD94: 2046 | AE94: 2047 | AF94: 2048 | AG94: 2049 | AH94: 2050 | AI94: 2051 | AJ94: 2052 | AK94: 2053 | AL94: 2054 | AM94: 2055 | AN94: 2056 | AO94: 2057 | AP94: 2058 | AQ94: 2059
E95: 1 | F95: 2 | G95: 3 | H95: 4 | I95: 5 | J95: 6 | K95: 7 | L95: 8 | M95: 9 | N95: 10 | O95: 11 | P95: 12 | Q95: 13 | R95: 14 | S95: 15 | T95: 16 | U95: 17 | V95: 18 | W95: 19 | X95: 20 | Y95: 21 | Z95: 22 | AA95: 23 | AB95: 24 | AC95: 25 | AD95: 26 | AE95: 27 | AF95: 28 | AG95: 29 | AH95: 30 | AI95: 31 | AJ95: 32 | AK95: 33 | AL95: 34 | AM95: 35 | AN95: 36 | AO95: 37 | AP95: 38 | AQ95: 39
B96: Tarifa 1 | C96: =C76 -> 4656894 | D96: =D76*(1) -> 6209192 | E96: =E76*(1+PARAMETROS!$G$89)*(1+PARAMETROS!$H$89)^E95 -> 6868158.844 | F96: =F76*(1+PARAMETROS!$G$89)*(1+PARAMETROS!$H$89)^(F95-1) -> 6988167.822 | G96: =G76*(1+PARAMETROS!$G$89)*(1+PARAMETROS!$H$89)^G95 -> 7688204.028 | H96: =H76*(1+PARAMETROS!$G$89)*(1+PARAMETROS!$H$89)^(H95-1) -> 7818005.739 | I96: =I76*(1+PARAMETROS!$G$89)*(1+PARAMETROS!$H$89)^I95 -> 8596348.537 | J96: =J76*(1+PARAMETROS!$G$89)*(1+PARAMETROS!$H$89)^(J95-1) -> 8734856.83 | K96: =K76*(1+PARAMETROS!$G$89)*(1+PARAMETROS!$H$89)^K95 -> 9597431.717 | L96: =L76*(1+PARAMETROS!$G$89)*(1+PARAMETROS!$H$89)^(L95-1) -> 9747242.286 | M96: =M76*(1+PARAMETROS!$G$89)*(1+PARAMETROS!$H$89)^M95 -> 10704652.37 | N96: =N76*(1+PARAMETROS!$G$89)*(1+PARAMETROS!$H$89)^(N95-1) -> 10866687.48 | O96: =O76*(1+PARAMETROS!$G$89)*(1+PARAMETROS!$H$89)^O95 -> 11990638.15 | P96: =P76*(1+PARAMETROS!$G$89)*(1+PARAMETROS!$H$89)^(P95-1) -> 12227867.12 | Q96: =Q76*(1+PARAMETROS!$G$89)*(1+PARAMETROS!$H$89)^Q95 -> 13482247.92 | R96: =R76*(1+PARAMETROS!$G$89)*(1+PARAMETROS!$H$89)^(R95-1) -> 13738834.78 | S96: =S76*(1+PARAMETROS!$G$89)*(1+PARAMETROS!$H$89)^S95 -> 15137448.03 | T96: =T76*(1+PARAMETROS!$G$89)*(1+PARAMETROS!$H$89)^(T95-1) -> 15568765.56 | U96: =U76*(1+PARAMETROS!$G$89)*(1+PARAMETROS!$H$89)^U95 -> 17305689.86 | V96: =V76*(1+PARAMETROS!$G$89)*(1+PARAMETROS!$H$89)^(V95-1) -> 17772202.9 | W96: =W76*(1+PARAMETROS!$G$89)*(1+PARAMETROS!$H$89)^W95 -> 19726995.16 | X96: =X76*(1+PARAMETROS!$G$89)*(1+PARAMETROS!$H$89)^(X95-1) -> 20231575.65 | Y96: =Y76*(1+PARAMETROS!$G$89)*(1+PARAMETROS!$H$89)^Y95 -> 21882472.23 | Z96: =Z76*(1+PARAMETROS!$G$89)*(1+PARAMETROS!$H$89)^(Z95-1) -> 21882472.23 | AA96: =AA76*(1+PARAMETROS!$G$89)*(1+PARAMETROS!$H$89)^AA95 -> 23668081.96 | AB96: =AB76*(1+PARAMETROS!$G$89)*(1+PARAMETROS!$H$89)^(AB95-1) -> 23668081.96 | AC96: =AC76*(1+PARAMETROS!$G$89)*(1+PARAMETROS!$H$89)^AC95 -> 25599397.45 | AD96: =AD76*(1+PARAMETROS!$G$89)*(1+PARAMETROS!$H$89)^(AD95-1) -> 25599397.45 | AE96: =AE76*(1+PARAMETROS!$G$89)*(1+PARAMETROS!$H$89)^AE95 -> 27688308.28 | AF96: =AF76*(1+PARAMETROS!$G$89)*(1+PARAMETROS!$H$89)^(AF95-1) -> 27688308.28 | AG96: =AG76*(1+PARAMETROS!$G$89)*(1+PARAMETROS!$H$89)^AG95 -> 29947674.24 | AH96: =AH76*(1+PARAMETROS!$G$89)*(1+PARAMETROS!$H$89)^(AH95-1) -> 29947674.24 | AI96: =AI76*(1+PARAMETROS!$G$89)*(1+PARAMETROS!$H$89)^AI95 -> 32391404.45 | AJ96: =AJ76*(1+PARAMETROS!$G$89)*(1+PARAMETROS!$H$89)^(AJ95-1) -> 32391404.45 | AK96: =AK76*(1+PARAMETROS!$G$89)*(1+PARAMETROS!$H$89)^AK95 -> 35034543.06 | AL96: =AL76*(1+PARAMETROS!$G$89)*(1+PARAMETROS!$H$89)^(AL95-1) -> 35034543.06 | AM96: =AM76*(1+PARAMETROS!$G$89)*(1+PARAMETROS!$H$89)^AM95 -> 37893361.77 | AN96: =AN76*(1+PARAMETROS!$G$89)*(1+PARAMETROS!$H$89)^(AN95-1) -> 37893361.77 | AO96: =AO76*(1+PARAMETROS!$G$89)*(1+PARAMETROS!$H$89)^AO95 -> 40985460.09 | AP96: =AP76*(1+PARAMETROS!$G$89)*(1+PARAMETROS!$H$89)^(AP95-1) -> 40985460.09 | AQ96: =AQ76*(1+PARAMETROS!$G$89)*(1+PARAMETROS!$H$89)^AQ95 -> 44329873.64
B97: Tarifa 2 | C97: =C77 -> 5773390.678 | D97: =D77*(1) -> 7697854.238 | E97: =E77*(1+PARAMETROS!$G$89)*(1+PARAMETROS!$H$89)^E95 -> 8509147.886 | F97: =F77*(1+PARAMETROS!$G$89)*(1+PARAMETROS!$H$89)^(F95-1) -> 8652267.786 | G97: =G77*(1+PARAMETROS!$G$89)*(1+PARAMETROS!$H$89)^G95 -> 9513091.321 | H97: =H77*(1+PARAMETROS!$G$89)*(1+PARAMETROS!$H$89)^(H95-1) -> 9667889.805 | I97: =I77*(1+PARAMETROS!$G$89)*(1+PARAMETROS!$H$89)^I95 -> 10624219.65 | J97: =J77*(1+PARAMETROS!$G$89)*(1+PARAMETROS!$H$89)^(J95-1) -> 10789953.16 | K97: =K77*(1+PARAMETROS!$G$89)*(1+PARAMETROS!$H$89)^K95 -> 11849670.69 | L97: =L77*(1+PARAMETROS!$G$89)*(1+PARAMETROS!$H$89)^(L95-1) -> 12028928.05 | M97: =M77*(1+PARAMETROS!$G$89)*(1+PARAMETROS!$H$89)^M95 -> 13204373.34 | N97: =N77*(1+PARAMETROS!$G$89)*(1+PARAMETROS!$H$89)^(N95-1) -> 13398258.09 | O97: =O77*(1+PARAMETROS!$G$89)*(1+PARAMETROS!$H$89)^O95 -> 14782397.63 | P97: =P77*(1+PARAMETROS!$G$89)*(1+PARAMETROS!$H$89)^(P95-1) -> 15073239.3 | Q97: =Q77*(1+PARAMETROS!$G$89)*(1+PARAMETROS!$H$89)^Q95 -> 16617789.99 | R97: =R77*(1+PARAMETROS!$G$89)*(1+PARAMETROS!$H$89)^(R95-1) -> 16932364.34 | S97: =S77*(1+PARAMETROS!$G$89)*(1+PARAMETROS!$H$89)^S95 -> 18654288.89 | T97: =T77*(1+PARAMETROS!$G$89)*(1+PARAMETROS!$H$89)^(T95-1) -> 19165195.27 | U97: =U77*(1+PARAMETROS!$G$89)*(1+PARAMETROS!$H$89)^U95 -> 21281671.55 | V97: =V77*(1+PARAMETROS!$G$89)*(1+PARAMETROS!$H$89)^(V95-1) -> 21834267.88 | W97: =W77*(1+PARAMETROS!$G$89)*(1+PARAMETROS!$H$89)^W95 -> 24213632.34 | X97: =X77*(1+PARAMETROS!$G$89)*(1+PARAMETROS!$H$89)^(X95-1) -> 24811320.54 | Y97: =Y77*(1+PARAMETROS!$G$89)*(1+PARAMETROS!$H$89)^Y95 -> 26835924.3 | Z97: =Z77*(1+PARAMETROS!$G$89)*(1+PARAMETROS!$H$89)^(Z95-1) -> 26835924.3 | AA97: =AA77*(1+PARAMETROS!$G$89)*(1+PARAMETROS!$H$89)^AA95 -> 29025735.72 | AB97: =AB77*(1+PARAMETROS!$G$89)*(1+PARAMETROS!$H$89)^(AB95-1) -> 29025735.72 | AC97: =AC77*(1+PARAMETROS!$G$89)*(1+PARAMETROS!$H$89)^AC95 -> 31394235.76 | AD97: =AD77*(1+PARAMETROS!$G$89)*(1+PARAMETROS!$H$89)^(AD95-1) -> 31394235.76 | AE97: =AE77*(1+PARAMETROS!$G$89)*(1+PARAMETROS!$H$89)^AE95 -> 33956005.39 | AF97: =AF77*(1+PARAMETROS!$G$89)*(1+PARAMETROS!$H$89)^(AF95-1) -> 33956005.39 | AG97: =AG77*(1+PARAMETROS!$G$89)*(1+PARAMETROS!$H$89)^AG95 -> 36726815.43 | AH97: =AH77*(1+PARAMETROS!$G$89)*(1+PARAMETROS!$H$89)^(AH95-1) -> 36726815.43 | AI97: =AI77*(1+PARAMETROS!$G$89)*(1+PARAMETROS!$H$89)^AI95 -> 39723723.57 | AJ97: =AJ77*(1+PARAMETROS!$G$89)*(1+PARAMETROS!$H$89)^(AJ95-1) -> 39723723.57 | AK97: =AK77*(1+PARAMETROS!$G$89)*(1+PARAMETROS!$H$89)^AK95 -> 42965179.42 | AL97: =AL77*(1+PARAMETROS!$G$89)*(1+PARAMETROS!$H$89)^(AL95-1) -> 42965179.42 | AM97: =AM77*(1+PARAMETROS!$G$89)*(1+PARAMETROS!$H$89)^AM95 -> 46471138.06 | AN97: =AN77*(1+PARAMETROS!$G$89)*(1+PARAMETROS!$H$89)^(AN95-1) -> 46471138.06 | AO97: =AO77*(1+PARAMETROS!$G$89)*(1+PARAMETROS!$H$89)^AO95 -> 50263182.92 | AP97: =AP77*(1+PARAMETROS!$G$89)*(1+PARAMETROS!$H$89)^(AP95-1) -> 50263182.92 | AQ97: =AQ77*(1+PARAMETROS!$G$89)*(1+PARAMETROS!$H$89)^AQ95 -> 54364658.65
B98: Tarifa 3 | C98: =C78 -> 7559904.169 | D98: =D78*(1) -> 10079872.23 | E98: =E78*(1+PARAMETROS!$G$89)*(1+PARAMETROS!$H$89)^E95 -> 11140613.37 | F98: =F78*(1+PARAMETROS!$G$89)*(1+PARAMETROS!$H$89)^(F95-1) -> 11326421.61 | G98: =G78*(1+PARAMETROS!$G$89)*(1+PARAMETROS!$H$89)^G95 -> 12451627.8 | H98: =H78*(1+PARAMETROS!$G$89)*(1+PARAMETROS!$H$89)^(H95-1) -> 12652597.99 | I98: =I78*(1+PARAMETROS!$G$89)*(1+PARAMETROS!$H$89)^I95 -> 13902419.34 | J98: =J78*(1+PARAMETROS!$G$89)*(1+PARAMETROS!$H$89)^(J95-1) -> 14099985.43 | K98: =K78*(1+PARAMETROS!$G$89)*(1+PARAMETROS!$H$89)^K95 -> 15464231.72 | L98: =L78*(1+PARAMETROS!$G$89)*(1+PARAMETROS!$H$89)^(L95-1) -> 15677919.21 | M98: =M78*(1+PARAMETROS!$G$89)*(1+PARAMETROS!$H$89)^M95 -> 17188361.79 | N98: =N78*(1+PARAMETROS!$G$89)*(1+PARAMETROS!$H$89)^(N95-1) -> 17419486.17 | O98: =O78*(1+PARAMETROS!$G$89)*(1+PARAMETROS!$H$89)^O95 -> 19200411.82 | P98: =P78*(1+PARAMETROS!$G$89)*(1+PARAMETROS!$H$89)^(P95-1) -> 19559907.4 | Q98: =Q78*(1+PARAMETROS!$G$89)*(1+PARAMETROS!$H$89)^Q95 -> 21544826.26 | R98: =R78*(1+PARAMETROS!$G$89)*(1+PARAMETROS!$H$89)^(R95-1) -> 21933656.68 | S98: =S78*(1+PARAMETROS!$G$89)*(1+PARAMETROS!$H$89)^S95 -> 24144002.04 | T98: =T78*(1+PARAMETROS!$G$89)*(1+PARAMETROS!$H$89)^(T95-1) -> 24812734.97 | U98: =U78*(1+PARAMETROS!$G$89)*(1+PARAMETROS!$H$89)^U95 -> 27560755.68 | V98: =V78*(1+PARAMETROS!$G$89)*(1+PARAMETROS!$H$89)^(V95-1) -> 28284057.21 | W98: =W78*(1+PARAMETROS!$G$89)*(1+PARAMETROS!$H$89)^W95 -> 31374359.22 | X98: =X78*(1+PARAMETROS!$G$89)*(1+PARAMETROS!$H$89)^(X95-1) -> 32156682.16 | Y98: =Y78*(1+PARAMETROS!$G$89)*(1+PARAMETROS!$H$89)^Y95 -> 34780667.42 | Z98: =Z78*(1+PARAMETROS!$G$89)*(1+PARAMETROS!$H$89)^(Z95-1) -> 34780667.42 | AA98: =AA78*(1+PARAMETROS!$G$89)*(1+PARAMETROS!$H$89)^AA95 -> 37618769.88 | AB98: =AB78*(1+PARAMETROS!$G$89)*(1+PARAMETROS!$H$89)^(AB95-1) -> 37618769.88 | AC98: =AC78*(1+PARAMETROS!$G$89)*(1+PARAMETROS!$H$89)^AC95 -> 40688461.5 | AD98: =AD78*(1+PARAMETROS!$G$89)*(1+PARAMETROS!$H$89)^(AD95-1) -> 40688461.5 | AE98: =AE78*(1+PARAMETROS!$G$89)*(1+PARAMETROS!$H$89)^AE95 -> 44008639.96 | AF98: =AF78*(1+PARAMETROS!$G$89)*(1+PARAMETROS!$H$89)^(AF95-1) -> 44008639.96 | AG98: =AG78*(1+PARAMETROS!$G$89)*(1+PARAMETROS!$H$89)^AG95 -> 47599744.98 | AH98: =AH78*(1+PARAMETROS!$G$89)*(1+PARAMETROS!$H$89)^(AH95-1) -> 47599744.98 | AI98: =AI78*(1+PARAMETROS!$G$89)*(1+PARAMETROS!$H$89)^AI95 -> 51483884.17 | AJ98: =AJ78*(1+PARAMETROS!$G$89)*(1+PARAMETROS!$H$89)^(AJ95-1) -> 51483884.17 | AK98: =AK78*(1+PARAMETROS!$G$89)*(1+PARAMETROS!$H$89)^AK95 -> 55684969.12 | AL98: =AL78*(1+PARAMETROS!$G$89)*(1+PARAMETROS!$H$89)^(AL95-1) -> 55684969.12 | AM98: =AM78*(1+PARAMETROS!$G$89)*(1+PARAMETROS!$H$89)^AM95 -> 60228862.6 | AN98: =AN78*(1+PARAMETROS!$G$89)*(1+PARAMETROS!$H$89)^(AN95-1) -> 60228862.6 | AO98: =AO78*(1+PARAMETROS!$G$89)*(1+PARAMETROS!$H$89)^AO95 -> 65143537.79 | AP98: =AP78*(1+PARAMETROS!$G$89)*(1+PARAMETROS!$H$89)^(AP95-1) -> 65143537.79 | AQ98: =AQ78*(1+PARAMETROS!$G$89)*(1+PARAMETROS!$H$89)^AQ95 -> 70459250.47
B99: Tarifa 4 | C99: =C79 -> 9284214.704 | D99: =D79*(1) -> 12378952.94 | E99: =E79*(1+PARAMETROS!$G$89)*(1+PARAMETROS!$H$89)^E95 -> 13675640.73 | F99: =F79*(1+PARAMETROS!$G$89)*(1+PARAMETROS!$H$89)^(F95-1) -> 13897835.4 | G99: =G79*(1+PARAMETROS!$G$89)*(1+PARAMETROS!$H$89)^G95 -> 15272224.53 | H99: =H79*(1+PARAMETROS!$G$89)*(1+PARAMETROS!$H$89)^(H95-1) -> 15512550.29 | I99: =I79*(1+PARAMETROS!$G$89)*(1+PARAMETROS!$H$89)^I95 -> 17038310.73 | J99: =J79*(1+PARAMETROS!$G$89)*(1+PARAMETROS!$H$89)^(J95-1) -> 17285644.86 | K99: =K79*(1+PARAMETROS!$G$89)*(1+PARAMETROS!$H$89)^K95 -> 18963670.07 | L99: =L79*(1+PARAMETROS!$G$89)*(1+PARAMETROS!$H$89)^(L95-1) -> 19231186.66 | M99: =M79*(1+PARAMETROS!$G$89)*(1+PARAMETROS!$H$89)^M95 -> 21089797.44 | N99: =N79*(1+PARAMETROS!$G$89)*(1+PARAMETROS!$H$89)^(N95-1) -> 21379143.39 | O99: =O79*(1+PARAMETROS!$G$89)*(1+PARAMETROS!$H$89)^O95 -> 23549510.56 | P99: =P79*(1+PARAMETROS!$G$89)*(1+PARAMETROS!$H$89)^(P95-1) -> 23975339.63 | Q99: =Q79*(1+PARAMETROS!$G$89)*(1+PARAMETROS!$H$89)^Q95 -> 26392304.06 | R99: =R79*(1+PARAMETROS!$G$89)*(1+PARAMETROS!$H$89)^(R95-1) -> 26852880.79 | S99: =S79*(1+PARAMETROS!$G$89)*(1+PARAMETROS!$H$89)^S95 -> 29542235.64 | T99: =T79*(1+PARAMETROS!$G$89)*(1+PARAMETROS!$H$89)^(T95-1) -> 30334308.05 | U99: =U79*(1+PARAMETROS!$G$89)*(1+PARAMETROS!$H$89)^U95 -> 33666293.11 | V99: =V79*(1+PARAMETROS!$G$89)*(1+PARAMETROS!$H$89)^(V95-1) -> 34522998.64 | W99: =W79*(1+PARAMETROS!$G$89)*(1+PARAMETROS!$H$89)^W95 -> 38266688.02 | X99: =X79*(1+PARAMETROS!$G$89)*(1+PARAMETROS!$H$89)^(X95-1) -> 39193300.72 | Y99: =Y79*(1+PARAMETROS!$G$89)*(1+PARAMETROS!$H$89)^Y95 -> 42391474.05 | Z99: =Z79*(1+PARAMETROS!$G$89)*(1+PARAMETROS!$H$89)^(Z95-1) -> 42391474.05 | AA99: =AA79*(1+PARAMETROS!$G$89)*(1+PARAMETROS!$H$89)^AA95 -> 45850618.34 | AB99: =AB79*(1+PARAMETROS!$G$89)*(1+PARAMETROS!$H$89)^(AB95-1) -> 45850618.34 | AC99: =AC79*(1+PARAMETROS!$G$89)*(1+PARAMETROS!$H$89)^AC95 -> 49592028.79 | AD99: =AD79*(1+PARAMETROS!$G$89)*(1+PARAMETROS!$H$89)^(AD95-1) -> 49592028.79 | AE99: =AE79*(1+PARAMETROS!$G$89)*(1+PARAMETROS!$H$89)^AE95 -> 53638738.34 | AF99: =AF79*(1+PARAMETROS!$G$89)*(1+PARAMETROS!$H$89)^(AF95-1) -> 53638738.34 | AG99: =AG79*(1+PARAMETROS!$G$89)*(1+PARAMETROS!$H$89)^AG95 -> 58015659.39 | AH99: =AH79*(1+PARAMETROS!$G$89)*(1+PARAMETROS!$H$89)^(AH95-1) -> 58015659.39 | AI99: =AI79*(1+PARAMETROS!$G$89)*(1+PARAMETROS!$H$89)^AI95 -> 62749737.2 | AJ99: =AJ79*(1+PARAMETROS!$G$89)*(1+PARAMETROS!$H$89)^(AJ95-1) -> 62749737.2 | AK99: =AK79*(1+PARAMETROS!$G$89)*(1+PARAMETROS!$H$89)^AK95 -> 67870115.75 | AL99: =AL79*(1+PARAMETROS!$G$89)*(1+PARAMETROS!$H$89)^(AL95-1) -> 67870115.75 | AM99: =AM79*(1+PARAMETROS!$G$89)*(1+PARAMETROS!$H$89)^AM95 -> 73408317.2 | AN99: =AN79*(1+PARAMETROS!$G$89)*(1+PARAMETROS!$H$89)^(AN95-1) -> 73408317.2 | AO99: =AO79*(1+PARAMETROS!$G$89)*(1+PARAMETROS!$H$89)^AO95 -> 79398435.88 | AP99: =AP79*(1+PARAMETROS!$G$89)*(1+PARAMETROS!$H$89)^(AP95-1) -> 79398435.88 | AQ99: =AQ79*(1+PARAMETROS!$G$89)*(1+PARAMETROS!$H$89)^AQ95 -> 85877348.25
B100: Tarifa 5 | C100: =C80 -> 10981245.3 | D100: =D80*(1) -> 14641660.4 | E100: =E80*(1+PARAMETROS!$G$89)*(1+PARAMETROS!$H$89)^E95 -> 16163135.63 | F100: =F80*(1+PARAMETROS!$G$89)*(1+PARAMETROS!$H$89)^(F95-1) -> 16413714.72 | G100: =G80*(1+PARAMETROS!$G$89)*(1+PARAMETROS!$H$89)^G95 -> 18024100.2 | H100: =H80*(1+PARAMETROS!$G$89)*(1+PARAMETROS!$H$89)^(H95-1) -> 18295126.55 | I100: =I80*(1+PARAMETROS!$G$89)*(1+PARAMETROS!$H$89)^I95 -> 20081150.98 | J100: =J80*(1+PARAMETROS!$G$89)*(1+PARAMETROS!$H$89)^(J95-1) -> 20365531.33 | K100: =K80*(1+PARAMETROS!$G$89)*(1+PARAMETROS!$H$89)^K95 -> 22334944.48 | L100: =L80*(1+PARAMETROS!$G$89)*(1+PARAMETROS!$H$89)^(L95-1) -> 22642530.27 | M100: =M80*(1+PARAMETROS!$G$89)*(1+PARAMETROS!$H$89)^M95 -> 24822845.53 | N100: =N80*(1+PARAMETROS!$G$89)*(1+PARAMETROS!$H$89)^(N95-1) -> 25155530.32 | O100: =O80*(1+PARAMETROS!$G$89)*(1+PARAMETROS!$H$89)^O95 -> 27700339.32 | P100: =P80*(1+PARAMETROS!$G$89)*(1+PARAMETROS!$H$89)^(P95-1) -> 28192457.04 | Q100: =Q80*(1+PARAMETROS!$G$89)*(1+PARAMETROS!$H$89)^Q95 -> 31025236.06 | R100: =R80*(1+PARAMETROS!$G$89)*(1+PARAMETROS!$H$89)^(R95-1) -> 31557510.59 | S100: =S80*(1+PARAMETROS!$G$89)*(1+PARAMETROS!$H$89)^S95 -> 34708311.59 | T100: =T80*(1+PARAMETROS!$G$89)*(1+PARAMETROS!$H$89)^(T95-1) -> 35619942.35 | U100: =U80*(1+PARAMETROS!$G$89)*(1+PARAMETROS!$H$89)^U95 -> 39512549.48 | V100: =V80*(1+PARAMETROS!$G$89)*(1+PARAMETROS!$H$89)^(V95-1) -> 40498569.31 | W100: =W80*(1+PARAMETROS!$G$89)*(1+PARAMETROS!$H$89)^W95 -> 44869731.61 | X100: =X80*(1+PARAMETROS!$G$89)*(1+PARAMETROS!$H$89)^(X95-1) -> 45936210.66 | Y100: =Y80*(1+PARAMETROS!$G$89)*(1+PARAMETROS!$H$89)^Y95 -> 49684605.46 | Z100: =Z80*(1+PARAMETROS!$G$89)*(1+PARAMETROS!$H$89)^(Z95-1) -> 49684605.46 | AA100: =AA80*(1+PARAMETROS!$G$89)*(1+PARAMETROS!$H$89)^AA95 -> 53738869.26 | AB100: =AB80*(1+PARAMETROS!$G$89)*(1+PARAMETROS!$H$89)^(AB95-1) -> 53738869.26 | AC100: =AC80*(1+PARAMETROS!$G$89)*(1+PARAMETROS!$H$89)^AC95 -> 58123960.99 | AD100: =AD80*(1+PARAMETROS!$G$89)*(1+PARAMETROS!$H$89)^(AD95-1) -> 58123960.99 | AE100: =AE80*(1+PARAMETROS!$G$89)*(1+PARAMETROS!$H$89)^AE95 -> 62866876.21 | AF100: =AF80*(1+PARAMETROS!$G$89)*(1+PARAMETROS!$H$89)^(AF95-1) -> 62866876.21 | AG100: =AG80*(1+PARAMETROS!$G$89)*(1+PARAMETROS!$H$89)^AG95 -> 67996813.31 | AH100: =AH80*(1+PARAMETROS!$G$89)*(1+PARAMETROS!$H$89)^(AH95-1) -> 67996813.31 | AI100: =AI80*(1+PARAMETROS!$G$89)*(1+PARAMETROS!$H$89)^AI95 -> 73545353.27 | AJ100: =AJ80*(1+PARAMETROS!$G$89)*(1+PARAMETROS!$H$89)^(AJ95-1) -> 73545353.27 | AK100: =AK80*(1+PARAMETROS!$G$89)*(1+PARAMETROS!$H$89)^AK95 -> 79546654.1 | AL100: =AL80*(1+PARAMETROS!$G$89)*(1+PARAMETROS!$H$89)^(AL95-1) -> 79546654.1 | AM100: =AM80*(1+PARAMETROS!$G$89)*(1+PARAMETROS!$H$89)^AM95 -> 86037661.08 | AN100: =AN80*(1+PARAMETROS!$G$89)*(1+PARAMETROS!$H$89)^(AN95-1) -> 86037661.08 | AO100: =AO80*(1+PARAMETROS!$G$89)*(1+PARAMETROS!$H$89)^AO95 -> 93058334.22 | AP100: =AP80*(1+PARAMETROS!$G$89)*(1+PARAMETROS!$H$89)^(AP95-1) -> 93058334.22 | AQ100: =AQ80*(1+PARAMETROS!$G$89)*(1+PARAMETROS!$H$89)^AQ95 -> 100651894.3

Sheet Sintesis_Inversion_TC (hidden)
B5: Alternativa 19
B7: EN USD 2015 | C7: INVERSION TOTAL | D7: Parte local | E7: Parte extranjera | F7: 2015 | G7: 2016 | H7: 2017 | I7: 2018
B8: Obras de via y reubicacion de redes | C8: =CHIFFRAGE_TC!L45 -> 1464230.745 | D8: =CHIFFRAGE_TC!O45 -> 0.7984841303 | E8: =CHIFFRAGE_TC!P45 -> 0.2015158697 | F8: =INVERSION_ANUALIZADA_TC_Alt_19!E45 -> 0 | G8: =INVERSION_ANUALIZADA_TC_Alt_19!F45 -> 911452.7986 | H8: =INVERSION_ANUALIZADA_TC_Alt_19!G45 -> 552777.9466 | I8: =INVERSION_ANUALIZADA_TC_Alt_19!H45 -> 0 | K8: =SUM(F8:I8) -> 1464230.745 | L8: =IF(C8=K8,"OK!","NOK") -> OK!
B9: Proteccion anti-incendios de edificios (+ decontaminacion) | C9: =CHIFFRAGE_TC!L33 -> 5077160.64 | D9: =CHIFFRAGE_TC!O33 -> 0.7975182144 | E9: =CHIFFRAGE_TC!P33 -> 0.2024817856 | F9: =INVERSION_ANUALIZADA_TC_Alt_19!E33 -> 0 | G9: =INVERSION_ANUALIZADA_TC_Alt_19!F33 -> 1340657.709 | H9: =INVERSION_ANUALIZADA_TC_Alt_19!G33 -> 1245500.977 | I9: =INVERSION_ANUALIZADA_TC_Alt_19!H33 -> 2491001.954 | K9: =SUM(F9:I9) -> 5077160.64 | L9: =IF(C9=K9,"OK!","NOK") -> OK!
B10: Infraestructura de lineas (fundaciones, postes y cables) | C10: =CHIFFRAGE_TC!L38 -> 13580349.61 | D10: =CHIFFRAGE_TC!O38 -> 0.5984052113 | E10: =CHIFFRAGE_TC!P38 -> 0.4015947887 | F10: =INVERSION_ANUALIZADA_TC_Alt_19!E38 -> 0 | G10: =INVERSION_ANUALIZADA_TC_Alt_19!F38 -> 2716069.923 | H10: =INVERSION_ANUALIZADA_TC_Alt_19!G38 -> 8148209.768 | I10: =INVERSION_ANUALIZADA_TC_Alt_19!H38 -> 2716069.923 | K10: 13580349.61 | L10: OK!
B11: Cabinas | C11: =CHIFFRAGE_TC!L53 -> 4878748.739 | D11: =CHIFFRAGE_TC!O53 -> 0.05773402115 | E11: =CHIFFRAGE_TC!P53 -> 0.9422659788 | F11: =INVERSION_ANUALIZADA_TC_Alt_19!E53 -> 0 | G11: =INVERSION_ANUALIZADA_TC_Alt_19!F53 -> 975749.7478 | H11: =INVERSION_ANUALIZADA_TC_Alt_19!G53 -> 2927249.243 | I11: =INVERSION_ANUALIZADA_TC_Alt_19!H53 -> 975749.7478 | K11: 4878748.739 | L11: OK!
B12: Equipamiento electrico | C12: =CHIFFRAGE_TC!L61 -> 4447529.172 | D12: =CHIFFRAGE_TC!O61 -> 0.08539837739 | E12: =CHIFFRAGE_TC!P61 -> 0.9146016226 | F12: =INVERSION_ANUALIZADA_TC_Alt_19!E61 -> 0 | G12: =INVERSION_ANUALIZADA_TC_Alt_19!F61 -> 1103319.296 | H12: =INVERSION_ANUALIZADA_TC_Alt_19!G61 -> 2749375.495 | I12: =INVERSION_ANUALIZADA_TC_Alt_19!H61 -> 594834.3813 | K12: 4447529.172 | L12: OK!
B13: Telecomunicaciones y boleteria | C13: =CHIFFRAGE_TC!L70 -> 5012306.004 | D13: =CHIFFRAGE_TC!O70 -> 0.6349418501 | E13: =CHIFFRAGE_TC!P70 -> 0.3650581499 | F13: =INVERSION_ANUALIZADA_TC_Alt_19!E70 -> 0 | G13: =INVERSION_ANUALIZADA_TC_Alt_19!F70 -> 162681.4132 | H13: =INVERSION_ANUALIZADA_TC_Alt_19!G70 -> 3198695.048 | I13: =INVERSION_ANUALIZADA_TC_Alt_19!H70 -> 1650929.542 | K13: 5012306.004 | L13: OK!
B14: Estaciones
B15: Tecnologias de cable en las estaciones | C15: =CHIFFRAGE_TC!L57 -> 28203244.32 | D15: =CHIFFRAGE_TC!O57 -> 0.07952283812 | E15: =CHIFFRAGE_TC!P57 -> 0.9204771619 | F15: =INVERSION_ANUALIZADA_TC_Alt_19!E57 -> 0 | G15: =INVERSION_ANUALIZADA_TC_Alt_19!F57 -> 0 | H15: =INVERSION_ANUALIZADA_TC_Alt_19!G57 -> 19742271.02 | I15: =INVERSION_ANUALIZADA_TC_Alt_19!H57 -> 8460973.295 | K15: 28203244.32 | L15: =IF(C15=K15,"OK!","NOK") -> OK!
B16: Obra civil y arquitectura | C16: =CHIFFRAGE_TC!L85 -> 23260094.47 | D16: =CHIFFRAGE_TC!O85 -> 0.7987053222 | E16: =CHIFFRAGE_TC!P85 -> 0.2012946778 | F16: =INVERSION_ANUALIZADA_TC_Alt_19!E85 -> 0 | G16: =INVERSION_ANUALIZADA_TC_Alt_19!F85 -> 7836336.124 | H16: =INVERSION_ANUALIZADA_TC_Alt_19!G85 -> 13234139.2 | I16: =INVERSION_ANUALIZADA_TC_Alt_19!H85 -> 2189619.147 | K16: 23260094.47 | L16: OK!
B17: Centro de mantenimiento - Samborondon | C17: =CHIFFRAGE_TC!L175 -> 3959030.556 | D17: =CHIFFRAGE_TC!O175 -> 0.3358753333 | E17: =CHIFFRAGE_TC!P175 -> 0.6641246667 | F17: =INVERSION_ANUALIZADA_TC_Alt_19!E175 -> 0 | G17: =INVERSION_ANUALIZADA_TC_Alt_19!F175 -> 953552.3325 | H17: =INVERSION_ANUALIZADA_TC_Alt_19!G175 -> 2367560.567 | I17: =INVERSION_ANUALIZADA_TC_Alt_19!H175 -> 637917.6564 | K17: 3959030.556 | L17: OK!
B18: Operaciones adicionales : estacionamiento incitativo y buses alimentadores | C18: =CHIFFRAGE_TC!L184 -> 2366388.035 | D18: =CHIFFRAGE_TC!O184 -> 0.8027666605 | E18: =CHIFFRAGE_TC!P184 -> 0.1972333395 | F18: =INVERSION_ANUALIZADA_TC_Alt_19!E184 -> 0 | G18: =INVERSION_ANUALIZADA_TC_Alt_19!F184 -> 0 | H18: =INVERSION_ANUALIZADA_TC_Alt_19!G184 -> 1085067.559 | I18: =INVERSION_ANUALIZADA_TC_Alt_19!H184 -> 1281320.476 | K18: 2366388.035 | L18: OK!
B19: Estudios y supervision de obras | C19: =CHIFFRAGE_TC!L194+CHIFFRAGE_TC!L195 -> 10594806.21 | D19: 0 | E19: 1 | F19: =INVERSION_ANUALIZADA_TC_Alt_19!E194+INVERSION_ANUALIZADA_TC_Alt_19!E195 -> 5297403.104 | G19: =INVERSION_ANUALIZADA_TC_Alt_19!F194+INVERSION_ANUALIZADA_TC_Alt_19!F195 -> 5297403.104 | H19: =INVERSION_ANUALIZADA_TC_Alt_19!G194+INVERSION_ANUALIZADA_TC_Alt_19!G195 -> 0 | I19: =INVERSION_ANUALIZADA_TC_Alt_19!H194+INVERSION_ANUALIZADA_TC_Alt_19!H195 -> 0 | K19: 10594806.21
B20: =#REF! ->  | C20: =CHIFFRAGE_TC!L197 -> 2648701.552 | D20: 0 | E20: 1 | F20: =INVERSION_ANUALIZADA_TC_Alt_19!E197 -> 662175.388 | G20: =INVERSION_ANUALIZADA_TC_Alt_19!F197 -> 662175.388 | H20: =INVERSION_ANUALIZADA_TC_Alt_19!G197 -> 662175.388 | I20: =INVERSION_ANUALIZADA_TC_Alt_19!H197 -> 662175.388 | K20: 2648701.552
B22: TOTAL (sin provisiones / sin contingencias) | C22: =SUM(C8:C20) -> 105492590.1 | D22: - | E22: - | F22: =SUM(F9:F19) -> 5297403.104 | G22: =SUM(G9:G19) -> 20385769.65 | H22: =SUM(H9:H19) -> 54698068.88 | I22: =SUM(I9:I19) -> 20998416.12 | K22: 101379657.8 | L22: NOK
B23: TOTAL (sin provisiones / con contingencias) | C23: =CHIFFRAGE_TC!L230 -> 129326618.3
B25: Provisiones - Compra de terrenos para estaciones y servidumbres | C25: =CHIFFRAGE_TC!L12 -> 9562500
B26: Provisiones - Fiscalizacion y tramites administrativos | C26: =CHIFFRAGE_TC!L237 -> 5014502.587
B28: TOTAL (sin contingencias) | C28: =C22+C25+C26 -> 120069592.6
B29: TOTAL (con contingencias) | C29: =CHIFFRAGE_TC!L243 -> 146820414.4
B32: Alternativa 3
B34: EN USD 2015 | C34: INVERSION TOTAL | D34: Parte local | E34: Parte extranjera | F34: 2015 | G34: 2016 | H34: 2017 | I34: 2018
B35: Obras de via y reubicacion de redes | C35: =CHIFFRAGE_TC!M45 -> 1706787.507 | D35: =CHIFFRAGE_TC!Q45 -> 0.7984611839 | E35: =CHIFFRAGE_TC!R45 -> 0.2015388161 | F35: =INVERSION_ANUALIZADA_TC_Alt_3!E46 -> 0 | G35: =INVERSION_ANUALIZADA_TC_Alt_3!F46 -> 1084529.604 | H35: =INVERSION_ANUALIZADA_TC_Alt_3!G46 -> 622257.9033 | I35: =INVERSION_ANUALIZADA_TC_Alt_3!H46 -> 0 | K35: =SUM(F35:I35) -> 1706787.507 | L35: =IF(C35=K35,"OK!","NOK") -> OK!
B36: Proteccion anti-incendios de edificios (+ decontaminacion) | C36: =CHIFFRAGE_TC!M33 -> 5077160.64 | D36: =CHIFFRAGE_TC!Q33 -> 0.7975182144 | E36: =CHIFFRAGE_TC!R33 -> 0.2024817856 | F36: =INVERSION_ANUALIZADA_TC_Alt_3!E34 -> 0 | G36: =INVERSION_ANUALIZADA_TC_Alt_3!F34 -> 1340657.709 | H36: =INVERSION_ANUALIZADA_TC_Alt_3!G34 -> 1245500.977 | I36: =INVERSION_ANUALIZADA_TC_Alt_3!H34 -> 2491001.954 | K36: =SUM(F36:I36) -> 5077160.64 | L36: =IF(C36=K36,"OK!","NOK") -> OK!
B37: Infraestructura de lineas (fundaciones, postes y cables) | C37: =CHIFFRAGE_TC!M38 -> 16926240.8 | D37: =CHIFFRAGE_TC!Q38 -> 0.596676077 | E37: =CHIFFRAGE_TC!R38 -> 0.403323923 | F37: =INVERSION_ANUALIZADA_TC_Alt_3!E39 -> 0 | G37: =INVERSION_ANUALIZADA_TC_Alt_3!F39 -> 3385248.16 | H37: =INVERSION_ANUALIZADA_TC_Alt_3!G39 -> 10155744.48 | I37: =INVERSION_ANUALIZADA_TC_Alt_3!H39 -> 3385248.16 | K37: 16926240.8 | L37: OK!
B38: Cabinas | C38: =CHIFFRAGE_TC!M53 -> 7010240.906 | D38: =CHIFFRAGE_TC!Q53 -> 0.05773402115 | E38: =CHIFFRAGE_TC!R53 -> 0.9422659788 | F38: =INVERSION_ANUALIZADA_TC_Alt_3!E54 -> 0 | G38: =INVERSION_ANUALIZADA_TC_Alt_3!F54 -> 1402048.181 | H38: =INVERSION_ANUALIZADA_TC_Alt_3!G54 -> 4206144.544 | I38: =INVERSION_ANUALIZADA_TC_Alt_3!H54 -> 1402048.181 | K38: 7010240.906 | L38: OK!
B39: Equipamiento electrico | C39: =CHIFFRAGE_TC!M61 -> 7414065.804 | D39: =CHIFFRAGE_TC!Q61 -> 0.08656683285 | E39: =CHIFFRAGE_TC!R61 -> 0.9134331671 | F39: =INVERSION_ANUALIZADA_TC_Alt_3!E62 -> 0 | G39: =INVERSION_ANUALIZADA_TC_Alt_3!F62 -> 1658089.144 | H39: =INVERSION_ANUALIZADA_TC_Alt_3!G62 -> 4950201.541 | I39: =INVERSION_ANUALIZADA_TC_Alt_3!H62 -> 805775.119 | K39: 7414065.804 | L39: NOK
B40: Telecomunicaciones y boleteria | C40: =CHIFFRAGE_TC!M70 -> 6300359.08 | D40: =CHIFFRAGE_TC!Q70 -> 0.6453825407 | E40: =CHIFFRAGE_TC!R70 -> 0.3546174593 | F40: =INVERSION_ANUALIZADA_TC_Alt_3!E71 -> 0 | G40: =INVERSION_ANUALIZADA_TC_Alt_3!F71 -> 195217.6958 | H40: =INVERSION_ANUALIZADA_TC_Alt_3!G71 -> 4051071.701 | I40: =INVERSION_ANUALIZADA_TC_Alt_3!H71 -> 2054069.682 | K40: 6300359.08 | L40: OK!
B41: Estaciones
B42: Tecnologias de cable en las estaciones | C42: =CHIFFRAGE_TC!M57 -> 33843893.18 | D42: =CHIFFRAGE_TC!Q57 -> 0.07952283812 | E42: =CHIFFRAGE_TC!R57 -> 0.9204771619 | F42: =INVERSION_ANUALIZADA_TC_Alt_3!E58 -> 0 | G42: =INVERSION_ANUALIZADA_TC_Alt_3!F58 -> 0 | H42: =INVERSION_ANUALIZADA_TC_Alt_3!G58 -> 23690725.23 | I42: =INVERSION_ANUALIZADA_TC_Alt_3!H58 -> 10153167.95 | K42: 33843893.18 | L42: =IF(C42=K42,"OK!","NOK") -> OK!
B43: Obra civil y arquitectura | C43: =CHIFFRAGE_TC!M85 -> 29153491.56 | D43: =CHIFFRAGE_TC!Q85 -> 0.7976625275 | E43: =CHIFFRAGE_TC!R85 -> 0.2023374725 | F43: =INVERSION_ANUALIZADA_TC_Alt_3!E86 -> 0 | G43: =INVERSION_ANUALIZADA_TC_Alt_3!F86 -> 9406558.61 | H43: =INVERSION_ANUALIZADA_TC_Alt_3!G86 -> 16151482.88 | I43: =INVERSION_ANUALIZADA_TC_Alt_3!H86 -> 3595450.068 | K43: 29153491.56 | L43: OK!
B44: Centro de mantenimiento - Samborondon | C44: =CHIFFRAGE_TC!M175 -> 5134013.048 | D44: =CHIFFRAGE_TC!Q175 -> 0.3397825788 | E44: =CHIFFRAGE_TC!R175 -> 0.6602174212 | F44: =INVERSION_ANUALIZADA_TC_Alt_3!E176 -> 0 | G44: =INVERSION_ANUALIZADA_TC_Alt_3!F176 -> 1247297.955 | H44: =INVERSION_ANUALIZADA_TC_Alt_3!G176 -> 3065401.8 | I44: =INVERSION_ANUALIZADA_TC_Alt_3!H176 -> 821313.2928 | K44: 5134013.048 | L44: OK!
B45: Operaciones adicionales : estacionamiento incitativo y buses alimentadores | C45: =CHIFFRAGE_TC!M184 -> 4762099.25 | D45: =CHIFFRAGE_TC!Q184 -> 0.8032597169 | E45: =CHIFFRAGE_TC!R184 -> 0.1967402831 | F45: =INVERSION_ANUALIZADA_TC_Alt_3!E185 -> 0 | G45: =INVERSION_ANUALIZADA_TC_Alt_3!F185 -> 0 | H45: =INVERSION_ANUALIZADA_TC_Alt_3!G185 -> 2125067.559 | I45: =INVERSION_ANUALIZADA_TC_Alt_3!H185 -> 2637031.691 | K45: 4762099.25 | L45: OK!
B46: Estudios y supervision de obras | C46: =CHIFFRAGE_TC!M194+CHIFFRAGE_TC!M195 -> 13463320.65 | D46: 0 | E46: 1 | F46: =INVERSION_ANUALIZADA_TC_Alt_3!E195+INVERSION_ANUALIZADA_TC_Alt_3!E196 -> 6731660.324 | G46: =INVERSION_ANUALIZADA_TC_Alt_3!F195+INVERSION_ANUALIZADA_TC_Alt_3!F196 -> 6731660.324 | H46: =INVERSION_ANUALIZADA_TC_Alt_3!G195+INVERSION_ANUALIZADA_TC_Alt_3!G196 -> 0 | I46: =INVERSION_ANUALIZADA_TC_Alt_3!H195+INVERSION_ANUALIZADA_TC_Alt_3!H196 -> 0 | K46: 13463320.65
B47: =#REF! ->  | C47: =CHIFFRAGE_TC!M197 -> 3365830.162 | D47: 0 | E47: 1 | F47: =INVERSION_ANUALIZADA_TC_Alt_3!E198 -> 841457.5405 | G47: =INVERSION_ANUALIZADA_TC_Alt_3!F198 -> 841457.5405 | H47: =INVERSION_ANUALIZADA_TC_Alt_3!G198 -> 841457.5405 | I47: =INVERSION_ANUALIZADA_TC_Alt_3!H198 -> 841457.5405 | K47: 3365830.162
B49: TOTAL (sin provisiones / sin contingencias) | C49: =SUM(C35:C47) -> 134157502.6 | D49: - | E49: - | F49: =SUM(F36:F46) -> 6731660.324 | G49: =SUM(G36:G46) -> 25366777.78 | H49: =SUM(H36:H46) -> 69641340.71 | I49: =SUM(I36:I46) -> 27345106.1 | K49: =CHIFFRAGE_TC!M204 -> 134157502.6 | L49: OK!
B50: TOTAL (sin provisiones / con contingencias) | C50: =CHIFFRAGE_TC!M230 -> 164199223.6
B52: Provisiones - Compra de terrenos para estaciones y servidumbres | C52: =CHIFFRAGE_TC!M12 -> 10062500
B53: Provisiones - Fiscalizacion y tramites administrativos | C53: =CHIFFRAGE_TC!M237 -> 6209716.936
B55: TOTAL (sin contingencias) | C55: =C49+C52+C53 -> 150429719.5
B56: TOTAL (con contingencias) | C56: =CHIFFRAGE_TC!M243 -> 183632295.2

Sheet CHIFFRAGE_TC (hidden)
B2: Legenda | C2: Dato de entrada
C3: Celda llave
C4: Error
C5: Dato calculado
F9: Precio unitario | G9: Cantidades | J9: Contingencias | L9: Costos | O9: Parte Local y extranjera | T9: Programa | Y9: Notas
C11: Categoria | D11: Duracion de vida (años) | E11: Unidad | F11: ($ sin IVA) | G11: Alternativa 19 | H11: Alternativa 3 | J11: Alternativa 19 | K11: Alternativa 3 | L11: Alternativa 19 | M11: Alternativa 3 | O11: Alternativa 19 - Local | P11: Alternativa 19 - Extranjero | Q11: Alternativa 3 - Local | R11: Alternativa 3 - Extranjero | T11: 2015 | U11: 2016 | V11: 2017 | W11: 2018
B12: Compra de terrenos para estaciones y servidumbres | J12: =SUM(J13:J21)/L12 -> 0.25 | K12: =SUM(K13:K21)/M12 -> 0.25 | L12: =SUM(L13:L21) -> 9562500 | M12: =SUM(M13:M21) -> 10062500 | O12: =SUM(O13:O21)/L12 -> 1 | P12: =SUM(P13:P21)/L12 -> 0 | Q12: =SUM(Q13:Q21)/M12 -> 1 | R12: =SUM(R13:R21)/M12 -> 0 | T12: =T$11 -> 2015 | U12: =U$11 -> 2016 | V12: =V$11 -> 2017 | W12: =W$11 -> 2018
B13: Estacion Duran (Terminal) | C13: ='PRECIOS UNITARIOS'!C$16 -> PRED | D13: Infinida | E13: ='PRECIOS UNITARIOS'!D$16 -> m2 | F13: 0 | G13: 0 | H13: 1600 | J13: =HLOOKUP($C13,PARAMETROS!$C$36:$F$38,3)*L13 -> 0 | K13: =HLOOKUP($C13,PARAMETROS!$C$36:$F$38,3)*M13 -> 0 | L13: =G13*$F13 -> 0 | M13: =H13*$F13 -> 0 | O13: ='PRECIOS UNITARIOS'!$Z$16*L13 -> 0 | P13: ='PRECIOS UNITARIOS'!$AA$16*L13 -> 0 | Q13: ='PRECIOS UNITARIOS'!$Z$16*M13 -> 0 | R13: ='PRECIOS UNITARIOS'!$AA$16*M13 -> 0 | U13: 1 | Y13: Municipal
B14: Estacion Samborondon | C14: ='PRECIOS UNITARIOS'!C$16 -> PRED | D14: Infinida | E14: ='PRECIOS UNITARIOS'!D$16 -> m2 | F14: 0 | G14: =H14 -> 9900 | H14: 9900 | J14: =HLOOKUP($C14,PARAMETROS!$C$36:$F$38,3)*L14 -> 0 | K14: =HLOOKUP($C14,PARAMETROS!$C$36:$F$38,3)*M14 -> 0 | L14: 0 | M14: 0 | O14: ='PRECIOS UNITARIOS'!$Z$16*L14 -> 0 | P14: ='PRECIOS UNITARIOS'!$AA$16*L14 -> 0 | Q14: ='PRECIOS UNITARIOS'!$Z$16*M14 -> 0 | R14: ='PRECIOS UNITARIOS'!$AA$16*M14 -> 0 | U14: 1 | Y14: Privado
B15: Estacion Malecon (Terminal) | C15: ='PRECIOS UNITARIOS'!C$16 -> PRED | D15: Infinida | E15: ='PRECIOS UNITARIOS'!D$16 -> m2 | F15: 1000 | G15: 0 | H15: 0 | J15: =HLOOKUP($C15,PARAMETROS!$C$36:$F$38,3)*L15 -> 0 | K15: =HLOOKUP($C15,PARAMETROS!$C$36:$F$38,3)*M15 -> 0 | L15: 0 | M15: 0 | O15: ='PRECIOS UNITARIOS'!$Z$16*L15 -> 0 | P15: ='PRECIOS UNITARIOS'!$AA$16*L15 -> 0 | Q15: ='PRECIOS UNITARIOS'!$Z$16*M15 -> 0 | R15: ='PRECIOS UNITARIOS'!$AA$16*M15 -> 0 | U15: 1 | Y15: Privado
B16: Estacion Puerto Santa Ana (Sur) | C16: ='PRECIOS UNITARIOS'!C$16 -> PRED | D16: Infinida | E16: ='PRECIOS UNITARIOS'!D$16 -> m2 | F16: 1000 | G16: 5250 | H16: 5250 | J16: =HLOOKUP($C16,PARAMETROS!$C$36:$F$38,3)*L16 -> 1312500 | K16: =HLOOKUP($C16,PARAMETROS!$C$36:$F$38,3)*M16 -> 1312500 | L16: 5250000 | M16: 5250000 | O16: ='PRECIOS UNITARIOS'!$Z$16*L16 -> 5250000 | P16: ='PRECIOS UNITARIOS'!$AA$16*L16 -> 0 | Q16: ='PRECIOS UNITARIOS'!$Z$16*M16 -> 5250000 | R16: ='PRECIOS UNITARIOS'!$AA$16*M16 -> 0 | U16: 1 | Y16: Privado
B17: Estacion Malecon Centro Cultural | C17: ='PRECIOS UNITARIOS'!C$16 -> PRED | D17: Infinida | E17: ='PRECIOS UNITARIOS'!D$16 -> m2 | F17: 0 | G17: =H17 -> 1600 | H17: =40*40 -> 1600 | J17: =HLOOKUP($C17,PARAMETROS!$C$36:$F$38,3)*L17 -> 0 | K17: =HLOOKUP($C17,PARAMETROS!$C$36:$F$38,3)*M17 -> 0 | L17: 0 | M17: 0 | O17: ='PRECIOS UNITARIOS'!$Z$16*L17 -> 0 | P17: ='PRECIOS UNITARIOS'!$AA$16*L17 -> 0 | Q17: ='PRECIOS UNITARIOS'!$Z$16*M17 -> 0 | R17: ='PRECIOS UNITARIOS'!$AA$16*M17 -> 0 | U17: 1 | Y17: Municipal
B18: Estacion Cimentero (Tecnica) | C18: ='PRECIOS UNITARIOS'!C$16 -> PRED | D18: Infinida | E18: ='PRECIOS UNITARIOS'!D$16 -> m2 | F18: 500 | G18: =H18 -> 400 | H18: 400 | J18: =HLOOKUP($C18,PARAMETROS!$C$36:$F$38,3)*L18 -> 50000 | K18: =HLOOKUP($C18,PARAMETROS!$C$36:$F$38,3)*M18 -> 50000 | L18: 200000 | M18: 200000 | O18: ='PRECIOS UNITARIOS'!$Z$16*L18 -> 200000 | P18: ='PRECIOS UNITARIOS'!$AA$16*L18 -> 0 | Q18: ='PRECIOS UNITARIOS'!$Z$16*M18 -> 200000 | R18: ='PRECIOS UNITARIOS'!$AA$16*M18 -> 0 | U18: 1 | Y18: Privado
B19: Estacion Avenida Quito | C19: ='PRECIOS UNITARIOS'!C$16 -> PRED | D19: Infinida | E19: ='PRECIOS UNITARIOS'!D$16 -> m2 | F19: 0 | G19: =H19 -> 10000 | H19: 10000 | J19: =HLOOKUP($C19,PARAMETROS!$C$36:$F$38,3)*L19 -> 0 | K19: =HLOOKUP($C19,PARAMETROS!$C$36:$F$38,3)*M19 -> 0 | L19: 0 | M19: 0 | O19: ='PRECIOS UNITARIOS'!$Z$16*L19 -> 0 | P19: ='PRECIOS UNITARIOS'!$AA$16*L19 -> 0 | Q19: ='PRECIOS UNITARIOS'!$Z$16*M19 -> 0 | R19: ='PRECIOS UNITARIOS'!$AA$16*M19 -> 0 | U19: 1 | Y19: Municipal
B20: Estacion Centenario (Terminal) | C20: ='PRECIOS UNITARIOS'!C$16 -> PRED | D20: Infinida | E20: ='PRECIOS UNITARIOS'!D$16 -> m2 | F20: 0 | G20: =H20 -> 1600 | H20: 1600 | J20: =HLOOKUP($C20,PARAMETROS!$C$36:$F$38,3)*L20 -> 0 | K20: =HLOOKUP($C20,PARAMETROS!$C$36:$F$38,3)*M20 -> 0 | L20: 0 | M20: 0 | O20: ='PRECIOS UNITARIOS'!$Z$16*L20 -> 0 | P20: ='PRECIOS UNITARIOS'!$AA$16*L20 -> 0 | Q20: ='PRECIOS UNITARIOS'!$Z$16*M20 -> 0 | R20: ='PRECIOS UNITARIOS'!$AA$16*M20 -> 0 | U20: 1 | Y20: Municipal
B21: Servidumbres en linea | C21: ='PRECIOS UNITARIOS'!C$16 -> PRED | D21: Infinida | E21: ='PRECIOS UNITARIOS'!D$16 -> m2 | F21: 500 | G21: 8225 | H21: 9225 | J21: =HLOOKUP($C21,PARAMETROS!$C$36:$F$38,3)*L21 -> 1028125 | K21: =HLOOKUP($C21,PARAMETROS!$C$36:$F$38,3)*M21 -> 1153125 | L21: 4112500 | M21: 4612500 | O21: ='PRECIOS UNITARIOS'!$Z$16*L21 -> 4112500 | P21: ='PRECIOS UNITARIOS'!$AA$16*L21 -> 0 | Q21: ='PRECIOS UNITARIOS'!$Z$16*M21 -> 4612500 | R21: ='PRECIOS UNITARIOS'!$AA$16*M21 -> 0 | V21: 1
B23: Compra de terrenos para estacionamiento (operacion adicional) | L23: =SUM(L24:L31) -> 0 | M23: =SUM(M24:M31) -> 0 | T23: =T$11 -> 2015 | U23: =U$11 -> 2016 | V23: =V$11 -> 2017 | W23: =W$11 -> 2018
B24: Estacion Duran (Terminal) | C24: ='PRECIOS UNITARIOS'!C$16 -> PRED | D24: Infinida | E24: ='PRECIOS UNITARIOS'!D$16 -> m2 | F24: =F13 -> 0 | G24: 0 | H24: 24000 | J24: =HLOOKUP($C24,PARAMETROS!$C$36:$F$38,3)*L24 -> 0 | K24: =HLOOKUP($C24,PARAMETROS!$C$36:$F$38,3)*M24 -> 0 | L24: =G24*$F24 -> 0 | M24: 0 | O24: ='PRECIOS UNITARIOS'!$Z$16*L24 -> 0 | P24: ='PRECIOS UNITARIOS'!$AA$16*L24 -> 0 | Q24: ='PRECIOS UNITARIOS'!$Z$16*M24 -> 0 | R24: ='PRECIOS UNITARIOS'!$AA$16*M24 -> 0 | U24: 1 | Y24: =Y13 -> Municipal
B25: Estacion Samborondon (Terminal) | C25: ='PRECIOS UNITARIOS'!C$16 -> PRED | D25: Infinida | E25: ='PRECIOS UNITARIOS'!D$16 -> m2 | F25: 0 | G25: 24000 | H25: 24000 | J25: =HLOOKUP($C25,PARAMETROS!$C$36:$F$38,3)*L25 -> 0 | K25: =HLOOKUP($C25,PARAMETROS!$C$36:$F$38,3)*M25 -> 0 | L25: 0 | M25: 0 | O25: ='PRECIOS UNITARIOS'!$Z$16*L25 -> 0 | P25: ='PRECIOS UNITARIOS'!$AA$16*L25 -> 0 | Q25: ='PRECIOS UNITARIOS'!$Z$16*M25 -> 0 | R25: ='PRECIOS UNITARIOS'!$AA$16*M25 -> 0 | U25: 1 | Y25: Privado
B26: Estacion Puerto Santa Ana (Norte) | C26: ='PRECIOS UNITARIOS'!C$16 -> PRED | D26: Infinida | E26: ='PRECIOS UNITARIOS'!D$16 -> m2 | F26: 1000 | J26: =HLOOKUP($C26,PARAMETROS!$C$36:$F$38,3)*L26 -> 0 | K26: =HLOOKUP($C26,PARAMETROS!$C$36:$F$38,3)*M26 -> 0 | L26: 0 | M26: 0 | O26: ='PRECIOS UNITARIOS'!$Z$16*L26 -> 0 | P26: ='PRECIOS UNITARIOS'!$AA$16*L26 -> 0 | Q26: ='PRECIOS UNITARIOS'!$Z$16*M26 -> 0 | R26: ='PRECIOS UNITARIOS'!$AA$16*M26 -> 0 | U26: 1 | Y26: Privado
B27: Estacion Puerto Santa Ana (Sur) | C27: ='PRECIOS UNITARIOS'!C$16 -> PRED | D27: Infinida | E27: ='PRECIOS UNITARIOS'!D$16 -> m2 | F27: 1000 | J27: =HLOOKUP($C27,PARAMETROS!$C$36:$F$38,3)*L27 -> 0 | K27: =HLOOKUP($C27,PARAMETROS!$C$36:$F$38,3)*M27 -> 0 | L27: 0 | M27: 0 | O27: ='PRECIOS UNITARIOS'!$Z$16*L27 -> 0 | P27: ='PRECIOS UNITARIOS'!$AA$16*L27 -> 0 | Q27: ='PRECIOS UNITARIOS'!$Z$16*M27 -> 0 | R27: ='PRECIOS UNITARIOS'!$AA$16*M27 -> 0 | U27: 1 | Y27: Privado
B28: Estacion Malecon Centro Cultural | C28: ='PRECIOS UNITARIOS'!C$16 -> PRED | D28: Infinida | E28: ='PRECIOS UNITARIOS'!D$16 -> m2 | F28: 0 | J28: =HLOOKUP($C28,PARAMETROS!$C$36:$F$38,3)*L28 -> 0 | K28: =HLOOKUP($C28,PARAMETROS!$C$36:$F$38,3)*M28 -> 0 | L28: 0 | M28: 0 | O28: ='PRECIOS UNITARIOS'!$Z$16*L28 -> 0 | P28: ='PRECIOS UNITARIOS'!$AA$16*L28 -> 0 | Q28: ='PRECIOS UNITARIOS'!$Z$16*M28 -> 0 | R28: ='PRECIOS UNITARIOS'!$AA$16*M28 -> 0 | U28: 1 | Y28: Municipal
B29: Estacion Cimentero (Tecnica) | C29: ='PRECIOS UNITARIOS'!C$16 -> PRED | D29: Infinida | E29: ='PRECIOS UNITARIOS'!D$16 -> m2 | F29: 500 | J29: =HLOOKUP($C29,PARAMETROS!$C$36:$F$38,3)*L29 -> 0 | K29: =HLOOKUP($C29,PARAMETROS!$C$36:$F$38,3)*M29 -> 0 | L29: 0 | M29: 0 | O29: ='PRECIOS UNITARIOS'!$Z$16*L29 -> 0 | P29: ='PRECIOS UNITARIOS'!$AA$16*L29 -> 0 | Q29: ='PRECIOS UNITARIOS'!$Z$16*M29 -> 0 | R29: ='PRECIOS UNITARIOS'!$AA$16*M29 -> 0 | U29: 1 | Y29: Privado
B30: Estacion Avenida Quito | C30: ='PRECIOS UNITARIOS'!C$16 -> PRED | D30: Infinida | E30: ='PRECIOS UNITARIOS'!D$16 -> m2 | F30: 0 | J30: =HLOOKUP($C30,PARAMETROS!$C$36:$F$38,3)*L30 -> 0 | K30: =HLOOKUP($C30,PARAMETROS!$C$36:$F$38,3)*M30 -> 0 | L30: 0 | M30: 0 | O30: ='PRECIOS UNITARIOS'!$Z$16*L30 -> 0 | P30: ='PRECIOS UNITARIOS'!$AA$16*L30 -> 0 | Q30: ='PRECIOS UNITARIOS'!$Z$16*M30 -> 0 | R30: ='PRECIOS UNITARIOS'!$AA$16*M30 -> 0 | U30: 1 | Y30: Municipal
B31: Estacion Centenario (Terminal) | C31: ='PRECIOS UNITARIOS'!C$16 -> PRED | D31: Infinida | E31: ='PRECIOS UNITARIOS'!D$16 -> m2 | F31: 0 | J31: =HLOOKUP($C31,PARAMETROS!$C$36:$F$38,3)*L31 -> 0 | K31: =HLOOKUP($C31,PARAMETROS!$C$36:$F$38,3)*M31 -> 0 | L31: 0 | M31: 0 | O31: ='PRECIOS UNITARIOS'!$Z$16*L31 -> 0 | P31: ='PRECIOS UNITARIOS'!$AA$16*L31 -> 0 | Q31: ='PRECIOS UNITARIOS'!$Z$16*M31 -> 0 | R31: ='PRECIOS UNITARIOS'!$AA$16*M31 -> 0 | U31: 1 | Y31: Municipal
B33: Decontaminacion y proteccion | J33: =SUM(J34:J36)/L33 -> 0.25 | K33: =SUM(K34:K36)/M33 -> 0.25 | L33: =SUM(L34:L36) -> 5077160.64 | M33: 5077160.64 | O33: =SUM(O34:O36)/L33 -> 0.7975182144 | P33: =SUM(P34:P36)/L33 -> 0.2024817856 | Q33: =SUM(Q34:Q36)/M33 -> 0.7975182144 | R33: =SUM(R34:R36)/M33 -> 0.2024817856 | T33: =T$11 -> 2015 | U33: =U$11 -> 2016 | V33: =V$11 -> 2017 | W33: =W$11 -> 2018
B34: ='PRECIOS UNITARIOS'!B19 -> Proteccion contra incendios (techos) | C34: ='PRECIOS UNITARIOS'!C19 -> INFRA | D34: 40 | E34: ='PRECIOS UNITARIOS'!D19 -> m2 | F34: ='PRECIOS UNITARIOS'!L19 -> 164.6943441 | G34: =CANTIDADES!B25 -> 18000 | H34: =CANTIDADES!C25 -> 18000 | J34: =HLOOKUP($C34,PARAMETROS!$C$36:$F$38,3)*L34 -> 741124.5483 | K34: =HLOOKUP($C34,PARAMETROS!$C$36:$F$38,3)*M34 -> 741124.5483 | L34: =G34*$F34 -> 2964498.193 | M34: 2964498.193 | O34: ='PRECIOS UNITARIOS'!$Z19*CHIFFRAGE_TC!L34 -> 2352776.344 | P34: ='PRECIOS UNITARIOS'!$AA19*CHIFFRAGE_TC!L34 -> 611721.8494 | Q34: ='PRECIOS UNITARIOS'!$Z19*CHIFFRAGE_TC!M34 -> 2352776.344 | R34: ='PRECIOS UNITARIOS'!$AA19*CHIFFRAGE_TC!M34 -> 611721.8494 | U34: 0.25 | V34: 0.25 | W34: 0.5
B35: ='PRECIOS UNITARIOS'!B20 -> Proteccion contra incendios (fachadas) | C35: ='PRECIOS UNITARIOS'!C20 -> INFRA | D35: 40 | E35: ='PRECIOS UNITARIOS'!D20 -> m2 | F35: ='PRECIOS UNITARIOS'!L20 -> 164.6943441 | G35: =CANTIDADES!B26 -> 12250 | H35: =CANTIDADES!C26 -> 12250 | J35: =HLOOKUP($C35,PARAMETROS!$C$36:$F$38,3)*L35 -> 504376.4287 | K35: =HLOOKUP($C35,PARAMETROS!$C$36:$F$38,3)*M35 -> 504376.4287 | L35: 2017505.715 | M35: 2017505.715 | O35: ='PRECIOS UNITARIOS'!$Z20*CHIFFRAGE_TC!L35 -> 1601195.012 | P35: ='PRECIOS UNITARIOS'!$AA20*CHIFFRAGE_TC!L35 -> 416310.703 | Q35: ='PRECIOS UNITARIOS'!$Z20*CHIFFRAGE_TC!M35 -> 1601195.012 | R35: ='PRECIOS UNITARIOS'!$AA20*CHIFFRAGE_TC!M35 -> 416310.703 | U35: 0.25 | V35: 0.25 | W35: 0.5
B36: ='PRECIOS UNITARIOS'!B21 -> Decontaminacion de suelo | C36: ='PRECIOS UNITARIOS'!C21 -> INFRA | D36: Infinida | E36: ='PRECIOS UNITARIOS'!D21 -> U | F36: ='PRECIOS UNITARIOS'!L21 -> 95156.73212 | G36: =CANTIDADES!B34 -> 1 | H36: =CANTIDADES!C34 -> 1 | J36: =HLOOKUP($C36,PARAMETROS!$C$36:$F$38,3)*L36 -> 23789.18303 | K36: =HLOOKUP($C36,PARAMETROS!$C$36:$F$38,3)*M36 -> 23789.18303 | L36: 95156.73212 | M36: 95156.73212 | O36: ='PRECIOS UNITARIOS'!$Z21*CHIFFRAGE_TC!L36 -> 95156.73212 | P36: ='PRECIOS UNITARIOS'!$AA21*CHIFFRAGE_TC!L36 -> 0 | Q36: ='PRECIOS UNITARIOS'!$Z21*CHIFFRAGE_TC!M36 -> 95156.73212 | R36: ='PRECIOS UNITARIOS'!$AA21*CHIFFRAGE_TC!M36 -> 0 | U36: 1
B38: Infraestructura y estructuras de lineas | J38: =SUM(J39:J43)/L38 -> 0.25 | K38: =SUM(K39:K43)/M38 -> 0.25 | L38: =SUM(L39:L43) -> 13580349.61 | M38: 16926240.8 | O38: =SUM(O39:O43)/L38 -> 0.5984052113 | P38: =SUM(P39:P43)/L38 -> 0.4015947887 | Q38: =SUM(Q39:Q43)/M38 -> 0.596676077 | R38: =SUM(R39:R43)/M38 -> 0.403323923 | T38: =T$11 -> 2015 | U38: =U$11 -> 2016 | V38: =V$11 -> 2017 | W38: =W$11 -> 2018
B39: ='PRECIOS UNITARIOS'!B24 -> Cables de soportes | C39: ='PRECIOS UNITARIOS'!C24 -> EQUIP | D39: 10 | E39: ='PRECIOS UNITARIOS'!D24 -> ml | F39: 0 | G39: 0 | H39: 0 | J39: =HLOOKUP($C39,PARAMETROS!$C$36:$F$38,3)*L39 -> 0 | K39: =HLOOKUP($C39,PARAMETROS!$C$36:$F$38,3)*M39 -> 0 | L39: =$F39*G39 -> 0 | M39: 0 | O39: =L39 -> 0 | P39: =L39 -> 0 | Q39: =M39 -> 0 | R39: =M39 -> 0 | U39: 0.2 | V39: 0.6 | W39: 0.2
B40: ='PRECIOS UNITARIOS'!B25 -> Cable de traccion | C40: ='PRECIOS UNITARIOS'!C25 -> EQUIP | D40: 5 | E40: ='PRECIOS UNITARIOS'!D25 -> ml | F40: ='PRECIOS UNITARIOS'!L25 -> 66.20956623 | G40: =(2*CANTIDADES!B22)*1.05 -> 12390 | H40: =(2*CANTIDADES!C22)*1.05 -> 17010 | J40: =HLOOKUP($C40,PARAMETROS!$C$36:$F$38,3)*L40 -> 205084.1314 | K40: =HLOOKUP($C40,PARAMETROS!$C$36:$F$38,3)*M40 -> 281556.1804 | L40: 820336.5256 | M40: 1126224.722 | O40: ='PRECIOS UNITARIOS'!$Z25*CHIFFRAGE_TC!L40 -> 133498.161 | P40: ='PRECIOS UNITARIOS'!$AA25*CHIFFRAGE_TC!L40 -> 686838.3646 | Q40: ='PRECIOS UNITARIOS'!$Z25*CHIFFRAGE_TC!M40 -> 183277.1363 | R40: ='PRECIOS UNITARIOS'!$AA25*CHIFFRAGE_TC!M40 -> 942947.5853 | U40: 0.2 | V40: 0.6 | W40: 0.2
B41: ='PRECIOS UNITARIOS'!B26 -> Cabeza de poste (patibulo + pendulos y equipamientos) | C41: ='PRECIOS UNITARIOS'!C26 -> EQUIP | D41: 40 | E41: ='PRECIOS UNITARIOS'!D26 -> U | F41: ='PRECIOS UNITARIOS'!L26 -> 100000.3452 | G41: =CANTIDADES!B43 -> 35 | H41: =CANTIDADES!C43 -> 43 | J41: =HLOOKUP($C41,PARAMETROS!$C$36:$F$38,3)*L41 -> 875003.0208 | K41: =HLOOKUP($C41,PARAMETROS!$C$36:$F$38,3)*M41 -> 1075003.711 | L41: 3500012.083 | M41: 4300014.845 | O41: ='PRECIOS UNITARIOS'!$Z26*CHIFFRAGE_TC!L41 -> 778206.4106 | P41: ='PRECIOS UNITARIOS'!$AA26*CHIFFRAGE_TC!L41 -> 2721805.672 | Q41: ='PRECIOS UNITARIOS'!$Z26*CHIFFRAGE_TC!M41 -> 956082.1616 | R41: ='PRECIOS UNITARIOS'!$AA26*CHIFFRAGE_TC!M41 -> 3343932.683 | U41: 0.2 | V41: 0.6 | W41: 0.2
B42: ='PRECIOS UNITARIOS'!B27 -> Postes y fundaciones | C42: ='PRECIOS UNITARIOS'!C27 -> INFRA | D42: 50 | E42: ='PRECIOS UNITARIOS'!D27 -> U | F42: ='PRECIOS UNITARIOS'!L27 -> 100000.0287 | G42: =CANTIDADES!B43 -> 35 | H42: =CANTIDADES!C43 -> 43 | J42: =HLOOKUP($C42,PARAMETROS!$C$36:$F$38,3)*L42 -> 875000.2511 | K42: =HLOOKUP($C42,PARAMETROS!$C$36:$F$38,3)*M42 -> 1075000.309 | L42: 3500001.005 | M42: 4300001.234 | O42: ='PRECIOS UNITARIOS'!$Z27*CHIFFRAGE_TC!L42 -> 2726994.648 | P42: ='PRECIOS UNITARIOS'!$AA27*CHIFFRAGE_TC!L42 -> 773006.3568 | Q42: ='PRECIOS UNITARIOS'!$Z27*CHIFFRAGE_TC!M42 -> 3350307.71 | R42: ='PRECIOS UNITARIOS'!$AA27*CHIFFRAGE_TC!M42 -> 949693.5241 | U42: 0.2 | V42: 0.6 | W42: 0.2
B43: ='PRECIOS UNITARIOS'!B28 -> Sobrecostos para fundaciones con pilotes | C43: ='PRECIOS UNITARIOS'!C28 -> INFRA | D43: 50 | E43: ='PRECIOS UNITARIOS'!D28 -> U | F43: ='PRECIOS UNITARIOS'!L28 -> 180000 | G43: =CANTIDADES!B46 -> 32 | H43: =CANTIDADES!C46 -> 40 | J43: =HLOOKUP($C43,PARAMETROS!$C$36:$F$38,3)*L43 -> 1440000 | K43: =HLOOKUP($C43,PARAMETROS!$C$36:$F$38,3)*M43 -> 1800000 | L43: 5760000 | M43: 7200000 | O43: ='PRECIOS UNITARIOS'!$Z28*CHIFFRAGE_TC!L43 -> 4487852.761 | P43: ='PRECIOS UNITARIOS'!$AA28*CHIFFRAGE_TC!L43 -> 1272147.239 | Q43: ='PRECIOS UNITARIOS'!$Z28*CHIFFRAGE_TC!M43 -> 5609815.951 | R43: ='PRECIOS UNITARIOS'!$AA28*CHIFFRAGE_TC!M43 -> 1590184.049 | U43: 0.2 | V43: 0.6 | W43: 0.2
B45: Obras de via y reubicacion de redes | J45: =SUM(J46:J51)/L45 -> 0.25 | K45: =SUM(K46:K51)/M45 -> 0.25 | L45: =SUM(L46:L51) -> 1464230.745 | M45: 1706787.507 | O45: =SUM(O46:O51)/L45 -> 0.7984841303 | P45: =SUM(P46:P51)/L45 -> 0.2015158697 | Q45: =SUM(Q46:Q51)/M45 -> 0.7984611839 | R45: =SUM(R46:R51)/M45 -> 0.2015388161 | T45: =T$11 -> 2015 | U45: =U$11 -> 2016 | V45: =V$11 -> 2017 | W45: =W$11 -> 2018
B46: ='PRECIOS UNITARIOS'!B31 -> Obras de via | C46: ='PRECIOS UNITARIOS'!C31 -> INFRA | D46: 50 | E46: ='PRECIOS UNITARIOS'!D31 -> m2 | F46: ='PRECIOS UNITARIOS'!L31 -> 197.6332129 | G46: 3883 | H46: 4603 | J46: =HLOOKUP($C46,PARAMETROS!$C$36:$F$38,3)*L46 -> 191852.4414 | K46: =HLOOKUP($C46,PARAMETROS!$C$36:$F$38,3)*M46 -> 227426.4197 | L46: =$F46*G46 -> 767409.7656 | M46: 909705.6789 | O46: ='PRECIOS UNITARIOS'!$Z31*CHIFFRAGE_TC!L46 -> 609055.3695 | P46: ='PRECIOS UNITARIOS'!$AA31*CHIFFRAGE_TC!L46 -> 158354.3961 | Q46: ='PRECIOS UNITARIOS'!$Z31*CHIFFRAGE_TC!M46 -> 721988.634 | R46: ='PRECIOS UNITARIOS'!$AA31*CHIFFRAGE_TC!M46 -> 187717.0448 | U46: 0.5 | V46: 0.5
B47: ='PRECIOS UNITARIOS'!B32 -> Redes aereas de alta tension | C47: ='PRECIOS UNITARIOS'!C32 -> INFRA | D47: 50 | E47: ='PRECIOS UNITARIOS'!D32 -> ml (de la red) | F47: ='PRECIOS UNITARIOS'!L32 -> 633.7229224 | G47: 1 | H47: 1 | J47: =HLOOKUP($C47,PARAMETROS!$C$36:$F$38,3)*L47 -> 158.4307306 | K47: =HLOOKUP($C47,PARAMETROS!$C$36:$F$38,3)*M47 -> 158.4307306 | L47: 633.7229224 | M47: 633.7229224 | O47: ='PRECIOS UNITARIOS'!$Z32*CHIFFRAGE_TC!L47 -> 508.3460852 | P47: ='PRECIOS UNITARIOS'!$AA32*CHIFFRAGE_TC!L47 -> 125.3768372 | Q47: ='PRECIOS UNITARIOS'!$Z32*CHIFFRAGE_TC!M47 -> 508.3460852 | R47: ='PRECIOS UNITARIOS'!$AA32*CHIFFRAGE_TC!M47 -> 125.3768372 | U47: 1
B48: ='PRECIOS UNITARIOS'!B33 -> Redes aereas | C48: ='PRECIOS UNITARIOS'!C33 -> INFRA | D48: 50 | E48: ='PRECIOS UNITARIOS'!D33 -> ml (de linea) | F48: ='PRECIOS UNITARIOS'!L33 -> 83.4 | G48: 2752 | H48: 3692 | J48: =HLOOKUP($C48,PARAMETROS!$C$36:$F$38,3)*L48 -> 57379.2 | K48: =HLOOKUP($C48,PARAMETROS!$C$36:$F$38,3)*M48 -> 76978.2 | L48: 229516.8 | M48: 307912.8 | O48: ='PRECIOS UNITARIOS'!$Z33*CHIFFRAGE_TC!L48 -> 184108.8 | P48: ='PRECIOS UNITARIOS'!$AA33*CHIFFRAGE_TC!L48 -> 45408 | Q48: ='PRECIOS UNITARIOS'!$Z33*CHIFFRAGE_TC!M48 -> 246994.8 | R48: ='PRECIOS UNITARIOS'!$AA33*CHIFFRAGE_TC!M48 -> 60918 | U48: 1
B49: ='PRECIOS UNITARIOS'!B34 -> Desplazamiento de lamparas | C49: ='PRECIOS UNITARIOS'!C34 -> INFRA | D49: 50 | E49: ='PRECIOS UNITARIOS'!D34 -> U | F49: ='PRECIOS UNITARIOS'!L34 -> 2520.084884 | G49: 51 | H49: 61 | J49: =HLOOKUP($C49,PARAMETROS!$C$36:$F$38,3)*L49 -> 32131.08227 | K49: =HLOOKUP($C49,PARAMETROS!$C$36:$F$38,3)*M49 -> 38431.29448 | L49: 128524.3291 | M49: 153725.1779 | O49: ='PRECIOS UNITARIOS'!$Z34*CHIFFRAGE_TC!L49 -> 104526.0104 | P49: ='PRECIOS UNITARIOS'!$AA34*CHIFFRAGE_TC!L49 -> 23998.31871 | Q49: ='PRECIOS UNITARIOS'!$Z34*CHIFFRAGE_TC!M49 -> 125021.3065 | R49: ='PRECIOS UNITARIOS'!$AA34*CHIFFRAGE_TC!M49 -> 28703.87139 | U49: 1
B50: ='PRECIOS UNITARIOS'!B35 -> Redes subterraneas | C50: ='PRECIOS UNITARIOS'!C35 -> INFRA | D50: 50 | E50: ='PRECIOS UNITARIOS'!D35 -> ml (de linea) | F50: ='PRECIOS UNITARIOS'!L35 -> 83.4 | G50: 3311 | H50: 3271 | J50: =HLOOKUP($C50,PARAMETROS!$C$36:$F$38,3)*L50 -> 69034.35 | K50: =HLOOKUP($C50,PARAMETROS!$C$36:$F$38,3)*M50 -> 68200.35 | L50: 276137.4 | M50: 272801.4 | O50: ='PRECIOS UNITARIOS'!$Z35*CHIFFRAGE_TC!L50 -> 221505.9 | P50: ='PRECIOS UNITARIOS'!$AA35*CHIFFRAGE_TC!L50 -> 54631.5 | Q50: ='PRECIOS UNITARIOS'!$Z35*CHIFFRAGE_TC!M50 -> 218829.9 | R50: ='PRECIOS UNITARIOS'!$AA35*CHIFFRAGE_TC!M50 -> 53971.5 | U50: 0.5 | V50: 0.5
B51: ='PRECIOS UNITARIOS'!B36 -> Mantenimiento de transito | C51: ='PRECIOS UNITARIOS'!C36 -> INFRA | D51: 50 | E51: ='PRECIOS UNITARIOS'!D36 -> U | F51: ='PRECIOS UNITARIOS'!L36 -> 62008.72764 | G51: 1 | H51: 1 | J51: =HLOOKUP($C51,PARAMETROS!$C$36:$F$38,3)*L51 -> 15502.18191 | K51: =HLOOKUP($C51,PARAMETROS!$C$36:$F$38,3)*M51 -> 15502.18191 | L51: 62008.72764 | M51: 62008.72764 | O51: ='PRECIOS UNITARIOS'!$Z36*CHIFFRAGE_TC!L51 -> 49460.58714 | P51: ='PRECIOS UNITARIOS'!$AA36*CHIFFRAGE_TC!L51 -> 12548.1405 | Q51: ='PRECIOS UNITARIOS'!$Z36*CHIFFRAGE_TC!M51 -> 49460.58714 | R51: ='PRECIOS UNITARIOS'!$AA36*CHIFFRAGE_TC!M51 -> 12548.1405 | U51: 0.5 | V51: 0.5
B53: Cabinas | J53: =SUM(J54:J55)/L53 -> 0.15 | K53: =SUM(K54:K55)/M53 -> 0.15 | L53: =SUM(L54:L55) -> 4878748.739 | M53: 7010240.906 | O53: =SUM(O54:O55)/L53 -> 0.05773402115 | P53: =SUM(P54:P55)/L53 -> 0.9422659788 | Q53: =SUM(Q54:Q55)/M53 -> 0.05773402115 | R53: =SUM(R54:R55)/M53 -> 0.9422659788 | T53: =T$11 -> 2015 | U53: =U$11 -> 2016 | V53: =V$11 -> 2017 | W53: =W$11 -> 2018
B54: ='PRECIOS UNITARIOS'!B39 -> Cabinas y soportes | C54: ='PRECIOS UNITARIOS'!C39 -> VEH | D54: 40 | E54: ='PRECIOS UNITARIOS'!D39 -> U | F54: ='PRECIOS UNITARIOS'!L39 -> 37545.57257 | G54: =CANTIDADES!B69 -> 103 | H54: =CANTIDADES!C69 -> 148 | J54: =HLOOKUP($C54,PARAMETROS!$C$36:$F$38,3)*L54 -> 580079.0962 | K54: =HLOOKUP($C54,PARAMETROS!$C$36:$F$38,3)*M54 -> 833511.7111 | L54: =$F54*G54 -> 3867193.975 | M54: =$F54*H54 -> 5556744.741 | O54: ='PRECIOS UNITARIOS'!$Z39*CHIFFRAGE_TC!L54 -> 181488.8463 | P54: ='PRECIOS UNITARIOS'!$AA39*CHIFFRAGE_TC!L54 -> 3685705.129 | Q54: ='PRECIOS UNITARIOS'!$Z39*CHIFFRAGE_TC!M54 -> 260780.0898 | R54: ='PRECIOS UNITARIOS'!$AA39*CHIFFRAGE_TC!M54 -> 5295964.651 | U54: 0.2 | V54: 0.6 | W54: 0.2
B55: ='PRECIOS UNITARIOS'!B40 -> Equipamiento de conforte en las cabinas | C55: ='PRECIOS UNITARIOS'!C40 -> VEH | D55: 15 | E55: ='PRECIOS UNITARIOS'!D40 -> U | F55: ='PRECIOS UNITARIOS'!L40 -> 9820.920039 | G55: =G54 -> 103 | H55: 148 | J55: =HLOOKUP($C55,PARAMETROS!$C$36:$F$38,3)*L55 -> 151733.2146 | K55: =HLOOKUP($C55,PARAMETROS!$C$36:$F$38,3)*M55 -> 218024.4249 | L55: =$F55*G55 -> 1011554.764 | M55: =$F55*H55 -> 1453496.166 | O55: ='PRECIOS UNITARIOS'!$Z40*CHIFFRAGE_TC!L55 -> 100180.9366 | P55: ='PRECIOS UNITARIOS'!$AA40*CHIFFRAGE_TC!L55 -> 911373.8274 | Q55: ='PRECIOS UNITARIOS'!$Z40*CHIFFRAGE_TC!M55 -> 143949.307 | R55: ='PRECIOS UNITARIOS'!$AA40*CHIFFRAGE_TC!M55 -> 1309546.859 | U55: 0.2 | V55: 0.6 | W55: 0.2
B57: Tecnologias en las estaciones | J57: =SUM(J58:J59)/L57 -> 0.25 | K57: =SUM(K58:K59)/M57 -> 0.25 | L57: =SUM(L58:L59) -> 28203244.32 | M57: 33843893.18 | O57: =SUM(O58:O59)/L57 -> 0.07952283812 | P57: =SUM(P58:P59)/L57 -> 0.9204771619 | Q57: =SUM(Q58:Q59)/M57 -> 0.07952283812 | R57: =SUM(R58:R59)/M57 -> 0.9204771619 | T57: =T$11 -> 2015 | U57: =U$11 -> 2016 | V57: =V$11 -> 2017 | W57: =W$11 -> 2018
B58: ='PRECIOS UNITARIOS'!B43 -> Lanzador (por ramita y por media-estacion) | C58: ='PRECIOS UNITARIOS'!C43 -> EQUIP | D58: 40 | E58: ='PRECIOS UNITARIOS'!D43 -> U | F58: ='PRECIOS UNITARIOS'!L43 -> 709328.8911 | G58: =2*CANTIDADES!B30+4*CANTIDADES!B31+4*CANTIDADES!B32 -> 20 | H58: =2*CANTIDADES!C30+4*CANTIDADES!C31+4*CANTIDADES!C32 -> 24 | J58: =HLOOKUP($C58,PARAMETROS!$C$36:$F$38,3)*L58 -> 3546644.456 | K58: =HLOOKUP($C58,PARAMETROS!$C$36:$F$38,3)*M58 -> 4255973.347 | L58: =$F58*G58 -> 14186577.82 | M58: =$F58*H58 -> 17023893.39 | O58: ='PRECIOS UNITARIOS'!$Z43*CHIFFRAGE_TC!L58 -> 1127791.378 | P58: ='PRECIOS UNITARIOS'!$AA43*CHIFFRAGE_TC!L58 -> 13058786.44 | Q58: ='PRECIOS UNITARIOS'!$Z43*CHIFFRAGE_TC!M58 -> 1353349.654 | R58: ='PRECIOS UNITARIOS'!$AA43*CHIFFRAGE_TC!M58 -> 15670543.73 | V58: 0.7 | W58: 0.3
B59: ='PRECIOS UNITARIOS'!B44 -> Cola y andenes (por numero de andenes, y/c puertas de anden) | C59: ='PRECIOS UNITARIOS'!C44 -> EQUIP | D59: 40 | E59: ='PRECIOS UNITARIOS'!D44 -> U | F59: ='PRECIOS UNITARIOS'!L44 -> 700833.3247 | G59: =G58 -> 20 | H59: 24 | J59: =HLOOKUP($C59,PARAMETROS!$C$36:$F$38,3)*L59 -> 3504166.623 | K59: =HLOOKUP($C59,PARAMETROS!$C$36:$F$38,3)*M59 -> 4204999.948 | L59: =$F59*G59 -> 14016666.49 | M59: =$F59*H59 -> 16819999.79 | O59: ='PRECIOS UNITARIOS'!$Z44*CHIFFRAGE_TC!L59 -> 1115010.654 | P59: ='PRECIOS UNITARIOS'!$AA44*CHIFFRAGE_TC!L59 -> 12901655.84 | Q59: ='PRECIOS UNITARIOS'!$Z44*CHIFFRAGE_TC!M59 -> 1338012.784 | R59: ='PRECIOS UNITARIOS'!$AA44*CHIFFRAGE_TC!M59 -> 15481987.01 | V59: 0.7 | W59: 0.3
B61: Equipamiento electrico | J61: =SUM(J62:J68)/L61 -> 0.25 | K61: =SUM(K62:K68)/M61 -> 0.25 | L61: =SUM(L62:L68) -> 4447529.172 | M61: 7414065.804 | O61: =SUM(O62:O68)/L61 -> 0.08539837739 | P61: =SUM(P62:P68)/L61 -> 0.9146016226 | Q61: =SUM(Q62:Q68)/M61 -> 0.08656683285 | R61: =SUM(R62:R68)/M61 -> 0.9134331671 | T61: =T$11 -> 2015 | U61: =U$11 -> 2016 | V61: =V$11 -> 2017 | W61: =W$11 -> 2018
B62: ='PRECIOS UNITARIOS'!B47 -> Cuarto de mandos | C62: ='PRECIOS UNITARIOS'!C47 -> EQUIP | D62: 15 | E62: ='PRECIOS UNITARIOS'!D47 -> N° de estaciones | F62: ='PRECIOS UNITARIOS'!L47 -> 261993.7662 | G62: =CANTIDADES!B30+CANTIDADES!B31 -> 4 | H62: =CANTIDADES!C30+CANTIDADES!C31 -> 5 | J62: =HLOOKUP($C62,PARAMETROS!$C$36:$F$38,3)*L62 -> 261993.7662 | K62: =HLOOKUP($C62,PARAMETROS!$C$36:$F$38,3)*M62 -> 327492.2078 | L62: =$F62*G62 -> 1047975.065 | M62: 1309968.831 | O62: ='PRECIOS UNITARIOS'!$Z47*CHIFFRAGE_TC!L62 -> 83365.28252 | P62: ='PRECIOS UNITARIOS'!$AA47*CHIFFRAGE_TC!L62 -> 964609.7824 | Q62: ='PRECIOS UNITARIOS'!$Z47*CHIFFRAGE_TC!M62 -> 104206.6032 | R62: ='PRECIOS UNITARIOS'!$AA47*CHIFFRAGE_TC!M62 -> 1205762.228 | U62: 0.5 | V62: 0.5 | W62: 0
B63: ='PRECIOS UNITARIOS'!B48 -> Cuarto de electricidad (400V tres fases) | C63: ='PRECIOS UNITARIOS'!C48 -> EQUIP | D63: 15 | E63: ='PRECIOS UNITARIOS'!D48 -> U | F63: ='PRECIOS UNITARIOS'!L48 -> 179471.3639 | G63: =2 -> 2 | H63: =2*2 -> 4 | J63: =HLOOKUP($C63,PARAMETROS!$C$36:$F$38,3)*L63 -> 89735.68193 | K63: =HLOOKUP($C63,PARAMETROS!$C$36:$F$38,3)*M63 -> 179471.3639 | L63: 358942.7277 | M63: 717885.4554 | O63: ='PRECIOS UNITARIOS'!$Z48*CHIFFRAGE_TC!L63 -> 35986.54597 | P63: ='PRECIOS UNITARIOS'!$AA48*CHIFFRAGE_TC!L63 -> 322956.1818 | Q63: ='PRECIOS UNITARIOS'!$Z48*CHIFFRAGE_TC!M63 -> 71973.09193 | R63: ='PRECIOS UNITARIOS'!$AA48*CHIFFRAGE_TC!M63 -> 645912.3635 | U63: 0.5 | V63: 0.5 | W63: 0
B64: ='PRECIOS UNITARIOS'!B49 -> Cuarto de manejo del traslado y zona de mantenimiento | C64: ='PRECIOS UNITARIOS'!C49 -> EQUIP | D64: 15 | E64: ='PRECIOS UNITARIOS'!D49 -> U | F64: ='PRECIOS UNITARIOS'!L49 -> 72776.04618 | G64: 1 | H64: 1 | J64: =HLOOKUP($C64,PARAMETROS!$C$36:$F$38,3)*L64 -> 18194.01154 | K64: =HLOOKUP($C64,PARAMETROS!$C$36:$F$38,3)*M64 -> 18194.01154 | L64: 72776.04618 | M64: 72776.04618 | O64: ='PRECIOS UNITARIOS'!$Z49*CHIFFRAGE_TC!L64 -> 5789.255731 | P64: ='PRECIOS UNITARIOS'!$AA49*CHIFFRAGE_TC!L64 -> 66986.79045 | Q64: ='PRECIOS UNITARIOS'!$Z49*CHIFFRAGE_TC!M64 -> 5789.255731 | R64: ='PRECIOS UNITARIOS'!$AA49*CHIFFRAGE_TC!M64 -> 66986.79045 | U64: 0 | V64: 0 | W64: 1
B65: ='PRECIOS UNITARIOS'!B50 -> Alimentacion de auxilio de emergencia de la estacion motrice y del centro de mando | C65: ='PRECIOS UNITARIOS'!C50 -> EQUIP | D65: 15 | E65: ='PRECIOS UNITARIOS'!D50 -> U | F65: ='PRECIOS UNITARIOS'!L50 -> 69027.44764 | G65: =1 -> 1 | H65: =1*2 -> 2 | J65: =HLOOKUP($C65,PARAMETROS!$C$36:$F$38,3)*L65 -> 17256.86191 | K65: =HLOOKUP($C65,PARAMETROS!$C$36:$F$38,3)*M65 -> 34513.72382 | L65: 69027.44764 | M65: 138054.8953 | O65: ='PRECIOS UNITARIOS'!$Z50*CHIFFRAGE_TC!L65 -> 6920.489609 | P65: ='PRECIOS UNITARIOS'!$AA50*CHIFFRAGE_TC!L65 -> 62106.95803 | Q65: ='PRECIOS UNITARIOS'!$Z50*CHIFFRAGE_TC!M65 -> 13840.97922 | R65: ='PRECIOS UNITARIOS'!$AA50*CHIFFRAGE_TC!M65 -> 124213.9161 | U65: 0 | V65: 0 | W65: 1
B66: ='PRECIOS UNITARIOS'!B51 -> Alimentaciones auxiliarias y equipamientos electricos en las estaciones y en el taller (aire acondicionado, alumbrado, mando de las puertas de anden, etc.) | C66: ='PRECIOS UNITARIOS'!C51 -> EQUIP | D66: 15 | E66: ='PRECIOS UNITARIOS'!D51 -> Superficies cerradas (m²) | F66: ='PRECIOS UNITARIOS'!L51 -> 109.1640693 | G66: =ROUNDUP(SUM(G89:G93,G100:G104,G111:G115,G122:G126,G133:G137,G144:G148,G155:G159,G166:G170,G176:G178),-2) -> 8300 | H66: =ROUNDUP(SUM(H89:H93,H100:H104,H111:H115,H122:H126,H133:H137,H144:H148,H155:H159,H166:H170,H176:H178),-2) -> 10900 | J66: =HLOOKUP($C66,PARAMETROS!$C$36:$F$38,3)*L66 -> 226515.4437 | K66: =HLOOKUP($C66,PARAMETROS!$C$36:$F$38,3)*M66 -> 297472.0888 | L66: 906061.7749 | M66: 1189888.355 | O66: ='PRECIOS UNITARIOS'!$Z51*CHIFFRAGE_TC!L66 -> 72076.23385 | P66: ='PRECIOS UNITARIOS'!$AA51*CHIFFRAGE_TC!L66 -> 833985.5411 | Q66: ='PRECIOS UNITARIOS'!$Z51*CHIFFRAGE_TC!M66 -> 94654.3312 | R66: ='PRECIOS UNITARIOS'!$AA51*CHIFFRAGE_TC!M66 -> 1095234.024 | U66: 0.25 | V66: 0.25 | W66: 0.5
B67: ='PRECIOS UNITARIOS'!B52 -> Doble motorizacion, reductores y traccion del cable | C67: ='PRECIOS UNITARIOS'!C52 -> EQUIP | D67: 40 | E67: ='PRECIOS UNITARIOS'!D52 -> U | F67: ='PRECIOS UNITARIOS'!L52 -> 909700.5772 | G67: =2 -> 2 | H67: =2*2 -> 4 | J67: =HLOOKUP($C67,PARAMETROS!$C$36:$F$38,3)*L67 -> 454850.2886 | K67: =HLOOKUP($C67,PARAMETROS!$C$36:$F$38,3)*M67 -> 909700.5772 | L67: 1819401.154 | M67: 3638802.309 | O67: ='PRECIOS UNITARIOS'!$Z52*CHIFFRAGE_TC!L67 -> 144731.3933 | P67: ='PRECIOS UNITARIOS'!$AA52*CHIFFRAGE_TC!L67 -> 1674669.761 | Q67: ='PRECIOS UNITARIOS'!$Z52*CHIFFRAGE_TC!M67 -> 289462.7865 | R67: ='PRECIOS UNITARIOS'!$AA52*CHIFFRAGE_TC!M67 -> 3349339.522 | U67: 0 | V67: 1 | W67: 0
B68: ='PRECIOS UNITARIOS'!B53 -> Constitucion de una linea de reserva para la estacion motrice | C68: ='PRECIOS UNITARIOS'!C53 -> EQUIP | D68: 15 | E68: ='PRECIOS UNITARIOS'!D53 -> U | F68: ='PRECIOS UNITARIOS'!L53 -> 173344.9561 | G68: =1 -> 1 | H68: =1*2 -> 2 | J68: =HLOOKUP($C68,PARAMETROS!$C$36:$F$38,3)*L68 -> 43336.23902 | K68: =HLOOKUP($C68,PARAMETROS!$C$36:$F$38,3)*M68 -> 86672.47804 | L68: 173344.9561 | M68: 346689.9121 | O68: ='PRECIOS UNITARIOS'!$Z53*CHIFFRAGE_TC!L68 -> 30942.57373 | P68: ='PRECIOS UNITARIOS'!$AA53*CHIFFRAGE_TC!L68 -> 142402.3823 | Q68: ='PRECIOS UNITARIOS'!$Z53*CHIFFRAGE_TC!M68 -> 61885.14747 | R68: ='PRECIOS UNITARIOS'!$AA53*CHIFFRAGE_TC!M68 -> 284804.7647 | U68: 1 | V68: 0 | W68: 0
B70: Telecomunicaciones y boleteria | J70: =SUM(J71:J83)/L70 -> 0.25 | K70: =SUM(K71:K83)/M70 -> 0.25 | L70: =SUM(L71:L83) -> 5012306.004 | M70: 6300359.08 | O70: =SUM(O71:O83)/L70 -> 0.6349418501 | P70: =SUM(P71:P83)/L70 -> 0.3650581499 | Q70: =SUM(Q71:Q83)/M70 -> 0.6453825407 | R70: =SUM(R71:R83)/M70 -> 0.3546174593 | T70: =T$11 -> 2015 | U70: =U$11 -> 2016 | V70: =V$11 -> 2017 | W70: =W$11 -> 2018
B71: ='PRECIOS UNITARIOS'!B56 -> Consola de mandos y Tablero de control optico | C71: ='PRECIOS UNITARIOS'!C56 -> EQUIP | D71: 15 | E71: ='PRECIOS UNITARIOS'!D56 -> Forfait | F71: ='PRECIOS UNITARIOS'!L56 -> 82832.93717 | G71: 1 | H71: 1 | J71: =HLOOKUP($C71,PARAMETROS!$C$36:$F$38,3)*L71 -> 20708.23429 | K71: =HLOOKUP($C71,PARAMETROS!$C$36:$F$38,3)*M71 -> 20708.23429 | L71: =$F71*G71 -> 82832.93717 | M71: =$F71*H71 -> 82832.93717 | O71: ='PRECIOS UNITARIOS'!$Z56*CHIFFRAGE_TC!L71 -> 8304.587531 | P71: ='PRECIOS UNITARIOS'!$AA56*CHIFFRAGE_TC!L71 -> 74528.34964 | Q71: ='PRECIOS UNITARIOS'!$Z56*CHIFFRAGE_TC!M71 -> 8304.587531 | R71: ='PRECIOS UNITARIOS'!$AA56*CHIFFRAGE_TC!M71 -> 74528.34964 | U71: 0 | V71: 0.2307692308 | W71: 0.7692307692
B72: ='PRECIOS UNITARIOS'!B57 -> Red de telefonia entre estaciones | C72: ='PRECIOS UNITARIOS'!C57 -> EQUIP | D72: 15 | E72: ='PRECIOS UNITARIOS'!D57 -> N° de estaciones + 1 | F72: ='PRECIOS UNITARIOS'!L57 -> 55745.11417 | G72: =CANTIDADES!B30+CANTIDADES!B31+1 -> 5 | H72: =CANTIDADES!C30+CANTIDADES!C31+1 -> 6 | J72: =HLOOKUP($C72,PARAMETROS!$C$36:$F$38,3)*L72 -> 69681.39271 | K72: =HLOOKUP($C72,PARAMETROS!$C$36:$F$38,3)*M72 -> 83617.67126 | L72: 278725.5709 | M72: 334470.685 | O72: ='PRECIOS UNITARIOS'!$Z57*CHIFFRAGE_TC!L72 -> 24625.72573 | P72: ='PRECIOS UNITARIOS'!$AA57*CHIFFRAGE_TC!L72 -> 254099.8451 | Q72: ='PRECIOS UNITARIOS'!$Z57*CHIFFRAGE_TC!M72 -> 29550.87088 | R72: ='PRECIOS UNITARIOS'!$AA57*CHIFFRAGE_TC!M72 -> 304919.8141 | U72: 0 | V72: 0.75 | W72: 0.25
B73: ='PRECIOS UNITARIOS'!B58 -> Sonorizacion de anuncios publicos en estaciones | C73: ='PRECIOS UNITARIOS'!C58 -> EQUIP | D73: 15 | E73: ='PRECIOS UNITARIOS'!D58 -> N° de estaciones + 1 | F73: ='PRECIOS UNITARIOS'!L58 -> 44245.26624 | G73: =G72 -> 5 | H73: 6 | J73: =HLOOKUP($C73,PARAMETROS!$C$36:$F$38,3)*L73 -> 55306.5828 | K73: =HLOOKUP($C73,PARAMETROS!$C$36:$F$38,3)*M73 -> 66367.89936 | L73: 221226.3312 | M73: 265471.5975 | O73: ='PRECIOS UNITARIOS'!$Z58*CHIFFRAGE_TC!L73 -> 23854.53793 | P73: ='PRECIOS UNITARIOS'!$AA58*CHIFFRAGE_TC!L73 -> 197371.7933 | Q73: ='PRECIOS UNITARIOS'!$Z58*CHIFFRAGE_TC!M73 -> 28625.44552 | R73: ='PRECIOS UNITARIOS'!$AA58*CHIFFRAGE_TC!M73 -> 236846.1519 | U73: 0 | V73: 0.6 | W73: 0.4
B74: ='PRECIOS UNITARIOS'!B59 -> Sistema de informacion a los pasajeros en las estaciones | C74: ='PRECIOS UNITARIOS'!C59 -> EQUIP | D74: 15 | E74: ='PRECIOS UNITARIOS'!D59 -> N° de estaciones + 1 | F74: ='PRECIOS UNITARIOS'!L59 -> 34513.72382 | G74: =G72 -> 5 | H74: 6 | J74: =HLOOKUP($C74,PARAMETROS!$C$36:$F$38,3)*L74 -> 43142.15477 | K74: =HLOOKUP($C74,PARAMETROS!$C$36:$F$38,3)*M74 -> 51770.58573 | L74: 172568.6191 | M74: 207082.3429 | O74: ='PRECIOS UNITARIOS'!$Z59*CHIFFRAGE_TC!L74 -> 17301.22402 | P74: ='PRECIOS UNITARIOS'!$AA59*CHIFFRAGE_TC!L74 -> 155267.3951 | Q74: ='PRECIOS UNITARIOS'!$Z59*CHIFFRAGE_TC!M74 -> 20761.46883 | R74: ='PRECIOS UNITARIOS'!$AA59*CHIFFRAGE_TC!M74 -> 186320.8741 | U74: 0 | V74: 0.5 | W74: 0.5
B75: ='PRECIOS UNITARIOS'!B60 -> Sistema de supervision SCADA del centro de mando | C75: ='PRECIOS UNITARIOS'!C60 -> EQUIP | D75: 15 | E75: ='PRECIOS UNITARIOS'!D60 -> U | F75: ='PRECIOS UNITARIOS'!L60 -> 52223.07928 | G75: 2 | H75: 2 | J75: =HLOOKUP($C75,PARAMETROS!$C$36:$F$38,3)*L75 -> 26111.53964 | K75: =HLOOKUP($C75,PARAMETROS!$C$36:$F$38,3)*M75 -> 26111.53964 | L75: 104446.1586 | M75: 104446.1586 | O75: ='PRECIOS UNITARIOS'!$Z60*CHIFFRAGE_TC!L75 -> 12882.75758 | P75: ='PRECIOS UNITARIOS'!$AA60*CHIFFRAGE_TC!L75 -> 91563.40098 | Q75: ='PRECIOS UNITARIOS'!$Z60*CHIFFRAGE_TC!M75 -> 12882.75758 | R75: ='PRECIOS UNITARIOS'!$AA60*CHIFFRAGE_TC!M75 -> 91563.40098 | U75: 0 | V75: 0.625 | W75: 0.375
B76: ='PRECIOS UNITARIOS'!B61 -> Cronometria, relojes marcadores | C76: ='PRECIOS UNITARIOS'!C61 -> EQUIP | D76: 15 | E76: ='PRECIOS UNITARIOS'!D61 -> N° de estaciones + 1 | F76: ='PRECIOS UNITARIOS'!L61 -> 22272.94939 | G76: =G72 -> 5 | H76: 6 | J76: =HLOOKUP($C76,PARAMETROS!$C$36:$F$38,3)*L76 -> 27841.18673 | K76: =HLOOKUP($C76,PARAMETROS!$C$36:$F$38,3)*M76 -> 33409.42408 | L76: 111364.7469 | M76: 133637.6963 | O76: ='PRECIOS UNITARIOS'!$Z61*CHIFFRAGE_TC!L76 -> 86529.88553 | P76: ='PRECIOS UNITARIOS'!$AA61*CHIFFRAGE_TC!L76 -> 24834.86141 | Q76: ='PRECIOS UNITARIOS'!$Z61*CHIFFRAGE_TC!M76 -> 103835.8626 | R76: ='PRECIOS UNITARIOS'!$AA61*CHIFFRAGE_TC!M76 -> 29801.83369 | U76: 0 | V76: 0 | W76: 1
B77: ='PRECIOS UNITARIOS'!B62 -> Equipamiento embarcado en la cabinas (videocamara/interponia/DI/LCD/WIFI) | C77: ='PRECIOS UNITARIOS'!C62 -> EQUIP | D77: 15 | E77: ='PRECIOS UNITARIOS'!D62 -> N° de cabinas + reserva | F77: ='PRECIOS UNITARIOS'!L62 -> 4454.589877 | G77: =CANTIDADES!B69 -> 103 | H77: =CANTIDADES!C69 -> 148 | J77: =HLOOKUP($C77,PARAMETROS!$C$36:$F$38,3)*L77 -> 114705.6893 | K77: =HLOOKUP($C77,PARAMETROS!$C$36:$F$38,3)*M77 -> 164819.8255 | L77: 458822.7574 | M77: 659279.3019 | O77: ='PRECIOS UNITARIOS'!$Z62*CHIFFRAGE_TC!L77 -> 356503.1284 | P77: ='PRECIOS UNITARIOS'!$AA62*CHIFFRAGE_TC!L77 -> 102319.629 | Q77: ='PRECIOS UNITARIOS'!$Z62*CHIFFRAGE_TC!M77 -> 512256.9223 | R77: ='PRECIOS UNITARIOS'!$AA62*CHIFFRAGE_TC!M77 -> 147022.3795 | U77: 0 | V77: 0.6 | W77: 0.4
B78: ='PRECIOS UNITARIOS'!B63 -> Sistema de antenas y de mando securizado WIFI | C78: ='PRECIOS UNITARIOS'!C63 -> EQUIP | D78: 15 | E78: ='PRECIOS UNITARIOS'!D63 -> ml | F78: ='PRECIOS UNITARIOS'!L63 -> 204.5346901 | G78: =CANTIDADES!B22 -> 5900 | H78: =CANTIDADES!C22 -> 8100 | J78: =HLOOKUP($C78,PARAMETROS!$C$36:$F$38,3)*L78 -> 301688.668 | K78: =HLOOKUP($C78,PARAMETROS!$C$36:$F$38,3)*M78 -> 414182.7476 | L78: 1206754.672 | M78: 1656730.99 | O78: ='PRECIOS UNITARIOS'!$Z63*CHIFFRAGE_TC!L78 -> 940232.1677 | P78: ='PRECIOS UNITARIOS'!$AA63*CHIFFRAGE_TC!L78 -> 266522.5042 | Q78: ='PRECIOS UNITARIOS'!$Z63*CHIFFRAGE_TC!M78 -> 1290827.213 | R78: ='PRECIOS UNITARIOS'!$AA63*CHIFFRAGE_TC!M78 -> 365903.777 | U78: 0 | V78: 0.7692307692 | W78: 0.2307692308
B79: ='PRECIOS UNITARIOS'!B64 -> Sistema de vigilancia visio + termica por postes | C79: ='PRECIOS UNITARIOS'!C64 -> EQUIP | D79: 15 | E79: ='PRECIOS UNITARIOS'!D64 -> N° de postes + estaciones | F79: ='PRECIOS UNITARIOS'!L64 -> 33890.43613 | G79: =CANTIDADES!B29+CANTIDADES!B43 -> 41 | H79: =CANTIDADES!C29+CANTIDADES!C43 -> 50 | J79: =HLOOKUP($C79,PARAMETROS!$C$36:$F$38,3)*L79 -> 347376.9704 | K79: =HLOOKUP($C79,PARAMETROS!$C$36:$F$38,3)*M79 -> 423630.4517 | L79: 1389507.881 | M79: 1694521.807 | O79: ='PRECIOS UNITARIOS'!$Z64*CHIFFRAGE_TC!L79 -> 1074392.703 | P79: ='PRECIOS UNITARIOS'!$AA64*CHIFFRAGE_TC!L79 -> 315115.1783 | Q79: ='PRECIOS UNITARIOS'!$Z64*CHIFFRAGE_TC!M79 -> 1310235.004 | R79: ='PRECIOS UNITARIOS'!$AA64*CHIFFRAGE_TC!M79 -> 384286.8028 | U79: 0 | V79: 0.6666666667 | W79: 0.3333333333
B80: ='PRECIOS UNITARIOS'!B65 -> Sistema de vigilancia con video en estaciones | C80: ='PRECIOS UNITARIOS'!C65 -> EQUIP | D80: 15 | E80: ='PRECIOS UNITARIOS'!D65 -> N° de estaciones + 1 | F80: ='PRECIOS UNITARIOS'!L65 -> 46480.40377 | G80: =G72 -> 5 | H80: 6 | J80: =HLOOKUP($C80,PARAMETROS!$C$36:$F$38,3)*L80 -> 58100.50471 | K80: =HLOOKUP($C80,PARAMETROS!$C$36:$F$38,3)*M80 -> 69720.60565 | L80: 232402.0188 | M80: 278882.4226 | O80: ='PRECIOS UNITARIOS'!$Z65*CHIFFRAGE_TC!L80 -> 180118.1001 | P80: ='PRECIOS UNITARIOS'!$AA65*CHIFFRAGE_TC!L80 -> 52283.91875 | Q80: ='PRECIOS UNITARIOS'!$Z65*CHIFFRAGE_TC!M80 -> 216141.7201 | R80: ='PRECIOS UNITARIOS'!$AA65*CHIFFRAGE_TC!M80 -> 62740.7025 | U80: 0 | V80: 0.6 | W80: 0.4
B81: ='PRECIOS UNITARIOS'!B66 -> Sistema de deteccion incendio y de control de acceso | C81: ='PRECIOS UNITARIOS'!C66 -> EQUIP | D81: 15 | E81: ='PRECIOS UNITARIOS'!D66 -> Forfait | F81: ='PRECIOS UNITARIOS'!L66 -> 106910.1571 | G81: 1 | H81: 1 | J81: =HLOOKUP($C81,PARAMETROS!$C$36:$F$38,3)*L81 -> 26727.53926 | K81: =HLOOKUP($C81,PARAMETROS!$C$36:$F$38,3)*M81 -> 26727.53926 | L81: 106910.1571 | M81: 106910.1571 | O81: ='PRECIOS UNITARIOS'!$Z66*CHIFFRAGE_TC!L81 -> 83068.69011 | P81: ='PRECIOS UNITARIOS'!$AA66*CHIFFRAGE_TC!L81 -> 23841.46695 | Q81: ='PRECIOS UNITARIOS'!$Z66*CHIFFRAGE_TC!M81 -> 83068.69011 | R81: ='PRECIOS UNITARIOS'!$AA66*CHIFFRAGE_TC!M81 -> 23841.46695 | U81: 0 | V81: 0.6666666667 | W81: 0.3333333333
B82: ='PRECIOS UNITARIOS'!B67 -> Fibra de seguridad y equipos de transmision Ethernet | C82: ='PRECIOS UNITARIOS'!C67 -> EQUIP | D82: 15 | E82: ='PRECIOS UNITARIOS'!D67 -> N° de estaciones + 1 | F82: ='PRECIOS UNITARIOS'!L67 -> 92960.80754 | G82: =G72 -> 5 | H82: 6 | J82: =HLOOKUP($C82,PARAMETROS!$C$36:$F$38,3)*L82 -> 116201.0094 | K82: =HLOOKUP($C82,PARAMETROS!$C$36:$F$38,3)*M82 -> 139441.2113 | L82: 464804.0377 | M82: 557764.8452 | O82: ='PRECIOS UNITARIOS'!$Z67*CHIFFRAGE_TC!L82 -> 360236.2002 | P82: ='PRECIOS UNITARIOS'!$AA67*CHIFFRAGE_TC!L82 -> 104567.8375 | Q82: ='PRECIOS UNITARIOS'!$Z67*CHIFFRAGE_TC!M82 -> 432283.4402 | R82: ='PRECIOS UNITARIOS'!$AA67*CHIFFRAGE_TC!M82 -> 125481.405 | U82: 0.35 | V82: 0.45 | W82: 0.2
B83: ='PRECIOS UNITARIOS'!B68 -> Sistema de boleteria | C83: ='PRECIOS UNITARIOS'!C68 -> EQUIP | D83: 15 | E83: ='PRECIOS UNITARIOS'!D68 -> N° de estaciones + 1 | F83: ='PRECIOS UNITARIOS'!L68 -> 36388.02309 | G83: =G72 -> 5 | H83: 6 | J83: =HLOOKUP($C83,PARAMETROS!$C$36:$F$38,3)*L83 -> 45485.02886 | K83: =HLOOKUP($C83,PARAMETROS!$C$36:$F$38,3)*M83 -> 54582.03463 | L83: 181940.1154 | M83: 218328.1385 | O83: ='PRECIOS UNITARIOS'!$Z68*CHIFFRAGE_TC!L83 -> 14473.13933 | P83: ='PRECIOS UNITARIOS'!$AA68*CHIFFRAGE_TC!L83 -> 167466.9761 | Q83: ='PRECIOS UNITARIOS'!$Z68*CHIFFRAGE_TC!M83 -> 17367.76719 | R83: ='PRECIOS UNITARIOS'!$AA68*CHIFFRAGE_TC!M83 -> 200960.3713 | U83: 0 | V83: 0.75 | W83: 0.25
B85: Estaciones | J85: =SUM(J86:J173)/L85 -> 0.25 | K85: =SUM(K86:K173)/M85 -> 0.25 | L85: =L86+L97+L108+L119+L130+L141+L152+L163 -> 23260094.47 | M85: =M86+M97+M108+M119+M130+M141+M152+M163 -> 29153491.56 | O85: =(O86+O97+O108+O119+O130+O141+O152+O163)/L85 -> 0.7987053222 | P85: =(P86+P97+P108+P119+P130+P141+P152+P163)/L85 -> 0.2012946778 | Q85: =(Q86+Q97+Q108+Q119+Q130+Q141+Q152+Q163)/M85 -> 0.7976625275 | R85: =(R86+R97+R108+R119+R130+R141+R152+R163)/M85 -> 0.2023374725 | T85: =T$11 -> 2015 | U85: =U$11 -> 2016 | V85: =V$11 -> 2017 | W85: =W$11 -> 2018
B86: Edificio - Estacion Duran (Terminal) | L86: =SUM(L87:L96) -> 0 | M86: =SUM(M87:M96) -> 5112952.004 | O86: =SUM(O87:O96) -> 0 | P86: =SUM(P87:P96) -> 0 | Q86: =SUM(Q87:Q96) -> 4084892.264 | R86: =SUM(R87:R96) -> 1028059.74 | T86: =T85 -> 2015 | U86: =U85 -> 2016 | V86: 2017 | W86: 2018
B87: ='PRECIOS UNITARIOS'!B72 -> Fundaciones tipicas (edificio con piso tierra y primer piso) | C87: ='PRECIOS UNITARIOS'!C72 -> INFRA | D87: 50 | E87: ='PRECIOS UNITARIOS'!D72 -> U | F87: ='PRECIOS UNITARIOS'!L72 -> 161184.0018 | G87: 0 | H87: 0 | J87: =HLOOKUP($C87,PARAMETROS!$C$36:$F$38,3)*L87 -> 0 | K87: =HLOOKUP($C87,PARAMETROS!$C$36:$F$38,3)*M87 -> 0 | L87: =$F87*G87 -> 0 | M87: =$F87*H87 -> 0 | O87: ='PRECIOS UNITARIOS'!$Z72*CHIFFRAGE_TC!L87 -> 0 | P87: ='PRECIOS UNITARIOS'!$AA72*CHIFFRAGE_TC!L87 -> 0 | Q87: ='PRECIOS UNITARIOS'!$Z72*CHIFFRAGE_TC!M87 -> 0 | R87: ='PRECIOS UNITARIOS'!$AA72*CHIFFRAGE_TC!M87 -> 0 | U87: 0.75 | V87: 0.25
B88: ='PRECIOS UNITARIOS'!B73 -> Piso tierra sobrelevado y fundaciones | C88: ='PRECIOS UNITARIOS'!C73 -> INFRA | D88: 50 | E88: ='PRECIOS UNITARIOS'!D73 -> m2 | F88: ='PRECIOS UNITARIOS'!L73 -> 2170.828306 | G88: 0 | H88: =(H89+H90+H92+H93+H94)/2 -> 715 | J88: =HLOOKUP($C88,PARAMETROS!$C$36:$F$38,3)*L88 -> 0 | K88: =HLOOKUP($C88,PARAMETROS!$C$36:$F$38,3)*M88 -> 388035.5598 | L88: 0 | M88: 1552142.239 | O88: ='PRECIOS UNITARIOS'!$Z73*CHIFFRAGE_TC!L88 -> 0 | P88: ='PRECIOS UNITARIOS'!$AA73*CHIFFRAGE_TC!L88 -> 0 | Q88: ='PRECIOS UNITARIOS'!$Z73*CHIFFRAGE_TC!M88 -> 1253078.224 | R88: ='PRECIOS UNITARIOS'!$AA73*CHIFFRAGE_TC!M88 -> 299064.0153 | U88: 0.5 | V88: 0.5
B89: ='PRECIOS UNITARIOS'!B74 -> Superficies comerciales | C89: ='PRECIOS UNITARIOS'!C74 -> INFRA | D89: 50 | E89: ='PRECIOS UNITARIOS'!D74 -> m2 | F89: ='PRECIOS UNITARIOS'!L74 -> 700.6348359 | G89: 0 | H89: 250 | J89: =HLOOKUP($C89,PARAMETROS!$C$36:$F$38,3)*L89 -> 0 | K89: =HLOOKUP($C89,PARAMETROS!$C$36:$F$38,3)*M89 -> 43789.67725 | L89: 0 | M89: 175158.709 | O89: ='PRECIOS UNITARIOS'!$Z74*CHIFFRAGE_TC!L89 -> 0 | P89: ='PRECIOS UNITARIOS'!$AA74*CHIFFRAGE_TC!L89 -> 0 | Q89: ='PRECIOS UNITARIOS'!$Z74*CHIFFRAGE_TC!M89 -> 141409.4394 | R89: ='PRECIOS UNITARIOS'!$AA74*CHIFFRAGE_TC!M89 -> 33749.26955 | U89: 0.25 | V89: 0.75
B90: ='PRECIOS UNITARIOS'!B75 -> Ingreso y circulaciones al piso tierra (y/c servicios, escaleras mecanicas, escaleras y ascencores) | C90: ='PRECIOS UNITARIOS'!C75 -> INFRA | D90: 40 | E90: ='PRECIOS UNITARIOS'!D75 -> m2 | F90: ='PRECIOS UNITARIOS'!L75 -> 1838.595373 | G90: 0 | H90: 600 | J90: =HLOOKUP($C90,PARAMETROS!$C$36:$F$38,3)*L90 -> 0 | K90: =HLOOKUP($C90,PARAMETROS!$C$36:$F$38,3)*M90 -> 275789.306 | L90: 0 | M90: 1103157.224 | O90: ='PRECIOS UNITARIOS'!$Z75*CHIFFRAGE_TC!L90 -> 0 | P90: ='PRECIOS UNITARIOS'!$AA75*CHIFFRAGE_TC!L90 -> 0 | Q90: ='PRECIOS UNITARIOS'!$Z75*CHIFFRAGE_TC!M90 -> 862107.4449 | R90: ='PRECIOS UNITARIOS'!$AA75*CHIFFRAGE_TC!M90 -> 241049.779 | U90: 0.25 | V90: 0.75
B91: ='PRECIOS UNITARIOS'!B76 -> Escaleras mecanicas, escaleras y ascencores adicionales (piso tierra sobrelevado) | C91: ='PRECIOS UNITARIOS'!C76 -> EQUIP | D91: 15 | E91: ='PRECIOS UNITARIOS'!D76 -> U | F91: ='PRECIOS UNITARIOS'!L76 -> 373031.25 | G91: 0 | H91: 0 | J91: =HLOOKUP($C91,PARAMETROS!$C$36:$F$38,3)*L91 -> 0 | K91: =HLOOKUP($C91,PARAMETROS!$C$36:$F$38,3)*M91 -> 0 | L91: 0 | M91: 0 | O91: ='PRECIOS UNITARIOS'!$Z76*CHIFFRAGE_TC!L91 -> 0 | P91: ='PRECIOS UNITARIOS'!$AA76*CHIFFRAGE_TC!L91 -> 0 | Q91: ='PRECIOS UNITARIOS'!$Z76*CHIFFRAGE_TC!M91 -> 0 | R91: ='PRECIOS UNITARIOS'!$AA76*CHIFFRAGE_TC!M91 -> 0 | U91: 0.25 | V91: 0.75
B92: ='PRECIOS UNITARIOS'!B77 -> Anden al primer piso | C92: ='PRECIOS UNITARIOS'!C77 -> INFRA | D92: 50 | E92: ='PRECIOS UNITARIOS'!D77 -> m2 | F92: ='PRECIOS UNITARIOS'!L77 -> 1051.223607 | G92: 0 | H92: 250 | J92: =HLOOKUP($C92,PARAMETROS!$C$36:$F$38,3)*L92 -> 0 | K92: =HLOOKUP($C92,PARAMETROS!$C$36:$F$38,3)*M92 -> 65701.47546 | L92: 0 | M92: 262805.9019 | O92: ='PRECIOS UNITARIOS'!$Z77*CHIFFRAGE_TC!L92 -> 0 | P92: ='PRECIOS UNITARIOS'!$AA77*CHIFFRAGE_TC!L92 -> 0 | Q92: ='PRECIOS UNITARIOS'!$Z77*CHIFFRAGE_TC!M92 -> 212168.9265 | R92: ='PRECIOS UNITARIOS'!$AA77*CHIFFRAGE_TC!M92 -> 50636.97531 | U92: 0.25 | V92: 0.75
B93: ='PRECIOS UNITARIOS'!B78 -> Centro de mando + Locales tecnicos cubiertos | C93: ='PRECIOS UNITARIOS'!C78 -> INFRA | D93: 50 | E93: ='PRECIOS UNITARIOS'!D78 -> m2 | F93: ='PRECIOS UNITARIOS'!L78 -> 1401.269672 | G93: 0 | H93: 80 | J93: =HLOOKUP($C93,PARAMETROS!$C$36:$F$38,3)*L93 -> 0 | K93: =HLOOKUP($C93,PARAMETROS!$C$36:$F$38,3)*M93 -> 28025.39344 | L93: 0 | M93: 112101.5737 | O93: ='PRECIOS UNITARIOS'!$Z78*CHIFFRAGE_TC!L93 -> 0 | P93: ='PRECIOS UNITARIOS'!$AA78*CHIFFRAGE_TC!L93 -> 0 | Q93: ='PRECIOS UNITARIOS'!$Z78*CHIFFRAGE_TC!M93 -> 90502.04123 | R93: ='PRECIOS UNITARIOS'!$AA78*CHIFFRAGE_TC!M93 -> 21599.53251 | U93: 0.25 | V93: 0.75
B94: ='PRECIOS UNITARIOS'!B79 -> Locales tecnicos non cerrados | C94: ='PRECIOS UNITARIOS'!C79 -> INFRA | D94: 50 | E94: ='PRECIOS UNITARIOS'!D79 -> m2 | F94: ='PRECIOS UNITARIOS'!L79 -> 700.6348359 | G94: 0 | H94: 250 | J94: =HLOOKUP($C94,PARAMETROS!$C$36:$F$38,3)*L94 -> 0 | K94: =HLOOKUP($C94,PARAMETROS!$C$36:$F$38,3)*M94 -> 43789.67725 | L94: 0 | M94: 175158.709 | O94: ='PRECIOS UNITARIOS'!$Z79*CHIFFRAGE_TC!L94 -> 0 | P94: ='PRECIOS UNITARIOS'!$AA79*CHIFFRAGE_TC!L94 -> 0 | Q94: ='PRECIOS UNITARIOS'!$Z79*CHIFFRAGE_TC!M94 -> 141409.4394 | R94: ='PRECIOS UNITARIOS'!$AA79*CHIFFRAGE_TC!M94 -> 33749.26955 | U94: 0.25 | V94: 0.75
B95: ='PRECIOS UNITARIOS'!B80 -> Adecuacion urbana (demolicion, reconstruccion, mobiliario urbano, paisaje) | C95: ='PRECIOS UNITARIOS'!C80 -> INFRA | D95: 50 | E95: ='PRECIOS UNITARIOS'!D80 -> m2 | F95: ='PRECIOS UNITARIOS'!L80 -> 527.021901 | G95: 0 | H95: 2000 | J95: =HLOOKUP($C95,PARAMETROS!$C$36:$F$38,3)*L95 -> 0 | K95: =HLOOKUP($C95,PARAMETROS!$C$36:$F$38,3)*M95 -> 263510.9505 | L95: 0 | M95: 1054043.802 | O95: ='PRECIOS UNITARIOS'!$Z80*CHIFFRAGE_TC!L95 -> 0 | P95: ='PRECIOS UNITARIOS'!$AA80*CHIFFRAGE_TC!L95 -> 0 | Q95: ='PRECIOS UNITARIOS'!$Z80*CHIFFRAGE_TC!M95 -> 836542.7 | R95: ='PRECIOS UNITARIOS'!$AA80*CHIFFRAGE_TC!M95 -> 217501.102 | U95: 0.25 | V95: 0.25 | W95: 0.5
B96: ='PRECIOS UNITARIOS'!B81 -> Pasarela | C96: ='PRECIOS UNITARIOS'!C81 -> INFRA | D96: 50 | E96: ='PRECIOS UNITARIOS'!D81 -> m2 | F96: ='PRECIOS UNITARIOS'!L81 -> 1356.767692 | G96: 0 | H96: =200*2.5 -> 500 | J96: =HLOOKUP($C96,PARAMETROS!$C$36:$F$38,3)*L96 -> 0 | K96: =HLOOKUP($C96,PARAMETROS!$C$36:$F$38,3)*M96 -> 169595.9614 | L96: 0 | M96: 678383.8458 | O96: ='PRECIOS UNITARIOS'!$Z81*CHIFFRAGE_TC!L96 -> 0 | P96: ='PRECIOS UNITARIOS'!$AA81*CHIFFRAGE_TC!L96 -> 0 | Q96: ='PRECIOS UNITARIOS'!$Z81*CHIFFRAGE_TC!M96 -> 547674.0489 | R96: ='PRECIOS UNITARIOS'!$AA81*CHIFFRAGE_TC!M96 -> 130709.7969 | W96: 1
B97: Edificio - Estacion Samborondon | L97: =SUM(L98:L107) -> 5112952.004 | M97: =SUM(M98:M107) -> 5893397.092 | O97: =SUM(O98:O107) -> 4084892.264 | P97: =SUM(P98:P107) -> 1028059.74 | Q97: =SUM(Q98:Q107) -> 4676686.516 | R97: =SUM(R98:R107) -> 1216710.576 | T97: =T86 -> 2015 | U97: =U86 -> 2016 | V97: =V86 -> 2017 | W97: =W86 -> 2018
B98: ='PRECIOS UNITARIOS'!B83 -> Fundaciones tipicas (edificio con piso tierra y primer piso) | C98: ='PRECIOS UNITARIOS'!C83 -> INFRA | D98: 50 | E98: ='PRECIOS UNITARIOS'!D83 -> U | F98: ='PRECIOS UNITARIOS'!L83 -> 193746.4264 | G98: 0 | H98: 1 | J98: =HLOOKUP($C98,PARAMETROS!$C$36:$F$38,3)*L98 -> 0 | K98: =HLOOKUP($C98,PARAMETROS!$C$36:$F$38,3)*M98 -> 48436.60659 | L98: =$F98*G98 -> 0 | M98: =$F98*H98 -> 193746.4264 | O98: ='PRECIOS UNITARIOS'!$Z83*CHIFFRAGE_TC!L98 -> 0 | P98: ='PRECIOS UNITARIOS'!$AA83*CHIFFRAGE_TC!L98 -> 0 | Q98: ='PRECIOS UNITARIOS'!$Z83*CHIFFRAGE_TC!M98 -> 156415.7084 | R98: ='PRECIOS UNITARIOS'!$AA83*CHIFFRAGE_TC!M98 -> 37330.71799 | U98: 0.75 | V98: 0.25
B99: ='PRECIOS UNITARIOS'!B84 -> Piso tierra sobrelevado y fundaciones | C99: ='PRECIOS UNITARIOS'!C84 -> INFRA | D99: 50 | E99: ='PRECIOS UNITARIOS'!D84 -> m2 | F99: ='PRECIOS UNITARIOS'!L84 -> 2170.828306 | G99: =(G100+G101+G103+G104+G105)/2 -> 715 | H99: 0 | J99: =HLOOKUP($C99,PARAMETROS!$C$36:$F$38,3)*L99 -> 388035.5598 | K99: =HLOOKUP($C99,PARAMETROS!$C$36:$F$38,3)*M99 -> 0 | L99: 1552142.239 | M99: 0 | O99: ='PRECIOS UNITARIOS'!$Z84*CHIFFRAGE_TC!L99 -> 1253078.224 | P99: ='PRECIOS UNITARIOS'!$AA84*CHIFFRAGE_TC!L99 -> 299064.0153 | Q99: ='PRECIOS UNITARIOS'!$Z84*CHIFFRAGE_TC!M99 -> 0 | R99: ='PRECIOS UNITARIOS'!$AA84*CHIFFRAGE_TC!M99 -> 0 | U99: 0.5 | V99: 0.5
B100: ='PRECIOS UNITARIOS'!B85 -> Superficies comerciales | C100: ='PRECIOS UNITARIOS'!C85 -> INFRA | D100: 50 | E100: ='PRECIOS UNITARIOS'!D85 -> m2 | F100: ='PRECIOS UNITARIOS'!L85 -> 700.6348359 | G100: 250 | H100: 500 | J100: =HLOOKUP($C100,PARAMETROS!$C$36:$F$38,3)*L100 -> 43789.67725 | K100: =HLOOKUP($C100,PARAMETROS!$C$36:$F$38,3)*M100 -> 87579.35449 | L100: 175158.709 | M100: 350317.418 | O100: ='PRECIOS UNITARIOS'!$Z85*CHIFFRAGE_TC!L100 -> 141409.4394 | P100: ='PRECIOS UNITARIOS'!$AA85*CHIFFRAGE_TC!L100 -> 33749.26955 | Q100: ='PRECIOS UNITARIOS'!$Z85*CHIFFRAGE_TC!M100 -> 282818.8789 | R100: ='PRECIOS UNITARIOS'!$AA85*CHIFFRAGE_TC!M100 -> 67498.53911 | U100: 0.25 | V100: 0.75
B101: ='PRECIOS UNITARIOS'!B86 -> Ingreso y circulaciones al piso tierra (y/c servicios, escaleras mecanicas, escaleras y ascencores) | C101: ='PRECIOS UNITARIOS'!C86 -> INFRA | D101: 40 | E101: ='PRECIOS UNITARIOS'!D86 -> m2 | F101: ='PRECIOS UNITARIOS'!L86 -> 1838.595373 | G101: 600 | H101: 900 | J101: =HLOOKUP($C101,PARAMETROS!$C$36:$F$38,3)*L101 -> 275789.306 | K101: =HLOOKUP($C101,PARAMETROS!$C$36:$F$38,3)*M101 -> 413683.959 | L101: 1103157.224 | M101: 1654735.836 | O101: ='PRECIOS UNITARIOS'!$Z86*CHIFFRAGE_TC!L101 -> 862107.4449 | P101: ='PRECIOS UNITARIOS'!$AA86*CHIFFRAGE_TC!L101 -> 241049.779 | Q101: ='PRECIOS UNITARIOS'!$Z86*CHIFFRAGE_TC!M101 -> 1293161.167 | R101: ='PRECIOS UNITARIOS'!$AA86*CHIFFRAGE_TC!M101 -> 361574.6685 | U101: 0.25 | V101: 0.75
B102: ='PRECIOS UNITARIOS'!B87 -> Escaleras mecanicas, escaleras y ascencores adicionales (piso tierra sobrelevado) | C102: ='PRECIOS UNITARIOS'!C87 -> EQUIP | D102: 15 | E102: ='PRECIOS UNITARIOS'!D87 -> U | F102: ='PRECIOS UNITARIOS'!L87 -> 373031.25 | G102: 0 | H102: 0 | J102: =HLOOKUP($C102,PARAMETROS!$C$36:$F$38,3)*L102 -> 0 | K102: =HLOOKUP($C102,PARAMETROS!$C$36:$F$38,3)*M102 -> 0 | L102: 0 | M102: 0 | O102: ='PRECIOS UNITARIOS'!$Z87*CHIFFRAGE_TC!L102 -> 0 | P102: ='PRECIOS UNITARIOS'!$AA87*CHIFFRAGE_TC!L102 -> 0 | Q102: ='PRECIOS UNITARIOS'!$Z87*CHIFFRAGE_TC!M102 -> 0 | R102: ='PRECIOS UNITARIOS'!$AA87*CHIFFRAGE_TC!M102 -> 0 | U102: 0.25 | V102: 0.75
B103: ='PRECIOS UNITARIOS'!B88 -> Anden al primer piso | C103: ='PRECIOS UNITARIOS'!C88 -> INFRA | D103: 50 | E103: ='PRECIOS UNITARIOS'!D88 -> m2 | F103: ='PRECIOS UNITARIOS'!L88 -> 1051.223607 | G103: 250 | H103: 500 | J103: =HLOOKUP($C103,PARAMETROS!$C$36:$F$38,3)*L103 -> 65701.47546 | K103: =HLOOKUP($C103,PARAMETROS!$C$36:$F$38,3)*M103 -> 131402.9509 | L103: 262805.9019 | M103: 525611.8037 | O103: ='PRECIOS UNITARIOS'!$Z88*CHIFFRAGE_TC!L103 -> 212168.9265 | P103: ='PRECIOS UNITARIOS'!$AA88*CHIFFRAGE_TC!L103 -> 50636.97531 | Q103: ='PRECIOS UNITARIOS'!$Z88*CHIFFRAGE_TC!M103 -> 424337.8531 | R103: ='PRECIOS UNITARIOS'!$AA88*CHIFFRAGE_TC!M103 -> 101273.9506 | U103: 0.25 | V103: 0.75
B104: ='PRECIOS UNITARIOS'!B89 -> Centro de mando + Locales tecnicos cubiertos | C104: ='PRECIOS UNITARIOS'!C89 -> INFRA | D104: 50 | E104: ='PRECIOS UNITARIOS'!D89 -> m2 | F104: ='PRECIOS UNITARIOS'!L89 -> 1401.269672 | G104: 80 | H104: 80 | J104: =HLOOKUP($C104,PARAMETROS!$C$36:$F$38,3)*L104 -> 28025.39344 | K104: =HLOOKUP($C104,PARAMETROS!$C$36:$F$38,3)*M104 -> 28025.39344 | L104: 112101.5737 | M104: 112101.5737 | O104: ='PRECIOS UNITARIOS'!$Z89*CHIFFRAGE_TC!L104 -> 90502.04123 | P104: ='PRECIOS UNITARIOS'!$AA89*CHIFFRAGE_TC!L104 -> 21599.53251 | Q104: ='PRECIOS UNITARIOS'!$Z89*CHIFFRAGE_TC!M104 -> 90502.04123 | R104: ='PRECIOS UNITARIOS'!$AA89*CHIFFRAGE_TC!M104 -> 21599.53251 | U104: 0.25 | V104: 0.75
B105: ='PRECIOS UNITARIOS'!B90 -> Locales tecnicos non cerrados | C105: ='PRECIOS UNITARIOS'!C90 -> INFRA | D105: 50 | E105: ='PRECIOS UNITARIOS'!D90 -> m2 | F105: ='PRECIOS UNITARIOS'!L90 -> 700.6348359 | G105: 250 | H105: 350 | J105: =HLOOKUP($C105,PARAMETROS!$C$36:$F$38,3)*L105 -> 43789.67725 | K105: =HLOOKUP($C105,PARAMETROS!$C$36:$F$38,3)*M105 -> 61305.54814 | L105: 175158.709 | M105: 245222.1926 | O105: ='PRECIOS UNITARIOS'!$Z90*CHIFFRAGE_TC!L105 -> 141409.4394 | P105: ='PRECIOS UNITARIOS'!$AA90*CHIFFRAGE_TC!L105 -> 33749.26955 | Q105: ='PRECIOS UNITARIOS'!$Z90*CHIFFRAGE_TC!M105 -> 197973.2152 | R105: ='PRECIOS UNITARIOS'!$AA90*CHIFFRAGE_TC!M105 -> 47248.97737 | U105: 0.25 | V105: 0.75
B106: ='PRECIOS UNITARIOS'!B91 -> Adecuacion urbana (demolicion, reconstruccion, mobiliario urbano, paisaje) | C106: ='PRECIOS UNITARIOS'!C91 -> INFRA | D106: 50 | E106: ='PRECIOS UNITARIOS'!D91 -> m2 | F106: ='PRECIOS UNITARIOS'!L91 -> 527.021901 | G106: 2000 | H106: =6500-(H100+H101+H103+H104+H105)/2 -> 5335 | J106: =HLOOKUP($C106,PARAMETROS!$C$36:$F$38,3)*L106 -> 263510.9505 | K106: =HLOOKUP($C106,PARAMETROS!$C$36:$F$38,3)*M106 -> 702915.4605 | L106: 1054043.802 | M106: 2811661.842 | O106: ='PRECIOS UNITARIOS'!$Z91*CHIFFRAGE_TC!L106 -> 836542.7 | P106: ='PRECIOS UNITARIOS'!$AA91*CHIFFRAGE_TC!L106 -> 217501.102 | Q106: ='PRECIOS UNITARIOS'!$Z91*CHIFFRAGE_TC!M106 -> 2231477.652 | R106: ='PRECIOS UNITARIOS'!$AA91*CHIFFRAGE_TC!M106 -> 580184.1896 | U106: 0.25 | V106: 0.25 | W106: 0.5
B107: ='PRECIOS UNITARIOS'!B92 -> Pasarela | C107: ='PRECIOS UNITARIOS'!C92 -> INFRA | D107: 50 | E107: ='PRECIOS UNITARIOS'!D92 -> m2 | F107: ='PRECIOS UNITARIOS'!L92 -> 1356.767692 | G107: =200*2.5 -> 500 | H107: 0 | J107: =HLOOKUP($C107,PARAMETROS!$C$36:$F$38,3)*L107 -> 169595.9614 | K107: =HLOOKUP($C107,PARAMETROS!$C$36:$F$38,3)*M107 -> 0 | L107: 678383.8458 | M107: 0 | O107: ='PRECIOS UNITARIOS'!$Z92*CHIFFRAGE_TC!L107 -> 547674.0489 | P107: ='PRECIOS UNITARIOS'!$AA92*CHIFFRAGE_TC!L107 -> 130709.7969 | Q107: ='PRECIOS UNITARIOS'!$Z92*CHIFFRAGE_TC!M107 -> 0 | R107: ='PRECIOS UNITARIOS'!$AA92*CHIFFRAGE_TC!M107 -> 0 | W107: 1
B108: Edificio - Estacion Malecon (Terminal) | L108: =SUM(L109:L118) -> 0 | M108: =SUM(M109:M118) -> 0 | O108: =SUM(O109:O118) -> 0 | P108: =SUM(P109:P118) -> 0 | Q108: =SUM(Q109:Q118) -> 0 | R108: =SUM(R109:R118) -> 0 | T108: =T97 -> 2015 | U108: =U97 -> 2016 | V108: =V97 -> 2017 | W108: =W97 -> 2018
B109: =B98 -> Fundaciones tipicas (edificio con piso tierra y primer piso) | C109: INFRA | D109: 50 | E109: U | F109: 193746.4264 | G109: 0 | H109: 0 | J109: =HLOOKUP($C109,PARAMETROS!$C$36:$F$38,3)*L109 -> 0 | K109: =HLOOKUP($C109,PARAMETROS!$C$36:$F$38,3)*M109 -> 0 | L109: =$F109*G109 -> 0 | M109: =$F109*H109 -> 0 | O109: ='PRECIOS UNITARIOS'!$Z83*CHIFFRAGE_TC!L109 -> 0 | P109: ='PRECIOS UNITARIOS'!$AA83*CHIFFRAGE_TC!L109 -> 0 | Q109: ='PRECIOS UNITARIOS'!$Z83*CHIFFRAGE_TC!M109 -> 0 | R109: ='PRECIOS UNITARIOS'!$AA83*CHIFFRAGE_TC!M109 -> 0 | U109: 0.75 | V109: 0.25
B110: Piso tierra sobrelevado y fundaciones | C110: INFRA | D110: 50 | E110: m2 | F110: 2170.828306 | G110: 0 | H110: 0 | J110: =HLOOKUP($C110,PARAMETROS!$C$36:$F$38,3)*L110 -> 0 | K110: =HLOOKUP($C110,PARAMETROS!$C$36:$F$38,3)*M110 -> 0 | L110: 0 | M110: 0 | O110: ='PRECIOS UNITARIOS'!$Z84*CHIFFRAGE_TC!L110 -> 0 | P110: ='PRECIOS UNITARIOS'!$AA84*CHIFFRAGE_TC!L110 -> 0 | Q110: ='PRECIOS UNITARIOS'!$Z84*CHIFFRAGE_TC!M110 -> 0 | R110: ='PRECIOS UNITARIOS'!$AA84*CHIFFRAGE_TC!M110 -> 0 | U110: 0.5 | V110: 0.5
B111: Superficies comerciales | C111: INFRA | D111: 50 | E111: m2 | F111: 700.6348359 | G111: 0 | H111: 0 | J111: =HLOOKUP($C111,PARAMETROS!$C$36:$F$38,3)*L111 -> 0 | K111: =HLOOKUP($C111,PARAMETROS!$C$36:$F$38,3)*M111 -> 0 | L111: 0 | M111: 0 | O111: ='PRECIOS UNITARIOS'!$Z85*CHIFFRAGE_TC!L111 -> 0 | P111: ='PRECIOS UNITARIOS'!$AA85*CHIFFRAGE_TC!L111 -> 0 | Q111: ='PRECIOS UNITARIOS'!$Z85*CHIFFRAGE_TC!M111 -> 0 | R111: ='PRECIOS UNITARIOS'!$AA85*CHIFFRAGE_TC!M111 -> 0 | U111: 0.25 | V111: 0.75
B112: Ingreso y circulaciones al piso tierra (y/c servicios, escaleras mecanicas, escaleras y ascencores) | C112: INFRA | D112: 40 | E112: m2 | F112: 1838.595373 | G112: 0 | H112: 0 | J112: =HLOOKUP($C112,PARAMETROS!$C$36:$F$38,3)*L112 -> 0 | K112: =HLOOKUP($C112,PARAMETROS!$C$36:$F$38,3)*M112 -> 0 | L112: 0 | M112: 0 | O112: ='PRECIOS UNITARIOS'!$Z86*CHIFFRAGE_TC!L112 -> 0 | P112: ='PRECIOS UNITARIOS'!$AA86*CHIFFRAGE_TC!L112 -> 0 | Q112: ='PRECIOS UNITARIOS'!$Z86*CHIFFRAGE_TC!M112 -> 0 | R112: ='PRECIOS UNITARIOS'!$AA86*CHIFFRAGE_TC!M112 -> 0 | U112: 0.25 | V112: 0.75
B113: Escaleras mecanicas, escaleras y ascencores adicionales (piso tierra sobrelevado) | C113: EQUIP | D113: 15 | E113: U | F113: 373031.25 | G113: 0 | H113: 0 | J113: =HLOOKUP($C113,PARAMETROS!$C$36:$F$38,3)*L113 -> 0 | K113: =HLOOKUP($C113,PARAMETROS!$C$36:$F$38,3)*M113 -> 0 | L113: 0 | M113: 0 | O113: ='PRECIOS UNITARIOS'!$Z87*CHIFFRAGE_TC!L113 -> 0 | P113: ='PRECIOS UNITARIOS'!$AA87*CHIFFRAGE_TC!L113 -> 0 | Q113: ='PRECIOS UNITARIOS'!$Z87*CHIFFRAGE_TC!M113 -> 0 | R113: ='PRECIOS UNITARIOS'!$AA87*CHIFFRAGE_TC!M113 -> 0 | U113: 0.25 | V113: 0.75
B114: Anden al primer piso | C114: INFRA | D114: 50 | E114: m2 | F114: 1051.223607 | G114: 0 | H114: 0 | J114: =HLOOKUP($C114,PARAMETROS!$C$36:$F$38,3)*L114 -> 0 | K114: =HLOOKUP($C114,PARAMETROS!$C$36:$F$38,3)*M114 -> 0 | L114: 0 | M114: 0 | O114: ='PRECIOS UNITARIOS'!$Z88*CHIFFRAGE_TC!L114 -> 0 | P114: ='PRECIOS UNITARIOS'!$AA88*CHIFFRAGE_TC!L114 -> 0 | Q114: ='PRECIOS UNITARIOS'!$Z88*CHIFFRAGE_TC!M114 -> 0 | R114: ='PRECIOS UNITARIOS'!$AA88*CHIFFRAGE_TC!M114 -> 0 | U114: 0.25 | V114: 0.75
B115: Centro de mando + Locales tecnicos cubiertos | C115: INFRA | D115: 50 | E115: m2 | F115: 1401.269672 | G115: 0 | H115: 0 | J115: =HLOOKUP($C115,PARAMETROS!$C$36:$F$38,3)*L115 -> 0 | K115: =HLOOKUP($C115,PARAMETROS!$C$36:$F$38,3)*M115 -> 0 | L115: 0 | M115: 0 | O115: ='PRECIOS UNITARIOS'!$Z89*CHIFFRAGE_TC!L115 -> 0 | P115: ='PRECIOS UNITARIOS'!$AA89*CHIFFRAGE_TC!L115 -> 0 | Q115: ='PRECIOS UNITARIOS'!$Z89*CHIFFRAGE_TC!M115 -> 0 | R115: ='PRECIOS UNITARIOS'!$AA89*CHIFFRAGE_TC!M115 -> 0 | U115: 0.25 | V115: 0.75
B116: Locales tecnicos non cerrados | C116: INFRA | D116: 50 | E116: m2 | F116: 700.6348359 | G116: 0 | H116: 0 | J116: =HLOOKUP($C116,PARAMETROS!$C$36:$F$38,3)*L116 -> 0 | K116: =HLOOKUP($C116,PARAMETROS!$C$36:$F$38,3)*M116 -> 0 | L116: 0 | M116: 0 | O116: ='PRECIOS UNITARIOS'!$Z90*CHIFFRAGE_TC!L116 -> 0 | P116: ='PRECIOS UNITARIOS'!$AA90*CHIFFRAGE_TC!L116 -> 0 | Q116: ='PRECIOS UNITARIOS'!$Z90*CHIFFRAGE_TC!M116 -> 0 | R116: ='PRECIOS UNITARIOS'!$AA90*CHIFFRAGE_TC!M116 -> 0 | U116: 0.25 | V116: 0.75
B117: Adecuacion urbana (demolicion, reconstruccion, mobiliario urbano, paisaje) | C117: INFRA | D117: 50 | E117: m2 | F117: 527.021901 | G117: 0 | H117: 0 | J117: =HLOOKUP($C117,PARAMETROS!$C$36:$F$38,3)*L117 -> 0 | K117: =HLOOKUP($C117,PARAMETROS!$C$36:$F$38,3)*M117 -> 0 | L117: 0 | M117: 0 | O117: ='PRECIOS UNITARIOS'!$Z91*CHIFFRAGE_TC!L117 -> 0 | P117: ='PRECIOS UNITARIOS'!$AA91*CHIFFRAGE_TC!L117 -> 0 | Q117: ='PRECIOS UNITARIOS'!$Z91*CHIFFRAGE_TC!M117 -> 0 | R117: ='PRECIOS UNITARIOS'!$AA91*CHIFFRAGE_TC!M117 -> 0 | U117: 0.25 | V117: 0.25 | W117: 0.5
B118: Pasarela | C118: INFRA | D118: 50 | E118: m2 | F118: 1356.767692 | G118: 0 | H118: 0 | J118: =HLOOKUP($C118,PARAMETROS!$C$36:$F$38,3)*L118 -> 0 | K118: =HLOOKUP($C118,PARAMETROS!$C$36:$F$38,3)*M118 -> 0 | L118: 0 | M118: 0 | O118: ='PRECIOS UNITARIOS'!$Z92*CHIFFRAGE_TC!L118 -> 0 | P118: ='PRECIOS UNITARIOS'!$AA92*CHIFFRAGE_TC!L118 -> 0 | Q118: ='PRECIOS UNITARIOS'!$Z92*CHIFFRAGE_TC!M118 -> 0 | R118: ='PRECIOS UNITARIOS'!$AA92*CHIFFRAGE_TC!M118 -> 0 | W118: 1
B119: Edificio - Estacion Puerto Santa Ana (Sur) | L119: =SUM(L120:L129) -> 551070.1927 | M119: =SUM(M120:M129) -> 551070.1927 | O119: =SUM(O120:O129) -> 444890.9648 | P119: =SUM(P120:P129) -> 106179.2279 | Q119: =SUM(Q120:Q129) -> 444890.9648 | R119: =SUM(R120:R129) -> 106179.2279 | T119: =T108 -> 2015 | U119: =U108 -> 2016 | V119: =V108 -> 2017 | W119: =W108 -> 2018
B120: =B98 -> Fundaciones tipicas (edificio con piso tierra y primer piso) | C120: INFRA | D120: 50 | E120: U | F120: 193746.4264 | G120: 1 | H120: 1 | J120: =HLOOKUP($C120,PARAMETROS!$C$36:$F$38,3)*L120 -> 48436.60659 | K120: =HLOOKUP($C120,PARAMETROS!$C$36:$F$38,3)*M120 -> 48436.60659 | L120: =$F120*G120 -> 193746.4264 | M120: =$F120*H120 -> 193746.4264 | O120: ='PRECIOS UNITARIOS'!$Z83*CHIFFRAGE_TC!L120 -> 156415.7084 | P120: ='PRECIOS UNITARIOS'!$AA83*CHIFFRAGE_TC!L120 -> 37330.71799 | Q120: ='PRECIOS UNITARIOS'!$Z83*CHIFFRAGE_TC!M120 -> 156415.7084 | R120: ='PRECIOS UNITARIOS'!$AA83*CHIFFRAGE_TC!M120 -> 37330.71799 | U120: 0.75 | V120: 0.25
B121: Piso tierra sobrelevado y fundaciones | C121: INFRA | D121: 50 | E121: m2 | F121: 2170.828306 | G121: 0 | H121: 0 | J121: =HLOOKUP($C121,PARAMETROS!$C$36:$F$38,3)*L121 -> 0 | K121: =HLOOKUP($C121,PARAMETROS!$C$36:$F$38,3)*M121 -> 0 | L121: 0 | M121: 0 | O121: ='PRECIOS UNITARIOS'!$Z84*CHIFFRAGE_TC!L121 -> 0 | P121: ='PRECIOS UNITARIOS'!$AA84*CHIFFRAGE_TC!L121 -> 0 | Q121: ='PRECIOS UNITARIOS'!$Z84*CHIFFRAGE_TC!M121 -> 0 | R121: ='PRECIOS UNITARIOS'!$AA84*CHIFFRAGE_TC!M121 -> 0 | U121: 0.5 | V121: 0.5
B122: Superficies comerciales | C122: INFRA | D122: 50 | E122: m2 | F122: 700.6348359 | G122: 0 | H122: 0 | J122: =HLOOKUP($C122,PARAMETROS!$C$36:$F$38,3)*L122 -> 0 | K122: =HLOOKUP($C122,PARAMETROS!$C$36:$F$38,3)*M122 -> 0 | L122: 0 | M122: 0 | O122: ='PRECIOS UNITARIOS'!$Z85*CHIFFRAGE_TC!L122 -> 0 | P122: ='PRECIOS UNITARIOS'!$AA85*CHIFFRAGE_TC!L122 -> 0 | Q122: ='PRECIOS UNITARIOS'!$Z85*CHIFFRAGE_TC!M122 -> 0 | R122: ='PRECIOS UNITARIOS'!$AA85*CHIFFRAGE_TC!M122 -> 0 | U122: 0.25 | V122: 0.75
B123: Ingreso y circulaciones al piso tierra (y/c servicios, escaleras mecanicas, escaleras y ascencores) | C123: INFRA | D123: 40 | E123: m2 | F123: 1838.595373 | G123: 0 | H123: 0 | J123: =HLOOKUP($C123,PARAMETROS!$C$36:$F$38,3)*L123 -> 0 | K123: =HLOOKUP($C123,PARAMETROS!$C$36:$F$38,3)*M123 -> 0 | L123: 0 | M123: 0 | O123: ='PRECIOS UNITARIOS'!$Z86*CHIFFRAGE_TC!L123 -> 0 | P123: ='PRECIOS UNITARIOS'!$AA86*CHIFFRAGE_TC!L123 -> 0 | Q123: ='PRECIOS UNITARIOS'!$Z86*CHIFFRAGE_TC!M123 -> 0 | R123: ='PRECIOS UNITARIOS'!$AA86*CHIFFRAGE_TC!M123 -> 0 | U123: 0.25 | V123: 0.75
B124: Escaleras mecanicas, escaleras y ascencores adicionales (piso tierra sobrelevado) | C124: EQUIP | D124: 15 | E124: U | F124: 373031.25 | G124: 0 | H124: 0 | J124: =HLOOKUP($C124,PARAMETROS!$C$36:$F$38,3)*L124 -> 0 | K124: =HLOOKUP($C124,PARAMETROS!$C$36:$F$38,3)*M124 -> 0 | L124: 0 | M124: 0 | O124: ='PRECIOS UNITARIOS'!$Z87*CHIFFRAGE_TC!L124 -> 0 | P124: ='PRECIOS UNITARIOS'!$AA87*CHIFFRAGE_TC!L124 -> 0 | Q124: ='PRECIOS UNITARIOS'!$Z87*CHIFFRAGE_TC!M124 -> 0 | R124: ='PRECIOS UNITARIOS'!$AA87*CHIFFRAGE_TC!M124 -> 0 | U124: 0.25 | V124: 0.75
B125: Anden al primer piso | C125: INFRA | D125: 50 | E125: m2 | F125: 1051.223607 | G125: 0 | H125: 0 | J125: =HLOOKUP($C125,PARAMETROS!$C$36:$F$38,3)*L125 -> 0 | K125: =HLOOKUP($C125,PARAMETROS!$C$36:$F$38,3)*M125 -> 0 | L125: 0 | M125: 0 | O125: ='PRECIOS UNITARIOS'!$Z88*CHIFFRAGE_TC!L125 -> 0 | P125: ='PRECIOS UNITARIOS'!$AA88*CHIFFRAGE_TC!L125 -> 0 | Q125: ='PRECIOS UNITARIOS'!$Z88*CHIFFRAGE_TC!M125 -> 0 | R125: ='PRECIOS UNITARIOS'!$AA88*CHIFFRAGE_TC!M125 -> 0 | U125: 0.25 | V125: 0.75
B126: Centro de mando + Locales tecnicos cubiertos | C126: INFRA | D126: 50 | E126: m2 | F126: 1401.269672 | G126: 80 | H126: 80 | J126: =HLOOKUP($C126,PARAMETROS!$C$36:$F$38,3)*L126 -> 28025.39344 | K126: =HLOOKUP($C126,PARAMETROS!$C$36:$F$38,3)*M126 -> 28025.39344 | L126: 112101.5737 | M126: 112101.5737 | O126: ='PRECIOS UNITARIOS'!$Z89*CHIFFRAGE_TC!L126 -> 90502.04123 | P126: ='PRECIOS UNITARIOS'!$AA89*CHIFFRAGE_TC!L126 -> 21599.53251 | Q126: ='PRECIOS UNITARIOS'!$Z89*CHIFFRAGE_TC!M126 -> 90502.04123 | R126: ='PRECIOS UNITARIOS'!$AA89*CHIFFRAGE_TC!M126 -> 21599.53251 | U126: 0.25 | V126: 0.75
B127: Locales tecnicos non cerrados | C127: INFRA | D127: 50 | E127: m2 | F127: 700.6348359 | G127: 350 | H127: 350 | J127: =HLOOKUP($C127,PARAMETROS!$C$36:$F$38,3)*L127 -> 61305.54814 | K127: =HLOOKUP($C127,PARAMETROS!$C$36:$F$38,3)*M127 -> 61305.54814 | L127: 245222.1926 | M127: 245222.1926 | O127: ='PRECIOS UNITARIOS'!$Z90*CHIFFRAGE_TC!L127 -> 197973.2152 | P127: ='PRECIOS UNITARIOS'!$AA90*CHIFFRAGE_TC!L127 -> 47248.97737 | Q127: ='PRECIOS UNITARIOS'!$Z90*CHIFFRAGE_TC!M127 -> 197973.2152 | R127: ='PRECIOS UNITARIOS'!$AA90*CHIFFRAGE_TC!M127 -> 47248.97737 | U127: 0.25 | V127: 0.75
B128: Adecuacion urbana (demolicion, reconstruccion, mobiliario urbano, paisaje) | C128: INFRA | D128: 50 | E128: m2 | F128: 527.021901 | G128: 0 | H128: 0 | J128: =HLOOKUP($C128,PARAMETROS!$C$36:$F$38,3)*L128 -> 0 | K128: =HLOOKUP($C128,PARAMETROS!$C$36:$F$38,3)*M128 -> 0 | L128: 0 | M128: 0 | O128: ='PRECIOS UNITARIOS'!$Z91*CHIFFRAGE_TC!L128 -> 0 | P128: ='PRECIOS UNITARIOS'!$AA91*CHIFFRAGE_TC!L128 -> 0 | Q128: ='PRECIOS UNITARIOS'!$Z91*CHIFFRAGE_TC!M128 -> 0 | R128: ='PRECIOS UNITARIOS'!$AA91*CHIFFRAGE_TC!M128 -> 0 | U128: 0.25 | V128: 0.25 | W128: 0.5
B129: Pasarela | C129: INFRA | D129: 50 | E129: m2 | F129: 1356.767692 | G129: 0 | H129: 0 | J129: =HLOOKUP($C129,PARAMETROS!$C$36:$F$38,3)*L129 -> 0 | K129: =HLOOKUP($C129,PARAMETROS!$C$36:$F$38,3)*M129 -> 0 | L129: 0 | M129: 0 | O129: ='PRECIOS UNITARIOS'!$Z92*CHIFFRAGE_TC!L129 -> 0 | P129: ='PRECIOS UNITARIOS'!$AA92*CHIFFRAGE_TC!L129 -> 0 | Q129: ='PRECIOS UNITARIOS'!$Z92*CHIFFRAGE_TC!M129 -> 0 | R129: ='PRECIOS UNITARIOS'!$AA92*CHIFFRAGE_TC!M129 -> 0 | W129: 1
B130: Edificio - Estacion Malecon Centro Cultural | L130: =SUM(L131:L140) -> 7508471.522 | M130: =SUM(M131:M140) -> 7508471.522 | O130: =SUM(O131:O140) -> 5979787.735 | P130: =SUM(P131:P140) -> 1528683.787 | Q130: =SUM(Q131:Q140) -> 5979787.735 | R130: =SUM(R131:R140) -> 1528683.787 | T130: =T119 -> 2015 | U130: =U119 -> 2016 | V130: =V119 -> 2017 | W130: =W119 -> 2018
B131: =B98 -> Fundaciones tipicas (edificio con piso tierra y primer piso) | C131: INFRA | D131: 50 | E131: U | F131: 193746.4264 | G131: 0 | H131: 0 | J131: =HLOOKUP($C131,PARAMETROS!$C$36:$F$38,3)*L131 -> 0 | K131: =HLOOKUP($C131,PARAMETROS!$C$36:$F$38,3)*M131 -> 0 | L131: =$F131*G131 -> 0 | M131: =$F131*H131 -> 0 | O131: ='PRECIOS UNITARIOS'!$Z83*CHIFFRAGE_TC!L131 -> 0 | P131: ='PRECIOS UNITARIOS'!$AA83*CHIFFRAGE_TC!L131 -> 0 | Q131: ='PRECIOS UNITARIOS'!$Z83*CHIFFRAGE_TC!M131 -> 0 | R131: ='PRECIOS UNITARIOS'!$AA83*CHIFFRAGE_TC!M131 -> 0 | U131: 0.75 | V131: 0.25
B132: Piso tierra sobrelevado y fundaciones | C132: INFRA | D132: 50 | E132: m2 | F132: 2170.828306 | G132: 1200 | H132: 1200 | J132: =HLOOKUP($C132,PARAMETROS!$C$36:$F$38,3)*L132 -> 651248.4919 | K132: =HLOOKUP($C132,PARAMETROS!$C$36:$F$38,3)*M132 -> 651248.4919 | L132: 2604993.968 | M132: 2604993.968 | O132: ='PRECIOS UNITARIOS'!$Z84*CHIFFRAGE_TC!L132 -> 2103068.348 | P132: ='PRECIOS UNITARIOS'!$AA84*CHIFFRAGE_TC!L132 -> 501925.62 | Q132: ='PRECIOS UNITARIOS'!$Z84*CHIFFRAGE_TC!M132 -> 2103068.348 | R132: ='PRECIOS UNITARIOS'!$AA84*CHIFFRAGE_TC!M132 -> 501925.62 | U132: 0.5 | V132: 0.5
B133: Superficies comerciales | C133: INFRA | D133: 50 | E133: m2 | F133: 700.6348359 | G133: 500 | H133: 500 | J133: =HLOOKUP($C133,PARAMETROS!$C$36:$F$38,3)*L133 -> 87579.35449 | K133: =HLOOKUP($C133,PARAMETROS!$C$36:$F$38,3)*M133 -> 87579.35449 | L133: 350317.418 | M133: 350317.418 | O133: ='PRECIOS UNITARIOS'!$Z85*CHIFFRAGE_TC!L133 -> 282818.8789 | P133: ='PRECIOS UNITARIOS'!$AA85*CHIFFRAGE_TC!L133 -> 67498.53911 | Q133: ='PRECIOS UNITARIOS'!$Z85*CHIFFRAGE_TC!M133 -> 282818.8789 | R133: ='PRECIOS UNITARIOS'!$AA85*CHIFFRAGE_TC!M133 -> 67498.53911 | U133: 0.25 | V133: 0.75
B134: Ingreso y circulaciones al piso tierra (y/c servicios, escaleras mecanicas, escaleras y ascencores) | C134: INFRA | D134: 40 | E134: m2 | F134: 1838.595373 | G134: 1650 | H134: 1650 | J134: =HLOOKUP($C134,PARAMETROS!$C$36:$F$38,3)*L134 -> 758420.5914 | K134: =HLOOKUP($C134,PARAMETROS!$C$36:$F$38,3)*M134 -> 758420.5914 | L134: 3033682.366 | M134: 3033682.366 | O134: ='PRECIOS UNITARIOS'!$Z86*CHIFFRAGE_TC!L134 -> 2370795.474 | P134: ='PRECIOS UNITARIOS'!$AA86*CHIFFRAGE_TC!L134 -> 662886.8923 | Q134: ='PRECIOS UNITARIOS'!$Z86*CHIFFRAGE_TC!M134 -> 2370795.474 | R134: ='PRECIOS UNITARIOS'!$AA86*CHIFFRAGE_TC!M134 -> 662886.8923 | U134: 0.25 | V134: 0.75
B135: Escaleras mecanicas, escaleras y ascencores adicionales (piso tierra sobrelevado) | C135: EQUIP | D135: 15 | E135: U | F135: 373031.25 | G135: 1 | H135: 1 | J135: =HLOOKUP($C135,PARAMETROS!$C$36:$F$38,3)*L135 -> 93257.8125 | K135: =HLOOKUP($C135,PARAMETROS!$C$36:$F$38,3)*M135 -> 93257.8125 | L135: 373031.25 | M135: 373031.25 | O135: ='PRECIOS UNITARIOS'!$Z87*CHIFFRAGE_TC!L135 -> 301156.25 | P135: ='PRECIOS UNITARIOS'!$AA87*CHIFFRAGE_TC!L135 -> 71875 | Q135: ='PRECIOS UNITARIOS'!$Z87*CHIFFRAGE_TC!M135 -> 301156.25 | R135: ='PRECIOS UNITARIOS'!$AA87*CHIFFRAGE_TC!M135 -> 71875 | U135: 0.25 | V135: 0.75
B136: Anden al primer piso | C136: INFRA | D136: 50 | E136: m2 | F136: 1051.223607 | G136: 500 | H136: 500 | J136: =HLOOKUP($C136,PARAMETROS!$C$36:$F$38,3)*L136 -> 131402.9509 | K136: =HLOOKUP($C136,PARAMETROS!$C$36:$F$38,3)*M136 -> 131402.9509 | L136: 525611.8037 | M136: 525611.8037 | O136: ='PRECIOS UNITARIOS'!$Z88*CHIFFRAGE_TC!L136 -> 424337.8531 | P136: ='PRECIOS UNITARIOS'!$AA88*CHIFFRAGE_TC!L136 -> 101273.9506 | Q136: ='PRECIOS UNITARIOS'!$Z88*CHIFFRAGE_TC!M136 -> 424337.8531 | R136: ='PRECIOS UNITARIOS'!$AA88*CHIFFRAGE_TC!M136 -> 101273.9506 | U136: 0.25 | V136: 0.75
B137: Centro de mando + Locales tecnicos cubiertos | C137: INFRA | D137: 50 | E137: m2 | F137: 1401.269672 | G137: 80 | H137: 80 | J137: =HLOOKUP($C137,PARAMETROS!$C$36:$F$38,3)*L137 -> 28025.39344 | K137: =HLOOKUP($C137,PARAMETROS!$C$36:$F$38,3)*M137 -> 28025.39344 | L137: 112101.5737 | M137: 112101.5737 | O137: ='PRECIOS UNITARIOS'!$Z89*CHIFFRAGE_TC!L137 -> 90502.04123 | P137: ='PRECIOS UNITARIOS'!$AA89*CHIFFRAGE_TC!L137 -> 21599.53251 | Q137: ='PRECIOS UNITARIOS'!$Z89*CHIFFRAGE_TC!M137 -> 90502.04123 | R137: ='PRECIOS UNITARIOS'!$AA89*CHIFFRAGE_TC!M137 -> 21599.53251 | U137: 0.25 | V137: 0.75
B138: Locales tecnicos non cerrados | C138: INFRA | D138: 50 | E138: m2 | F138: 700.6348359 | G138: 350 | H138: 350 | J138: =HLOOKUP($C138,PARAMETROS!$C$36:$F$38,3)*L138 -> 61305.54814 | K138: =HLOOKUP($C138,PARAMETROS!$C$36:$F$38,3)*M138 -> 61305.54814 | L138: 245222.1926 | M138: 245222.1926 | O138: ='PRECIOS UNITARIOS'!$Z90*CHIFFRAGE_TC!L138 -> 197973.2152 | P138: ='PRECIOS UNITARIOS'!$AA90*CHIFFRAGE_TC!L138 -> 47248.97737 | Q138: ='PRECIOS UNITARIOS'!$Z90*CHIFFRAGE_TC!M138 -> 197973.2152 | R138: ='PRECIOS UNITARIOS'!$AA90*CHIFFRAGE_TC!M138 -> 47248.97737 | U138: 0.25 | V138: 0.75
B139: Adecuacion urbana (demolicion, reconstruccion, mobiliario urbano, paisaje) | C139: INFRA | D139: 50 | E139: m2 | F139: 527.021901 | G139: 500 | H139: 500 | J139: =HLOOKUP($C139,PARAMETROS!$C$36:$F$38,3)*L139 -> 65877.73762 | K139: =HLOOKUP($C139,PARAMETROS!$C$36:$F$38,3)*M139 -> 65877.73762 | L139: 263510.9505 | M139: 263510.9505 | O139: ='PRECIOS UNITARIOS'!$Z91*CHIFFRAGE_TC!L139 -> 209135.675 | P139: ='PRECIOS UNITARIOS'!$AA91*CHIFFRAGE_TC!L139 -> 54375.2755 | Q139: ='PRECIOS UNITARIOS'!$Z91*CHIFFRAGE_TC!M139 -> 209135.675 | R139: ='PRECIOS UNITARIOS'!$AA91*CHIFFRAGE_TC!M139 -> 54375.2755 | U139: 0.25 | V139: 0.25 | W139: 0.5
B140: Pasarela | C140: INFRA | D140: 50 | E140: m2 | F140: 1356.767692 | G140: 0 | H140: 0 | J140: =HLOOKUP($C140,PARAMETROS!$C$36:$F$38,3)*L140 -> 0 | K140: =HLOOKUP($C140,PARAMETROS!$C$36:$F$38,3)*M140 -> 0 | L140: 0 | M140: 0 | O140: ='PRECIOS UNITARIOS'!$Z92*CHIFFRAGE_TC!L140 -> 0 | P140: ='PRECIOS UNITARIOS'!$AA92*CHIFFRAGE_TC!L140 -> 0 | Q140: ='PRECIOS UNITARIOS'!$Z92*CHIFFRAGE_TC!M140 -> 0 | R140: ='PRECIOS UNITARIOS'!$AA92*CHIFFRAGE_TC!M140 -> 0 | W140: 1
B141: Edificio - Estacion Cimentero (Tecnica) | L141: =SUM(L142:L151) -> 551070.1927 | M141: =SUM(M142:M151) -> 551070.1927 | O141: =SUM(O142:O151) -> 444890.9648 | P141: =SUM(P142:P151) -> 106179.2279 | Q141: =SUM(Q142:Q151) -> 444890.9648 | R141: =SUM(R142:R151) -> 106179.2279 | T141: =T130 -> 2015 | U141: =U130 -> 2016 | V141: =V130 -> 2017 | W141: =W130 -> 2018
B142: =B98 -> Fundaciones tipicas (edificio con piso tierra y primer piso) | C142: INFRA | D142: 50 | E142: U | F142: 193746.4264 | G142: 1 | H142: 1 | J142: =HLOOKUP($C142,PARAMETROS!$C$36:$F$38,3)*L142 -> 48436.60659 | K142: =HLOOKUP($C142,PARAMETROS!$C$36:$F$38,3)*M142 -> 48436.60659 | L142: =$F142*G142 -> 193746.4264 | M142: =$F142*H142 -> 193746.4264 | O142: ='PRECIOS UNITARIOS'!$Z83*CHIFFRAGE_TC!L142 -> 156415.7084 | P142: ='PRECIOS UNITARIOS'!$AA83*CHIFFRAGE_TC!L142 -> 37330.71799 | Q142: ='PRECIOS UNITARIOS'!$Z83*CHIFFRAGE_TC!M142 -> 156415.7084 | R142: ='PRECIOS UNITARIOS'!$AA83*CHIFFRAGE_TC!M142 -> 37330.71799 | U142: 0.75 | V142: 0.25
B143: Piso tierra sobrelevado y fundaciones | C143: INFRA | D143: 50 | E143: m2 | F143: 2170.828306 | G143: 0 | H143: 0 | J143: =HLOOKUP($C143,PARAMETROS!$C$36:$F$38,3)*L143 -> 0 | K143: =HLOOKUP($C143,PARAMETROS!$C$36:$F$38,3)*M143 -> 0 | L143: 0 | M143: 0 | O143: ='PRECIOS UNITARIOS'!$Z84*CHIFFRAGE_TC!L143 -> 0 | P143: ='PRECIOS UNITARIOS'!$AA84*CHIFFRAGE_TC!L143 -> 0 | Q143: ='PRECIOS UNITARIOS'!$Z84*CHIFFRAGE_TC!M143 -> 0 | R143: ='PRECIOS UNITARIOS'!$AA84*CHIFFRAGE_TC!M143 -> 0 | U143: 0.5 | V143: 0.5
B144: Superficies comerciales | C144: INFRA | D144: 50 | E144: m2 | F144: 700.6348359 | G144: 0 | H144: 0 | J144: =HLOOKUP($C144,PARAMETROS!$C$36:$F$38,3)*L144 -> 0 | K144: =HLOOKUP($C144,PARAMETROS!$C$36:$F$38,3)*M144 -> 0 | L144: 0 | M144: 0 | O144: ='PRECIOS UNITARIOS'!$Z85*CHIFFRAGE_TC!L144 -> 0 | P144: ='PRECIOS UNITARIOS'!$AA85*CHIFFRAGE_TC!L144 -> 0 | Q144: ='PRECIOS UNITARIOS'!$Z85*CHIFFRAGE_TC!M144 -> 0 | R144: ='PRECIOS UNITARIOS'!$AA85*CHIFFRAGE_TC!M144 -> 0 | U144: 0.25 | V144: 0.75
B145: Ingreso y circulaciones al piso tierra (y/c servicios, escaleras mecanicas, escaleras y ascencores) | C145: INFRA | D145: 40 | E145: m2 | F145: 1838.595373 | G145: 0 | H145: 0 | J145: =HLOOKUP($C145,PARAMETROS!$C$36:$F$38,3)*L145 -> 0 | K145: =HLOOKUP($C145,PARAMETROS!$C$36:$F$38,3)*M145 -> 0 | L145: 0 | M145: 0 | O145: ='PRECIOS UNITARIOS'!$Z86*CHIFFRAGE_TC!L145 -> 0 | P145: ='PRECIOS UNITARIOS'!$AA86*CHIFFRAGE_TC!L145 -> 0 | Q145: ='PRECIOS UNITARIOS'!$Z86*CHIFFRAGE_TC!M145 -> 0 | R145: ='PRECIOS UNITARIOS'!$AA86*CHIFFRAGE_TC!M145 -> 0 | U145: 0.25 | V145: 0.75
B146: Escaleras mecanicas, escaleras y ascencores adicionales (piso tierra sobrelevado) | C146: EQUIP | D146: 15 | E146: U | F146: 373031.25 | G146: 0 | H146: 0 | J146: =HLOOKUP($C146,PARAMETROS!$C$36:$F$38,3)*L146 -> 0 | K146: =HLOOKUP($C146,PARAMETROS!$C$36:$F$38,3)*M146 -> 0 | L146: 0 | M146: 0 | O146: ='PRECIOS UNITARIOS'!$Z87*CHIFFRAGE_TC!L146 -> 0 | P146: ='PRECIOS UNITARIOS'!$AA87*CHIFFRAGE_TC!L146 -> 0 | Q146: ='PRECIOS UNITARIOS'!$Z87*CHIFFRAGE_TC!M146 -> 0 | R146: ='PRECIOS UNITARIOS'!$AA87*CHIFFRAGE_TC!M146 -> 0 | U146: 0.25 | V146: 0.75
B147: Anden al primer piso | C147: INFRA | D147: 50 | E147: m2 | F147: 1051.223607 | G147: 0 | H147: 0 | J147: =HLOOKUP($C147,PARAMETROS!$C$36:$F$38,3)*L147 -> 0 | K147: =HLOOKUP($C147,PARAMETROS!$C$36:$F$38,3)*M147 -> 0 | L147: 0 | M147: 0 | O147: ='PRECIOS UNITARIOS'!$Z88*CHIFFRAGE_TC!L147 -> 0 | P147: ='PRECIOS UNITARIOS'!$AA88*CHIFFRAGE_TC!L147 -> 0 | Q147: ='PRECIOS UNITARIOS'!$Z88*CHIFFRAGE_TC!M147 -> 0 | R147: ='PRECIOS UNITARIOS'!$AA88*CHIFFRAGE_TC!M147 -> 0 | U147: 0.25 | V147: 0.75
B148: Centro de mando + Locales tecnicos cubiertos | C148: INFRA | D148: 50 | E148: m2 | F148: 1401.269672 | G148: 80 | H148: 80 | J148: =HLOOKUP($C148,PARAMETROS!$C$36:$F$38,3)*L148 -> 28025.39344 | K148: =HLOOKUP($C148,PARAMETROS!$C$36:$F$38,3)*M148 -> 28025.39344 | L148: 112101.5737 | M148: 112101.5737 | O148: ='PRECIOS UNITARIOS'!$Z89*CHIFFRAGE_TC!L148 -> 90502.04123 | P148: ='PRECIOS UNITARIOS'!$AA89*CHIFFRAGE_TC!L148 -> 21599.53251 | Q148: ='PRECIOS UNITARIOS'!$Z89*CHIFFRAGE_TC!M148 -> 90502.04123 | R148: ='PRECIOS UNITARIOS'!$AA89*CHIFFRAGE_TC!M148 -> 21599.53251 | U148: 0.25 | V148: 0.75
B149: Locales tecnicos non cerrados | C149: INFRA | D149: 50 | E149: m2 | F149: 700.6348359 | G149: 350 | H149: 350 | J149: =HLOOKUP($C149,PARAMETROS!$C$36:$F$38,3)*L149 -> 61305.54814 | K149: =HLOOKUP($C149,PARAMETROS!$C$36:$F$38,3)*M149 -> 61305.54814 | L149: 245222.1926 | M149: 245222.1926 | O149: ='PRECIOS UNITARIOS'!$Z90*CHIFFRAGE_TC!L149 -> 197973.2152 | P149: ='PRECIOS UNITARIOS'!$AA90*CHIFFRAGE_TC!L149 -> 47248.97737 | Q149: ='PRECIOS UNITARIOS'!$Z90*CHIFFRAGE_TC!M149 -> 197973.2152 | R149: ='PRECIOS UNITARIOS'!$AA90*CHIFFRAGE_TC!M149 -> 47248.97737 | U149: 0.25 | V149: 0.75
B150: Adecuacion urbana (demolicion, reconstruccion, mobiliario urbano, paisaje) | C150: INFRA | D150: 50 | E150: m2 | F150: 527.021901 | G150: 0 | H150: 0 | J150: =HLOOKUP($C150,PARAMETROS!$C$36:$F$38,3)*L150 -> 0 | K150: =HLOOKUP($C150,PARAMETROS!$C$36:$F$38,3)*M150 -> 0 | L150: 0 | M150: 0 | O150: ='PRECIOS UNITARIOS'!$Z91*CHIFFRAGE_TC!L150 -> 0 | P150: ='PRECIOS UNITARIOS'!$AA91*CHIFFRAGE_TC!L150 -> 0 | Q150: ='PRECIOS UNITARIOS'!$Z91*CHIFFRAGE_TC!M150 -> 0 | R150: ='PRECIOS UNITARIOS'!$AA91*CHIFFRAGE_TC!M150 -> 0 | U150: 0.25 | V150: 0.25 | W150: 0.5
B151: Pasarela | C151: INFRA | D151: 50 | E151: m2 | F151: 1356.767692 | G151: 0 | H151: 0 | J151: =HLOOKUP($C151,PARAMETROS!$C$36:$F$38,3)*L151 -> 0 | K151: =HLOOKUP($C151,PARAMETROS!$C$36:$F$38,3)*M151 -> 0 | L151: 0 | M151: 0 | O151: ='PRECIOS UNITARIOS'!$Z92*CHIFFRAGE_TC!L151 -> 0 | P151: ='PRECIOS UNITARIOS'!$AA92*CHIFFRAGE_TC!L151 -> 0 | Q151: ='PRECIOS UNITARIOS'!$Z92*CHIFFRAGE_TC!M151 -> 0 | R151: ='PRECIOS UNITARIOS'!$AA92*CHIFFRAGE_TC!M151 -> 0 | W151: 1
B152: Edificio - Avenida Quito | L152: =SUM(L153:L162) -> 7284142.14 | M152: =SUM(M153:M162) -> 7284142.14 | O152: =SUM(O153:O162) -> 5817477.537 | P152: =SUM(P153:P162) -> 1466664.603 | Q152: =SUM(Q153:Q162) -> 5817477.537 | R152: =SUM(R153:R162) -> 1466664.603 | T152: =T141 -> 2015 | U152: =U141 -> 2016 | V152: =V141 -> 2017 | W152: =W141 -> 2018
B153: =B98 -> Fundaciones tipicas (edificio con piso tierra y primer piso) | C153: INFRA | D153: 50 | E153: U | F153: 193746.4264 | G153: 0 | H153: 0 | J153: =HLOOKUP($C153,PARAMETROS!$C$36:$F$38,3)*L153 -> 0 | K153: =HLOOKUP($C153,PARAMETROS!$C$36:$F$38,3)*M153 -> 0 | L153: =$F153*G153 -> 0 | M153: =$F153*H153 -> 0 | O153: ='PRECIOS UNITARIOS'!$Z83*CHIFFRAGE_TC!L153 -> 0 | P153: ='PRECIOS UNITARIOS'!$AA83*CHIFFRAGE_TC!L153 -> 0 | Q153: ='PRECIOS UNITARIOS'!$Z83*CHIFFRAGE_TC!M153 -> 0 | R153: ='PRECIOS UNITARIOS'!$AA83*CHIFFRAGE_TC!M153 -> 0 | U153: 0.75 | V153: 0.25
B154: Piso tierra sobrelevado y fundaciones | C154: INFRA | D154: 50 | E154: m2 | F154: 2170.828306 | G154: =(G155+G156+G158+G159+G160)/2 -> 1165 | H154: =(H155+H156+H158+H159+H160)/2 -> 1165 | J154: =HLOOKUP($C154,PARAMETROS!$C$36:$F$38,3)*L154 -> 632253.7443 | K154: =HLOOKUP($C154,PARAMETROS!$C$36:$F$38,3)*M154 -> 632253.7443 | L154: 2529014.977 | M154: 2529014.977 | O154: ='PRECIOS UNITARIOS'!$Z84*CHIFFRAGE_TC!L154 -> 2041728.854 | P154: ='PRECIOS UNITARIOS'!$AA84*CHIFFRAGE_TC!L154 -> 487286.1228 | Q154: ='PRECIOS UNITARIOS'!$Z84*CHIFFRAGE_TC!M154 -> 2041728.854 | R154: ='PRECIOS UNITARIOS'!$AA84*CHIFFRAGE_TC!M154 -> 487286.1228 | U154: 0.5 | V154: 0.5
B155: Superficies comerciales | C155: INFRA | D155: 50 | E155: m2 | F155: 700.6348359 | G155: 500 | H155: 500 | J155: =HLOOKUP($C155,PARAMETROS!$C$36:$F$38,3)*L155 -> 87579.35449 | K155: =HLOOKUP($C155,PARAMETROS!$C$36:$F$38,3)*M155 -> 87579.35449 | L155: 350317.418 | M155: 350317.418 | O155: ='PRECIOS UNITARIOS'!$Z85*CHIFFRAGE_TC!L155 -> 282818.8789 | P155: ='PRECIOS UNITARIOS'!$AA85*CHIFFRAGE_TC!L155 -> 67498.53911 | Q155: ='PRECIOS UNITARIOS'!$Z85*CHIFFRAGE_TC!M155 -> 282818.8789 | R155: ='PRECIOS UNITARIOS'!$AA85*CHIFFRAGE_TC!M155 -> 67498.53911 | U155: 0.25 | V155: 0.75
B156: Ingreso y circulaciones al piso tierra (y/c servicios, escaleras mecanicas, escaleras y ascencores) | C156: INFRA | D156: 40 | E156: m2 | F156: 1838.595373 | G156: 900 | H156: 900 | J156: =HLOOKUP($C156,PARAMETROS!$C$36:$F$38,3)*L156 -> 413683.959 | K156: =HLOOKUP($C156,PARAMETROS!$C$36:$F$38,3)*M156 -> 413683.959 | L156: 1654735.836 | M156: 1654735.836 | O156: ='PRECIOS UNITARIOS'!$Z86*CHIFFRAGE_TC!L156 -> 1293161.167 | P156: ='PRECIOS UNITARIOS'!$AA86*CHIFFRAGE_TC!L156 -> 361574.6685 | Q156: ='PRECIOS UNITARIOS'!$Z86*CHIFFRAGE_TC!M156 -> 1293161.167 | R156: ='PRECIOS UNITARIOS'!$AA86*CHIFFRAGE_TC!M156 -> 361574.6685 | U156: 0.25 | V156: 0.75
B157: Escaleras mecanicas, escaleras y ascencores adicionales (piso tierra sobrelevado) | C157: EQUIP | D157: 15 | E157: U | F157: 373031.25 | G157: 1 | H157: 1 | J157: =HLOOKUP($C157,PARAMETROS!$C$36:$F$38,3)*L157 -> 93257.8125 | K157: =HLOOKUP($C157,PARAMETROS!$C$36:$F$38,3)*M157 -> 93257.8125 | L157: 373031.25 | M157: 373031.25 | O157: ='PRECIOS UNITARIOS'!$Z87*CHIFFRAGE_TC!L157 -> 301156.25 | P157: ='PRECIOS UNITARIOS'!$AA87*CHIFFRAGE_TC!L157 -> 71875 | Q157: ='PRECIOS UNITARIOS'!$Z87*CHIFFRAGE_TC!M157 -> 301156.25 | R157: ='PRECIOS UNITARIOS'!$AA87*CHIFFRAGE_TC!M157 -> 71875 | U157: 0.25 | V157: 0.75
B158: Anden al primer piso | C158: INFRA | D158: 50 | E158: m2 | F158: 1051.223607 | G158: 500 | H158: 500 | J158: =HLOOKUP($C158,PARAMETROS!$C$36:$F$38,3)*L158 -> 131402.9509 | K158: =HLOOKUP($C158,PARAMETROS!$C$36:$F$38,3)*M158 -> 131402.9509 | L158: 525611.8037 | M158: 525611.8037 | O158: ='PRECIOS UNITARIOS'!$Z88*CHIFFRAGE_TC!L158 -> 424337.8531 | P158: ='PRECIOS UNITARIOS'!$AA88*CHIFFRAGE_TC!L158 -> 101273.9506 | Q158: ='PRECIOS UNITARIOS'!$Z88*CHIFFRAGE_TC!M158 -> 424337.8531 | R158: ='PRECIOS UNITARIOS'!$AA88*CHIFFRAGE_TC!M158 -> 101273.9506 | U158: 0.25 | V158: 0.75
B159: Centro de mando + Locales tecnicos cubiertos | C159: INFRA | D159: 50 | E159: m2 | F159: 1401.269672 | G159: 80 | H159: 80 | J159: =HLOOKUP($C159,PARAMETROS!$C$36:$F$38,3)*L159 -> 28025.39344 | K159: =HLOOKUP($C159,PARAMETROS!$C$36:$F$38,3)*M159 -> 28025.39344 | L159: 112101.5737 | M159: 112101.5737 | O159: ='PRECIOS UNITARIOS'!$Z89*CHIFFRAGE_TC!L159 -> 90502.04123 | P159: ='PRECIOS UNITARIOS'!$AA89*CHIFFRAGE_TC!L159 -> 21599.53251 | Q159: ='PRECIOS UNITARIOS'!$Z89*CHIFFRAGE_TC!M159 -> 90502.04123 | R159: ='PRECIOS UNITARIOS'!$AA89*CHIFFRAGE_TC!M159 -> 21599.53251 | U159: 0.25 | V159: 0.75
B160: Locales tecnicos non cerrados | C160: INFRA | D160: 50 | E160: m2 | F160: 700.6348359 | G160: 350 | H160: 350 | J160: =HLOOKUP($C160,PARAMETROS!$C$36:$F$38,3)*L160 -> 61305.54814 | K160: =HLOOKUP($C160,PARAMETROS!$C$36:$F$38,3)*M160 -> 61305.54814 | L160: 245222.1926 | M160: 245222.1926 | O160: ='PRECIOS UNITARIOS'!$Z90*CHIFFRAGE_TC!L160 -> 197973.2152 | P160: ='PRECIOS UNITARIOS'!$AA90*CHIFFRAGE_TC!L160 -> 47248.97737 | Q160: ='PRECIOS UNITARIOS'!$Z90*CHIFFRAGE_TC!M160 -> 197973.2152 | R160: ='PRECIOS UNITARIOS'!$AA90*CHIFFRAGE_TC!M160 -> 47248.97737 | U160: 0.25 | V160: 0.75
B161: Adecuacion urbana (demolicion, reconstruccion, mobiliario urbano, paisaje) | C161: INFRA | D161: 50 | E161: m2 | F161: 527.021901 | G161: =4000-(G155+G156+G158+G159+G160)/2 -> 2835 | H161: =4000-(H155+H156+H158+H159+H160)/2 -> 2835 | J161: =HLOOKUP($C161,PARAMETROS!$C$36:$F$38,3)*L161 -> 373526.7723 | K161: =HLOOKUP($C161,PARAMETROS!$C$36:$F$38,3)*M161 -> 373526.7723 | L161: 1494107.089 | M161: 1494107.089 | O161: ='PRECIOS UNITARIOS'!$Z91*CHIFFRAGE_TC!L161 -> 1185799.277 | P161: ='PRECIOS UNITARIOS'!$AA91*CHIFFRAGE_TC!L161 -> 308307.8121 | Q161: ='PRECIOS UNITARIOS'!$Z91*CHIFFRAGE_TC!M161 -> 1185799.277 | R161: ='PRECIOS UNITARIOS'!$AA91*CHIFFRAGE_TC!M161 -> 308307.8121 | U161: 0.25 | V161: 0.25 | W161: 0.5
B162: Pasarela | C162: INFRA | D162: 50 | E162: m2 | F162: 1356.767692 | G162: 0 | H162: 0 | J162: =HLOOKUP($C162,PARAMETROS!$C$36:$F$38,3)*L162 -> 0 | K162: =HLOOKUP($C162,PARAMETROS!$C$36:$F$38,3)*M162 -> 0 | L162: 0 | M162: 0 | O162: ='PRECIOS UNITARIOS'!$Z92*CHIFFRAGE_TC!L162 -> 0 | P162: ='PRECIOS UNITARIOS'!$AA92*CHIFFRAGE_TC!L162 -> 0 | Q162: ='PRECIOS UNITARIOS'!$Z92*CHIFFRAGE_TC!M162 -> 0 | R162: ='PRECIOS UNITARIOS'!$AA92*CHIFFRAGE_TC!M162 -> 0 | W162: 1
B163: Edificio - Estacion Centenario (Terminal) | L163: =SUM(L164:L173) -> 2252388.417 | M163: =SUM(M164:M173) -> 2252388.417 | O163: =SUM(O164:O173) -> 1806021.781 | P163: =SUM(P164:P173) -> 446366.6366 | Q163: =SUM(Q164:Q173) -> 1806021.781 | R163: =SUM(R164:R173) -> 446366.6366 | T163: =T152 -> 2015 | U163: =U152 -> 2016 | V163: =V152 -> 2017 | W163: =W152 -> 2018
B164: =B87 -> Fundaciones tipicas (edificio con piso tierra y primer piso) | C164: INFRA | D164: 50 | E164: U | F164: 161184.0018 | G164: 0 | H164: 0 | J164: =HLOOKUP($C164,PARAMETROS!$C$36:$F$38,3)*L164 -> 0 | K164: =HLOOKUP($C164,PARAMETROS!$C$36:$F$38,3)*M164 -> 0 | L164: =$F164*G164 -> 0 | M164: =$F164*H164 -> 0 | O164: ='PRECIOS UNITARIOS'!$Z72*CHIFFRAGE_TC!L164 -> 0 | P164: ='PRECIOS UNITARIOS'!$AA72*CHIFFRAGE_TC!L164 -> 0 | Q164: ='PRECIOS UNITARIOS'!$Z72*CHIFFRAGE_TC!M164 -> 0 | R164: ='PRECIOS UNITARIOS'!$AA72*CHIFFRAGE_TC!M164 -> 0 | U164: 0.75 | V164: 0.25
B165: Piso tierra sobrelevado y fundaciones | C165: INFRA | D165: 50 | E165: m2 | F165: 2170.828306 | G165: =(G166+G167+G169+G170+G171) -> 600 | H165: =(H166+H167+H169+H170+H171) -> 600 | J165: =HLOOKUP($C165,PARAMETROS!$C$36:$F$38,3)*L165 -> 325624.246 | K165: =HLOOKUP($C165,PARAMETROS!$C$36:$F$38,3)*M165 -> 325624.246 | L165: 1302496.984 | M165: 1302496.984 | O165: ='PRECIOS UNITARIOS'!$Z73*CHIFFRAGE_TC!L165 -> 1051534.174 | P165: ='PRECIOS UNITARIOS'!$AA73*CHIFFRAGE_TC!L165 -> 250962.81 | Q165: ='PRECIOS UNITARIOS'!$Z73*CHIFFRAGE_TC!M165 -> 1051534.174 | R165: ='PRECIOS UNITARIOS'!$AA73*CHIFFRAGE_TC!M165 -> 250962.81 | U165: 0.5 | V165: 0.5
B166: Superficies comerciales | C166: INFRA | D166: 50 | E166: m2 | F166: 700.6348359 | G166: 0 | H166: 0 | J166: =HLOOKUP($C166,PARAMETROS!$C$36:$F$38,3)*L166 -> 0 | K166: =HLOOKUP($C166,PARAMETROS!$C$36:$F$38,3)*M166 -> 0 | L166: 0 | M166: 0 | O166: ='PRECIOS UNITARIOS'!$Z74*CHIFFRAGE_TC!L166 -> 0 | P166: ='PRECIOS UNITARIOS'!$AA74*CHIFFRAGE_TC!L166 -> 0 | Q166: ='PRECIOS UNITARIOS'!$Z74*CHIFFRAGE_TC!M166 -> 0 | R166: ='PRECIOS UNITARIOS'!$AA74*CHIFFRAGE_TC!M166 -> 0 | U166: 0.25 | V166: 0.75
B167: Ingreso y circulaciones al piso tierra (y/c servicios, escaleras mecanicas, escaleras y ascencores) | C167: INFRA | D167: 40 | E167: m2 | F167: 1838.595373 | G167: 200 | H167: 200 | J167: =HLOOKUP($C167,PARAMETROS!$C$36:$F$38,3)*L167 -> 91929.76866 | K167: =HLOOKUP($C167,PARAMETROS!$C$36:$F$38,3)*M167 -> 91929.76866 | L167: 367719.0746 | M167: 367719.0746 | O167: ='PRECIOS UNITARIOS'!$Z75*CHIFFRAGE_TC!L167 -> 287369.1483 | P167: ='PRECIOS UNITARIOS'!$AA75*CHIFFRAGE_TC!L167 -> 80349.92633 | Q167: ='PRECIOS UNITARIOS'!$Z75*CHIFFRAGE_TC!M167 -> 287369.1483 | R167: ='PRECIOS UNITARIOS'!$AA75*CHIFFRAGE_TC!M167 -> 80349.92633 | U167: 0.25 | V167: 0.75
B168: Escaleras mecanicas, escaleras y ascencores adicionales (piso tierra sobrelevado) | C168: EQUIP | D168: 15 | E168: U | F168: 373031.25 | G168: 0 | H168: 0 | J168: =HLOOKUP($C168,PARAMETROS!$C$36:$F$38,3)*L168 -> 0 | K168: =HLOOKUP($C168,PARAMETROS!$C$36:$F$38,3)*M168 -> 0 | L168: 0 | M168: 0 | O168: ='PRECIOS UNITARIOS'!$Z76*CHIFFRAGE_TC!L168 -> 0 | P168: ='PRECIOS UNITARIOS'!$AA76*CHIFFRAGE_TC!L168 -> 0 | Q168: ='PRECIOS UNITARIOS'!$Z76*CHIFFRAGE_TC!M168 -> 0 | R168: ='PRECIOS UNITARIOS'!$AA76*CHIFFRAGE_TC!M168 -> 0 | U168: 0.25 | V168: 0.75
B169: Anden al primer piso | C169: INFRA | D169: 50 | E169: m2 | F169: 1051.223607 | G169: 100 | H169: 100 | J169: =HLOOKUP($C169,PARAMETROS!$C$36:$F$38,3)*L169 -> 26280.59019 | K169: =HLOOKUP($C169,PARAMETROS!$C$36:$F$38,3)*M169 -> 26280.59019 | L169: 105122.3607 | M169: 105122.3607 | O169: ='PRECIOS UNITARIOS'!$Z77*CHIFFRAGE_TC!L169 -> 84867.57062 | P169: ='PRECIOS UNITARIOS'!$AA77*CHIFFRAGE_TC!L169 -> 20254.79012 | Q169: ='PRECIOS UNITARIOS'!$Z77*CHIFFRAGE_TC!M169 -> 84867.57062 | R169: ='PRECIOS UNITARIOS'!$AA77*CHIFFRAGE_TC!M169 -> 20254.79012 | U169: 0.25 | V169: 0.75
B170: Centro de mando + Locales tecnicos cubiertos | C170: INFRA | D170: 50 | E170: m2 | F170: 1401.269672 | G170: 80 | H170: 80 | J170: =HLOOKUP($C170,PARAMETROS!$C$36:$F$38,3)*L170 -> 28025.39344 | K170: =HLOOKUP($C170,PARAMETROS!$C$36:$F$38,3)*M170 -> 28025.39344 | L170: 112101.5737 | M170: 112101.5737 | O170: ='PRECIOS UNITARIOS'!$Z78*CHIFFRAGE_TC!L170 -> 90502.04123 | P170: ='PRECIOS UNITARIOS'!$AA78*CHIFFRAGE_TC!L170 -> 21599.53251 | Q170: ='PRECIOS UNITARIOS'!$Z78*CHIFFRAGE_TC!M170 -> 90502.04123 | R170: ='PRECIOS UNITARIOS'!$AA78*CHIFFRAGE_TC!M170 -> 21599.53251 | U170: 0.25 | V170: 0.75
B171: Locales tecnicos non cerrados | C171: INFRA | D171: 50 | E171: m2 | F171: 700.6348359 | G171: 220 | H171: 220 | J171: =HLOOKUP($C171,PARAMETROS!$C$36:$F$38,3)*L171 -> 38534.91598 | K171: =HLOOKUP($C171,PARAMETROS!$C$36:$F$38,3)*M171 -> 38534.91598 | L171: 154139.6639 | M171: 154139.6639 | O171: ='PRECIOS UNITARIOS'!$Z79*CHIFFRAGE_TC!L171 -> 124440.3067 | P171: ='PRECIOS UNITARIOS'!$AA79*CHIFFRAGE_TC!L171 -> 29699.35721 | Q171: ='PRECIOS UNITARIOS'!$Z79*CHIFFRAGE_TC!M171 -> 124440.3067 | R171: ='PRECIOS UNITARIOS'!$AA79*CHIFFRAGE_TC!M171 -> 29699.35721 | U171: 0.25 | V171: 0.75
B172: Adecuacion urbana (demolicion, reconstruccion, mobiliario urbano, paisaje) | C172: INFRA | D172: 50 | E172: m2 | F172: 527.021901 | G172: 400 | H172: 400 | J172: =HLOOKUP($C172,PARAMETROS!$C$36:$F$38,3)*L172 -> 52702.1901 | K172: =HLOOKUP($C172,PARAMETROS!$C$36:$F$38,3)*M172 -> 52702.1901 | L172: 210808.7604 | M172: 210808.7604 | O172: ='PRECIOS UNITARIOS'!$Z80*CHIFFRAGE_TC!L172 -> 167308.54 | P172: ='PRECIOS UNITARIOS'!$AA80*CHIFFRAGE_TC!L172 -> 43500.2204 | Q172: ='PRECIOS UNITARIOS'!$Z80*CHIFFRAGE_TC!M172 -> 167308.54 | R172: ='PRECIOS UNITARIOS'!$AA80*CHIFFRAGE_TC!M172 -> 43500.2204 | U172: 0.25 | V172: 0.25 | W172: 0.5
B173: Pasarela | C173: INFRA | D173: 50 | E173: m2 | F173: 1356.767692 | G173: 0 | H173: 0 | J173: =HLOOKUP($C173,PARAMETROS!$C$36:$F$38,3)*L173 -> 0 | K173: =HLOOKUP($C173,PARAMETROS!$C$36:$F$38,3)*M173 -> 0 | L173: 0 | M173: 0 | O173: ='PRECIOS UNITARIOS'!$Z81*CHIFFRAGE_TC!L173 -> 0 | P173: ='PRECIOS UNITARIOS'!$AA81*CHIFFRAGE_TC!L173 -> 0 | Q173: ='PRECIOS UNITARIOS'!$Z81*CHIFFRAGE_TC!M173 -> 0 | R173: ='PRECIOS UNITARIOS'!$AA81*CHIFFRAGE_TC!M173 -> 0 | W173: 1
B175: Centro(s) de mantenimiento | J175: =SUM(J176:J182)/L175 -> 0.25 | K175: =SUM(K176:K182)/M175 -> 0.25 | L175: =SUM(L176:L182) -> 3959030.556 | M175: =SUM(M176:M182) -> 5134013.048 | O175: =SUM(O176:O182)/L175 -> 0.3358753333 | P175: =SUM(P176:P182)/L175 -> 0.6641246667 | Q175: =SUM(Q176:Q182)/M175 -> 0.3397825788 | R175: =SUM(R176:R182)/M175 -> 0.6602174212 | T175: =T$11 -> 2015 | U175: =U$11 -> 2016 | V175: =V$11 -> 2017 | W175: =W$11 -> 2018
B176: ='PRECIOS UNITARIOS'!B95 -> Zona de almacenamiento de tipo local industrial | C176: ='PRECIOS UNITARIOS'!C95 -> INFRA | D176: 50 | E176: ='PRECIOS UNITARIOS'!D95 -> m2 | F176: ='PRECIOS UNITARIOS'!L95 -> 700.6348359 | G176: =CANTIDADES!B74 -> 1442 | H176: =CANTIDADES!C74 -> 2072 | J176: =HLOOKUP($C176,PARAMETROS!$C$36:$F$38,3)*L176 -> 252578.8584 | K176: =HLOOKUP($C176,PARAMETROS!$C$36:$F$38,3)*M176 -> 362928.845 | L176: =$F176*G176 -> 1010315.433 | M176: 1451715.38 | O176: ='PRECIOS UNITARIOS'!$Z95*CHIFFRAGE_TC!L176 -> 815649.6466 | P176: ='PRECIOS UNITARIOS'!$AA95*CHIFFRAGE_TC!L176 -> 194665.7868 | Q176: ='PRECIOS UNITARIOS'!$Z95*CHIFFRAGE_TC!M176 -> 1172001.434 | R176: ='PRECIOS UNITARIOS'!$AA95*CHIFFRAGE_TC!M176 -> 279713.9461 | U176: 0.25 | V176: 0.75
B177: ='PRECIOS UNITARIOS'!B96 -> Almacen y taller | C177: ='PRECIOS UNITARIOS'!C96 -> INFRA | D177: 50 | E177: ='PRECIOS UNITARIOS'!D96 -> m2 | F177: ='PRECIOS UNITARIOS'!L96 -> 992.6112431 | G177: =CANTIDADES!B77 -> 250 | H177: =CANTIDADES!C77 -> 250 | J177: =HLOOKUP($C177,PARAMETROS!$C$36:$F$38,3)*L177 -> 62038.2027 | K177: =HLOOKUP($C177,PARAMETROS!$C$36:$F$38,3)*M177 -> 62038.2027 | L177: 248152.8108 | M177: 248152.8108 | O177: ='PRECIOS UNITARIOS'!$Z96*CHIFFRAGE_TC!L177 -> 200339.1671 | P177: ='PRECIOS UNITARIOS'!$AA96*CHIFFRAGE_TC!L177 -> 47813.6437 | Q177: ='PRECIOS UNITARIOS'!$Z96*CHIFFRAGE_TC!M177 -> 200339.1671 | R177: ='PRECIOS UNITARIOS'!$AA96*CHIFFRAGE_TC!M177 -> 47813.6437 | U177: 0.25 | V177: 0.75
B178: ='PRECIOS UNITARIOS'!B97 -> Local de supervision | C178: ='PRECIOS UNITARIOS'!C97 -> INFRA | D178: 50 | E178: ='PRECIOS UNITARIOS'!D97 -> m2 | F178: ='PRECIOS UNITARIOS'!L97 -> 992.6112431 | G178: =CANTIDADES!B80 -> 150 | H178: =CANTIDADES!C80 -> 150 | J178: =HLOOKUP($C178,PARAMETROS!$C$36:$F$38,3)*L178 -> 37222.92162 | K178: =HLOOKUP($C178,PARAMETROS!$C$36:$F$38,3)*M178 -> 37222.92162 | L178: 148891.6865 | M178: 148891.6865 | O178: ='PRECIOS UNITARIOS'!$Z97*CHIFFRAGE_TC!L178 -> 120203.5003 | P178: ='PRECIOS UNITARIOS'!$AA97*CHIFFRAGE_TC!L178 -> 28688.18622 | Q178: ='PRECIOS UNITARIOS'!$Z97*CHIFFRAGE_TC!M178 -> 120203.5003 | R178: ='PRECIOS UNITARIOS'!$AA97*CHIFFRAGE_TC!M178 -> 28688.18622 | U178: 0.25 | V178: 0.75
B179: ='PRECIOS UNITARIOS'!B98 -> Transporte cabinas | C179: ='PRECIOS UNITARIOS'!C98 -> EQUIP | D179: 40 | E179: ='PRECIOS UNITARIOS'!D98 -> m2 | F179: ='PRECIOS UNITARIOS'!L98 -> 1164.416739 | G179: =CANTIDADES!B83 -> 1442 | H179: =CANTIDADES!C83 -> 2072 | J179: =HLOOKUP($C179,PARAMETROS!$C$36:$F$38,3)*L179 -> 419772.2344 | K179: =HLOOKUP($C179,PARAMETROS!$C$36:$F$38,3)*M179 -> 603167.8707 | L179: 1679088.937 | M179: 2412671.483 | O179: ='PRECIOS UNITARIOS'!$Z98*CHIFFRAGE_TC!L179 -> 133569.7082 | P179: ='PRECIOS UNITARIOS'!$AA98*CHIFFRAGE_TC!L179 -> 1545519.229 | Q179: ='PRECIOS UNITARIOS'!$Z98*CHIFFRAGE_TC!M179 -> 191925.406 | R179: ='PRECIOS UNITARIOS'!$AA98*CHIFFRAGE_TC!M179 -> 2220746.077 | U179: 0.25 | V179: 0.5 | W179: 0.25
B180: ='PRECIOS UNITARIOS'!B99 -> Instrumentos, elevador y piezas de recambio | C180: ='PRECIOS UNITARIOS'!C99 -> EQUIP | D180: 15 | E180: ='PRECIOS UNITARIOS'!D99 -> U | F180: ='PRECIOS UNITARIOS'!L99 -> 144821.2265 | G180: 1 | H180: 1 | J180: =HLOOKUP($C180,PARAMETROS!$C$36:$F$38,3)*L180 -> 36205.30664 | K180: =HLOOKUP($C180,PARAMETROS!$C$36:$F$38,3)*M180 -> 36205.30664 | L180: 144821.2265 | M180: 144821.2265 | O180: ='PRECIOS UNITARIOS'!$Z99*CHIFFRAGE_TC!L180 -> 2086.128358 | P180: ='PRECIOS UNITARIOS'!$AA99*CHIFFRAGE_TC!L180 -> 142735.0982 | Q180: ='PRECIOS UNITARIOS'!$Z99*CHIFFRAGE_TC!M180 -> 2086.128358 | R180: ='PRECIOS UNITARIOS'!$AA99*CHIFFRAGE_TC!M180 -> 142735.0982 | V180: 0.75 | W180: 0.25
B181: ='PRECIOS UNITARIOS'!B100 -> Ascensores inclinados para las cabinas | C181: ='PRECIOS UNITARIOS'!C100 -> EQUIP | D181: 40 | E181: ='PRECIOS UNITARIOS'!D100 -> U | F181: ='PRECIOS UNITARIOS'!L100 -> 727760.4618 | G181: 1 | H181: 1 | J181: =HLOOKUP($C181,PARAMETROS!$C$36:$F$38,3)*L181 -> 181940.1154 | K181: =HLOOKUP($C181,PARAMETROS!$C$36:$F$38,3)*M181 -> 181940.1154 | L181: 727760.4618 | M181: 727760.4618 | O181: ='PRECIOS UNITARIOS'!$Z100*CHIFFRAGE_TC!L181 -> 57892.55731 | P181: ='PRECIOS UNITARIOS'!$AA100*CHIFFRAGE_TC!L181 -> 669867.9045 | Q181: ='PRECIOS UNITARIOS'!$Z100*CHIFFRAGE_TC!M181 -> 57892.55731 | R181: ='PRECIOS UNITARIOS'!$AA100*CHIFFRAGE_TC!M181 -> 669867.9045 | U181: 0.25 | V181: 0.5 | W181: 0.25
B182: ='PRECIOS UNITARIOS'!B101 -> Adecuacion urbana (demolicion, reconstruccion, mobiliario urbano, paisaje) | C182: ='PRECIOS UNITARIOS'!C101 -> INFRA | D182: 50 | E182: ='PRECIOS UNITARIOS'!D101 -> m2 | F182: ='PRECIOS UNITARIOS'!L101 -> 197.6332129 | G182: 0 | H182: 0 | J182: =HLOOKUP($C182,PARAMETROS!$C$36:$F$38,3)*L182 -> 0 | K182: =HLOOKUP($C182,PARAMETROS!$C$36:$F$38,3)*M182 -> 0 | L182: 0 | M182: 0 | O182: ='PRECIOS UNITARIOS'!$Z101*CHIFFRAGE_TC!L182 -> 0 | P182: ='PRECIOS UNITARIOS'!$AA101*CHIFFRAGE_TC!L182 -> 0 | Q182: ='PRECIOS UNITARIOS'!$Z101*CHIFFRAGE_TC!M182 -> 0 | R182: ='PRECIOS UNITARIOS'!$AA101*CHIFFRAGE_TC!M182 -> 0 | U182: 0.25 | V182: 0.5 | W182: 0.25
B184: Operaciones adicionales : estacionamiento incitativo y buses | J184: =SUM(J185:J191)/L184 -> 0.1950639548 | K184: =SUM(K185:K191)/M184 -> 0.1790228989 | L184: =SUM(L185:L191) -> 2366388.035 | M184: 4762099.25 | O184: =SUM(O185:O191)/L184 -> 0.8027666605 | P184: =SUM(P185:P191)/L184 -> 0.1972333395 | Q184: =SUM(Q185:Q191)/M184 -> 0.8032597169 | R184: =SUM(R185:R191)/M184 -> 0.1967402831 | T184: =T$11 -> 2015 | U184: =U$11 -> 2016 | V184: =V$11 -> 2017 | W184: =W$11 -> 2018
B185: ='PRECIOS UNITARIOS'!B104 -> Estacionamiento incitativo | C185: ='PRECIOS UNITARIOS'!C104 -> INFRA | D185: 10 | E185: ='PRECIOS UNITARIOS'!D104 -> Plaza | F185: ='PRECIOS UNITARIOS'!L104 -> 1899.474768 | G185: =DEMANDA!E16 -> 250 | H185: =DEMANDA!E17 -> 250 | J185: =HLOOKUP($C185,PARAMETROS!$C$36:$F$38,3)*L185 -> 118717.173 | K185: =HLOOKUP($C185,PARAMETROS!$C$36:$F$38,3)*M185 -> 118717.173 | L185: =$F185*G185 -> 474868.692 | M185: 474868.692 | O185: ='PRECIOS UNITARIOS'!$Z104*CHIFFRAGE_TC!L185 -> 383371.8342 | P185: ='PRECIOS UNITARIOS'!$AA104*CHIFFRAGE_TC!L185 -> 91496.85781 | Q185: ='PRECIOS UNITARIOS'!$Z104*CHIFFRAGE_TC!M185 -> 383371.8342 | R185: ='PRECIOS UNITARIOS'!$AA104*CHIFFRAGE_TC!M185 -> 91496.85781 | V185: 0.5 | W185: 0.5
B186: ='PRECIOS UNITARIOS'!B105 -> Creacion de vias de acceso en Samborondon | C186: ='PRECIOS UNITARIOS'!C105 -> INFRA | D186: 10 | E186: ='PRECIOS UNITARIOS'!D105 -> m² | F186: ='PRECIOS UNITARIOS'!L105 -> 197.6332129 | G186: 2000 | H186: 2000 | J186: =HLOOKUP($C186,PARAMETROS!$C$36:$F$38,3)*L186 -> 98816.60644 | K186: =HLOOKUP($C186,PARAMETROS!$C$36:$F$38,3)*M186 -> 98816.60644 | L186: 395266.4257 | M186: 395266.4257 | O186: ='PRECIOS UNITARIOS'!$Z105*CHIFFRAGE_TC!L186 -> 313703.5125 | P186: ='PRECIOS UNITARIOS'!$AA105*CHIFFRAGE_TC!L186 -> 81562.91325 | Q186: ='PRECIOS UNITARIOS'!$Z105*CHIFFRAGE_TC!M186 -> 313703.5125 | R186: ='PRECIOS UNITARIOS'!$AA105*CHIFFRAGE_TC!M186 -> 81562.91325 | V186: 0.5 | W186: 0.5
B187: ='PRECIOS UNITARIOS'!B106 -> Compra de buses alimentadores para Samborondon (12 m) | C187: ='PRECIOS UNITARIOS'!C106 -> VEH | D187: 10 | E187: ='PRECIOS UNITARIOS'!D106 -> U | F187: ='PRECIOS UNITARIOS'!L106 -> 130000 | G187: ='OFERTA ALIMENTADORA'!F31 -> 10 | H187: =G187 -> 10 | J187: =HLOOKUP($C187,PARAMETROS!$C$36:$F$38,3)*L187 -> 195000 | K187: =HLOOKUP($C187,PARAMETROS!$C$36:$F$38,3)*M187 -> 195000 | L187: 1300000 | M187: 1300000 | O187: ='PRECIOS UNITARIOS'!$Z106*CHIFFRAGE_TC!L187 -> 1040000 | P187: ='PRECIOS UNITARIOS'!$AA106*CHIFFRAGE_TC!L187 -> 260000 | Q187: ='PRECIOS UNITARIOS'!$Z106*CHIFFRAGE_TC!M187 -> 1040000 | R187: ='PRECIOS UNITARIOS'!$AA106*CHIFFRAGE_TC!M187 -> 260000 | V187: 0.5 | W187: 0.5
B188: ='PRECIOS UNITARIOS'!B107 -> Compra de buses alimentadores para Duran (12 m) | C188: ='PRECIOS UNITARIOS'!C107 -> VEH | D188: 10 | E188: ='PRECIOS UNITARIOS'!D107 -> U | F188: ='PRECIOS UNITARIOS'!L107 -> 130000 | G188: 0 | H188: ='OFERTA ALIMENTADORA'!F32+'OFERTA ALIMENTADORA'!F33 -> 16 | J188: =HLOOKUP($C188,PARAMETROS!$C$36:$F$38,3)*L188 -> 0 | K188: =HLOOKUP($C188,PARAMETROS!$C$36:$F$38,3)*M188 -> 312000 | L188: 0 | M188: 2080000 | O188: ='PRECIOS UNITARIOS'!$Z107*CHIFFRAGE_TC!L188 -> 0 | P188: ='PRECIOS UNITARIOS'!$AA107*CHIFFRAGE_TC!L188 -> 0 | Q188: ='PRECIOS UNITARIOS'!$Z107*CHIFFRAGE_TC!M188 -> 1664000 | R188: ='PRECIOS UNITARIOS'!$AA107*CHIFFRAGE_TC!M188 -> 416000 | V188: 0.5 | W188: 0.5
B189: ='PRECIOS UNITARIOS'!B108 -> Creacion de paraderos en Samborondon | C189: ='PRECIOS UNITARIOS'!C108 -> INFRA | D189: 10 | E189: ='PRECIOS UNITARIOS'!D108 -> U | F189: ='PRECIOS UNITARIOS'!L108 -> 4266.36777 | G189: =ROUNDUP('OFERTA ALIMENTADORA'!C17/200*2,0) -> 38 | H189: =G189 -> 38 | J189: =HLOOKUP($C189,PARAMETROS!$C$36:$F$38,3)*L189 -> 40530.49381 | K189: =HLOOKUP($C189,PARAMETROS!$C$36:$F$38,3)*M189 -> 40530.49381 | L189: 162121.9753 | M189: 162121.9753 | O189: ='PRECIOS UNITARIOS'!$Z108*CHIFFRAGE_TC!L189 -> 134306.9305 | P189: ='PRECIOS UNITARIOS'!$AA108*CHIFFRAGE_TC!L189 -> 27815.04477 | Q189: ='PRECIOS UNITARIOS'!$Z108*CHIFFRAGE_TC!M189 -> 134306.9305 | R189: ='PRECIOS UNITARIOS'!$AA108*CHIFFRAGE_TC!M189 -> 27815.04477 | W189: 1
B190: ='PRECIOS UNITARIOS'!B109 -> Creacion de paraderos en Duran | C190: ='PRECIOS UNITARIOS'!C109 -> INFRA | D190: 10 | E190: ='PRECIOS UNITARIOS'!D109 -> U | F190: ='PRECIOS UNITARIOS'!L109 -> 4266.36777 | G190: 0 | H190: =ROUNDUP('OFERTA ALIMENTADORA'!C18/200*2,0) -> 72 | J190: =HLOOKUP($C190,PARAMETROS!$C$36:$F$38,3)*L190 -> 0 | K190: =HLOOKUP($C190,PARAMETROS!$C$36:$F$38,3)*M190 -> 76794.61986 | L190: 0 | M190: 307178.4794 | O190: ='PRECIOS UNITARIOS'!$Z109*CHIFFRAGE_TC!L190 -> 0 | P190: ='PRECIOS UNITARIOS'!$AA109*CHIFFRAGE_TC!L190 -> 0 | Q190: ='PRECIOS UNITARIOS'!$Z109*CHIFFRAGE_TC!M190 -> 254476.2893 | R190: ='PRECIOS UNITARIOS'!$AA109*CHIFFRAGE_TC!M190 -> 52702.1901 | W190: 1
B191: ='PRECIOS UNITARIOS'!B110 -> Modificacion de parada de bus | C191: ='PRECIOS UNITARIOS'!C110 -> INFRA | D191: 10 | E191: ='PRECIOS UNITARIOS'!D110 -> forfait | F191: ='PRECIOS UNITARIOS'!L110 -> 4266.36777 | G191: =2*(CANTIDADES!B30+CANTIDADES!B31) -> 8 | H191: =2*(CANTIDADES!C30+CANTIDADES!C31) -> 10 | J191: =HLOOKUP($C191,PARAMETROS!$C$36:$F$38,3)*L191 -> 8532.73554 | K191: =HLOOKUP($C191,PARAMETROS!$C$36:$F$38,3)*M191 -> 10665.91942 | L191: 34130.94216 | M191: 42663.6777 | O191: ='PRECIOS UNITARIOS'!$Z110*CHIFFRAGE_TC!L191 -> 28275.14326 | P191: ='PRECIOS UNITARIOS'!$AA110*CHIFFRAGE_TC!L191 -> 5855.7989 | Q191: ='PRECIOS UNITARIOS'!$Z110*CHIFFRAGE_TC!M191 -> 35343.92907 | R191: ='PRECIOS UNITARIOS'!$AA110*CHIFFRAGE_TC!M191 -> 7319.748625 | W191: 1
B193: Gastos de estudios, gestion y administracion del proyecto | J193: =SUM(J194:J198)/L193 -> 0.1049293432 | K193: =SUM(K194:K198)/M193 -> 0.103906442 | L193: =SUM(L194:L198) -> 18258010.35 | M193: 23038867.75 | O193: =SUM(O194:O198)/L193 -> 0.2746467162 | P193: =SUM(P194:P198)/L193 -> 0.7253532838 | Q193: =SUM(Q194:Q198)/M193 -> 0.2695322099 | R193: =SUM(R194:R198)/M193 -> 0.7304677901 | T193: =T$11 -> 2015 | U193: =U$11 -> 2016 | V193: =V$11 -> 2017 | W193: =W$11 -> 2018
B194: =PARAMETROS!B30 -> Estudios y diseños | C194: ESTUDIOS | D194: Infinida | E194: % costo de la obra | F194: =PARAMETROS!D30 -> 0.08 | G194: =L33+L38+L45+L53+L57+L61+L70+L85+L184 -> 88290051.73 | H194: =M33+M38+M45+M53+M57+M61+M70+M85+M184 -> 112194338.7 | J194: =PARAMETROS!$E30*L194 -> 706320.4139 | K194: =PARAMETROS!$E30*M194 -> 897554.7098 | L194: =$F194*G194 -> 7063204.139 | M194: 8975547.098 | O194: 0 | P194: =L194 -> 7063204.139 | Q194: 0 | R194: =M194 -> 8975547.098 | T194: 0.5 | U194: 0.5 | Y194: Consultor en asesoria al Municipio o Concesionario
B195: =PARAMETROS!B31 -> Supervision de obras | C195: ESTUDIOS | D195: Infinida | E195: % costo de la obra | F195: =PARAMETROS!D31 -> 0.04 | G195: =L33+L38+L45+L53+L57+L61+L70+L85+L184 -> 88290051.73 | H195: =M33+M38+M45+M53+M57+M61+M70+M85+M184 -> 112194338.7 | J195: =PARAMETROS!$E31*L195 -> 353160.2069 | K195: =PARAMETROS!$E31*M195 -> 448777.3549 | L195: 3531602.069 | M195: 4487773.549 | O195: 0 | P195: =L195 -> 3531602.069 | Q195: 0 | R195: =M195 -> 4487773.549 | T195: 0.5 | U195: 0.5
B196: =PARAMETROS!B32 -> Fiscalizacion del proyecto | C196: ESTUDIOS | D196: Infinida | E196: % costo de la obra | F196: =PARAMETROS!D32 -> 0.05 | G196: =L33+L38+L45+L53+L57+L61+L70+L85+L184 -> 88290051.73 | H196: =M33+M38+M45+M53+M57+M61+M70+M85+M184 -> 112194338.7 | J196: =PARAMETROS!$E32*L196 -> 441450.2587 | K196: =PARAMETROS!$E32*M196 -> 560971.6936 | L196: 4414502.587 | M196: 5609716.936 | O196: =L196 -> 4414502.587 | P196: 0 | Q196: =M196 -> 5609716.936 | R196: 0 | T196: 0.15 | U196: 0.25 | V196: 0.4 | W196: 0.2 | Y196: Consultor en asesoria al municipio
B197: =PARAMETROS!B33 -> % gastos de Gestión externalizados (auditores, seguros) | C197: ESTUDIOS | D197: Infinida | E197: % costo de obra | F197: =PARAMETROS!D33 -> 0.03 | G197: =L33+L38+L45+L53+L57+L61+L70+L85+L184 -> 88290051.73 | H197: =M33+M38+M45+M53+M57+M61+M70+M85+M184 -> 112194338.7 | J197: =PARAMETROS!$E33*L197 -> 264870.1552 | K197: =PARAMETROS!$E33*M197 -> 336583.0162 | L197: 2648701.552 | M197: 3365830.162 | O197: 0 | P197: =L197 -> 2648701.552 | Q197: 0 | R197: =M197 -> 3365830.162 | T197: 0.25 | U197: 0.25 | V197: 0.25 | W197: 0.25 | Y197: Municipio
B198: =PARAMETROS!B34 -> Tramites administrativos | C198: ESTUDIOS | D198: Infinida | E198: U | F198: =PARAMETROS!D34 -> 600000 | G198: 1 | H198: 1 | J198: =PARAMETROS!$E34*L198 -> 150000 | K198: =PARAMETROS!$E34*M198 -> 150000 | L198: 600000 | M198: 600000 | O198: =L198 -> 600000 | P198: 0 | Q198: =M198 -> 600000 | R198: 0 | T198: 1
L200: =L33+L38+L45+L53+L57+L61+L70+L85+L175+L194+L195+L197 -> 103126202 | M200: =M33+M38+M45+M53+M57+M61+M70+M85+M175+M194+M195+M197 -> 129395403.3
L201: =L33*J33+L38*J38+L45*J45+L53*J53+L57*J57+L61*J61+L70*J70+L85*J85+L175*J175+(L194+L195+L197)*J193 -> 23372431.26 | M201: =M33*K33+M38*K38+M45*K45+M53*K53+M57*K57+M61*K61+M70*K70+M85*K85+M175*K175+(M194+M195+M197)*K193 -> 29189196.22
B202: Superficies comerciales | E202: m2 | G202: =G89+G100+G111+G122+G133+G144+G155+G166 -> 1250 | H202: =H89+H100+H111+H122+H133+H144+H155+H166 -> 1750 | L202: =L200+L201 -> 126498633.3 | M202: 158584599.6
B203: Superficies funcionales | E203: m2 | G203: =G90+G92+G101+G103+G112+G114+G123+G125+G134+G136+G145+G147+G156+G158+G167+G169 -> 4700 | H203: =H90+H92+H101+H103+H112+H114+H123+H125+H134+H136+H145+H147+H156+H158+H167+H169 -> 6100
B204: Superficies tecnicas | E204: m2 | G204: =G93+G94+G104+G105+G115+G116+G126+G127+G137+G138+G148+G149+G159+G160+G170+G171 -> 2350 | H204: =H93+H94+H104+H105+H115+H116+H126+H127+H137+H138+H148+H149+H159+H160+H170+H171 -> 2780 | L204: =L23+L33+L38+L45+L53+L57+L61+L70+L85+L175+L184+L194+L195+L197 -> 105492590.1 | M204: =M23+M33+M38+M45+M53+M57+M61+M70+M85+M175+M184+M194+M195+M197 -> 134157502.6
L205: =L201+L23*J23+L184*J184 -> 23834028.27 | M205: =M201+M23*K23+M184*K184 -> 30041721.04
L206: =L204+L205 -> 129326618.3 | M206: 164199223.6
K209: costo/km | L209: =L204/CANTIDADES!B22*1000 -> 17880100.01 | M209: =M204/CANTIDADES!C22*1000 -> 16562654.64
L210: =L206/CANTIDADES!B22*1000 -> 21919765.82 | M210: =M206/CANTIDADES!C22*1000 -> 20271509.09
K213: Supervision | L213: =L193 -> 18258010.35 | M213: 23038867.75
L214: =J193*L213 -> 1915801.035 | M214: =K193*M213 -> 2393886.775
L215: =L213+L214 -> 20173811.38 | M215: 25432754.52
K218: Sin depreciacion | L218: =SUMIF($D$12:$D$198,"Infinida",(L12:L198))/L204 -> 0.2646220655 | M218: =SUMIF($D$12:$D$198,"Infinida",(M12:M198))/M204 -> 0.247444413
K219: Depreciacion 50 años | L219: =SUMIF($D$12:$D$198,50,(L12:L198))/L204 -> 0.2700315646 | M219: =SUMIF($D$12:$D$198,50,(M12:M198))/M204 -> 0.2657245898
K220: Depreciacion 40 años | L220: =SUMIF($D$12:$D$198,40,(L12:L198))/L204 -> 0.4828585525 | M220: =SUMIF($D$12:$D$198,40,(M12:M198))/M204 -> 0.4716539891
K221: Depreciacion 15 años | L221: =SUMIF($D$12:$D$198,15,(L12:L198))/L204 -> 0.09046012148 | M221: =SUMIF($D$12:$D$198,15,(M12:M198))/M204 -> 0.09257777036
K222: Depreciacion 10 años | L222: =SUMIF($D$12:$D$198,10,(L12:L198))/L204 -> 0.02243179387 | M222: =SUMIF($D$12:$D$198,10,(M12:M198))/M204 -> 0.03549633199
K223: Depreciacion 5 años | L223: =SUMIF($D$12:$D$198,5,(L12:L198))/L204 -> 0.007776247841 | M223: =SUMIF($D$12:$D$198,5,(M12:M198))/M204 -> 0.008394794923
L225: =SUM(L218:L223) -> 1.138180346 | M225: 1.121291889
... 11 more rows

Sheet INVERSION_ANUALIZADA_TC_Alt_19 (hidden)
B2: Legenda | C2: Dato de entrada
C3: Celda llave
C4: Error
C5: Dato calculado
E8: Alternativa B - Inversion anualizada
C9: Duracion de vida | D9: Contingencias | E9: 2015 | F9: 2016 | G9: 2017 | H9: 2018 | I9: 2019 | J9: 2020 | K9: 2021 | L9: 2022 | M9: 2023 | N9: 2024 | O9: 2025 | P9: 2026 | Q9: 2027 | R9: 2028 | S9: 2029 | T9: 2030 | U9: 2031 | V9: 2032 | W9: 2033 | X9: 2034 | Y9: 2035 | Z9: 2036 | AA9: 2037 | AB9: 2038 | AC9: 2039 | AD9: 2040 | AE9: 2041 | AF9: 2042 | AG9: 2043 | AH9: 2044 | AI9: 2045 | AJ9: 2046 | AK9: 2047 | AL9: 2048 | AM9: 2049 | AN9: 2050 | AO9: 2051 | AP9: 2052 | AQ9: 2053 | AR9: 2054 | AS9: 2055 | AT9: 2056 | AU9: 2057 | AV9: 2058 | AW9: 2059 | AX9: 2060
B11: =CHIFFRAGE_TC!B12 -> Compra de terrenos para estaciones y servidumbres | D11: =CHIFFRAGE_TC!J12 -> 0.25 | E11: =SUM(E12:E21) -> 0 | F11: =SUM(F12:F21) -> 0 | G11: =SUM(G12:G21) -> 0 | H11: =SUM(H12:H21) -> 0 | I11: =SUM(I12:I21) -> 0 | J11: 0 | K11: 0 | L11: 0 | M11: 0 | N11: 0 | O11: 0 | P11: 0 | Q11: 0 | R11: 0 | S11: 0 | T11: 0 | U11: 0 | V11: 0 | W11: 0 | X11: 0 | Y11: 0 | Z11: 0 | AA11: 0 | AB11: 0 | AC11: 0 | AD11: 0 | AE11: 0 | AF11: 0 | AG11: 0 | AH11: 0 | AI11: 0 | AJ11: 0 | AK11: 0 | AL11: 0 | AM11: 0 | AN11: 0 | AO11: 0 | AP11: 0 | AQ11: 0 | AR11: 0 | AS11: 0 | AT11: 0 | AU11: 0 | AV11: 0 | AW11: 0 | AX11: 0
B12: =CHIFFRAGE_TC!B13 -> Estacion Duran (Terminal) | C12: =CHIFFRAGE_TC!D13 -> Infinida | I12: 0 | J12: 0 | K12: 0 | L12: 0 | M12: 0 | N12: 0 | O12: 0 | P12: 0 | Q12: 0 | R12: 0 | S12: 0 | T12: 0 | U12: 0 | V12: 0 | W12: 0 | X12: 0 | Y12: 0 | Z12: 0 | AA12: 0 | AB12: 0 | AC12: 0 | AD12: 0 | AE12: 0 | AF12: 0 | AG12: 0 | AH12: 0 | AI12: 0 | AJ12: 0 | AK12: 0 | AL12: 0 | AM12: 0 | AN12: 0 | AO12: 0 | AP12: 0 | AQ12: 0 | AR12: 0 | AS12: 0 | AT12: 0 | AU12: 0 | AV12: 0 | AW12: 0 | AX12: 0
B13: =CHIFFRAGE_TC!B14 -> Estacion Samborondon | C13: =CHIFFRAGE_TC!D14 -> Infinida | I13: 0 | J13: 0 | K13: 0 | L13: 0 | M13: 0 | N13: 0 | O13: 0 | P13: 0 | Q13: 0 | R13: 0 | S13: 0 | T13: 0 | U13: 0 | V13: 0 | W13: 0 | X13: 0 | Y13: 0 | Z13: 0 | AA13: 0 | AB13: 0 | AC13: 0 | AD13: 0 | AE13: 0 | AF13: 0 | AG13: 0 | AH13: 0 | AI13: 0 | AJ13: 0 | AK13: 0 | AL13: 0 | AM13: 0 | AN13: 0 | AO13: 0 | AP13: 0 | AQ13: 0 | AR13: 0 | AS13: 0 | AT13: 0 | AU13: 0 | AV13: 0 | AW13: 0 | AX13: 0
B14: =CHIFFRAGE_TC!B15 -> Estacion Malecon (Terminal) | C14: =CHIFFRAGE_TC!D15 -> Infinida | I14: 0 | J14: 0 | K14: 0 | L14: 0 | M14: 0 | N14: 0 | O14: 0 | P14: 0 | Q14: 0 | R14: 0 | S14: 0 | T14: 0 | U14: 0 | V14: 0 | W14: 0 | X14: 0 | Y14: 0 | Z14: 0 | AA14: 0 | AB14: 0 | AC14: 0 | AD14: 0 | AE14: 0 | AF14: 0 | AG14: 0 | AH14: 0 | AI14: 0 | AJ14: 0 | AK14: 0 | AL14: 0 | AM14: 0 | AN14: 0 | AO14: 0 | AP14: 0 | AQ14: 0 | AR14: 0 | AS14: 0 | AT14: 0 | AU14: 0 | AV14: 0 | AW14: 0 | AX14: 0
B15: =CHIFFRAGE_TC!B16 -> Estacion Puerto Santa Ana (Sur) | C15: =CHIFFRAGE_TC!D16 -> Infinida | I15: 0 | J15: 0 | K15: 0 | L15: 0 | M15: 0 | N15: 0 | O15: 0 | P15: 0 | Q15: 0 | R15: 0 | S15: 0 | T15: 0 | U15: 0 | V15: 0 | W15: 0 | X15: 0 | Y15: 0 | Z15: 0 | AA15: 0 | AB15: 0 | AC15: 0 | AD15: 0 | AE15: 0 | AF15: 0 | AG15: 0 | AH15: 0 | AI15: 0 | AJ15: 0 | AK15: 0 | AL15: 0 | AM15: 0 | AN15: 0 | AO15: 0 | AP15: 0 | AQ15: 0 | AR15: 0 | AS15: 0 | AT15: 0 | AU15: 0 | AV15: 0 | AW15: 0 | AX15: 0
B16: =CHIFFRAGE_TC!B17 -> Estacion Malecon Centro Cultural | C16: =CHIFFRAGE_TC!D17 -> Infinida | I16: 0 | J16: 0 | K16: 0 | L16: 0 | M16: 0 | N16: 0 | O16: 0 | P16: 0 | Q16: 0 | R16: 0 | S16: 0 | T16: 0 | U16: 0 | V16: 0 | W16: 0 | X16: 0 | Y16: 0 | Z16: 0 | AA16: 0 | AB16: 0 | AC16: 0 | AD16: 0 | AE16: 0 | AF16: 0 | AG16: 0 | AH16: 0 | AI16: 0 | AJ16: 0 | AK16: 0 | AL16: 0 | AM16: 0 | AN16: 0 | AO16: 0 | AP16: 0 | AQ16: 0 | AR16: 0 | AS16: 0 | AT16: 0 | AU16: 0 | AV16: 0 | AW16: 0 | AX16: 0
B17: =CHIFFRAGE_TC!B18 -> Estacion Cimentero (Tecnica) | C17: =CHIFFRAGE_TC!D18 -> Infinida | I17: 0 | J17: 0 | K17: 0 | L17: 0 | M17: 0 | N17: 0 | O17: 0 | P17: 0 | Q17: 0 | R17: 0 | S17: 0 | T17: 0 | U17: 0 | V17: 0 | W17: 0 | X17: 0 | Y17: 0 | Z17: 0 | AA17: 0 | AB17: 0 | AC17: 0 | AD17: 0 | AE17: 0 | AF17: 0 | AG17: 0 | AH17: 0 | AI17: 0 | AJ17: 0 | AK17: 0 | AL17: 0 | AM17: 0 | AN17: 0 | AO17: 0 | AP17: 0 | AQ17: 0 | AR17: 0 | AS17: 0 | AT17: 0 | AU17: 0 | AV17: 0 | AW17: 0 | AX17: 0
B18: =CHIFFRAGE_TC!B19 -> Estacion Avenida Quito | C18: =CHIFFRAGE_TC!D19 -> Infinida | I18: 0 | J18: 0 | K18: 0 | L18: 0 | M18: 0 | N18: 0 | O18: 0 | P18: 0 | Q18: 0 | R18: 0 | S18: 0 | T18: 0 | U18: 0 | V18: 0 | W18: 0 | X18: 0 | Y18: 0 | Z18: 0 | AA18: 0 | AB18: 0 | AC18: 0 | AD18: 0 | AE18: 0 | AF18: 0 | AG18: 0 | AH18: 0 | AI18: 0 | AJ18: 0 | AK18: 0 | AL18: 0 | AM18: 0 | AN18: 0 | AO18: 0 | AP18: 0 | AQ18: 0 | AR18: 0 | AS18: 0 | AT18: 0 | AU18: 0 | AV18: 0 | AW18: 0 | AX18: 0
B19: =CHIFFRAGE_TC!B20 -> Estacion Centenario (Terminal) | C19: =CHIFFRAGE_TC!D20 -> Infinida | I19: 0 | J19: 0 | K19: 0 | L19: 0 | M19: 0 | N19: 0 | O19: 0 | P19: 0 | Q19: 0 | R19: 0 | S19: 0 | T19: 0 | U19: 0 | V19: 0 | W19: 0 | X19: 0 | Y19: 0 | Z19: 0 | AA19: 0 | AB19: 0 | AC19: 0 | AD19: 0 | AE19: 0 | AF19: 0 | AG19: 0 | AH19: 0 | AI19: 0 | AJ19: 0 | AK19: 0 | AL19: 0 | AM19: 0 | AN19: 0 | AO19: 0 | AP19: 0 | AQ19: 0 | AR19: 0 | AS19: 0 | AT19: 0 | AU19: 0 | AV19: 0 | AW19: 0 | AX19: 0
B20: =CHIFFRAGE_TC!#REF! ->  | C20: =CHIFFRAGE_TC!#REF! ->  | I20: 0 | J20: 0 | K20: 0 | L20: 0 | M20: 0 | N20: 0 | O20: 0 | P20: 0 | Q20: 0 | R20: 0 | S20: 0 | T20: 0 | U20: 0 | V20: 0 | W20: 0 | X20: 0 | Y20: 0 | Z20: 0 | AA20: 0 | AB20: 0 | AC20: 0 | AD20: 0 | AE20: 0 | AF20: 0 | AG20: 0 | AH20: 0 | AI20: 0 | AJ20: 0 | AK20: 0 | AL20: 0 | AM20: 0 | AN20: 0 | AO20: 0 | AP20: 0 | AQ20: 0 | AR20: 0 | AS20: 0 | AT20: 0 | AU20: 0 | AV20: 0 | AW20: 0 | AX20: 0
B21: =CHIFFRAGE_TC!B21 -> Servidumbres en linea | C21: =CHIFFRAGE_TC!D21 -> Infinida | I21: 0 | J21: 0 | K21: 0 | L21: 0 | M21: 0 | N21: 0 | O21: 0 | P21: 0 | Q21: 0 | R21: 0 | S21: 0 | T21: 0 | U21: 0 | V21: 0 | W21: 0 | X21: 0 | Y21: 0 | Z21: 0 | AA21: 0 | AB21: 0 | AC21: 0 | AD21: 0 | AE21: 0 | AF21: 0 | AG21: 0 | AH21: 0 | AI21: 0 | AJ21: 0 | AK21: 0 | AL21: 0 | AM21: 0 | AN21: 0 | AO21: 0 | AP21: 0 | AQ21: 0 | AR21: 0 | AS21: 0 | AT21: 0 | AU21: 0 | AV21: 0 | AW21: 0 | AX21: 0
B23: =CHIFFRAGE_TC!B23 -> Compra de terrenos para estacionamiento (operacion adicional) | D23: =CHIFFRAGE_TC!J23 -> 0 | I23: =SUM(I24:I31) -> 0 | J23: 0 | K23: 0 | L23: 0 | M23: 0 | N23: 0 | O23: 0 | P23: 0 | Q23: 0 | R23: 0 | S23: 0 | T23: 0 | U23: 0 | V23: 0 | W23: 0 | X23: 0 | Y23: 0 | Z23: 0 | AA23: 0 | AB23: 0 | AC23: 0 | AD23: 0 | AE23: 0 | AF23: 0 | AG23: 0 | AH23: 0 | AI23: 0 | AJ23: 0 | AK23: 0 | AL23: 0 | AM23: 0 | AN23: 0 | AO23: 0 | AP23: 0 | AQ23: 0 | AR23: 0 | AS23: 0 | AT23: 0 | AU23: 0 | AV23: 0 | AW23: 0 | AX23: 0
B24: =CHIFFRAGE_TC!B24 -> Estacion Duran (Terminal) | C24: =CHIFFRAGE_TC!D24 -> Infinida | I24: 0 | J24: 0 | K24: 0 | L24: 0 | M24: 0 | N24: 0 | O24: 0 | P24: 0 | Q24: 0 | R24: 0 | S24: 0 | T24: 0 | U24: 0 | V24: 0 | W24: 0 | X24: 0 | Y24: 0 | Z24: 0 | AA24: 0 | AB24: 0 | AC24: 0 | AD24: 0 | AE24: 0 | AF24: 0 | AG24: 0 | AH24: 0 | AI24: 0 | AJ24: 0 | AK24: 0 | AL24: 0 | AM24: 0 | AN24: 0 | AO24: 0 | AP24: 0 | AQ24: 0 | AR24: 0 | AS24: 0 | AT24: 0 | AU24: 0 | AV24: 0 | AW24: 0 | AX24: 0
B25: =CHIFFRAGE_TC!B25 -> Estacion Samborondon (Terminal) | C25: =CHIFFRAGE_TC!D25 -> Infinida | I25: 0 | J25: 0 | K25: 0 | L25: 0 | M25: 0 | N25: 0 | O25: 0 | P25: 0 | Q25: 0 | R25: 0 | S25: 0 | T25: 0 | U25: 0 | V25: 0 | W25: 0 | X25: 0 | Y25: 0 | Z25: 0 | AA25: 0 | AB25: 0 | AC25: 0 | AD25: 0 | AE25: 0 | AF25: 0 | AG25: 0 | AH25: 0 | AI25: 0 | AJ25: 0 | AK25: 0 | AL25: 0 | AM25: 0 | AN25: 0 | AO25: 0 | AP25: 0 | AQ25: 0 | AR25: 0 | AS25: 0 | AT25: 0 | AU25: 0 | AV25: 0 | AW25: 0 | AX25: 0
B26: =CHIFFRAGE_TC!B26 -> Estacion Puerto Santa Ana (Norte) | C26: =CHIFFRAGE_TC!D26 -> Infinida | I26: 0 | J26: 0 | K26: 0 | L26: 0 | M26: 0 | N26: 0 | O26: 0 | P26: 0 | Q26: 0 | R26: 0 | S26: 0 | T26: 0 | U26: 0 | V26: 0 | W26: 0 | X26: 0 | Y26: 0 | Z26: 0 | AA26: 0 | AB26: 0 | AC26: 0 | AD26: 0 | AE26: 0 | AF26: 0 | AG26: 0 | AH26: 0 | AI26: 0 | AJ26: 0 | AK26: 0 | AL26: 0 | AM26: 0 | AN26: 0 | AO26: 0 | AP26: 0 | AQ26: 0 | AR26: 0 | AS26: 0 | AT26: 0 | AU26: 0 | AV26: 0 | AW26: 0 | AX26: 0
B27: =CHIFFRAGE_TC!B27 -> Estacion Puerto Santa Ana (Sur) | C27: =CHIFFRAGE_TC!D27 -> Infinida | I27: 0 | J27: 0 | K27: 0 | L27: 0 | M27: 0 | N27: 0 | O27: 0 | P27: 0 | Q27: 0 | R27: 0 | S27: 0 | T27: 0 | U27: 0 | V27: 0 | W27: 0 | X27: 0 | Y27: 0 | Z27: 0 | AA27: 0 | AB27: 0 | AC27: 0 | AD27: 0 | AE27: 0 | AF27: 0 | AG27: 0 | AH27: 0 | AI27: 0 | AJ27: 0 | AK27: 0 | AL27: 0 | AM27: 0 | AN27: 0 | AO27: 0 | AP27: 0 | AQ27: 0 | AR27: 0 | AS27: 0 | AT27: 0 | AU27: 0 | AV27: 0 | AW27: 0 | AX27: 0
B28: =CHIFFRAGE_TC!B28 -> Estacion Malecon Centro Cultural | C28: =CHIFFRAGE_TC!D28 -> Infinida | I28: 0 | J28: 0 | K28: 0 | L28: 0 | M28: 0 | N28: 0 | O28: 0 | P28: 0 | Q28: 0 | R28: 0 | S28: 0 | T28: 0 | U28: 0 | V28: 0 | W28: 0 | X28: 0 | Y28: 0 | Z28: 0 | AA28: 0 | AB28: 0 | AC28: 0 | AD28: 0 | AE28: 0 | AF28: 0 | AG28: 0 | AH28: 0 | AI28: 0 | AJ28: 0 | AK28: 0 | AL28: 0 | AM28: 0 | AN28: 0 | AO28: 0 | AP28: 0 | AQ28: 0 | AR28: 0 | AS28: 0 | AT28: 0 | AU28: 0 | AV28: 0 | AW28: 0 | AX28: 0
B29: =CHIFFRAGE_TC!B29 -> Estacion Cimentero (Tecnica) | C29: =CHIFFRAGE_TC!D29 -> Infinida | I29: 0 | J29: 0 | K29: 0 | L29: 0 | M29: 0 | N29: 0 | O29: 0 | P29: 0 | Q29: 0 | R29: 0 | S29: 0 | T29: 0 | U29: 0 | V29: 0 | W29: 0 | X29: 0 | Y29: 0 | Z29: 0 | AA29: 0 | AB29: 0 | AC29: 0 | AD29: 0 | AE29: 0 | AF29: 0 | AG29: 0 | AH29: 0 | AI29: 0 | AJ29: 0 | AK29: 0 | AL29: 0 | AM29: 0 | AN29: 0 | AO29: 0 | AP29: 0 | AQ29: 0 | AR29: 0 | AS29: 0 | AT29: 0 | AU29: 0 | AV29: 0 | AW29: 0 | AX29: 0
B30: =CHIFFRAGE_TC!B30 -> Estacion Avenida Quito | C30: =CHIFFRAGE_TC!D30 -> Infinida | I30: 0 | J30: 0 | K30: 0 | L30: 0 | M30: 0 | N30: 0 | O30: 0 | P30: 0 | Q30: 0 | R30: 0 | S30: 0 | T30: 0 | U30: 0 | V30: 0 | W30: 0 | X30: 0 | Y30: 0 | Z30: 0 | AA30: 0 | AB30: 0 | AC30: 0 | AD30: 0 | AE30: 0 | AF30: 0 | AG30: 0 | AH30: 0 | AI30: 0 | AJ30: 0 | AK30: 0 | AL30: 0 | AM30: 0 | AN30: 0 | AO30: 0 | AP30: 0 | AQ30: 0 | AR30: 0 | AS30: 0 | AT30: 0 | AU30: 0 | AV30: 0 | AW30: 0 | AX30: 0
B31: =CHIFFRAGE_TC!B31 -> Estacion Centenario (Terminal) | C31: =CHIFFRAGE_TC!D31 -> Infinida | I31: 0 | J31: 0 | K31: 0 | L31: 0 | M31: 0 | N31: 0 | O31: 0 | P31: 0 | Q31: 0 | R31: 0 | S31: 0 | T31: 0 | U31: 0 | V31: 0 | W31: 0 | X31: 0 | Y31: 0 | Z31: 0 | AA31: 0 | AB31: 0 | AC31: 0 | AD31: 0 | AE31: 0 | AF31: 0 | AG31: 0 | AH31: 0 | AI31: 0 | AJ31: 0 | AK31: 0 | AL31: 0 | AM31: 0 | AN31: 0 | AO31: 0 | AP31: 0 | AQ31: 0 | AR31: 0 | AS31: 0 | AT31: 0 | AU31: 0 | AV31: 0 | AW31: 0 | AX31: 0
B33: =CHIFFRAGE_TC!B33 -> Decontaminacion y proteccion | D33: =CHIFFRAGE_TC!J33 -> 0.25 | E33: =SUM(E34:E36) -> 0 | F33: =SUM(F34:F36) -> 1340657.709 | G33: =SUM(G34:G36) -> 1245500.977 | H33: =SUM(H34:H36) -> 2491001.954 | I33: =SUM(I34:I36) -> 0 | J33: 0 | K33: 0 | L33: 0 | M33: 0 | N33: 0 | O33: 0 | P33: 0 | Q33: 0 | R33: 0 | S33: 0 | T33: 0 | U33: 0 | V33: 0 | W33: 0 | X33: 0 | Y33: 0 | Z33: 0 | AA33: 0 | AB33: 0 | AC33: 0 | AD33: 0 | AE33: 0 | AF33: 0 | AG33: 0 | AH33: 0 | AI33: 0 | AJ33: 0 | AK33: 0 | AL33: 0 | AM33: 0 | AN33: 0 | AO33: 0 | AP33: 0 | AQ33: 0 | AR33: 0 | AS33: 0 | AT33: 0 | AU33: 0 | AV33: 0 | AW33: 0 | AX33: 0
B34: =CHIFFRAGE_TC!B34 -> Proteccion contra incendios (techos) | C34: =CHIFFRAGE_TC!D34 -> 40 | E34: =CHIFFRAGE_TC!$L34*CHIFFRAGE_TC!$T34 -> 0 | F34: =CHIFFRAGE_TC!$L34*CHIFFRAGE_TC!$U34 -> 741124.5483 | G34: =CHIFFRAGE_TC!$L34*CHIFFRAGE_TC!$V34 -> 741124.5483 | H34: =CHIFFRAGE_TC!$L34*CHIFFRAGE_TC!$W34 -> 1482249.097 | I34: 0 | J34: 0 | K34: 0 | L34: 0 | M34: 0 | N34: 0 | O34: 0 | P34: 0 | Q34: 0 | R34: 0 | S34: 0 | T34: 0 | U34: 0 | V34: 0 | W34: 0 | X34: 0 | Y34: 0 | Z34: 0 | AA34: 0 | AB34: 0 | AC34: 0 | AD34: 0 | AE34: 0 | AF34: 0 | AG34: 0 | AH34: 0 | AI34: 0 | AJ34: 0 | AK34: 0 | AL34: 0 | AM34: 0 | AN34: 0 | AO34: 0 | AP34: 0 | AQ34: 0 | AR34: 0 | AS34: 0 | AT34: 0 | AU34: 0 | AV34: 0 | AW34: 0 | AX34: 0
B35: =CHIFFRAGE_TC!B35 -> Proteccion contra incendios (fachadas) | C35: =CHIFFRAGE_TC!D35 -> 40 | E35: =CHIFFRAGE_TC!$L35*CHIFFRAGE_TC!$T35 -> 0 | F35: =CHIFFRAGE_TC!$L35*CHIFFRAGE_TC!$U35 -> 504376.4287 | G35: =CHIFFRAGE_TC!$L35*CHIFFRAGE_TC!$V35 -> 504376.4287 | H35: =CHIFFRAGE_TC!$L35*CHIFFRAGE_TC!$W35 -> 1008752.857 | I35: 0 | J35: 0 | K35: 0 | L35: 0 | M35: 0 | N35: 0 | O35: 0 | P35: 0 | Q35: 0 | R35: 0 | S35: 0 | T35: 0 | U35: 0 | V35: 0 | W35: 0 | X35: 0 | Y35: 0 | Z35: 0 | AA35: 0 | AB35: 0 | AC35: 0 | AD35: 0 | AE35: 0 | AF35: 0 | AG35: 0 | AH35: 0 | AI35: 0 | AJ35: 0 | AK35: 0 | AL35: 0 | AM35: 0 | AN35: 0 | AO35: 0 | AP35: 0 | AQ35: 0 | AR35: 0 | AS35: 0 | AT35: 0 | AU35: 0 | AV35: 0 | AW35: 0 | AX35: 0
B36: =CHIFFRAGE_TC!B36 -> Decontaminacion de suelo | C36: =CHIFFRAGE_TC!D36 -> Infinida | E36: =CHIFFRAGE_TC!$L36*CHIFFRAGE_TC!$T36 -> 0 | F36: =CHIFFRAGE_TC!$L36*CHIFFRAGE_TC!$U36 -> 95156.73212 | G36: =CHIFFRAGE_TC!$L36*CHIFFRAGE_TC!$V36 -> 0 | H36: =CHIFFRAGE_TC!$L36*CHIFFRAGE_TC!$W36 -> 0 | I36: 0 | J36: 0 | K36: 0 | L36: 0 | M36: 0 | N36: 0 | O36: 0 | P36: 0 | Q36: 0 | R36: 0 | S36: 0 | T36: 0 | U36: 0 | V36: 0 | W36: 0 | X36: 0 | Y36: 0 | Z36: 0 | AA36: 0 | AB36: 0 | AC36: 0 | AD36: 0 | AE36: 0 | AF36: 0 | AG36: 0 | AH36: 0 | AI36: 0 | AJ36: 0 | AK36: 0 | AL36: 0 | AM36: 0 | AN36: 0 | AO36: 0 | AP36: 0 | AQ36: 0 | AR36: 0 | AS36: 0 | AT36: 0 | AU36: 0 | AV36: 0 | AW36: 0 | AX36: 0
B38: =CHIFFRAGE_TC!B38 -> Infraestructura y estructuras de lineas | D38: =CHIFFRAGE_TC!J38 -> 0.25 | E38: =SUM(E39:E43) -> 0 | F38: =SUM(F39:F43) -> 2716069.923 | G38: 8148209.768 | H38: 2716069.923 | I38: 0 | J38: 0 | K38: 0 | L38: 0 | M38: 0 | N38: 0 | O38: 0 | P38: 0 | Q38: 0 | R38: 0 | S38: 0 | T38: 0 | U38: 0 | V38: 0 | W38: 0 | X38: 0 | Y38: 0 | Z38: 0 | AA38: 0 | AB38: 0 | AC38: 0 | AD38: 0 | AE38: 0 | AF38: 0 | AG38: 0 | AH38: 0 | AI38: 0 | AJ38: 0 | AK38: 0 | AL38: 0 | AM38: 0 | AN38: 0 | AO38: 0 | AP38: 0 | AQ38: 0 | AR38: 0 | AS38: 0 | AT38: 0 | AU38: 0 | AV38: 0 | AW38: 0 | AX38: 0
